Workbook

Sheet Tabelle (hidden)
A1: Number Format
A2: Amount
A3: Percentage
A4: Decimal
A6: Band Type
A7: +
A8: -
A10: Frequency
A11: Month
A12: Quarter
A13: Half Year
A14: Year
A18: Time Frame
A19: At present
A20: Year to Date
A23: Period | B23: PerGraf
B24: =+InputActual!S$5 -> 2012.12
A25: =+InputActual!H$5 -> 2012.01 | B25: =+InputActual!T$5 -> 2013.01 | C25: 1
A26: =+InputActual!I$5 -> 2012.02 | B26: =+InputActual!U$5 -> 2013.02 | C26: 2
A27: =+InputActual!J$5 -> 2012.03 | B27: =+InputActual!V$5 -> 2013.03 | C27: 3
A28: =+InputActual!K$5 -> 2012.04 | B28: =+InputActual!W$5 -> 2013.04 | C28: 4
A29: =+InputActual!L$5 -> 2012.05 | B29: =+InputActual!X$5 -> 2013.05 | C29: 5
A30: =+InputActual!M$5 -> 2012.06 | B30: =+InputActual!Y$5 -> 2013.06 | C30: 6
A31: =+InputActual!N$5 -> 2012.07 | B31: =+InputActual!Z$5 -> 2013.07 | C31: 7
A32: =+InputActual!O$5 -> 2012.08 | B32: =+InputActual!AA$5 -> 2013.08 | C32: 8
A33: =+InputActual!P$5 -> 2012.09 | B33: =+InputActual!AB$5 -> 2013.09 | C33: 9
A34: =+InputActual!Q$5 -> 2012.10 | B34: =+InputActual!AC$5 -> 2013.10 | C34: 10
A35: =+InputActual!R$5 -> 2012.11 | B35: =+InputActual!AD$5 -> 2013.11 | C35: 11
A36: =+InputActual!S$5 -> 2012.12 | B36: =+InputActual!AE$5 -> 2013.12 | C36: 12
A37: =+InputActual!T$5 -> 2013.01 | B37: =+InputActual!AF$5 -> 2014.01 | C37: 13
A38: =+InputActual!U$5 -> 2013.02 | B38: =+InputActual!AG$5 -> 2014.02 | C38: 14
A39: =+InputActual!V$5 -> 2013.03 | B39: =+InputActual!AH$5 -> 2014.03 | C39: 15
A40: =+InputActual!W$5 -> 2013.04 | B40: =+InputActual!AI$5 -> 2014.04 | C40: 16
A41: =+InputActual!X$5 -> 2013.05 | B41: =+InputActual!AJ$5 -> 2014.05 | C41: 17
A42: =+InputActual!Y$5 -> 2013.06 | B42: =+InputActual!AK$5 -> 2014.06 | C42: 18
A43: =+InputActual!Z$5 -> 2013.07 | B43: =+InputActual!AL$5 -> 2014.07 | C43: 19
A44: =+InputActual!AA$5 -> 2013.08 | B44: =+InputActual!AM$5 -> 2014.08 | C44: 20
A45: =+InputActual!AB$5 -> 2013.09 | B45: =+InputActual!AN$5 -> 2014.09 | C45: 21
A46: =+InputActual!AC$5 -> 2013.10 | B46: =+InputActual!AO$5 -> 2014.10 | C46: 22
A47: =+InputActual!AD$5 -> 2013.11 | B47: =+InputActual!AP$5 -> 2014.11 | C47: 23
A48: =+InputActual!AE$5 -> 2013.12 | B48: =+InputActual!AQ$5 -> 2014.12 | C48: 24
A49: =+InputActual!AF$5 -> 2014.01 | B49: =+InputActual!AR$5 -> 2015.01 | C49: 25
A50: =+InputActual!AG$5 -> 2014.02 | B50: =+InputActual!AS$5 -> 2015.02 | C50: 26
A51: =+InputActual!AH$5 -> 2014.03 | B51: =+InputActual!AT$5 -> 2015.03 | C51: 27
A52: =+InputActual!AI$5 -> 2014.04 | B52: =+InputActual!AU$5 -> 2015.04 | C52: 28
A53: =+InputActual!AJ$5 -> 2014.05 | B53: =+InputActual!AV$5 -> 2015.05 | C53: 29
A54: =+InputActual!AK$5 -> 2014.06 | B54: =+InputActual!AW$5 -> 2015.06 | C54: 30
A55: =+InputActual!AL$5 -> 2014.07 | B55: =+InputActual!AX$5 -> 2015.07 | C55: 31
A56: =+InputActual!AM$5 -> 2014.08 | B56: =+InputActual!AY$5 -> 2015.08 | C56: 32
A57: =+InputActual!AN$5 -> 2014.09 | B57: =+InputActual!AZ$5 -> 2015.09 | C57: 33
A58: =+InputActual!AO$5 -> 2014.10 | B58: =+InputActual!BA$5 -> 2015.10 | C58: 34
A59: =+InputActual!AP$5 -> 2014.11 | B59: =+InputActual!BB$5 -> 2015.11 | C59: 35
A60: =+InputActual!AQ$5 -> 2014.12 | B60: =+InputActual!BC$5 -> 2015.12 | C60: 36
A61: =+InputActual!AR$5 -> 2015.01 | B61: =+InputActual!BD$5 -> 2016.01 | C61: 37
A62: =+InputActual!AS$5 -> 2015.02 | B62: =+InputActual!BE$5 -> 2016.02 | C62: 38
A63: =+InputActual!AT$5 -> 2015.03 | B63: =+InputActual!BF$5 -> 2016.03 | C63: 39
A64: =+InputActual!AU$5 -> 2015.04 | B64: =+InputActual!BG$5 -> 2016.04 | C64: 40
A65: =+InputActual!AV$5 -> 2015.05 | B65: =+InputActual!BH$5 -> 2016.05 | C65: 41
A66: =+InputActual!AW$5 -> 2015.06 | B66: =+InputActual!BI$5 -> 2016.06 | C66: 42
A67: =+InputActual!AX$5 -> 2015.07 | B67: =+InputActual!BJ$5 -> 2016.07 | C67: 43
A68: =+InputActual!AY$5 -> 2015.08 | B68: =+InputActual!BK$5 -> 2016.08 | C68: 44
A69: =+InputActual!AZ$5 -> 2015.09 | B69: =+InputActual!BL$5 -> 2016.09 | C69: 45
A70: =+InputActual!BA$5 -> 2015.10 | B70: =+InputActual!BM$5 -> 2016.10 | C70: 46
A71: =+InputActual!BB$5 -> 2015.11 | B71: =+InputActual!BN$5 -> 2016.11 | C71: 47
A72: =+InputActual!BC$5 -> 2015.12 | B72: =+InputActual!BO$5 -> 2016.12 | C72: 48
A73: =+InputActual!BD$5 -> 2016.01 | C73: 49
A74: =+InputActual!BE$5 -> 2016.02 | C74: 50
A75: =+InputActual!BF$5 -> 2016.03 | C75: 51
A76: =+InputActual!BG$5 -> 2016.04 | C76: 52
A77: =+InputActual!BH$5 -> 2016.05 | C77: 53
A78: =+InputActual!BI$5 -> 2016.06 | C78: 54
A79: =+InputActual!BJ$5 -> 2016.07 | C79: 55
A80: =+InputActual!BK$5 -> 2016.08 | C80: 56
A81: =+InputActual!BL$5 -> 2016.09 | C81: 57
A82: =+InputActual!BM$5 -> 2016.10 | C82: 58
A83: =+InputActual!BN$5 -> 2016.11 | C83: 59
A84: =+InputActual!BO$5 -> 2016.12 | C84: 60
A86: GrAtPresent
A87: YES
A88: NO
A90: 2
A93: Year
A94: =+Menu!$F$11 -> 2012
A95: =+A94+1 -> 2013
A96: =+A95+1 -> 2014
A97: =+A96+1 -> 2015
A98: =+A97+1 -> 2016
A100: 1 | B100: =+A100-1 -> 0
A102: 5 | B102: ="MS"&A102 -> MS5
A105: 1 | B105: ="P"&A105 -> P1

Sheet Menu
O3: UVM
D11: First Year | F11: 2012

Sheet Help
B7: Handbook | Q7: tools@progesa.com
B10: 1. System Requirement
B12: Microsoft Excel 2002-2003-2007
B13: To use the model you must set the macro security level on the level "low" through the following procedure:
B15: Tools --> Macro --> Security --> Security Level --> Low
B17: The model automatically adapts to screen size.
B18: The model manages a maximum of 5 years of measures.
B21: 2. X KPI Purpose and Basic Contents
B23: X KPI born with the objective of enabling a structured management performance indicators through a streamlined collection and organization of information and a
B24: performance verification both with respect to periods prior to that target set.
B25: Map of indicators is build basing on the following plan:
D27: Perspectives
E29: Categories
J30: Business Process
F31: KPIs
J32: Area Managers
B35: Perspectives constitute the highest level of classification of indicators (required)
B36: (for example: financial, market, internal process, ….)
B38: Categories represent subclassifications perspective (required)
B39: (for example: in the market perspective is possible to detail category like: sales, customer acquisition, …)
B41: Business Process represent a level of classification in according to internal business process ( that lie in a plane parallel to the
B42: perspectives and categories) (optional)
B44: Area Managers represent managers entrusted with the monitoring of the indicators and compliance targets (optional)
C47: This icon (from anywhere) back to the menu
B50: 3. First year and frequency
B52: The field "first year" in the model menu defines the year from which the measures are managed and the values entered.
B53: The model provides for the management of five years of activity fractionated in a monthly periodicity.
B54: Indicators with different frequency by month (eg quarterly) can be handled in two ways:
B55: 1. Recognition of competence within the month (leaving empty fields of two months not purchased)
B56: 2. Repeating the value found in the quarter for two months (in order to always have a value indicator)
B59: 4. Project Notes
B61: This worksheet enables the writing of notes that can be detected during the construction project.
B62: It constitutes a "notepad" on which to note the progress of the project and the steps to be taken.
B65: 5. Cleaning Fields
B67: The action "clean fields" allow the template to clean the tables below reports to highlight in "drop-down lists" only the update and active values.
B68: The procedure can be launched at user's discretion.
B71: 6. Perspectives
B73: The creation and modification of pespectives is through typing in the "white" fields.
B74: The modification of a previously entered description requires a new combination of related fields.
B77: 7. Categories
B79: The creation and modification of categories is through typing the description in the column "description category" and associating
B80: the category to the perspective through the drop-down menu in the column headed "description perspective".
B81: The modification of a previously entered description requires a new combination of related fields.
B84: 8. Area Managers
B86: The creation and modification of pespectives is through typing in the "white" fields.
B87: The modification of a previously entered description requires a new combination of related fields.
B90: 9. Business Process
B92: The creation and modification of pespectives is through typing in the "white" fields.
B93: The modification of a previously entered description requires a new combination of related fields.
B96: 10. KPIs
B98: The creation of the indicators is done through compiling and selecting different options and informations.
B100: a. Kpi Description
B101: Write the name of the indicator in the "white" field.
B102: b. Category Description
B103: Choose the category to which belongs the indicator through the drop-down menu in the "Category Description"
B104: The choice of the indicator category includes the directly association to the perspective
B105: c. Business Process Description (optional)
B106: Choose the process to which belongs the indicator through the drop-down menu in the "Business Process Description"
B107: d. Number Format
B108: Click through the drop-down menu, one of the possible formats
B109: e. Band Type
B110: Click through the drop-down menu, the indicator band type
B111: The band type expresses the better indicator trend: for some KPIs an increasing is a good thing (for example Sales or Revenue have a positive band type, "+"),
B112: for other KPIs, such as Costs or Complaints, an increasing is a bad thing (these indicators have a negative band type, "-").
B113: f. Frequency
B114: Click through the drop-down menu, the indicator frequency
B115: The choice has no impact on the model because the values are manually inserted into the chosen period
B116: g. Time Frame
B117: Click through the drop-down menu, the indicator time frame
B118: Year to Date (if the data entered is a sequence, eg sales from 01.01 to 30.04)
B119: At present (if the data entered is an present number, eg due to banks)
B120: h. GrAtPresent
B121: Scegliere se, in presenza di un indicatore progressivo, si vogliono vedere i valori anche mensili.
B122: Esempio: l'ordinato viene inserito come progressivo da inizio anno e il modello calcola i valori mensili puntuali
B123: i. Area Manager (optional)
B124: Click through the drop-down menu, the responsable of the performance indicator
C126: through this icon you can open the detailed description and the setting of the indicator (only if you are placed on the indicator code)
B129: 11. Detail and setting indicator
B131: In addition to information provided by the worksheet of creation indicators can further detail the characteristics of the indicator across the fields:
B133: a. Indicators description
B134: Detailed Description and Objective of the indicator
B135: b. Calculation Formula
B136: Calculation procedure that is followed for determining the value of the indicator
B137: c. Data Source
B138: Identify the source of the indicator value, where the data comes from (can be a file, ERP, statistics…)
B139: d. Target Description
B140: Calculation procedure that is followed for determining the goals of the indicator
B141: e. Other information
B142: Any other information related indicator
B145: 12. Actual Data
B147: In the matrix indicators - periods are added the indicator values observed at that time.
B148: Indicators with different frequency by month (eg quarterly) can be handled in two ways:
B149: 1. Recognition of competence within the month (leaving empty fields of two months not purchased)
B150: 2. Repeating the value found in the quarter for two months (in order to always have a value indicator)
B153: 13. Target Data
B155: In the matrix indicators - periods are inserted target/goals values identified by the indicator at the time
B156: Indicators with different frequency by month (eg quarterly) can be handled in two ways:
B157: 1. Recognition of competence within the month (leaving empty fields of two months not purchased)
B158: 2. Repeating the value found in the quarter for two months (in order to always have a value indicator)
B161: 14. Strategic Plan
B163: For each year of management you can set a business plan through:
B165: a. Strategic Plan
B166: Description of the overall corporate strategic plan
B167: b. Objectives
B168: Description of specific objectives related to strategic management
B169: c. Indicators
B170: Association of specific indicators of achievement to each objective
B171: d. Initiatives
B172: Description of specific initiatives to be implemented to achieve each targets
F174: The choice of the period of analysis will determine the achivement of objectives established in the strategic plan
B177: 15. Dashboard
B179: The dashboard is a business tool that allows you to configure and build periodic reports of the indicators
B180: The dashboard is updated automatically when opening
B181: The construction and analysis of the details is through the set of buttons at the top right
C183: Dashboard Print
C185: Configuration of the scale of analysis and the periods
C187: Graphic detail of the selected indicator
C189: Detailed description and setting of the selected indicator
B192: 16. Graphic indicator
B194: The graph indicator enables:
B195: a. the navigability of the indicators
B196: b. the choice of reporting period
B197: c. analysis of the last 12 months
B198: d. comparing the previous year and the target
B199: e. short guideline for development performance
B200: f. a graphical summary
B202: Navigability and the recording period allowed by the indicator buttons
H204: Choise from a menu of indicators created
H206: Scroll buttons indicators
H208: Choise of the period of evaluation
B211: Other icons:
C214: Print Chart
C216: Detailed description and setting of the selected indicator
C218: Transition to the chart at present (if the indicator has time frame "year to date")
B222: 17. Settings and Scores Indicator
B224: This worksheet combines the detailed information of the indicator with the values found in selected periods
B225: The worksheet functions are the same as for | H225: graphic indicator

Sheet Progetto
B2: Company: | C2: =+Menu!O3 -> UVM
B4: Process of implementing: | C4: DISEÑO DEL PLAN ESTRATEGICO DE UVM 2011

Sheet 1
B4: Company: | C4: =+Menu!O3 -> UVM
B6: Year: | C6: =Menu!F11 -> 2012
B8: Period: | C8: 2012.04
B10: Strategic Plan: | C10: NUESTRO OBJETIVO DE TENER UN CRECIMIENTO EN VENTAS, CON UNA REDUCCIÓN IMPORTANTE EN NUESTROS GASTOS FINANCIEROS A TRAVÈS DE LA IMPLEMENTACIÓN DE NUEVOS PROYECTOS INTEGRADOS A LA CARTERA NEGOCIOS Y OBTENER UN MARGEN DE UTILIDADES SUPERIOR AL 15% CON RESPECTO AL EJERCICIO ANTERIOR
B16: Goal 1: | C16: INCREMENTAR NUESTRA PARTICIPACIÓN EN EL MERCADO DE PEMEX Y GOBIERNO
C20: KPIs | H20: Area Manager | I20: =+C8 -> 2012.04 | J20: Target | K20: Change | L20: % Change | M20: Goal Ach. | N20: Initiatives
C21: 03-AMPLIAR CARTERA DE PROYECTOS CON PEMEX | H21: =IF(C21="","",IF(INDEX(Ind!$B$6:$O$105,MATCH(LEFT(C21,2),Ind!$B$6:$B$105,0),14)=0,"",INDEX(Ind!$B$6:$O$105,MATCH(LEFT(C21,2),Ind!$B$6:$B$105,0),14))) -> DIRECCION DE PROYECTOS | I21: =IF(C21<>"",DSUM(InputActual!$B$5:$BO$105,I20,Q21:Q22),"") -> 0 | J21: =IF(C21<>"",DSUM(InputTg!$B$5:$BN$105,$I$20,Q21:Q22),"") -> 70 | K21: =IF(OR($C$21="",I21=0),"",IF(J21="","",I21-J21)) ->  | L21: =+IF(OR(K21="",J21=0),"",K21/J21) ->  | M21: =IF(L21="","",IF(AND(Q23="+",K21>0),"p",IF(AND(Q23="+",K21<0),"q",IF(AND(Q23="-",K21>0),"q","p")))) ->  | N21: Review the investment policy | Q21: CodKPI | R21: CodKPI | S21: CodKPI
C22: 01-CUMPLIMIENTO DEL PRESUPUESTO VENTAS 2011 | H22: =IF(C22="","",IF(INDEX(Ind!$B$6:$O$105,MATCH(LEFT(C22,2),Ind!$B$6:$B$105,0),14)=0,"",INDEX(Ind!$B$6:$O$105,MATCH(LEFT(C22,2),Ind!$B$6:$B$105,0),14))) -> DIRECCIÓN DE COMERCIALIZACIÓN | I22: =IF(C22<>"",DSUM(InputActual!$B$5:$BO$105,I20,R21:R22),"") -> 7000 | J22: =IF(C22<>"",DSUM(InputTg!$B$5:$BN$105,$I$20,R21:R22),"") -> 7500 | K22: =IF(OR($C$22="",I22=0),"",IF(J22="","",I22-J22)) -> -500 | L22: =+IF(OR(K22="",J22=0),"",K22/J22) -> -0.06666666667 | M22: =IF(L22="","",IF(AND(R23="+",K22>0),"p",IF(AND(R23="+",K22<0),"q",IF(AND(R23="-",K22>0),"q","p")))) ->  | Q22: =LEFT(C21,2) -> 03 | R22: =LEFT(C22,2) -> 01 | S22: =LEFT(C23,2) -> 
H23: =IF(C23="","",IF(INDEX(Ind!$B$6:$O$105,MATCH(LEFT(C23,2),Ind!$B$6:$B$105,0),14)=0,"",INDEX(Ind!$B$6:$O$105,MATCH(LEFT(C23,2),Ind!$B$6:$B$105,0),14))) ->  | I23: =IF(C23<>"",DSUM(InputActual!$B$5:$BO$105,I20,S21:S22),"") ->  | J23: =IF(C23<>"",DSUM(InputTg!$B$5:$BN$105,$I$20,S21:S22),"") ->  | K23: =IF(OR($C$23="",I23=0),"",IF(J23="","",I23-J23)) ->  | L23: =+IF(OR(K23="",J23=0),"",K23/J23) ->  | M23: =IF(L23="","",IF(AND(S23="+",K23>0),"p",IF(AND(S23="+",K23<0),"q",IF(AND(S23="-",K23>0),"q","p")))) ->  | Q23: =INDEX(Cfr_Periodi!$C:$I,MATCH(C21,Cfr_Periodi!$C:$C,0),7) ->  | R23: =INDEX(Cfr_Periodi!$C:$I,MATCH(C22,Cfr_Periodi!$C:$C,0),7) ->  | S23: =INDEX(Cfr_Periodi!$C:$I,MATCH(C23,Cfr_Periodi!$C:$C,0),7) -> 
B26: Goal 2: | C26: CONSOLIDAR EL SISTEMA DE MEJORA CONTINUA PARA LOGRAR LA EFICACIA DE LOS PROCESOS
C30: KPIs | H30: Area Manager | I30: =+I20 -> 2012.04 | J30: Target | K30: Change | L30: % Change | M30: Goal Ach. | N30: Initiatives
C31: 04-LOGRAR LA CERTIFICACIÓN EN ISO14000 | H31: =IF(C31="","",IF(INDEX(Ind!$B$6:$O$105,MATCH(LEFT(C31,2),Ind!$B$6:$B$105,0),14)=0,"",INDEX(Ind!$B$6:$O$105,MATCH(LEFT(C31,2),Ind!$B$6:$B$105,0),14))) -> DIRECCIÓN DE ADMINISTRACIÓN | I31: =IF(C31<>"",DSUM(InputActual!$B$5:$BO$105,I30,Q31:Q32),"") -> 0 | J31: =IF(C31<>"",DSUM(InputTg!$B$5:$BN$105,$I$20,Q31:Q32),"") -> 20 | K31: =IF(OR($C$31="",I31=0),"",IF(J31="","",I31-J31)) ->  | L31: =+IF(OR(K31="",J31=0),"",K31/J31) ->  | M31: =IF(L31="","",IF(AND(Q33="+",K31>0),"p",IF(AND(Q33="+",K31<0),"q",IF(AND(Q33="-",K31>0),"q","p")))) ->  | Q31: CodKPI | R31: CodKPI | S31: CodKPI
C32: 05-CONSOLIDAR LA IMPLEMENTACIÓN DE SAP R3 | H32: =IF(C32="","",IF(INDEX(Ind!$B$6:$O$105,MATCH(LEFT(C32,2),Ind!$B$6:$B$105,0),14)=0,"",INDEX(Ind!$B$6:$O$105,MATCH(LEFT(C32,2),Ind!$B$6:$B$105,0),14))) -> DIRECCION DE PROYECTOS | I32: =IF(C32<>"",DSUM(InputActual!$B$5:$BO$105,I30,R31:R32),"") -> 0 | J32: =IF(C32<>"",DSUM(InputTg!$B$5:$BN$105,$I$20,R31:R32),"") -> 10 | K32: =IF(OR($C$32="",I32=0),"",IF(J32="","",I32-J32)) ->  | L32: =+IF(OR(K32="",J32=0),"",K32/J32) ->  | M32: =IF(L32="","",IF(AND(R33="+",K32>0),"p",IF(AND(R33="+",K32<0),"q",IF(AND(R33="-",K32>0),"q","p")))) ->  | Q32: =LEFT(C31,2) -> 04 | R32: =LEFT(C32,2) -> 05 | S32: =LEFT(C33,2) -> 
H33: =IF(C33="","",IF(INDEX(Ind!$B$6:$O$105,MATCH(LEFT(C33,2),Ind!$B$6:$B$105,0),14)=0,"",INDEX(Ind!$B$6:$O$105,MATCH(LEFT(C33,2),Ind!$B$6:$B$105,0),14))) ->  | I33: =IF(C33<>"",DSUM(InputActual!$B$5:$BO$105,I30,S31:S32),"") ->  | J33: =IF(C33<>"",DSUM(InputTg!$B$5:$BN$105,$I$20,S31:S32),"") ->  | K33: =IF(OR($C$33="",I33=0),"",IF(J33="","",I33-J33)) ->  | L33: =+IF(OR(K33="",J33=0),"",K33/J33) ->  | M33: =IF(L33="","",IF(AND(S33="+",K33>0),"p",IF(AND(S33="+",K33<0),"q",IF(AND(S33="-",K33>0),"q","p")))) ->  | Q33: =INDEX(Cfr_Periodi!$C:$I,MATCH(C31,Cfr_Periodi!$C:$C,0),7) ->  | R33: =INDEX(Cfr_Periodi!$C:$I,MATCH(C32,Cfr_Periodi!$C:$C,0),7) ->  | S33: =INDEX(Cfr_Periodi!$C:$I,MATCH(C33,Cfr_Periodi!$C:$C,0),7) -> 
B36: Goal 3:
C40: KPIs | H40: Area Manager | I40: =+I30 -> 2012.04 | J40: Target | K40: Change | L40: % Change | M40: Goal Ach. | N40: Initiatives
H41: =IF(C41="","",IF(INDEX(Ind!$B$6:$O$105,MATCH(LEFT(C41,2),Ind!$B$6:$B$105,0),14)=0,"",INDEX(Ind!$B$6:$O$105,MATCH(LEFT(C41,2),Ind!$B$6:$B$105,0),14))) ->  | I41: =IF(C41<>"",DSUM(InputActual!$B$5:$BO$105,I40,Q41:Q42),"") ->  | J41: =IF(C41<>"",DSUM(InputTg!$B$5:$BN$105,$I$20,Q41:Q42),"") ->  | K41: =IF(OR($C$41="",I41=0),"",IF(J41="","",I41-J41)) ->  | L41: =+IF(OR(K41="",J41=0),"",K41/J41) ->  | M41: =IF(L41="","",IF(AND(Q43="+",K41>0),"p",IF(AND(Q43="+",K41<0),"q",IF(AND(Q43="-",K41>0),"q","p")))) ->  | Q41: CodKPI | R41: CodKPI | S41: CodKPI
H42: =IF(C42="","",IF(INDEX(Ind!$B$6:$O$105,MATCH(LEFT(C42,2),Ind!$B$6:$B$105,0),14)=0,"",INDEX(Ind!$B$6:$O$105,MATCH(LEFT(C42,2),Ind!$B$6:$B$105,0),14))) ->  | I42: =IF(C42<>"",DSUM(InputActual!$B$5:$BO$105,I40,R41:R42),"") ->  | J42: =IF(C42<>"",DSUM(InputTg!$B$5:$BN$105,$I$20,R41:R42),"") ->  | K42: =IF(OR($C$42="",I42=0),"",IF(J42="","",I42-J42)) ->  | L42: =+IF(OR(K42="",J42=0),"",K42/J42) ->  | M42: =IF(L42="","",IF(AND(R43="+",K42>0),"p",IF(AND(R43="+",K42<0),"q",IF(AND(R43="-",K42>0),"q","p")))) ->  | Q42: =LEFT(C41,2) ->  | R42: =LEFT(C42,2) ->  | S42: =LEFT(C43,2) -> 
H43: =IF(C43="","",IF(INDEX(Ind!$B$6:$O$105,MATCH(LEFT(C43,2),Ind!$B$6:$B$105,0),14)=0,"",INDEX(Ind!$B$6:$O$105,MATCH(LEFT(C43,2),Ind!$B$6:$B$105,0),14))) ->  | I43: =IF(C43<>"",DSUM(InputActual!$B$5:$BO$105,I40,S41:S42),"") ->  | J43: =IF(C43<>"",DSUM(InputTg!$B$5:$BN$105,$I$20,S41:S42),"") ->  | K43: =IF(OR($C$43="",I43=0),"",IF(J43="","",I43-J43)) ->  | L43: =+IF(OR(K43="",J43=0),"",K43/J43) ->  | M43: =IF(L43="","",IF(AND(S43="+",K43>0),"p",IF(AND(S43="+",K43<0),"q",IF(AND(S43="-",K43>0),"q","p")))) ->  | Q43: =INDEX(Cfr_Periodi!$C:$I,MATCH(C41,Cfr_Periodi!$C:$C,0),7) ->  | R43: =INDEX(Cfr_Periodi!$C:$I,MATCH(C42,Cfr_Periodi!$C:$C,0),7) ->  | S43: =INDEX(Cfr_Periodi!$C:$I,MATCH(C43,Cfr_Periodi!$C:$C,0),7) -> 
B46: Goal 4:
C50: KPIs | H50: Area Manager | I50: =+I40 -> 2012.04 | J50: Target | K50: Change | L50: % Change | M50: Goal Ach. | N50: Initiatives
H51: =IF(C51="","",IF(INDEX(Ind!$B$6:$O$105,MATCH(LEFT(C51,2),Ind!$B$6:$B$105,0),14)=0,"",INDEX(Ind!$B$6:$O$105,MATCH(LEFT(C51,2),Ind!$B$6:$B$105,0),14))) ->  | I51: =IF(C51<>"",DSUM(InputActual!$B$5:$BO$105,I50,Q51:Q52),"") ->  | J51: =IF(C51<>"",DSUM(InputTg!$B$5:$BN$105,$I$20,Q51:Q52),"") ->  | K51: =IF(OR($C$51="",I51=0),"",IF(J51="","",I51-J51)) ->  | L51: =+IF(OR(K51="",J51=0),"",K51/J51) ->  | M51: =IF(L51="","",IF(AND(Q53="+",K51>0),"p",IF(AND(Q53="+",K51<0),"q",IF(AND(Q53="-",K51>0),"q","p")))) ->  | Q51: CodKPI | R51: CodKPI | S51: CodKPI
H52: =IF(C52="","",IF(INDEX(Ind!$B$6:$O$105,MATCH(LEFT(C52,2),Ind!$B$6:$B$105,0),14)=0,"",INDEX(Ind!$B$6:$O$105,MATCH(LEFT(C52,2),Ind!$B$6:$B$105,0),14))) ->  | I52: =IF(C52<>"",DSUM(InputActual!$B$5:$BO$105,I50,R51:R52),"") ->  | J52: =IF(C52<>"",DSUM(InputTg!$B$5:$BN$105,$I$20,R51:R52),"") ->  | K52: =IF(OR($C$52="",I52=0),"",IF(J52="","",I52-J52)) ->  | L52: =+IF(OR(K52="",J52=0),"",K52/J52) ->  | M52: =IF(L52="","",IF(AND(R53="+",K52>0),"p",IF(AND(R53="+",K52<0),"q",IF(AND(R53="-",K52>0),"q","p")))) ->  | Q52: =LEFT(C51,2) ->  | R52: =LEFT(C52,2) ->  | S52: =LEFT(C53,2) -> 
H53: =IF(C53="","",IF(INDEX(Ind!$B$6:$O$105,MATCH(LEFT(C53,2),Ind!$B$6:$B$105,0),14)=0,"",INDEX(Ind!$B$6:$O$105,MATCH(LEFT(C53,2),Ind!$B$6:$B$105,0),14))) ->  | I53: =IF(C53<>"",DSUM(InputActual!$B$5:$BO$105,I50,S51:S52),"") ->  | J53: =IF(C53<>"",DSUM(InputTg!$B$5:$BN$105,$I$20,S51:S52),"") ->  | K53: =IF(OR($C$53="",I53=0),"",IF(J53="","",I53-J53)) ->  | L53: =+IF(OR(K53="",J53=0),"",K53/J53) ->  | M53: =IF(L53="","",IF(AND(S53="+",K53>0),"p",IF(AND(S53="+",K53<0),"q",IF(AND(S53="-",K53>0),"q","p")))) ->  | Q53: =INDEX(Cfr_Periodi!$C:$I,MATCH(C51,Cfr_Periodi!$C:$C,0),7) ->  | R53: =INDEX(Cfr_Periodi!$C:$I,MATCH(C52,Cfr_Periodi!$C:$C,0),7) ->  | S53: =INDEX(Cfr_Periodi!$C:$I,MATCH(C53,Cfr_Periodi!$C:$C,0),7) -> 
B56: Goal 5:
C60: KPIs | H60: Area Manager | I60: =+I50 -> 2012.04 | J60: Target | K60: Change | L60: % Change | M60: Goal Ach. | N60: Initiatives
H61: =IF(C61="","",IF(INDEX(Ind!$B$6:$O$105,MATCH(LEFT(C61,2),Ind!$B$6:$B$105,0),14)=0,"",INDEX(Ind!$B$6:$O$105,MATCH(LEFT(C61,2),Ind!$B$6:$B$105,0),14))) ->  | I61: =IF(C61<>"",DSUM(InputActual!$B$5:$BO$105,I60,Q61:Q62),"") ->  | J61: =IF(C61<>"",DSUM(InputTg!$B$5:$BN$105,$I$20,Q61:Q62),"") ->  | K61: =IF(OR($C$61="",I61=0),"",IF(J61="","",I61-J61)) ->  | L61: =+IF(OR(K61="",J61=0),"",K61/J61) ->  | M61: =IF(L61="","",IF(AND(Q63="+",K61>0),"p",IF(AND(Q63="+",K61<0),"q",IF(AND(Q63="-",K61>0),"q","p")))) ->  | Q61: CodKPI | R61: CodKPI | S61: CodKPI
H62: =IF(C62="","",IF(INDEX(Ind!$B$6:$O$105,MATCH(LEFT(C62,2),Ind!$B$6:$B$105,0),14)=0,"",INDEX(Ind!$B$6:$O$105,MATCH(LEFT(C62,2),Ind!$B$6:$B$105,0),14))) ->  | I62: =IF(C62<>"",DSUM(InputActual!$B$5:$BO$105,I60,R61:R62),"") ->  | J62: =IF(C62<>"",DSUM(InputTg!$B$5:$BN$105,$I$20,R61:R62),"") ->  | K62: =IF(OR($C$62="",I62=0),"",IF(J62="","",I62-J62)) ->  | L62: =+IF(OR(K62="",J62=0),"",K62/J62) ->  | M62: =IF(L62="","",IF(AND(R63="+",K62>0),"p",IF(AND(R63="+",K62<0),"q",IF(AND(R63="-",K62>0),"q","p")))) ->  | Q62: =LEFT(C61,2) ->  | R62: =LEFT(C62,2) ->  | S62: =LEFT(C63,2) -> 
H63: =IF(C63="","",IF(INDEX(Ind!$B$6:$O$105,MATCH(LEFT(C63,2),Ind!$B$6:$B$105,0),14)=0,"",INDEX(Ind!$B$6:$O$105,MATCH(LEFT(C63,2),Ind!$B$6:$B$105,0),14))) ->  | I63: =IF(C63<>"",DSUM(InputActual!$B$5:$BO$105,I60,S61:S62),"") ->  | J63: =IF(C63<>"",DSUM(InputTg!$B$5:$BN$105,$I$20,S61:S62),"") ->  | K63: =IF(OR($C$63="",I63=0),"",IF(J63="","",I63-J63)) ->  | L63: =+IF(OR(K63="",J63=0),"",K63/J63) ->  | M63: =IF(L63="","",IF(AND(S63="+",K63>0),"p",IF(AND(S63="+",K63<0),"q",IF(AND(S63="-",K63>0),"q","p")))) ->  | Q63: =INDEX(Cfr_Periodi!$C:$I,MATCH(C61,Cfr_Periodi!$C:$C,0),7) ->  | R63: =INDEX(Cfr_Periodi!$C:$I,MATCH(C62,Cfr_Periodi!$C:$C,0),7) ->  | S63: =INDEX(Cfr_Periodi!$C:$I,MATCH(C63,Cfr_Periodi!$C:$C,0),7) -> 

Sheet 2
B4: Company: | C4: =+Menu!O3 -> UVM
B6: Year: | C6: =Menu!F11+1 -> 2013
B8: Period: | C8: 2011.03
B10: Strategic Plan:
B16: Goal 1:
C20: KPIs | H20: Area Manager | I20: =+C8 -> 2011.03 | J20: Target | K20: Change | L20: % Change | M20: Goal Ach. | N20: Initiatives
H21: =IF(C21="","",IF(INDEX(Ind!$B$6:$O$105,MATCH(LEFT(C21,2),Ind!$B$6:$B$105,0),14)=0,"",INDEX(Ind!$B$6:$O$105,MATCH(LEFT(C21,2),Ind!$B$6:$B$105,0),14))) ->  | I21: =IF(C21<>"",DSUM(InputActual!$B$5:$BO$105,I20,Q21:Q22),"") ->  | J21: =IF(C21<>"",DSUM(InputTg!$B$5:$BN$105,$I$20,Q21:Q22),"") ->  | K21: =IF(OR($C$21="",I21=0),"",IF(J21="","",I21-J21)) ->  | L21: =+IF(OR(K21="",J21=0),"",K21/J21) ->  | M21: =IF(L21="","",IF(AND(Q23="+",K21>0),"p",IF(AND(Q23="+",K21<0),"q",IF(AND(Q23="-",K21>0),"q","p")))) ->  | N21: Review the investment policy | Q21: Codkpi | R21: Codkpi | S21: Codkpi
H22: =IF(C22="","",IF(INDEX(Ind!$B$6:$O$105,MATCH(LEFT(C22,2),Ind!$B$6:$B$105,0),14)=0,"",INDEX(Ind!$B$6:$O$105,MATCH(LEFT(C22,2),Ind!$B$6:$B$105,0),14))) ->  | I22: =IF(C22<>"",DSUM(InputActual!$B$5:$BO$105,I20,R21:R22),"") ->  | J22: =IF(C22<>"",DSUM(InputTg!$B$5:$BN$105,$I$20,R21:R22),"") ->  | K22: =IF(OR($C$22="",I22=0),"",IF(J22="","",I22-J22)) ->  | L22: =+IF(OR(K22="",J22=0),"",K22/J22) ->  | M22: =IF(L22="","",IF(AND(R23="+",K22>0),"p",IF(AND(R23="+",K22<0),"q",IF(AND(R23="-",K22>0),"q","p")))) ->  | Q22: =LEFT(C21,2) ->  | R22: =LEFT(C22,2) ->  | S22: =LEFT(C23,2) -> 
H23: =IF(C23="","",IF(INDEX(Ind!$B$6:$O$105,MATCH(LEFT(C23,2),Ind!$B$6:$B$105,0),14)=0,"",INDEX(Ind!$B$6:$O$105,MATCH(LEFT(C23,2),Ind!$B$6:$B$105,0),14))) ->  | I23: =IF(C23<>"",DSUM(InputActual!$B$5:$BO$105,I20,S21:S22),"") ->  | J23: =IF(C23<>"",DSUM(InputTg!$B$5:$BN$105,$I$20,S21:S22),"") ->  | K23: =IF(OR($C$23="",I23=0),"",IF(J23="","",I23-J23)) ->  | L23: =+IF(OR(K23="",J23=0),"",K23/J23) ->  | M23: =IF(L23="","",IF(AND(S23="+",K23>0),"p",IF(AND(S23="+",K23<0),"q",IF(AND(S23="-",K23>0),"q","p")))) ->  | Q23: =INDEX(Cfr_Periodi!$C:$I,MATCH(C21,Cfr_Periodi!$C:$C,0),7) ->  | R23: =INDEX(Cfr_Periodi!$C:$I,MATCH(C22,Cfr_Periodi!$C:$C,0),7) ->  | S23: =INDEX(Cfr_Periodi!$C:$I,MATCH(C23,Cfr_Periodi!$C:$C,0),7) -> 
B26: Goal 2:
C30: KPIs | H30: Area Manager | I30: =+I20 -> 2011.03 | J30: Target | K30: Change | L30: % Change | M30: Goal Ach. | N30: Initiatives
H31: =IF(C31="","",IF(INDEX(Ind!$B$6:$O$105,MATCH(LEFT(C31,2),Ind!$B$6:$B$105,0),14)=0,"",INDEX(Ind!$B$6:$O$105,MATCH(LEFT(C31,2),Ind!$B$6:$B$105,0),14))) ->  | I31: =IF(C31<>"",DSUM(InputActual!$B$5:$BO$105,I30,Q31:Q32),"") ->  | J31: =IF(C31<>"",DSUM(InputTg!$B$5:$BN$105,$I$20,Q31:Q32),"") ->  | K31: =IF(OR($C$31="",I31=0),"",IF(J31="","",I31-J31)) ->  | L31: =+IF(OR(K31="",J31=0),"",K31/J31) ->  | M31: =IF(L31="","",IF(AND(Q33="+",K31>0),"p",IF(AND(Q33="+",K31<0),"q",IF(AND(Q33="-",K31>0),"q","p")))) ->  | Q31: Codkpi | R31: Codkpi | S31: Codkpi
H32: =IF(C32="","",IF(INDEX(Ind!$B$6:$O$105,MATCH(LEFT(C32,2),Ind!$B$6:$B$105,0),14)=0,"",INDEX(Ind!$B$6:$O$105,MATCH(LEFT(C32,2),Ind!$B$6:$B$105,0),14))) ->  | I32: =IF(C32<>"",DSUM(InputActual!$B$5:$BO$105,I30,R31:R32),"") ->  | J32: =IF(C32<>"",DSUM(InputTg!$B$5:$BN$105,$I$20,R31:R32),"") ->  | K32: =IF(OR($C$32="",I32=0),"",IF(J32="","",I32-J32)) ->  | L32: =+IF(OR(K32="",J32=0),"",K32/J32) ->  | M32: =IF(L32="","",IF(AND(R33="+",K32>0),"p",IF(AND(R33="+",K32<0),"q",IF(AND(R33="-",K32>0),"q","p")))) ->  | Q32: =LEFT(C31,2) ->  | R32: =LEFT(C32,2) ->  | S32: =LEFT(C33,2) -> 
H33: =IF(C33="","",IF(INDEX(Ind!$B$6:$O$105,MATCH(LEFT(C33,2),Ind!$B$6:$B$105,0),14)=0,"",INDEX(Ind!$B$6:$O$105,MATCH(LEFT(C33,2),Ind!$B$6:$B$105,0),14))) ->  | I33: =IF(C33<>"",DSUM(InputActual!$B$5:$BO$105,I30,S31:S32),"") ->  | J33: =IF(C33<>"",DSUM(InputTg!$B$5:$BN$105,$I$20,S31:S32),"") ->  | K33: =IF(OR($C$33="",I33=0),"",IF(J33="","",I33-J33)) ->  | L33: =+IF(OR(K33="",J33=0),"",K33/J33) ->  | M33: =IF(L33="","",IF(AND(S33="+",K33>0),"p",IF(AND(S33="+",K33<0),"q",IF(AND(S33="-",K33>0),"q","p")))) ->  | Q33: =INDEX(Cfr_Periodi!$C:$I,MATCH(C31,Cfr_Periodi!$C:$C,0),7) ->  | R33: =INDEX(Cfr_Periodi!$C:$I,MATCH(C32,Cfr_Periodi!$C:$C,0),7) ->  | S33: =INDEX(Cfr_Periodi!$C:$I,MATCH(C33,Cfr_Periodi!$C:$C,0),7) -> 
B36: Goal 3:
C40: KPIs | H40: Area Manager | I40: =+I30 -> 2011.03 | J40: Target | K40: Change | L40: % Change | M40: Goal Ach. | N40: Initiatives
H41: =IF(C41="","",IF(INDEX(Ind!$B$6:$O$105,MATCH(LEFT(C41,2),Ind!$B$6:$B$105,0),14)=0,"",INDEX(Ind!$B$6:$O$105,MATCH(LEFT(C41,2),Ind!$B$6:$B$105,0),14))) ->  | I41: =IF(C41<>"",DSUM(InputActual!$B$5:$BO$105,I40,Q41:Q42),"") ->  | J41: =IF(C41<>"",DSUM(InputTg!$B$5:$BN$105,$I$20,Q41:Q42),"") ->  | K41: =IF(OR($C$41="",I41=0),"",IF(J41="","",I41-J41)) ->  | L41: =+IF(OR(K41="",J41=0),"",K41/J41) ->  | M41: =IF(L41="","",IF(AND(Q43="+",K41>0),"p",IF(AND(Q43="+",K41<0),"q",IF(AND(Q43="-",K41>0),"q","p")))) ->  | Q41: Codkpi | R41: Codkpi | S41: Codkpi
H42: =IF(C42="","",IF(INDEX(Ind!$B$6:$O$105,MATCH(LEFT(C42,2),Ind!$B$6:$B$105,0),14)=0,"",INDEX(Ind!$B$6:$O$105,MATCH(LEFT(C42,2),Ind!$B$6:$B$105,0),14))) ->  | I42: =IF(C42<>"",DSUM(InputActual!$B$5:$BO$105,I40,R41:R42),"") ->  | J42: =IF(C42<>"",DSUM(InputTg!$B$5:$BN$105,$I$20,R41:R42),"") ->  | K42: =IF(OR($C$42="",I42=0),"",IF(J42="","",I42-J42)) ->  | L42: =+IF(OR(K42="",J42=0),"",K42/J42) ->  | M42: =IF(L42="","",IF(AND(R43="+",K42>0),"p",IF(AND(R43="+",K42<0),"q",IF(AND(R43="-",K42>0),"q","p")))) ->  | Q42: =LEFT(C41,2) ->  | R42: =LEFT(C42,2) ->  | S42: =LEFT(C43,2) -> 
H43: =IF(C43="","",IF(INDEX(Ind!$B$6:$O$105,MATCH(LEFT(C43,2),Ind!$B$6:$B$105,0),14)=0,"",INDEX(Ind!$B$6:$O$105,MATCH(LEFT(C43,2),Ind!$B$6:$B$105,0),14))) ->  | I43: =IF(C43<>"",DSUM(InputActual!$B$5:$BO$105,I40,S41:S42),"") ->  | J43: =IF(C43<>"",DSUM(InputTg!$B$5:$BN$105,$I$20,S41:S42),"") ->  | K43: =IF(OR($C$43="",I43=0),"",IF(J43="","",I43-J43)) ->  | L43: =+IF(OR(K43="",J43=0),"",K43/J43) ->  | M43: =IF(L43="","",IF(AND(S43="+",K43>0),"p",IF(AND(S43="+",K43<0),"q",IF(AND(S43="-",K43>0),"q","p")))) ->  | Q43: =INDEX(Cfr_Periodi!$C:$I,MATCH(C41,Cfr_Periodi!$C:$C,0),7) ->  | R43: =INDEX(Cfr_Periodi!$C:$I,MATCH(C42,Cfr_Periodi!$C:$C,0),7) ->  | S43: =INDEX(Cfr_Periodi!$C:$I,MATCH(C43,Cfr_Periodi!$C:$C,0),7) -> 
B46: Goal 4:
C50: KPIs | H50: Area Manager | I50: =+I40 -> 2011.03 | J50: Target | K50: Change | L50: % Change | M50: Goal Ach. | N50: Initiatives
H51: =IF(C51="","",IF(INDEX(Ind!$B$6:$O$105,MATCH(LEFT(C51,2),Ind!$B$6:$B$105,0),14)=0,"",INDEX(Ind!$B$6:$O$105,MATCH(LEFT(C51,2),Ind!$B$6:$B$105,0),14))) ->  | I51: =IF(C51<>"",DSUM(InputActual!$B$5:$BO$105,I50,Q51:Q52),"") ->  | J51: =IF(C51<>"",DSUM(InputTg!$B$5:$BN$105,$I$20,Q51:Q52),"") ->  | K51: =IF(OR($C$51="",I51=0),"",IF(J51="","",I51-J51)) ->  | L51: =+IF(OR(K51="",J51=0),"",K51/J51) ->  | M51: =IF(L51="","",IF(AND(Q53="+",K51>0),"p",IF(AND(Q53="+",K51<0),"q",IF(AND(Q53="-",K51>0),"q","p")))) ->  | Q51: Codkpi | R51: Codkpi | S51: Codkpi
H52: =IF(C52="","",IF(INDEX(Ind!$B$6:$O$105,MATCH(LEFT(C52,2),Ind!$B$6:$B$105,0),14)=0,"",INDEX(Ind!$B$6:$O$105,MATCH(LEFT(C52,2),Ind!$B$6:$B$105,0),14))) ->  | I52: =IF(C52<>"",DSUM(InputActual!$B$5:$BO$105,I50,R51:R52),"") ->  | J52: =IF(C52<>"",DSUM(InputTg!$B$5:$BN$105,$I$20,R51:R52),"") ->  | K52: =IF(OR($C$52="",I52=0),"",IF(J52="","",I52-J52)) ->  | L52: =+IF(OR(K52="",J52=0),"",K52/J52) ->  | M52: =IF(L52="","",IF(AND(R53="+",K52>0),"p",IF(AND(R53="+",K52<0),"q",IF(AND(R53="-",K52>0),"q","p")))) ->  | Q52: =LEFT(C51,2) ->  | R52: =LEFT(C52,2) ->  | S52: =LEFT(C53,2) -> 
H53: =IF(C53="","",IF(INDEX(Ind!$B$6:$O$105,MATCH(LEFT(C53,2),Ind!$B$6:$B$105,0),14)=0,"",INDEX(Ind!$B$6:$O$105,MATCH(LEFT(C53,2),Ind!$B$6:$B$105,0),14))) ->  | I53: =IF(C53<>"",DSUM(InputActual!$B$5:$BO$105,I50,S51:S52),"") ->  | J53: =IF(C53<>"",DSUM(InputTg!$B$5:$BN$105,$I$20,S51:S52),"") ->  | K53: =IF(OR($C$53="",I53=0),"",IF(J53="","",I53-J53)) ->  | L53: =+IF(OR(K53="",J53=0),"",K53/J53) ->  | M53: =IF(L53="","",IF(AND(S53="+",K53>0),"p",IF(AND(S53="+",K53<0),"q",IF(AND(S53="-",K53>0),"q","p")))) ->  | Q53: =INDEX(Cfr_Periodi!$C:$I,MATCH(C51,Cfr_Periodi!$C:$C,0),7) ->  | R53: =INDEX(Cfr_Periodi!$C:$I,MATCH(C52,Cfr_Periodi!$C:$C,0),7) ->  | S53: =INDEX(Cfr_Periodi!$C:$I,MATCH(C53,Cfr_Periodi!$C:$C,0),7) -> 
B56: Goal 5:
C60: KPIs | H60: Area Manager | I60: =+I50 -> 2011.03 | J60: Target | K60: Change | L60: % Change | M60: Goal Ach. | N60: Initiatives
H61: =IF(C61="","",IF(INDEX(Ind!$B$6:$O$105,MATCH(LEFT(C61,2),Ind!$B$6:$B$105,0),14)=0,"",INDEX(Ind!$B$6:$O$105,MATCH(LEFT(C61,2),Ind!$B$6:$B$105,0),14))) ->  | I61: =IF(C61<>"",DSUM(InputActual!$B$5:$BO$105,I60,Q61:Q62),"") ->  | J61: =IF(C61<>"",DSUM(InputTg!$B$5:$BN$105,$I$20,Q61:Q62),"") ->  | K61: =IF(OR($C$61="",I61=0),"",IF(J61="","",I61-J61)) ->  | L61: =+IF(OR(K61="",J61=0),"",K61/J61) ->  | M61: =IF(L61="","",IF(AND(Q63="+",K61>0),"p",IF(AND(Q63="+",K61<0),"q",IF(AND(Q63="-",K61>0),"q","p")))) ->  | Q61: Codkpi | R61: Codkpi | S61: Codkpi
H62: =IF(C62="","",IF(INDEX(Ind!$B$6:$O$105,MATCH(LEFT(C62,2),Ind!$B$6:$B$105,0),14)=0,"",INDEX(Ind!$B$6:$O$105,MATCH(LEFT(C62,2),Ind!$B$6:$B$105,0),14))) ->  | I62: =IF(C62<>"",DSUM(InputActual!$B$5:$BO$105,I60,R61:R62),"") ->  | J62: =IF(C62<>"",DSUM(InputTg!$B$5:$BN$105,$I$20,R61:R62),"") ->  | K62: =IF(OR($C$62="",I62=0),"",IF(J62="","",I62-J62)) ->  | L62: =+IF(OR(K62="",J62=0),"",K62/J62) ->  | M62: =IF(L62="","",IF(AND(R63="+",K62>0),"p",IF(AND(R63="+",K62<0),"q",IF(AND(R63="-",K62>0),"q","p")))) ->  | Q62: =LEFT(C61,2) ->  | R62: =LEFT(C62,2) ->  | S62: =LEFT(C63,2) -> 
H63: =IF(C63="","",IF(INDEX(Ind!$B$6:$O$105,MATCH(LEFT(C63,2),Ind!$B$6:$B$105,0),14)=0,"",INDEX(Ind!$B$6:$O$105,MATCH(LEFT(C63,2),Ind!$B$6:$B$105,0),14))) ->  | I63: =IF(C63<>"",DSUM(InputActual!$B$5:$BO$105,I60,S61:S62),"") ->  | J63: =IF(C63<>"",DSUM(InputTg!$B$5:$BN$105,$I$20,S61:S62),"") ->  | K63: =IF(OR($C$63="",I63=0),"",IF(J63="","",I63-J63)) ->  | L63: =+IF(OR(K63="",J63=0),"",K63/J63) ->  | M63: =IF(L63="","",IF(AND(S63="+",K63>0),"p",IF(AND(S63="+",K63<0),"q",IF(AND(S63="-",K63>0),"q","p")))) ->  | Q63: =INDEX(Cfr_Periodi!$C:$I,MATCH(C61,Cfr_Periodi!$C:$C,0),7) ->  | R63: =INDEX(Cfr_Periodi!$C:$I,MATCH(C62,Cfr_Periodi!$C:$C,0),7) ->  | S63: =INDEX(Cfr_Periodi!$C:$I,MATCH(C63,Cfr_Periodi!$C:$C,0),7) -> 

Sheet 3
B4: Company: | C4: =+Menu!O3 -> UVM
B6: Year: | C6: =Menu!F11+2 -> 2014
B8: Period: | C8: 2012.06
B10: Strategic Plan:
B16: Goal 1:
C20: KPIs | H20: Area Manager | I20: =+C8 -> 2012.06 | J20: Target | K20: Change | L20: % Change | M20: Goal Ach. | N20: Initiatives
H21: =IF(C21="","",IF(INDEX(Ind!$B$6:$O$105,MATCH(LEFT(C21,2),Ind!$B$6:$B$105,0),14)=0,"",INDEX(Ind!$B$6:$O$105,MATCH(LEFT(C21,2),Ind!$B$6:$B$105,0),14))) ->  | I21: =IF(C21<>"",DSUM(InputActual!$B$5:$BO$105,I20,Q21:Q22),"") ->  | J21: =IF(C21<>"",DSUM(InputTg!$B$5:$BN$105,$I$20,Q21:Q22),"") ->  | K21: =IF(OR($C$21="",I21=0),"",IF(J21="","",I21-J21)) ->  | L21: =+IF(OR(K21="",J21=0),"",K21/J21) ->  | M21: =IF(L21="","",IF(AND(Q23="+",K21>0),"p",IF(AND(Q23="+",K21<0),"q",IF(AND(Q23="-",K21>0),"q","p")))) ->  | Q21: Codkpi | R21: Codkpi | S21: Codkpi
H22: =IF(C22="","",IF(INDEX(Ind!$B$6:$O$105,MATCH(LEFT(C22,2),Ind!$B$6:$B$105,0),14)=0,"",INDEX(Ind!$B$6:$O$105,MATCH(LEFT(C22,2),Ind!$B$6:$B$105,0),14))) ->  | I22: =IF(C22<>"",DSUM(InputActual!$B$5:$BO$105,I20,R21:R22),"") ->  | J22: =IF(C22<>"",DSUM(InputTg!$B$5:$BN$105,$I$20,R21:R22),"") ->  | K22: =IF(OR($C$22="",I22=0),"",IF(J22="","",I22-J22)) ->  | L22: =+IF(OR(K22="",J22=0),"",K22/J22) ->  | M22: =IF(L22="","",IF(AND(R23="+",K22>0),"p",IF(AND(R23="+",K22<0),"q",IF(AND(R23="-",K22>0),"q","p")))) ->  | Q22: =LEFT(C21,2) ->  | R22: =LEFT(C22,2) ->  | S22: =LEFT(C23,2) -> 
H23: =IF(C23="","",IF(INDEX(Ind!$B$6:$O$105,MATCH(LEFT(C23,2),Ind!$B$6:$B$105,0),14)=0,"",INDEX(Ind!$B$6:$O$105,MATCH(LEFT(C23,2),Ind!$B$6:$B$105,0),14))) ->  | I23: =IF(C23<>"",DSUM(InputActual!$B$5:$BO$105,I20,S21:S22),"") ->  | J23: =IF(C23<>"",DSUM(InputTg!$B$5:$BN$105,$I$20,S21:S22),"") ->  | K23: =IF(OR($C$23="",I23=0),"",IF(J23="","",I23-J23)) ->  | L23: =+IF(OR(K23="",J23=0),"",K23/J23) ->  | M23: =IF(L23="","",IF(AND(S23="+",K23>0),"p",IF(AND(S23="+",K23<0),"q",IF(AND(S23="-",K23>0),"q","p")))) ->  | Q23: =INDEX(Cfr_Periodi!$C:$I,MATCH(C21,Cfr_Periodi!$C:$C,0),7) ->  | R23: =INDEX(Cfr_Periodi!$C:$I,MATCH(C22,Cfr_Periodi!$C:$C,0),7) ->  | S23: =INDEX(Cfr_Periodi!$C:$I,MATCH(C23,Cfr_Periodi!$C:$C,0),7) -> 
B26: Goal 2:
C30: KPIs | H30: Area Manager | I30: =+I20 -> 2012.06 | J30: Target | K30: Change | L30: % Change | M30: Goal Ach. | N30: Initiatives
H31: =IF(C31="","",IF(INDEX(Ind!$B$6:$O$105,MATCH(LEFT(C31,2),Ind!$B$6:$B$105,0),14)=0,"",INDEX(Ind!$B$6:$O$105,MATCH(LEFT(C31,2),Ind!$B$6:$B$105,0),14))) ->  | I31: =IF(C31<>"",DSUM(InputActual!$B$5:$BO$105,I30,Q31:Q32),"") ->  | J31: =IF(C31<>"",DSUM(InputTg!$B$5:$BN$105,$I$20,Q31:Q32),"") ->  | K31: =IF(OR($C$31="",I31=0),"",IF(J31="","",I31-J31)) ->  | L31: =+IF(OR(K31="",J31=0),"",K31/J31) ->  | M31: =IF(L31="","",IF(AND(Q33="+",K31>0),"p",IF(AND(Q33="+",K31<0),"q",IF(AND(Q33="-",K31>0),"q","p")))) ->  | Q31: Codkpi | R31: Codkpi | S31: Codkpi
H32: =IF(C32="","",IF(INDEX(Ind!$B$6:$O$105,MATCH(LEFT(C32,2),Ind!$B$6:$B$105,0),14)=0,"",INDEX(Ind!$B$6:$O$105,MATCH(LEFT(C32,2),Ind!$B$6:$B$105,0),14))) ->  | I32: =IF(C32<>"",DSUM(InputActual!$B$5:$BO$105,I30,R31:R32),"") ->  | J32: =IF(C32<>"",DSUM(InputTg!$B$5:$BN$105,$I$20,R31:R32),"") ->  | K32: =IF(OR($C$32="",I32=0),"",IF(J32="","",I32-J32)) ->  | L32: =+IF(OR(K32="",J32=0),"",K32/J32) ->  | M32: =IF(L32="","",IF(AND(R33="+",K32>0),"p",IF(AND(R33="+",K32<0),"q",IF(AND(R33="-",K32>0),"q","p")))) ->  | Q32: =LEFT(C31,2) ->  | R32: =LEFT(C32,2) ->  | S32: =LEFT(C33,2) -> 
H33: =IF(C33="","",IF(INDEX(Ind!$B$6:$O$105,MATCH(LEFT(C33,2),Ind!$B$6:$B$105,0),14)=0,"",INDEX(Ind!$B$6:$O$105,MATCH(LEFT(C33,2),Ind!$B$6:$B$105,0),14))) ->  | I33: =IF(C33<>"",DSUM(InputActual!$B$5:$BO$105,I30,S31:S32),"") ->  | J33: =IF(C33<>"",DSUM(InputTg!$B$5:$BN$105,$I$20,S31:S32),"") ->  | K33: =IF(OR($C$33="",I33=0),"",IF(J33="","",I33-J33)) ->  | L33: =+IF(OR(K33="",J33=0),"",K33/J33) ->  | M33: =IF(L33="","",IF(AND(S33="+",K33>0),"p",IF(AND(S33="+",K33<0),"q",IF(AND(S33="-",K33>0),"q","p")))) ->  | Q33: =INDEX(Cfr_Periodi!$C:$I,MATCH(C31,Cfr_Periodi!$C:$C,0),7) ->  | R33: =INDEX(Cfr_Periodi!$C:$I,MATCH(C32,Cfr_Periodi!$C:$C,0),7) ->  | S33: =INDEX(Cfr_Periodi!$C:$I,MATCH(C33,Cfr_Periodi!$C:$C,0),7) -> 
B36: Goal 3:
C40: KPIs | H40: Area Manager | I40: =+I30 -> 2012.06 | J40: Target | K40: Change | L40: % Change | M40: Goal Ach. | N40: Initiatives
H41: =IF(C41="","",IF(INDEX(Ind!$B$6:$O$105,MATCH(LEFT(C41,2),Ind!$B$6:$B$105,0),14)=0,"",INDEX(Ind!$B$6:$O$105,MATCH(LEFT(C41,2),Ind!$B$6:$B$105,0),14))) ->  | I41: =IF(C41<>"",DSUM(InputActual!$B$5:$BO$105,I40,Q41:Q42),"") ->  | J41: =IF(C41<>"",DSUM(InputTg!$B$5:$BN$105,$I$20,Q41:Q42),"") ->  | K41: =IF(OR($C$41="",I41=0),"",IF(J41="","",I41-J41)) ->  | L41: =+IF(OR(K41="",J41=0),"",K41/J41) ->  | M41: =IF(L41="","",IF(AND(Q43="+",K41>0),"p",IF(AND(Q43="+",K41<0),"q",IF(AND(Q43="-",K41>0),"q","p")))) ->  | Q41: Codkpi | R41: Codkpi | S41: Codkpi
H42: =IF(C42="","",IF(INDEX(Ind!$B$6:$O$105,MATCH(LEFT(C42,2),Ind!$B$6:$B$105,0),14)=0,"",INDEX(Ind!$B$6:$O$105,MATCH(LEFT(C42,2),Ind!$B$6:$B$105,0),14))) ->  | I42: =IF(C42<>"",DSUM(InputActual!$B$5:$BO$105,I40,R41:R42),"") ->  | J42: =IF(C42<>"",DSUM(InputTg!$B$5:$BN$105,$I$20,R41:R42),"") ->  | K42: =IF(OR($C$42="",I42=0),"",IF(J42="","",I42-J42)) ->  | L42: =+IF(OR(K42="",J42=0),"",K42/J42) ->  | M42: =IF(L42="","",IF(AND(R43="+",K42>0),"p",IF(AND(R43="+",K42<0),"q",IF(AND(R43="-",K42>0),"q","p")))) ->  | Q42: =LEFT(C41,2) ->  | R42: =LEFT(C42,2) ->  | S42: =LEFT(C43,2) -> 
H43: =IF(C43="","",IF(INDEX(Ind!$B$6:$O$105,MATCH(LEFT(C43,2),Ind!$B$6:$B$105,0),14)=0,"",INDEX(Ind!$B$6:$O$105,MATCH(LEFT(C43,2),Ind!$B$6:$B$105,0),14))) ->  | I43: =IF(C43<>"",DSUM(InputActual!$B$5:$BO$105,I40,S41:S42),"") ->  | J43: =IF(C43<>"",DSUM(InputTg!$B$5:$BN$105,$I$20,S41:S42),"") ->  | K43: =IF(OR($C$43="",I43=0),"",IF(J43="","",I43-J43)) ->  | L43: =+IF(OR(K43="",J43=0),"",K43/J43) ->  | M43: =IF(L43="","",IF(AND(S43="+",K43>0),"p",IF(AND(S43="+",K43<0),"q",IF(AND(S43="-",K43>0),"q","p")))) ->  | Q43: =INDEX(Cfr_Periodi!$C:$I,MATCH(C41,Cfr_Periodi!$C:$C,0),7) ->  | R43: =INDEX(Cfr_Periodi!$C:$I,MATCH(C42,Cfr_Periodi!$C:$C,0),7) ->  | S43: =INDEX(Cfr_Periodi!$C:$I,MATCH(C43,Cfr_Periodi!$C:$C,0),7) -> 
B46: Goal 4:
C50: KPIs | H50: Area Manager | I50: =+I40 -> 2012.06 | J50: Target | K50: Change | L50: % Change | M50: Goal Ach. | N50: Initiatives
H51: =IF(C51="","",IF(INDEX(Ind!$B$6:$O$105,MATCH(LEFT(C51,2),Ind!$B$6:$B$105,0),14)=0,"",INDEX(Ind!$B$6:$O$105,MATCH(LEFT(C51,2),Ind!$B$6:$B$105,0),14))) ->  | I51: =IF(C51<>"",DSUM(InputActual!$B$5:$BO$105,I50,Q51:Q52),"") ->  | J51: =IF(C51<>"",DSUM(InputTg!$B$5:$BN$105,$I$20,Q51:Q52),"") ->  | K51: =IF(OR($C$51="",I51=0),"",IF(J51="","",I51-J51)) ->  | L51: =+IF(OR(K51="",J51=0),"",K51/J51) ->  | M51: =IF(L51="","",IF(AND(Q53="+",K51>0),"p",IF(AND(Q53="+",K51<0),"q",IF(AND(Q53="-",K51>0),"q","p")))) ->  | Q51: Codkpi | R51: Codkpi | S51: Codkpi
H52: =IF(C52="","",IF(INDEX(Ind!$B$6:$O$105,MATCH(LEFT(C52,2),Ind!$B$6:$B$105,0),14)=0,"",INDEX(Ind!$B$6:$O$105,MATCH(LEFT(C52,2),Ind!$B$6:$B$105,0),14))) ->  | I52: =IF(C52<>"",DSUM(InputActual!$B$5:$BO$105,I50,R51:R52),"") ->  | J52: =IF(C52<>"",DSUM(InputTg!$B$5:$BN$105,$I$20,R51:R52),"") ->  | K52: =IF(OR($C$52="",I52=0),"",IF(J52="","",I52-J52)) ->  | L52: =+IF(OR(K52="",J52=0),"",K52/J52) ->  | M52: =IF(L52="","",IF(AND(R53="+",K52>0),"p",IF(AND(R53="+",K52<0),"q",IF(AND(R53="-",K52>0),"q","p")))) ->  | Q52: =LEFT(C51,2) ->  | R52: =LEFT(C52,2) ->  | S52: =LEFT(C53,2) -> 
H53: =IF(C53="","",IF(INDEX(Ind!$B$6:$O$105,MATCH(LEFT(C53,2),Ind!$B$6:$B$105,0),14)=0,"",INDEX(Ind!$B$6:$O$105,MATCH(LEFT(C53,2),Ind!$B$6:$B$105,0),14))) ->  | I53: =IF(C53<>"",DSUM(InputActual!$B$5:$BO$105,I50,S51:S52),"") ->  | J53: =IF(C53<>"",DSUM(InputTg!$B$5:$BN$105,$I$20,S51:S52),"") ->  | K53: =IF(OR($C$53="",I53=0),"",IF(J53="","",I53-J53)) ->  | L53: =+IF(OR(K53="",J53=0),"",K53/J53) ->  | M53: =IF(L53="","",IF(AND(S53="+",K53>0),"p",IF(AND(S53="+",K53<0),"q",IF(AND(S53="-",K53>0),"q","p")))) ->  | Q53: =INDEX(Cfr_Periodi!$C:$I,MATCH(C51,Cfr_Periodi!$C:$C,0),7) ->  | R53: =INDEX(Cfr_Periodi!$C:$I,MATCH(C52,Cfr_Periodi!$C:$C,0),7) ->  | S53: =INDEX(Cfr_Periodi!$C:$I,MATCH(C53,Cfr_Periodi!$C:$C,0),7) -> 
B56: Goal 5:
C60: KPIs | H60: Area Manager | I60: =+I50 -> 2012.06 | J60: Target | K60: Change | L60: % Change | M60: Goal Ach. | N60: Initiatives
H61: =IF(C61="","",IF(INDEX(Ind!$B$6:$O$105,MATCH(LEFT(C61,2),Ind!$B$6:$B$105,0),14)=0,"",INDEX(Ind!$B$6:$O$105,MATCH(LEFT(C61,2),Ind!$B$6:$B$105,0),14))) ->  | I61: =IF(C61<>"",DSUM(InputActual!$B$5:$BO$105,I60,Q61:Q62),"") ->  | J61: =IF(C61<>"",DSUM(InputTg!$B$5:$BN$105,$I$20,Q61:Q62),"") ->  | K61: =IF(OR($C$61="",I61=0),"",IF(J61="","",I61-J61)) ->  | L61: =+IF(OR(K61="",J61=0),"",K61/J61) ->  | M61: =IF(L61="","",IF(AND(Q63="+",K61>0),"p",IF(AND(Q63="+",K61<0),"q",IF(AND(Q63="-",K61>0),"q","p")))) ->  | Q61: Codkpi | R61: Codkpi | S61: Codkpi
H62: =IF(C62="","",IF(INDEX(Ind!$B$6:$O$105,MATCH(LEFT(C62,2),Ind!$B$6:$B$105,0),14)=0,"",INDEX(Ind!$B$6:$O$105,MATCH(LEFT(C62,2),Ind!$B$6:$B$105,0),14))) ->  | I62: =IF(C62<>"",DSUM(InputActual!$B$5:$BO$105,I60,R61:R62),"") ->  | J62: =IF(C62<>"",DSUM(InputTg!$B$5:$BN$105,$I$20,R61:R62),"") ->  | K62: =IF(OR($C$62="",I62=0),"",IF(J62="","",I62-J62)) ->  | L62: =+IF(OR(K62="",J62=0),"",K62/J62) ->  | M62: =IF(L62="","",IF(AND(R63="+",K62>0),"p",IF(AND(R63="+",K62<0),"q",IF(AND(R63="-",K62>0),"q","p")))) ->  | Q62: =LEFT(C61,2) ->  | R62: =LEFT(C62,2) ->  | S62: =LEFT(C63,2) -> 
H63: =IF(C63="","",IF(INDEX(Ind!$B$6:$O$105,MATCH(LEFT(C63,2),Ind!$B$6:$B$105,0),14)=0,"",INDEX(Ind!$B$6:$O$105,MATCH(LEFT(C63,2),Ind!$B$6:$B$105,0),14))) ->  | I63: =IF(C63<>"",DSUM(InputActual!$B$5:$BO$105,I60,S61:S62),"") ->  | J63: =IF(C63<>"",DSUM(InputTg!$B$5:$BN$105,$I$20,S61:S62),"") ->  | K63: =IF(OR($C$63="",I63=0),"",IF(J63="","",I63-J63)) ->  | L63: =+IF(OR(K63="",J63=0),"",K63/J63) ->  | M63: =IF(L63="","",IF(AND(S63="+",K63>0),"p",IF(AND(S63="+",K63<0),"q",IF(AND(S63="-",K63>0),"q","p")))) ->  | Q63: =INDEX(Cfr_Periodi!$C:$I,MATCH(C61,Cfr_Periodi!$C:$C,0),7) ->  | R63: =INDEX(Cfr_Periodi!$C:$I,MATCH(C62,Cfr_Periodi!$C:$C,0),7) ->  | S63: =INDEX(Cfr_Periodi!$C:$I,MATCH(C63,Cfr_Periodi!$C:$C,0),7) -> 

Sheet 4
B4: Company: | C4: =+Menu!O3 -> UVM
B6: Year: | C6: =Menu!F11+3 -> 2015
B8: Period: | C8: 2013.11
B10: Strategic Plan:
B16: Goal 1:
C20: KPIs | H20: Area Manager | I20: =+C8 -> 2013.11 | J20: Target | K20: Change | L20: % Change | M20: Goal Ach. | N20: Initiatives
H21: =IF(C21="","",IF(INDEX(Ind!$B$6:$O$105,MATCH(LEFT(C21,2),Ind!$B$6:$B$105,0),14)=0,"",INDEX(Ind!$B$6:$O$105,MATCH(LEFT(C21,2),Ind!$B$6:$B$105,0),14))) ->  | I21: =IF(C21<>"",DSUM(InputActual!$B$5:$BO$105,I20,Q21:Q22),"") ->  | J21: =IF(C21<>"",DSUM(InputTg!$B$5:$BN$105,$I$20,Q21:Q22),"") ->  | K21: =IF(OR($C$21="",I21=0),"",IF(J21="","",I21-J21)) ->  | L21: =+IF(OR(K21="",J21=0),"",K21/J21) ->  | M21: =IF(L21="","",IF(AND(Q23="+",K21>0),"p",IF(AND(Q23="+",K21<0),"q",IF(AND(Q23="-",K21>0),"q","p")))) ->  | Q21: Codkpi | R21: Codkpi | S21: Codkpi
H22: =IF(C22="","",IF(INDEX(Ind!$B$6:$O$105,MATCH(LEFT(C22,2),Ind!$B$6:$B$105,0),14)=0,"",INDEX(Ind!$B$6:$O$105,MATCH(LEFT(C22,2),Ind!$B$6:$B$105,0),14))) ->  | I22: =IF(C22<>"",DSUM(InputActual!$B$5:$BO$105,I20,R21:R22),"") ->  | J22: =IF(C22<>"",DSUM(InputTg!$B$5:$BN$105,$I$20,R21:R22),"") ->  | K22: =IF(OR($C$22="",I22=0),"",IF(J22="","",I22-J22)) ->  | L22: =+IF(OR(K22="",J22=0),"",K22/J22) ->  | M22: =IF(L22="","",IF(AND(R23="+",K22>0),"p",IF(AND(R23="+",K22<0),"q",IF(AND(R23="-",K22>0),"q","p")))) ->  | Q22: =LEFT(C21,2) ->  | R22: =LEFT(C22,2) ->  | S22: =LEFT(C23,2) -> 
H23: =IF(C23="","",IF(INDEX(Ind!$B$6:$O$105,MATCH(LEFT(C23,2),Ind!$B$6:$B$105,0),14)=0,"",INDEX(Ind!$B$6:$O$105,MATCH(LEFT(C23,2),Ind!$B$6:$B$105,0),14))) ->  | I23: =IF(C23<>"",DSUM(InputActual!$B$5:$BO$105,I20,S21:S22),"") ->  | J23: =IF(C23<>"",DSUM(InputTg!$B$5:$BN$105,$I$20,S21:S22),"") ->  | K23: =IF(OR($C$23="",I23=0),"",IF(J23="","",I23-J23)) ->  | L23: =+IF(OR(K23="",J23=0),"",K23/J23) ->  | M23: =IF(L23="","",IF(AND(S23="+",K23>0),"p",IF(AND(S23="+",K23<0),"q",IF(AND(S23="-",K23>0),"q","p")))) ->  | Q23: =INDEX(Cfr_Periodi!$C:$I,MATCH(C21,Cfr_Periodi!$C:$C,0),7) ->  | R23: =INDEX(Cfr_Periodi!$C:$I,MATCH(C22,Cfr_Periodi!$C:$C,0),7) ->  | S23: =INDEX(Cfr_Periodi!$C:$I,MATCH(C23,Cfr_Periodi!$C:$C,0),7) -> 
B26: Goal 2:
C30: KPIs | H30: Area Manager | I30: =+I20 -> 2013.11 | J30: Target | K30: Change | L30: % Change | M30: Goal Ach. | N30: Initiatives
H31: =IF(C31="","",IF(INDEX(Ind!$B$6:$O$105,MATCH(LEFT(C31,2),Ind!$B$6:$B$105,0),14)=0,"",INDEX(Ind!$B$6:$O$105,MATCH(LEFT(C31,2),Ind!$B$6:$B$105,0),14))) ->  | I31: =IF(C31<>"",DSUM(InputActual!$B$5:$BO$105,I30,Q31:Q32),"") ->  | J31: =IF(C31<>"",DSUM(InputTg!$B$5:$BN$105,$I$20,Q31:Q32),"") ->  | K31: =IF(OR($C$31="",I31=0),"",IF(J31="","",I31-J31)) ->  | L31: =+IF(OR(K31="",J31=0),"",K31/J31) ->  | M31: =IF(L31="","",IF(AND(Q33="+",K31>0),"p",IF(AND(Q33="+",K31<0),"q",IF(AND(Q33="-",K31>0),"q","p")))) ->  | Q31: Codkpi | R31: Codkpi | S31: Codkpi
H32: =IF(C32="","",IF(INDEX(Ind!$B$6:$O$105,MATCH(LEFT(C32,2),Ind!$B$6:$B$105,0),14)=0,"",INDEX(Ind!$B$6:$O$105,MATCH(LEFT(C32,2),Ind!$B$6:$B$105,0),14))) ->  | I32: =IF(C32<>"",DSUM(InputActual!$B$5:$BO$105,I30,R31:R32),"") ->  | J32: =IF(C32<>"",DSUM(InputTg!$B$5:$BN$105,$I$20,R31:R32),"") ->  | K32: =IF(OR($C$32="",I32=0),"",IF(J32="","",I32-J32)) ->  | L32: =+IF(OR(K32="",J32=0),"",K32/J32) ->  | M32: =IF(L32="","",IF(AND(R33="+",K32>0),"p",IF(AND(R33="+",K32<0),"q",IF(AND(R33="-",K32>0),"q","p")))) ->  | Q32: =LEFT(C31,2) ->  | R32: =LEFT(C32,2) ->  | S32: =LEFT(C33,2) -> 
H33: =IF(C33="","",IF(INDEX(Ind!$B$6:$O$105,MATCH(LEFT(C33,2),Ind!$B$6:$B$105,0),14)=0,"",INDEX(Ind!$B$6:$O$105,MATCH(LEFT(C33,2),Ind!$B$6:$B$105,0),14))) ->  | I33: =IF(C33<>"",DSUM(InputActual!$B$5:$BO$105,I30,S31:S32),"") ->  | J33: =IF(C33<>"",DSUM(InputTg!$B$5:$BN$105,$I$20,S31:S32),"") ->  | K33: =IF(OR($C$33="",I33=0),"",IF(J33="","",I33-J33)) ->  | L33: =+IF(OR(K33="",J33=0),"",K33/J33) ->  | M33: =IF(L33="","",IF(AND(S33="+",K33>0),"p",IF(AND(S33="+",K33<0),"q",IF(AND(S33="-",K33>0),"q","p")))) ->  | Q33: =INDEX(Cfr_Periodi!$C:$I,MATCH(C31,Cfr_Periodi!$C:$C,0),7) ->  | R33: =INDEX(Cfr_Periodi!$C:$I,MATCH(C32,Cfr_Periodi!$C:$C,0),7) ->  | S33: =INDEX(Cfr_Periodi!$C:$I,MATCH(C33,Cfr_Periodi!$C:$C,0),7) -> 
B36: Goal 3:
C40: KPIs | H40: Area Manager | I40: =+I30 -> 2013.11 | J40: Target | K40: Change | L40: % Change | M40: Goal Ach. | N40: Initiatives
H41: =IF(C41="","",IF(INDEX(Ind!$B$6:$O$105,MATCH(LEFT(C41,2),Ind!$B$6:$B$105,0),14)=0,"",INDEX(Ind!$B$6:$O$105,MATCH(LEFT(C41,2),Ind!$B$6:$B$105,0),14))) ->  | I41: =IF(C41<>"",DSUM(InputActual!$B$5:$BO$105,I40,Q41:Q42),"") ->  | J41: =IF(C41<>"",DSUM(InputTg!$B$5:$BN$105,$I$20,Q41:Q42),"") ->  | K41: =IF(OR($C$41="",I41=0),"",IF(J41="","",I41-J41)) ->  | L41: =+IF(OR(K41="",J41=0),"",K41/J41) ->  | M41: =IF(L41="","",IF(AND(Q43="+",K41>0),"p",IF(AND(Q43="+",K41<0),"q",IF(AND(Q43="-",K41>0),"q","p")))) ->  | Q41: Codkpi | R41: Codkpi | S41: Codkpi
H42: =IF(C42="","",IF(INDEX(Ind!$B$6:$O$105,MATCH(LEFT(C42,2),Ind!$B$6:$B$105,0),14)=0,"",INDEX(Ind!$B$6:$O$105,MATCH(LEFT(C42,2),Ind!$B$6:$B$105,0),14))) ->  | I42: =IF(C42<>"",DSUM(InputActual!$B$5:$BO$105,I40,R41:R42),"") ->  | J42: =IF(C42<>"",DSUM(InputTg!$B$5:$BN$105,$I$20,R41:R42),"") ->  | K42: =IF(OR($C$42="",I42=0),"",IF(J42="","",I42-J42)) ->  | L42: =+IF(OR(K42="",J42=0),"",K42/J42) ->  | M42: =IF(L42="","",IF(AND(R43="+",K42>0),"p",IF(AND(R43="+",K42<0),"q",IF(AND(R43="-",K42>0),"q","p")))) ->  | Q42: =LEFT(C41,2) ->  | R42: =LEFT(C42,2) ->  | S42: =LEFT(C43,2) -> 
H43: =IF(C43="","",IF(INDEX(Ind!$B$6:$O$105,MATCH(LEFT(C43,2),Ind!$B$6:$B$105,0),14)=0,"",INDEX(Ind!$B$6:$O$105,MATCH(LEFT(C43,2),Ind!$B$6:$B$105,0),14))) ->  | I43: =IF(C43<>"",DSUM(InputActual!$B$5:$BO$105,I40,S41:S42),"") ->  | J43: =IF(C43<>"",DSUM(InputTg!$B$5:$BN$105,$I$20,S41:S42),"") ->  | K43: =IF(OR($C$43="",I43=0),"",IF(J43="","",I43-J43)) ->  | L43: =+IF(OR(K43="",J43=0),"",K43/J43) ->  | M43: =IF(L43="","",IF(AND(S43="+",K43>0),"p",IF(AND(S43="+",K43<0),"q",IF(AND(S43="-",K43>0),"q","p")))) ->  | Q43: =INDEX(Cfr_Periodi!$C:$I,MATCH(C41,Cfr_Periodi!$C:$C,0),7) ->  | R43: =INDEX(Cfr_Periodi!$C:$I,MATCH(C42,Cfr_Periodi!$C:$C,0),7) ->  | S43: =INDEX(Cfr_Periodi!$C:$I,MATCH(C43,Cfr_Periodi!$C:$C,0),7) -> 
B46: Goal 4:
C50: KPIs | H50: Area Manager | I50: =+I40 -> 2013.11 | J50: Target | K50: Change | L50: % Change | M50: Goal Ach. | N50: Initiatives
H51: =IF(C51="","",IF(INDEX(Ind!$B$6:$O$105,MATCH(LEFT(C51,2),Ind!$B$6:$B$105,0),14)=0,"",INDEX(Ind!$B$6:$O$105,MATCH(LEFT(C51,2),Ind!$B$6:$B$105,0),14))) ->  | I51: =IF(C51<>"",DSUM(InputActual!$B$5:$BO$105,I50,Q51:Q52),"") ->  | J51: =IF(C51<>"",DSUM(InputTg!$B$5:$BN$105,$I$20,Q51:Q52),"") ->  | K51: =IF(OR($C$51="",I51=0),"",IF(J51="","",I51-J51)) ->  | L51: =+IF(OR(K51="",J51=0),"",K51/J51) ->  | M51: =IF(L51="","",IF(AND(Q53="+",K51>0),"p",IF(AND(Q53="+",K51<0),"q",IF(AND(Q53="-",K51>0),"q","p")))) ->  | Q51: Codkpi | R51: Codkpi | S51: Codkpi
H52: =IF(C52="","",IF(INDEX(Ind!$B$6:$O$105,MATCH(LEFT(C52,2),Ind!$B$6:$B$105,0),14)=0,"",INDEX(Ind!$B$6:$O$105,MATCH(LEFT(C52,2),Ind!$B$6:$B$105,0),14))) ->  | I52: =IF(C52<>"",DSUM(InputActual!$B$5:$BO$105,I50,R51:R52),"") ->  | J52: =IF(C52<>"",DSUM(InputTg!$B$5:$BN$105,$I$20,R51:R52),"") ->  | K52: =IF(OR($C$52="",I52=0),"",IF(J52="","",I52-J52)) ->  | L52: =+IF(OR(K52="",J52=0),"",K52/J52) ->  | M52: =IF(L52="","",IF(AND(R53="+",K52>0),"p",IF(AND(R53="+",K52<0),"q",IF(AND(R53="-",K52>0),"q","p")))) ->  | Q52: =LEFT(C51,2) ->  | R52: =LEFT(C52,2) ->  | S52: =LEFT(C53,2) -> 
H53: =IF(C53="","",IF(INDEX(Ind!$B$6:$O$105,MATCH(LEFT(C53,2),Ind!$B$6:$B$105,0),14)=0,"",INDEX(Ind!$B$6:$O$105,MATCH(LEFT(C53,2),Ind!$B$6:$B$105,0),14))) ->  | I53: =IF(C53<>"",DSUM(InputActual!$B$5:$BO$105,I50,S51:S52),"") ->  | J53: =IF(C53<>"",DSUM(InputTg!$B$5:$BN$105,$I$20,S51:S52),"") ->  | K53: =IF(OR($C$53="",I53=0),"",IF(J53="","",I53-J53)) ->  | L53: =+IF(OR(K53="",J53=0),"",K53/J53) ->  | M53: =IF(L53="","",IF(AND(S53="+",K53>0),"p",IF(AND(S53="+",K53<0),"q",IF(AND(S53="-",K53>0),"q","p")))) ->  | Q53: =INDEX(Cfr_Periodi!$C:$I,MATCH(C51,Cfr_Periodi!$C:$C,0),7) ->  | R53: =INDEX(Cfr_Periodi!$C:$I,MATCH(C52,Cfr_Periodi!$C:$C,0),7) ->  | S53: =INDEX(Cfr_Periodi!$C:$I,MATCH(C53,Cfr_Periodi!$C:$C,0),7) -> 
B56: Goal 5:
C60: KPIs | H60: Area Manager | I60: =+I50 -> 2013.11 | J60: Target | K60: Change | L60: % Change | M60: Goal Ach. | N60: Initiatives
H61: =IF(C61="","",IF(INDEX(Ind!$B$6:$O$105,MATCH(LEFT(C61,2),Ind!$B$6:$B$105,0),14)=0,"",INDEX(Ind!$B$6:$O$105,MATCH(LEFT(C61,2),Ind!$B$6:$B$105,0),14))) ->  | I61: =IF(C61<>"",DSUM(InputActual!$B$5:$BO$105,I60,Q61:Q62),"") ->  | J61: =IF(C61<>"",DSUM(InputTg!$B$5:$BN$105,$I$20,Q61:Q62),"") ->  | K61: =IF(OR($C$61="",I61=0),"",IF(J61="","",I61-J61)) ->  | L61: =+IF(OR(K61="",J61=0),"",K61/J61) ->  | M61: =IF(L61="","",IF(AND(Q63="+",K61>0),"p",IF(AND(Q63="+",K61<0),"q",IF(AND(Q63="-",K61>0),"q","p")))) ->  | Q61: Codkpi | R61: Codkpi | S61: Codkpi
H62: =IF(C62="","",IF(INDEX(Ind!$B$6:$O$105,MATCH(LEFT(C62,2),Ind!$B$6:$B$105,0),14)=0,"",INDEX(Ind!$B$6:$O$105,MATCH(LEFT(C62,2),Ind!$B$6:$B$105,0),14))) ->  | I62: =IF(C62<>"",DSUM(InputActual!$B$5:$BO$105,I60,R61:R62),"") ->  | J62: =IF(C62<>"",DSUM(InputTg!$B$5:$BN$105,$I$20,R61:R62),"") ->  | K62: =IF(OR($C$62="",I62=0),"",IF(J62="","",I62-J62)) ->  | L62: =+IF(OR(K62="",J62=0),"",K62/J62) ->  | M62: =IF(L62="","",IF(AND(R63="+",K62>0),"p",IF(AND(R63="+",K62<0),"q",IF(AND(R63="-",K62>0),"q","p")))) ->  | Q62: =LEFT(C61,2) ->  | R62: =LEFT(C62,2) ->  | S62: =LEFT(C63,2) -> 
H63: =IF(C63="","",IF(INDEX(Ind!$B$6:$O$105,MATCH(LEFT(C63,2),Ind!$B$6:$B$105,0),14)=0,"",INDEX(Ind!$B$6:$O$105,MATCH(LEFT(C63,2),Ind!$B$6:$B$105,0),14))) ->  | I63: =IF(C63<>"",DSUM(InputActual!$B$5:$BO$105,I60,S61:S62),"") ->  | J63: =IF(C63<>"",DSUM(InputTg!$B$5:$BN$105,$I$20,S61:S62),"") ->  | K63: =IF(OR($C$63="",I63=0),"",IF(J63="","",I63-J63)) ->  | L63: =+IF(OR(K63="",J63=0),"",K63/J63) ->  | M63: =IF(L63="","",IF(AND(S63="+",K63>0),"p",IF(AND(S63="+",K63<0),"q",IF(AND(S63="-",K63>0),"q","p")))) ->  | Q63: =INDEX(Cfr_Periodi!$C:$I,MATCH(C61,Cfr_Periodi!$C:$C,0),7) ->  | R63: =INDEX(Cfr_Periodi!$C:$I,MATCH(C62,Cfr_Periodi!$C:$C,0),7) ->  | S63: =INDEX(Cfr_Periodi!$C:$I,MATCH(C63,Cfr_Periodi!$C:$C,0),7) -> 

Sheet 5
B4: Company: | C4: =+Menu!O3 -> UVM
B6: Year: | C6: =Menu!F11+4 -> 2016
B8: Period: | C8: 2014.04
B10: Strategic Plan:
B16: Goal 1:
C20: KPIs | H20: Area Manager | I20: =+C8 -> 2014.04 | J20: Target | K20: Change | L20: % Change | M20: Goal Ach. | N20: Initiatives
H21: =IF(C21="","",IF(INDEX(Ind!$B$6:$O$105,MATCH(LEFT(C21,2),Ind!$B$6:$B$105,0),14)=0,"",INDEX(Ind!$B$6:$O$105,MATCH(LEFT(C21,2),Ind!$B$6:$B$105,0),14))) ->  | I21: =IF(C21<>"",DSUM(InputActual!$B$5:$BO$105,I20,Q21:Q22),"") ->  | J21: =IF(C21<>"",DSUM(InputTg!$B$5:$BN$105,$I$20,Q21:Q22),"") ->  | K21: =IF(OR($C$21="",I21=0),"",IF(J21="","",I21-J21)) ->  | L21: =+IF(OR(K21="",J21=0),"",K21/J21) ->  | M21: =IF(L21="","",IF(AND(Q23="+",K21>0),"p",IF(AND(Q23="+",K21<0),"q",IF(AND(Q23="-",K21>0),"q","p")))) ->  | Q21: Codkpi | R21: Codkpi | S21: Codkpi
H22: =IF(C22="","",IF(INDEX(Ind!$B$6:$O$105,MATCH(LEFT(C22,2),Ind!$B$6:$B$105,0),14)=0,"",INDEX(Ind!$B$6:$O$105,MATCH(LEFT(C22,2),Ind!$B$6:$B$105,0),14))) ->  | I22: =IF(C22<>"",DSUM(InputActual!$B$5:$BO$105,I20,R21:R22),"") ->  | J22: =IF(C22<>"",DSUM(InputTg!$B$5:$BN$105,$I$20,R21:R22),"") ->  | K22: =IF(OR($C$22="",I22=0),"",IF(J22="","",I22-J22)) ->  | L22: =+IF(OR(K22="",J22=0),"",K22/J22) ->  | M22: =IF(L22="","",IF(AND(R23="+",K22>0),"p",IF(AND(R23="+",K22<0),"q",IF(AND(R23="-",K22>0),"q","p")))) ->  | Q22: =LEFT(C21,2) ->  | R22: =LEFT(C22,2) ->  | S22: =LEFT(C23,2) -> 
H23: =IF(C23="","",IF(INDEX(Ind!$B$6:$O$105,MATCH(LEFT(C23,2),Ind!$B$6:$B$105,0),14)=0,"",INDEX(Ind!$B$6:$O$105,MATCH(LEFT(C23,2),Ind!$B$6:$B$105,0),14))) ->  | I23: =IF(C23<>"",DSUM(InputActual!$B$5:$BO$105,I20,S21:S22),"") ->  | J23: =IF(C23<>"",DSUM(InputTg!$B$5:$BN$105,$I$20,S21:S22),"") ->  | K23: =IF(OR($C$23="",I23=0),"",IF(J23="","",I23-J23)) ->  | L23: =+IF(OR(K23="",J23=0),"",K23/J23) ->  | M23: =IF(L23="","",IF(AND(S23="+",K23>0),"p",IF(AND(S23="+",K23<0),"q",IF(AND(S23="-",K23>0),"q","p")))) ->  | Q23: =INDEX(Cfr_Periodi!$C:$I,MATCH(C21,Cfr_Periodi!$C:$C,0),7) ->  | R23: =INDEX(Cfr_Periodi!$C:$I,MATCH(C22,Cfr_Periodi!$C:$C,0),7) ->  | S23: =INDEX(Cfr_Periodi!$C:$I,MATCH(C23,Cfr_Periodi!$C:$C,0),7) -> 
B26: Goal 2:
C30: KPIs | H30: Area Manager | I30: =+I20 -> 2014.04 | J30: Target | K30: Change | L30: % Change | M30: Goal Ach. | N30: Initiatives
H31: =IF(C31="","",IF(INDEX(Ind!$B$6:$O$105,MATCH(LEFT(C31,2),Ind!$B$6:$B$105,0),14)=0,"",INDEX(Ind!$B$6:$O$105,MATCH(LEFT(C31,2),Ind!$B$6:$B$105,0),14))) ->  | I31: =IF(C31<>"",DSUM(InputActual!$B$5:$BO$105,I30,Q31:Q32),"") ->  | J31: =IF(C31<>"",DSUM(InputTg!$B$5:$BN$105,$I$20,Q31:Q32),"") ->  | K31: =IF(OR($C$31="",I31=0),"",IF(J31="","",I31-J31)) ->  | L31: =+IF(OR(K31="",J31=0),"",K31/J31) ->  | M31: =IF(L31="","",IF(AND(Q33="+",K31>0),"p",IF(AND(Q33="+",K31<0),"q",IF(AND(Q33="-",K31>0),"q","p")))) ->  | Q31: Codkpi | R31: Codkpi | S31: Codkpi
H32: =IF(C32="","",IF(INDEX(Ind!$B$6:$O$105,MATCH(LEFT(C32,2),Ind!$B$6:$B$105,0),14)=0,"",INDEX(Ind!$B$6:$O$105,MATCH(LEFT(C32,2),Ind!$B$6:$B$105,0),14))) ->  | I32: =IF(C32<>"",DSUM(InputActual!$B$5:$BO$105,I30,R31:R32),"") ->  | J32: =IF(C32<>"",DSUM(InputTg!$B$5:$BN$105,$I$20,R31:R32),"") ->  | K32: =IF(OR($C$32="",I32=0),"",IF(J32="","",I32-J32)) ->  | L32: =+IF(OR(K32="",J32=0),"",K32/J32) ->  | M32: =IF(L32="","",IF(AND(R33="+",K32>0),"p",IF(AND(R33="+",K32<0),"q",IF(AND(R33="-",K32>0),"q","p")))) ->  | Q32: =LEFT(C31,2) ->  | R32: =LEFT(C32,2) ->  | S32: =LEFT(C33,2) -> 
H33: =IF(C33="","",IF(INDEX(Ind!$B$6:$O$105,MATCH(LEFT(C33,2),Ind!$B$6:$B$105,0),14)=0,"",INDEX(Ind!$B$6:$O$105,MATCH(LEFT(C33,2),Ind!$B$6:$B$105,0),14))) ->  | I33: =IF(C33<>"",DSUM(InputActual!$B$5:$BO$105,I30,S31:S32),"") ->  | J33: =IF(C33<>"",DSUM(InputTg!$B$5:$BN$105,$I$20,S31:S32),"") ->  | K33: =IF(OR($C$33="",I33=0),"",IF(J33="","",I33-J33)) ->  | L33: =+IF(OR(K33="",J33=0),"",K33/J33) ->  | M33: =IF(L33="","",IF(AND(S33="+",K33>0),"p",IF(AND(S33="+",K33<0),"q",IF(AND(S33="-",K33>0),"q","p")))) ->  | Q33: =INDEX(Cfr_Periodi!$C:$I,MATCH(C31,Cfr_Periodi!$C:$C,0),7) ->  | R33: =INDEX(Cfr_Periodi!$C:$I,MATCH(C32,Cfr_Periodi!$C:$C,0),7) ->  | S33: =INDEX(Cfr_Periodi!$C:$I,MATCH(C33,Cfr_Periodi!$C:$C,0),7) -> 
B36: Goal 3:
C40: KPIs | H40: Area Manager | I40: =+I30 -> 2014.04 | J40: Target | K40: Change | L40: % Change | M40: Goal Ach. | N40: Initiatives
H41: =IF(C41="","",IF(INDEX(Ind!$B$6:$O$105,MATCH(LEFT(C41,2),Ind!$B$6:$B$105,0),14)=0,"",INDEX(Ind!$B$6:$O$105,MATCH(LEFT(C41,2),Ind!$B$6:$B$105,0),14))) ->  | I41: =IF(C41<>"",DSUM(InputActual!$B$5:$BO$105,I40,Q41:Q42),"") ->  | J41: =IF(C41<>"",DSUM(InputTg!$B$5:$BN$105,$I$20,Q41:Q42),"") ->  | K41: =IF(OR($C$41="",I41=0),"",IF(J41="","",I41-J41)) ->  | L41: =+IF(OR(K41="",J41=0),"",K41/J41) ->  | M41: =IF(L41="","",IF(AND(Q43="+",K41>0),"p",IF(AND(Q43="+",K41<0),"q",IF(AND(Q43="-",K41>0),"q","p")))) ->  | Q41: Codkpi | R41: Codkpi | S41: Codkpi
H42: =IF(C42="","",IF(INDEX(Ind!$B$6:$O$105,MATCH(LEFT(C42,2),Ind!$B$6:$B$105,0),14)=0,"",INDEX(Ind!$B$6:$O$105,MATCH(LEFT(C42,2),Ind!$B$6:$B$105,0),14))) ->  | I42: =IF(C42<>"",DSUM(InputActual!$B$5:$BO$105,I40,R41:R42),"") ->  | J42: =IF(C42<>"",DSUM(InputTg!$B$5:$BN$105,$I$20,R41:R42),"") ->  | K42: =IF(OR($C$42="",I42=0),"",IF(J42="","",I42-J42)) ->  | L42: =+IF(OR(K42="",J42=0),"",K42/J42) ->  | M42: =IF(L42="","",IF(AND(R43="+",K42>0),"p",IF(AND(R43="+",K42<0),"q",IF(AND(R43="-",K42>0),"q","p")))) ->  | Q42: =LEFT(C41,2) ->  | R42: =LEFT(C42,2) ->  | S42: =LEFT(C43,2) -> 
H43: =IF(C43="","",IF(INDEX(Ind!$B$6:$O$105,MATCH(LEFT(C43,2),Ind!$B$6:$B$105,0),14)=0,"",INDEX(Ind!$B$6:$O$105,MATCH(LEFT(C43,2),Ind!$B$6:$B$105,0),14))) ->  | I43: =IF(C43<>"",DSUM(InputActual!$B$5:$BO$105,I40,S41:S42),"") ->  | J43: =IF(C43<>"",DSUM(InputTg!$B$5:$BN$105,$I$20,S41:S42),"") ->  | K43: =IF(OR($C$43="",I43=0),"",IF(J43="","",I43-J43)) ->  | L43: =+IF(OR(K43="",J43=0),"",K43/J43) ->  | M43: =IF(L43="","",IF(AND(S43="+",K43>0),"p",IF(AND(S43="+",K43<0),"q",IF(AND(S43="-",K43>0),"q","p")))) ->  | Q43: =INDEX(Cfr_Periodi!$C:$I,MATCH(C41,Cfr_Periodi!$C:$C,0),7) ->  | R43: =INDEX(Cfr_Periodi!$C:$I,MATCH(C42,Cfr_Periodi!$C:$C,0),7) ->  | S43: =INDEX(Cfr_Periodi!$C:$I,MATCH(C43,Cfr_Periodi!$C:$C,0),7) -> 
B46: Goal 4:
C50: KPIs | H50: Area Manager | I50: =+I40 -> 2014.04 | J50: Target | K50: Change | L50: % Change | M50: Goal Ach. | N50: Initiatives
H51: =IF(C51="","",IF(INDEX(Ind!$B$6:$O$105,MATCH(LEFT(C51,2),Ind!$B$6:$B$105,0),14)=0,"",INDEX(Ind!$B$6:$O$105,MATCH(LEFT(C51,2),Ind!$B$6:$B$105,0),14))) ->  | I51: =IF(C51<>"",DSUM(InputActual!$B$5:$BO$105,I50,Q51:Q52),"") ->  | J51: =IF(C51<>"",DSUM(InputTg!$B$5:$BN$105,$I$20,Q51:Q52),"") ->  | K51: =IF(OR($C$51="",I51=0),"",IF(J51="","",I51-J51)) ->  | L51: =+IF(OR(K51="",J51=0),"",K51/J51) ->  | M51: =IF(L51="","",IF(AND(Q53="+",K51>0),"p",IF(AND(Q53="+",K51<0),"q",IF(AND(Q53="-",K51>0),"q","p")))) ->  | Q51: Codkpi | R51: Codkpi | S51: Codkpi
H52: =IF(C52="","",IF(INDEX(Ind!$B$6:$O$105,MATCH(LEFT(C52,2),Ind!$B$6:$B$105,0),14)=0,"",INDEX(Ind!$B$6:$O$105,MATCH(LEFT(C52,2),Ind!$B$6:$B$105,0),14))) ->  | I52: =IF(C52<>"",DSUM(InputActual!$B$5:$BO$105,I50,R51:R52),"") ->  | J52: =IF(C52<>"",DSUM(InputTg!$B$5:$BN$105,$I$20,R51:R52),"") ->  | K52: =IF(OR($C$52="",I52=0),"",IF(J52="","",I52-J52)) ->  | L52: =+IF(OR(K52="",J52=0),"",K52/J52) ->  | M52: =IF(L52="","",IF(AND(R53="+",K52>0),"p",IF(AND(R53="+",K52<0),"q",IF(AND(R53="-",K52>0),"q","p")))) ->  | Q52: =LEFT(C51,2) ->  | R52: =LEFT(C52,2) ->  | S52: =LEFT(C53,2) -> 
H53: =IF(C53="","",IF(INDEX(Ind!$B$6:$O$105,MATCH(LEFT(C53,2),Ind!$B$6:$B$105,0),14)=0,"",INDEX(Ind!$B$6:$O$105,MATCH(LEFT(C53,2),Ind!$B$6:$B$105,0),14))) ->  | I53: =IF(C53<>"",DSUM(InputActual!$B$5:$BO$105,I50,S51:S52),"") ->  | J53: =IF(C53<>"",DSUM(InputTg!$B$5:$BN$105,$I$20,S51:S52),"") ->  | K53: =IF(OR($C$53="",I53=0),"",IF(J53="","",I53-J53)) ->  | L53: =+IF(OR(K53="",J53=0),"",K53/J53) ->  | M53: =IF(L53="","",IF(AND(S53="+",K53>0),"p",IF(AND(S53="+",K53<0),"q",IF(AND(S53="-",K53>0),"q","p")))) ->  | Q53: =INDEX(Cfr_Periodi!$C:$I,MATCH(C51,Cfr_Periodi!$C:$C,0),7) ->  | R53: =INDEX(Cfr_Periodi!$C:$I,MATCH(C52,Cfr_Periodi!$C:$C,0),7) ->  | S53: =INDEX(Cfr_Periodi!$C:$I,MATCH(C53,Cfr_Periodi!$C:$C,0),7) -> 
B56: Goal 5:
C60: KPIs | H60: Area Manager | I60: =+I50 -> 2014.04 | J60: Target | K60: Change | L60: % Change | M60: Goal Ach. | N60: Initiatives
H61: =IF(C61="","",IF(INDEX(Ind!$B$6:$O$105,MATCH(LEFT(C61,2),Ind!$B$6:$B$105,0),14)=0,"",INDEX(Ind!$B$6:$O$105,MATCH(LEFT(C61,2),Ind!$B$6:$B$105,0),14))) ->  | I61: =IF(C61<>"",DSUM(InputActual!$B$5:$BO$105,I60,Q61:Q62),"") ->  | J61: =IF(C61<>"",DSUM(InputTg!$B$5:$BN$105,$I$20,Q61:Q62),"") ->  | K61: =IF(OR($C$61="",I61=0),"",IF(J61="","",I61-J61)) ->  | L61: =+IF(OR(K61="",J61=0),"",K61/J61) ->  | M61: =IF(L61="","",IF(AND(Q63="+",K61>0),"p",IF(AND(Q63="+",K61<0),"q",IF(AND(Q63="-",K61>0),"q","p")))) ->  | Q61: Codkpi | R61: Codkpi | S61: Codkpi
H62: =IF(C62="","",IF(INDEX(Ind!$B$6:$O$105,MATCH(LEFT(C62,2),Ind!$B$6:$B$105,0),14)=0,"",INDEX(Ind!$B$6:$O$105,MATCH(LEFT(C62,2),Ind!$B$6:$B$105,0),14))) ->  | I62: =IF(C62<>"",DSUM(InputActual!$B$5:$BO$105,I60,R61:R62),"") ->  | J62: =IF(C62<>"",DSUM(InputTg!$B$5:$BN$105,$I$20,R61:R62),"") ->  | K62: =IF(OR($C$62="",I62=0),"",IF(J62="","",I62-J62)) ->  | L62: =+IF(OR(K62="",J62=0),"",K62/J62) ->  | M62: =IF(L62="","",IF(AND(R63="+",K62>0),"p",IF(AND(R63="+",K62<0),"q",IF(AND(R63="-",K62>0),"q","p")))) ->  | Q62: =LEFT(C61,2) ->  | R62: =LEFT(C62,2) ->  | S62: =LEFT(C63,2) -> 
H63: =IF(C63="","",IF(INDEX(Ind!$B$6:$O$105,MATCH(LEFT(C63,2),Ind!$B$6:$B$105,0),14)=0,"",INDEX(Ind!$B$6:$O$105,MATCH(LEFT(C63,2),Ind!$B$6:$B$105,0),14))) ->  | I63: =IF(C63<>"",DSUM(InputActual!$B$5:$BO$105,I60,S61:S62),"") ->  | J63: =IF(C63<>"",DSUM(InputTg!$B$5:$BN$105,$I$20,S61:S62),"") ->  | K63: =IF(OR($C$63="",I63=0),"",IF(J63="","",I63-J63)) ->  | L63: =+IF(OR(K63="",J63=0),"",K63/J63) ->  | M63: =IF(L63="","",IF(AND(S63="+",K63>0),"p",IF(AND(S63="+",K63<0),"q",IF(AND(S63="-",K63>0),"q","p")))) ->  | Q63: =INDEX(Cfr_Periodi!$C:$I,MATCH(C61,Cfr_Periodi!$C:$C,0),7) ->  | R63: =INDEX(Cfr_Periodi!$C:$I,MATCH(C62,Cfr_Periodi!$C:$C,0),7) ->  | S63: =INDEX(Cfr_Periodi!$C:$I,MATCH(C63,Cfr_Periodi!$C:$C,0),7) -> 

Sheet Pro
B4: PERSPECTIVES
B6: CodPersp | C6: Perspective Description
B7: P001 | C7: segmento financiero | D7: 1
B8: P002 | C8: CLIENTES | D8: 2
B9: P003 | C9: PROCESOS | D9: 3
B10: P004 | C10: APRENDIZAJE Y TECNOLOGÍA | D10: 4
B11: P005 | D11: 5
B12: P006 | D12: 6
B13: P007 | D13: 7
B14: P008 | D14: 8
B15: P009 | D15: 9
B16: P010 | D16: 10
H20: =IF(C20="","",INDEX(Ind!$B$6:$O$105,MATCH(LEFT(C20,2),Ind!B6:B106,0),14)) -> 

Sheet Proc
B4: BUSINESS PROCESS
B6: CodProc | C6: Business Process Description
B7: PR01 | C7: FINANZAS
B8: PR02 | C8: COMERCIALIZACION
B9: PR03 | C9: CONSTRUCCION
B10: PR04 | C10: MANTENIMIENTO
B11: PR05
B12: PR06
B13: PR07
B14: PR08
B15: PR09
B16: PR10
B17: PR11
B18: PR12
B19: PR13
B20: PR14
B21: PR15
B22: PR16
B23: PR17
B24: PR18
B25: PR19
B26: PR20

Sheet Resp
B4: AREA MANAGERS
B6: CodMan | C6: Area Manager Description
B7: RE01 | C7: DIRECCIÓN GENERAL
B8: RE02 | C8: DIRECCIÓN DE ADMINISTRACIÓN
B9: RE03 | C9: DIRECCIÓN DE COMERCIALIZACIÓN
B10: RE04 | C10: DIRECCIÓN DE PRODUCCIÓN
B11: RE05 | C11: DIRECCIÓN DE ABASTECIMIENTOS
B12: RE06 | C12: DIRECCION DE PROYECTOS
B13: RE07
B14: RE08
B15: RE09
B16: RE10
B17: RE11
B18: RE12
B19: RE13
B20: RE14
B21: RE15
B22: RE16
B23: RE17
B24: RE18
B25: RE19
B26: RE20

Sheet Dim
B3: CATEGORIES
B5: CodCat | C5: Category Description | D5: CodPersp | E5: Perspective Description
B6: D001 | C6: COSTOS DE OPERACIÓN | D6: =IF(E6="","",INDEX(Pro!$B$7:$C$16,MATCH(Dim!E6,prospettive,0),1)) -> P001 | E6: segmento financiero
B7: D002 | C7: GASTOS DE OPERACIÓN | D7: =IF(E7="","",INDEX(Pro!$B$7:$C$16,MATCH(Dim!E7,prospettive,0),1)) -> P001 | E7: segmento financiero
B8: D003 | C8: CONTROL PRESUPUESTAL | D8: =IF(E8="","",INDEX(Pro!$B$7:$C$16,MATCH(Dim!E8,prospettive,0),1)) -> P001 | E8: segmento financiero
B9: D004 | C9: INVERSIONES | D9: =IF(E9="","",INDEX(Pro!$B$7:$C$16,MATCH(Dim!E9,prospettive,0),1)) -> P001 | E9: segmento financiero
B10: D005 | C10: PEMEX | D10: =IF(E10="","",INDEX(Pro!$B$7:$C$16,MATCH(Dim!E10,prospettive,0),1)) -> P002 | E10: CLIENTES
B11: D006 | C11: GOBIERNOS | D11: =IF(E11="","",INDEX(Pro!$B$7:$C$16,MATCH(Dim!E11,prospettive,0),1)) -> P002 | E11: CLIENTES
B12: D007 | C12: PARTICULARES | D12: =IF(E12="","",INDEX(Pro!$B$7:$C$16,MATCH(Dim!E12,prospettive,0),1)) -> P002 | E12: CLIENTES
B13: D008 | C13: SISTEMAS DE CALIDAD | D13: =IF(E13="","",INDEX(Pro!$B$7:$C$16,MATCH(Dim!E13,prospettive,0),1)) -> P003 | E13: PROCESOS
B14: D009 | C14: REINGENIERIA | D14: =IF(E14="","",INDEX(Pro!$B$7:$C$16,MATCH(Dim!E14,prospettive,0),1)) -> P003 | E14: PROCESOS
B15: D010 | C15: DESARROLLO DE COMPETENCIAS | D15: =IF(E15="","",INDEX(Pro!$B$7:$C$16,MATCH(Dim!E15,prospettive,0),1)) -> P004 | E15: APRENDIZAJE Y TECNOLOGÍA
B16: D011 | C16: SISTEMA ERP | D16: =IF(E16="","",INDEX(Pro!$B$7:$C$16,MATCH(Dim!E16,prospettive,0),1)) -> P004 | E16: APRENDIZAJE Y TECNOLOGÍA
B17: D012 | D17: =IF(E17="","",INDEX(Pro!$B$7:$C$16,MATCH(Dim!E17,prospettive,0),1)) -> 
B18: D013 | D18: =IF(E18="","",INDEX(Pro!$B$7:$C$16,MATCH(Dim!E18,prospettive,0),1)) -> 
B19: D014 | D19: =IF(E19="","",INDEX(Pro!$B$7:$C$16,MATCH(Dim!E19,prospettive,0),1)) -> 
B20: D015 | D20: =IF(E20="","",INDEX(Pro!$B$7:$C$16,MATCH(Dim!E20,prospettive,0),1)) -> 
B21: D016 | D21: =IF(E21="","",INDEX(Pro!$B$7:$C$16,MATCH(Dim!E21,prospettive,0),1)) -> 
B22: D017 | D22: =IF(E22="","",INDEX(Pro!$B$7:$C$16,MATCH(Dim!E22,prospettive,0),1)) -> 
B23: D018 | D23: =IF(E23="","",INDEX(Pro!$B$7:$C$16,MATCH(Dim!E23,prospettive,0),1)) -> 
B24: D019 | D24: =IF(E24="","",INDEX(Pro!$B$7:$C$16,MATCH(Dim!E24,prospettive,0),1)) -> 
B25: D020 | D25: =IF(E25="","",INDEX(Pro!$B$7:$C$16,MATCH(Dim!E25,prospettive,0),1)) -> 
B26: D021 | D26: =IF(E26="","",INDEX(Pro!$B$7:$C$16,MATCH(Dim!E26,prospettive,0),1)) -> 
B27: D022 | D27: =IF(E27="","",INDEX(Pro!$B$7:$C$16,MATCH(Dim!E27,prospettive,0),1)) -> 
B28: D023 | D28: =IF(E28="","",INDEX(Pro!$B$7:$C$16,MATCH(Dim!E28,prospettive,0),1)) -> 
B29: D024 | D29: =IF(E29="","",INDEX(Pro!$B$7:$C$16,MATCH(Dim!E29,prospettive,0),1)) -> 
B30: D025 | D30: =IF(E30="","",INDEX(Pro!$B$7:$C$16,MATCH(Dim!E30,prospettive,0),1)) -> 
B31: D026 | D31: =IF(E31="","",INDEX(Pro!$B$7:$C$16,MATCH(Dim!E31,prospettive,0),1)) -> 
B32: D027 | D32: =IF(E32="","",INDEX(Pro!$B$7:$C$16,MATCH(Dim!E32,prospettive,0),1)) -> 
B33: D028 | D33: =IF(E33="","",INDEX(Pro!$B$7:$C$16,MATCH(Dim!E33,prospettive,0),1)) -> 
B34: D029 | D34: =IF(E34="","",INDEX(Pro!$B$7:$C$16,MATCH(Dim!E34,prospettive,0),1)) -> 
B35: D030 | D35: =IF(E35="","",INDEX(Pro!$B$7:$C$16,MATCH(Dim!E35,prospettive,0),1)) -> 
B36: D031 | D36: =IF(E36="","",INDEX(Pro!$B$7:$C$16,MATCH(Dim!E36,prospettive,0),1)) -> 
B37: D032 | D37: =IF(E37="","",INDEX(Pro!$B$7:$C$16,MATCH(Dim!E37,prospettive,0),1)) -> 
B38: D033 | D38: =IF(E38="","",INDEX(Pro!$B$7:$C$16,MATCH(Dim!E38,prospettive,0),1)) -> 
B39: D034 | D39: =IF(E39="","",INDEX(Pro!$B$7:$C$16,MATCH(Dim!E39,prospettive,0),1)) -> 
B40: D035 | D40: =IF(E40="","",INDEX(Pro!$B$7:$C$16,MATCH(Dim!E40,prospettive,0),1)) -> 
B41: D036 | D41: =IF(E41="","",INDEX(Pro!$B$7:$C$16,MATCH(Dim!E41,prospettive,0),1)) -> 
B42: D037 | D42: =IF(E42="","",INDEX(Pro!$B$7:$C$16,MATCH(Dim!E42,prospettive,0),1)) -> 
B43: D038 | D43: =IF(E43="","",INDEX(Pro!$B$7:$C$16,MATCH(Dim!E43,prospettive,0),1)) -> 
B44: D039 | D44: =IF(E44="","",INDEX(Pro!$B$7:$C$16,MATCH(Dim!E44,prospettive,0),1)) -> 
B45: D040 | D45: =IF(E45="","",INDEX(Pro!$B$7:$C$16,MATCH(Dim!E45,prospettive,0),1)) -> 

Sheet Ind
B3: KEY PERFORMANCE INDICATORS
B5: CodKpi | C5: KPI Description | D5: CodCat | E5: Category Description | F5: CodPersp | G5: Perspective Description | H5: CodProc | I5: Business Process Description | J5: Number Format | K5: Band Type | L5: Frequency | M5: Time Frame | N5: GrAtPresent | O5: Area Manager
B6: 01 | C6: LOGRAR UN INCREMENTO DEL 5% EN VENTAS | D6: =IF(E6<>"",INDEX(Dim!$B$6:$C$45,MATCH(Ind!E6,DIMDESC,0),1),"") -> D003 | E6: CONTROL PRESUPUESTAL | F6: =IF(D6<>"",INDEX(Dim!$B$6:$D$45,MATCH(Ind!D6,DIM,0),3),"") -> P001 | G6: =IF(F6<>"",INDEX(Pro!$B$7:$C$16,MATCH(Ind!F6,PROSP,0),2),"") -> segmento financiero | H6: =IF(I6<>"",INDEX(Proc!$B$7:$C$26,MATCH(Ind!I6,processi,0),1),"") -> PR02 | I6: COMERCIALIZACION | J6: Percentage | K6: + | L6: Month | M6: At present | N6: YES | O6: DIRECCIÓN DE COMERCIALIZACIÓN | Q6: =IF(C6<>"",B6&"-"&C6,"") -> 01-LOGRAR UN INCREMENTO DEL 5% EN VENTAS
B7: 02 | C7: EXPADIR PUNTOS DE VENTA ZONA MARINA | D7: =IF(E7<>"",INDEX(Dim!$B$6:$C$45,MATCH(Ind!E7,DIMDESC,0),1),"") -> D004 | E7: INVERSIONES | F7: =IF(D7<>"",INDEX(Dim!$B$6:$D$45,MATCH(Ind!D7,DIM,0),3),"") -> P001 | G7: =IF(F7<>"",INDEX(Pro!$B$7:$C$16,MATCH(Ind!F7,PROSP,0),2),"") -> segmento financiero | H7: =IF(I7<>"",INDEX(Proc!$B$7:$C$26,MATCH(Ind!I7,processi,0),1),"") -> PR02 | I7: COMERCIALIZACION | J7: Percentage | K7: + | L7: Month | M7: At present | N7: YES | O7: DIRECCIÓN DE COMERCIALIZACIÓN | Q7: =IF(C7<>"",B7&"-"&C7,"") -> 02-EXPADIR PUNTOS DE VENTA ZONA MARINA
B8: 03 | C8: INCREMENTAR EL ISC | D8: =IF(E8<>"",INDEX(Dim!$B$6:$C$45,MATCH(Ind!E8,DIMDESC,0),1),"") -> D005 | E8: PEMEX | F8: =IF(D8<>"",INDEX(Dim!$B$6:$D$45,MATCH(Ind!D8,DIM,0),3),"") -> P002 | G8: =IF(F8<>"",INDEX(Pro!$B$7:$C$16,MATCH(Ind!F8,PROSP,0),2),"") -> CLIENTES | H8: =IF(I8<>"",INDEX(Proc!$B$7:$C$26,MATCH(Ind!I8,processi,0),1),"") -> PR03 | I8: CONSTRUCCION | J8: Percentage | K8: + | L8: Month | M8: At present | N8: YES | O8: DIRECCION DE PROYECTOS | Q8: 03-INCREMENTAR EL ISC
B9: 04 | C9: REDUCIR QUEJAS POR FALLOS HERRAMIENTA | D9: =IF(E9<>"",INDEX(Dim!$B$6:$C$45,MATCH(Ind!E9,DIMDESC,0),1),"") -> D005 | E9: PEMEX | F9: =IF(D9<>"",INDEX(Dim!$B$6:$D$45,MATCH(Ind!D9,DIM,0),3),"") -> P002 | G9: =IF(F9<>"",INDEX(Pro!$B$7:$C$16,MATCH(Ind!F9,PROSP,0),2),"") -> CLIENTES | H9: =IF(I9<>"",INDEX(Proc!$B$7:$C$26,MATCH(Ind!I9,processi,0),1),"") -> PR04 | I9: MANTENIMIENTO | J9: Percentage | K9: - | L9: Month | M9: At present | N9: YES | O9: DIRECCIÓN DE ADMINISTRACIÓN | Q9: 04-REDUCIR QUEJAS POR FALLOS HERRAMIENTA
B10: 05 | C10: CUMPLIR CON ESTANDAR DE CALIBRACION | D10: =IF(E10<>"",INDEX(Dim!$B$6:$C$45,MATCH(Ind!E10,DIMDESC,0),1),"") -> D008 | E10: SISTEMAS DE CALIDAD | F10: =IF(D10<>"",INDEX(Dim!$B$6:$D$45,MATCH(Ind!D10,DIM,0),3),"") -> P003 | G10: =IF(F10<>"",INDEX(Pro!$B$7:$C$16,MATCH(Ind!F10,PROSP,0),2),"") -> PROCESOS | H10: =IF(I10<>"",INDEX(Proc!$B$7:$C$26,MATCH(Ind!I10,processi,0),1),"") -> PR04 | I10: MANTENIMIENTO | J10: Percentage | K10: + | L10: Month | M10: At present | N10: YES | O10: DIRECCION DE PROYECTOS | Q10: 05-CUMPLIR CON ESTANDAR DE CALIBRACION
B11: 06 | C11: LOGRAR LA EFICACIA DEL SGC | D11: =IF(E11<>"",INDEX(Dim!$B$6:$C$45,MATCH(Ind!E11,DIMDESC,0),1),"") -> D008 | E11: SISTEMAS DE CALIDAD | F11: =IF(D11<>"",INDEX(Dim!$B$6:$D$45,MATCH(Ind!D11,DIM,0),3),"") -> P003 | G11: =IF(F11<>"",INDEX(Pro!$B$7:$C$16,MATCH(Ind!F11,PROSP,0),2),"") -> PROCESOS | H11: =IF(I11<>"",INDEX(Proc!$B$7:$C$26,MATCH(Ind!I11,processi,0),1),"") -> PR04 | I11: MANTENIMIENTO | J11: Percentage | K11: + | L11: Month | M11: At present | N11: YES | O11: DIRECCIÓN DE ADMINISTRACIÓN | Q11: 06-LOGRAR LA EFICACIA DEL SGC
B12: 07 | C12: TENER PERSONAL COMPETENTE | D12: =IF(E12<>"",INDEX(Dim!$B$6:$C$45,MATCH(Ind!E12,DIMDESC,0),1),"") -> D010 | E12: DESARROLLO DE COMPETENCIAS | F12: =IF(D12<>"",INDEX(Dim!$B$6:$D$45,MATCH(Ind!D12,DIM,0),3),"") -> P004 | G12: =IF(F12<>"",INDEX(Pro!$B$7:$C$16,MATCH(Ind!F12,PROSP,0),2),"") -> APRENDIZAJE Y TECNOLOGÍA | H12: =IF(I12<>"",INDEX(Proc!$B$7:$C$26,MATCH(Ind!I12,processi,0),1),"") -> PR03 | I12: CONSTRUCCION | J12: Percentage | K12: - | L12: Month | M12: At present | N12: YES | O12: DIRECCIÓN DE ADMINISTRACIÓN | Q12: 07-TENER PERSONAL COMPETENTE
B13: 08 | C13: CONSOLIDAR EFECTIVIDAD ERP | D13: =IF(E13<>"",INDEX(Dim!$B$6:$C$45,MATCH(Ind!E13,DIMDESC,0),1),"") ->  | F13: =IF(D13<>"",INDEX(Dim!$B$6:$D$45,MATCH(Ind!D13,DIM,0),3),"") ->  | G13: =IF(F13<>"",INDEX(Pro!$B$7:$C$16,MATCH(Ind!F13,PROSP,0),2),"") ->  | H13: =IF(I13<>"",INDEX(Proc!$B$7:$C$26,MATCH(Ind!I13,processi,0),1),"") -> PR01 | I13: FINANZAS | J13: Percentage | K13: + | L13: Month | M13: At present | N13: YES | O13: DIRECCIÓN DE ADMINISTRACIÓN | Q13: 08-CONSOLIDAR EFECTIVIDAD ERP
B14: 09 | D14: =IF(E14<>"",INDEX(Dim!$B$6:$C$45,MATCH(Ind!E14,DIMDESC,0),1),"") ->  | F14: =IF(D14<>"",INDEX(Dim!$B$6:$D$45,MATCH(Ind!D14,DIM,0),3),"") ->  | G14: =IF(F14<>"",INDEX(Pro!$B$7:$C$16,MATCH(Ind!F14,PROSP,0),2),"") ->  | H14: =IF(I14<>"",INDEX(Proc!$B$7:$C$26,MATCH(Ind!I14,processi,0),1),"") -> 
B15: 10 | D15: =IF(E15<>"",INDEX(Dim!$B$6:$C$45,MATCH(Ind!E15,DIMDESC,0),1),"") ->  | F15: =IF(D15<>"",INDEX(Dim!$B$6:$D$45,MATCH(Ind!D15,DIM,0),3),"") ->  | G15: =IF(F15<>"",INDEX(Pro!$B$7:$C$16,MATCH(Ind!F15,PROSP,0),2),"") ->  | H15: =IF(I15<>"",INDEX(Proc!$B$7:$C$26,MATCH(Ind!I15,processi,0),1),"") -> 
B16: 11 | D16: =IF(E16<>"",INDEX(Dim!$B$6:$C$45,MATCH(Ind!E16,DIMDESC,0),1),"") ->  | F16: =IF(D16<>"",INDEX(Dim!$B$6:$D$45,MATCH(Ind!D16,DIM,0),3),"") ->  | G16: =IF(F16<>"",INDEX(Pro!$B$7:$C$16,MATCH(Ind!F16,PROSP,0),2),"") ->  | H16: =IF(I16<>"",INDEX(Proc!$B$7:$C$26,MATCH(Ind!I16,processi,0),1),"") -> 
B17: 12 | D17: =IF(E17<>"",INDEX(Dim!$B$6:$C$45,MATCH(Ind!E17,DIMDESC,0),1),"") ->  | F17: =IF(D17<>"",INDEX(Dim!$B$6:$D$45,MATCH(Ind!D17,DIM,0),3),"") ->  | G17: =IF(F17<>"",INDEX(Pro!$B$7:$C$16,MATCH(Ind!F17,PROSP,0),2),"") ->  | H17: =IF(I17<>"",INDEX(Proc!$B$7:$C$26,MATCH(Ind!I17,processi,0),1),"") -> 
B18: 13 | D18: =IF(E18<>"",INDEX(Dim!$B$6:$C$45,MATCH(Ind!E18,DIMDESC,0),1),"") ->  | F18: =IF(D18<>"",INDEX(Dim!$B$6:$D$45,MATCH(Ind!D18,DIM,0),3),"") ->  | G18: =IF(F18<>"",INDEX(Pro!$B$7:$C$16,MATCH(Ind!F18,PROSP,0),2),"") ->  | H18: =IF(I18<>"",INDEX(Proc!$B$7:$C$26,MATCH(Ind!I18,processi,0),1),"") -> 
B19: 14 | D19: =IF(E19<>"",INDEX(Dim!$B$6:$C$45,MATCH(Ind!E19,DIMDESC,0),1),"") ->  | F19: =IF(D19<>"",INDEX(Dim!$B$6:$D$45,MATCH(Ind!D19,DIM,0),3),"") ->  | G19: =IF(F19<>"",INDEX(Pro!$B$7:$C$16,MATCH(Ind!F19,PROSP,0),2),"") ->  | H19: =IF(I19<>"",INDEX(Proc!$B$7:$C$26,MATCH(Ind!I19,processi,0),1),"") -> 
B20: 15 | D20: =IF(E20<>"",INDEX(Dim!$B$6:$C$45,MATCH(Ind!E20,DIMDESC,0),1),"") ->  | F20: =IF(D20<>"",INDEX(Dim!$B$6:$D$45,MATCH(Ind!D20,DIM,0),3),"") ->  | G20: =IF(F20<>"",INDEX(Pro!$B$7:$C$16,MATCH(Ind!F20,PROSP,0),2),"") ->  | H20: =IF(I20<>"",INDEX(Proc!$B$7:$C$26,MATCH(Ind!I20,processi,0),1),"") -> 
B21: 16 | D21: =IF(E21<>"",INDEX(Dim!$B$6:$C$45,MATCH(Ind!E21,DIMDESC,0),1),"") ->  | F21: =IF(D21<>"",INDEX(Dim!$B$6:$D$45,MATCH(Ind!D21,DIM,0),3),"") ->  | G21: =IF(F21<>"",INDEX(Pro!$B$7:$C$16,MATCH(Ind!F21,PROSP,0),2),"") ->  | H21: =IF(I21<>"",INDEX(Proc!$B$7:$C$26,MATCH(Ind!I21,processi,0),1),"") -> 
B22: 17 | D22: =IF(E22<>"",INDEX(Dim!$B$6:$C$45,MATCH(Ind!E22,DIMDESC,0),1),"") ->  | F22: =IF(D22<>"",INDEX(Dim!$B$6:$D$45,MATCH(Ind!D22,DIM,0),3),"") ->  | G22: =IF(F22<>"",INDEX(Pro!$B$7:$C$16,MATCH(Ind!F22,PROSP,0),2),"") ->  | H22: =IF(I22<>"",INDEX(Proc!$B$7:$C$26,MATCH(Ind!I22,processi,0),1),"") -> 
B23: 18 | D23: =IF(E23<>"",INDEX(Dim!$B$6:$C$45,MATCH(Ind!E23,DIMDESC,0),1),"") ->  | F23: =IF(D23<>"",INDEX(Dim!$B$6:$D$45,MATCH(Ind!D23,DIM,0),3),"") ->  | G23: =IF(F23<>"",INDEX(Pro!$B$7:$C$16,MATCH(Ind!F23,PROSP,0),2),"") ->  | H23: =IF(I23<>"",INDEX(Proc!$B$7:$C$26,MATCH(Ind!I23,processi,0),1),"") -> 
B24: 19 | D24: =IF(E24<>"",INDEX(Dim!$B$6:$C$45,MATCH(Ind!E24,DIMDESC,0),1),"") ->  | F24: =IF(D24<>"",INDEX(Dim!$B$6:$D$45,MATCH(Ind!D24,DIM,0),3),"") ->  | G24: =IF(F24<>"",INDEX(Pro!$B$7:$C$16,MATCH(Ind!F24,PROSP,0),2),"") ->  | H24: =IF(I24<>"",INDEX(Proc!$B$7:$C$26,MATCH(Ind!I24,processi,0),1),"") -> 
B25: 20 | D25: =IF(E25<>"",INDEX(Dim!$B$6:$C$45,MATCH(Ind!E25,DIMDESC,0),1),"") ->  | F25: =IF(D25<>"",INDEX(Dim!$B$6:$D$45,MATCH(Ind!D25,DIM,0),3),"") ->  | G25: =IF(F25<>"",INDEX(Pro!$B$7:$C$16,MATCH(Ind!F25,PROSP,0),2),"") ->  | H25: =IF(I25<>"",INDEX(Proc!$B$7:$C$26,MATCH(Ind!I25,processi,0),1),"") -> 
B26: 21 | D26: =IF(E26<>"",INDEX(Dim!$B$6:$C$45,MATCH(Ind!E26,DIMDESC,0),1),"") ->  | F26: =IF(D26<>"",INDEX(Dim!$B$6:$D$45,MATCH(Ind!D26,DIM,0),3),"") ->  | G26: =IF(F26<>"",INDEX(Pro!$B$7:$C$16,MATCH(Ind!F26,PROSP,0),2),"") ->  | H26: =IF(I26<>"",INDEX(Proc!$B$7:$C$26,MATCH(Ind!I26,processi,0),1),"") -> 
B27: 22 | D27: =IF(E27<>"",INDEX(Dim!$B$6:$C$45,MATCH(Ind!E27,DIMDESC,0),1),"") ->  | F27: =IF(D27<>"",INDEX(Dim!$B$6:$D$45,MATCH(Ind!D27,DIM,0),3),"") ->  | G27: =IF(F27<>"",INDEX(Pro!$B$7:$C$16,MATCH(Ind!F27,PROSP,0),2),"") ->  | H27: =IF(I27<>"",INDEX(Proc!$B$7:$C$26,MATCH(Ind!I27,processi,0),1),"") -> 
B28: 23 | D28: =IF(E28<>"",INDEX(Dim!$B$6:$C$45,MATCH(Ind!E28,DIMDESC,0),1),"") ->  | F28: =IF(D28<>"",INDEX(Dim!$B$6:$D$45,MATCH(Ind!D28,DIM,0),3),"") ->  | G28: =IF(F28<>"",INDEX(Pro!$B$7:$C$16,MATCH(Ind!F28,PROSP,0),2),"") ->  | H28: =IF(I28<>"",INDEX(Proc!$B$7:$C$26,MATCH(Ind!I28,processi,0),1),"") -> 
B29: 24 | D29: =IF(E29<>"",INDEX(Dim!$B$6:$C$45,MATCH(Ind!E29,DIMDESC,0),1),"") ->  | F29: =IF(D29<>"",INDEX(Dim!$B$6:$D$45,MATCH(Ind!D29,DIM,0),3),"") ->  | G29: =IF(F29<>"",INDEX(Pro!$B$7:$C$16,MATCH(Ind!F29,PROSP,0),2),"") ->  | H29: =IF(I29<>"",INDEX(Proc!$B$7:$C$26,MATCH(Ind!I29,processi,0),1),"") -> 
B30: 25 | D30: =IF(E30<>"",INDEX(Dim!$B$6:$C$45,MATCH(Ind!E30,DIMDESC,0),1),"") ->  | F30: =IF(D30<>"",INDEX(Dim!$B$6:$D$45,MATCH(Ind!D30,DIM,0),3),"") ->  | G30: =IF(F30<>"",INDEX(Pro!$B$7:$C$16,MATCH(Ind!F30,PROSP,0),2),"") ->  | H30: =IF(I30<>"",INDEX(Proc!$B$7:$C$26,MATCH(Ind!I30,processi,0),1),"") -> 
B31: 26 | D31: =IF(E31<>"",INDEX(Dim!$B$6:$C$45,MATCH(Ind!E31,DIMDESC,0),1),"") ->  | F31: =IF(D31<>"",INDEX(Dim!$B$6:$D$45,MATCH(Ind!D31,DIM,0),3),"") ->  | G31: =IF(F31<>"",INDEX(Pro!$B$7:$C$16,MATCH(Ind!F31,PROSP,0),2),"") ->  | H31: =IF(I31<>"",INDEX(Proc!$B$7:$C$26,MATCH(Ind!I31,processi,0),1),"") -> 
B32: 27 | D32: =IF(E32<>"",INDEX(Dim!$B$6:$C$45,MATCH(Ind!E32,DIMDESC,0),1),"") ->  | F32: =IF(D32<>"",INDEX(Dim!$B$6:$D$45,MATCH(Ind!D32,DIM,0),3),"") ->  | G32: =IF(F32<>"",INDEX(Pro!$B$7:$C$16,MATCH(Ind!F32,PROSP,0),2),"") ->  | H32: =IF(I32<>"",INDEX(Proc!$B$7:$C$26,MATCH(Ind!I32,processi,0),1),"") -> 
B33: 28 | D33: =IF(E33<>"",INDEX(Dim!$B$6:$C$45,MATCH(Ind!E33,DIMDESC,0),1),"") ->  | F33: =IF(D33<>"",INDEX(Dim!$B$6:$D$45,MATCH(Ind!D33,DIM,0),3),"") ->  | G33: =IF(F33<>"",INDEX(Pro!$B$7:$C$16,MATCH(Ind!F33,PROSP,0),2),"") ->  | H33: =IF(I33<>"",INDEX(Proc!$B$7:$C$26,MATCH(Ind!I33,processi,0),1),"") -> 
B34: 29 | D34: =IF(E34<>"",INDEX(Dim!$B$6:$C$45,MATCH(Ind!E34,DIMDESC,0),1),"") ->  | F34: =IF(D34<>"",INDEX(Dim!$B$6:$D$45,MATCH(Ind!D34,DIM,0),3),"") ->  | G34: =IF(F34<>"",INDEX(Pro!$B$7:$C$16,MATCH(Ind!F34,PROSP,0),2),"") ->  | H34: =IF(I34<>"",INDEX(Proc!$B$7:$C$26,MATCH(Ind!I34,processi,0),1),"") -> 
B35: 30 | D35: =IF(E35<>"",INDEX(Dim!$B$6:$C$45,MATCH(Ind!E35,DIMDESC,0),1),"") ->  | F35: =IF(D35<>"",INDEX(Dim!$B$6:$D$45,MATCH(Ind!D35,DIM,0),3),"") ->  | G35: =IF(F35<>"",INDEX(Pro!$B$7:$C$16,MATCH(Ind!F35,PROSP,0),2),"") ->  | H35: =IF(I35<>"",INDEX(Proc!$B$7:$C$26,MATCH(Ind!I35,processi,0),1),"") -> 
B36: 31 | D36: =IF(E36<>"",INDEX(Dim!$B$6:$C$45,MATCH(Ind!E36,DIMDESC,0),1),"") ->  | F36: =IF(D36<>"",INDEX(Dim!$B$6:$D$45,MATCH(Ind!D36,DIM,0),3),"") ->  | G36: =IF(F36<>"",INDEX(Pro!$B$7:$C$16,MATCH(Ind!F36,PROSP,0),2),"") ->  | H36: =IF(I36<>"",INDEX(Proc!$B$7:$C$26,MATCH(Ind!I36,processi,0),1),"") -> 
B37: 32 | D37: =IF(E37<>"",INDEX(Dim!$B$6:$C$45,MATCH(Ind!E37,DIMDESC,0),1),"") ->  | F37: =IF(D37<>"",INDEX(Dim!$B$6:$D$45,MATCH(Ind!D37,DIM,0),3),"") ->  | G37: =IF(F37<>"",INDEX(Pro!$B$7:$C$16,MATCH(Ind!F37,PROSP,0),2),"") ->  | H37: =IF(I37<>"",INDEX(Proc!$B$7:$C$26,MATCH(Ind!I37,processi,0),1),"") -> 
B38: 33 | D38: =IF(E38<>"",INDEX(Dim!$B$6:$C$45,MATCH(Ind!E38,DIMDESC,0),1),"") ->  | F38: =IF(D38<>"",INDEX(Dim!$B$6:$D$45,MATCH(Ind!D38,DIM,0),3),"") ->  | G38: =IF(F38<>"",INDEX(Pro!$B$7:$C$16,MATCH(Ind!F38,PROSP,0),2),"") ->  | H38: =IF(I38<>"",INDEX(Proc!$B$7:$C$26,MATCH(Ind!I38,processi,0),1),"") -> 
B39: 34 | D39: =IF(E39<>"",INDEX(Dim!$B$6:$C$45,MATCH(Ind!E39,DIMDESC,0),1),"") ->  | F39: =IF(D39<>"",INDEX(Dim!$B$6:$D$45,MATCH(Ind!D39,DIM,0),3),"") ->  | G39: =IF(F39<>"",INDEX(Pro!$B$7:$C$16,MATCH(Ind!F39,PROSP,0),2),"") ->  | H39: =IF(I39<>"",INDEX(Proc!$B$7:$C$26,MATCH(Ind!I39,processi,0),1),"") -> 
B40: 35 | D40: =IF(E40<>"",INDEX(Dim!$B$6:$C$45,MATCH(Ind!E40,DIMDESC,0),1),"") ->  | F40: =IF(D40<>"",INDEX(Dim!$B$6:$D$45,MATCH(Ind!D40,DIM,0),3),"") ->  | G40: =IF(F40<>"",INDEX(Pro!$B$7:$C$16,MATCH(Ind!F40,PROSP,0),2),"") ->  | H40: =IF(I40<>"",INDEX(Proc!$B$7:$C$26,MATCH(Ind!I40,processi,0),1),"") -> 
B41: 36 | D41: =IF(E41<>"",INDEX(Dim!$B$6:$C$45,MATCH(Ind!E41,DIMDESC,0),1),"") ->  | F41: =IF(D41<>"",INDEX(Dim!$B$6:$D$45,MATCH(Ind!D41,DIM,0),3),"") ->  | G41: =IF(F41<>"",INDEX(Pro!$B$7:$C$16,MATCH(Ind!F41,PROSP,0),2),"") ->  | H41: =IF(I41<>"",INDEX(Proc!$B$7:$C$26,MATCH(Ind!I41,processi,0),1),"") -> 
B42: 37 | D42: =IF(E42<>"",INDEX(Dim!$B$6:$C$45,MATCH(Ind!E42,DIMDESC,0),1),"") ->  | F42: =IF(D42<>"",INDEX(Dim!$B$6:$D$45,MATCH(Ind!D42,DIM,0),3),"") ->  | G42: =IF(F42<>"",INDEX(Pro!$B$7:$C$16,MATCH(Ind!F42,PROSP,0),2),"") ->  | H42: =IF(I42<>"",INDEX(Proc!$B$7:$C$26,MATCH(Ind!I42,processi,0),1),"") -> 
B43: 38 | D43: =IF(E43<>"",INDEX(Dim!$B$6:$C$45,MATCH(Ind!E43,DIMDESC,0),1),"") ->  | F43: =IF(D43<>"",INDEX(Dim!$B$6:$D$45,MATCH(Ind!D43,DIM,0),3),"") ->  | G43: =IF(F43<>"",INDEX(Pro!$B$7:$C$16,MATCH(Ind!F43,PROSP,0),2),"") ->  | H43: =IF(I43<>"",INDEX(Proc!$B$7:$C$26,MATCH(Ind!I43,processi,0),1),"") -> 
B44: 39 | D44: =IF(E44<>"",INDEX(Dim!$B$6:$C$45,MATCH(Ind!E44,DIMDESC,0),1),"") ->  | F44: =IF(D44<>"",INDEX(Dim!$B$6:$D$45,MATCH(Ind!D44,DIM,0),3),"") ->  | G44: =IF(F44<>"",INDEX(Pro!$B$7:$C$16,MATCH(Ind!F44,PROSP,0),2),"") ->  | H44: =IF(I44<>"",INDEX(Proc!$B$7:$C$26,MATCH(Ind!I44,processi,0),1),"") -> 
B45: 40 | D45: =IF(E45<>"",INDEX(Dim!$B$6:$C$45,MATCH(Ind!E45,DIMDESC,0),1),"") ->  | F45: =IF(D45<>"",INDEX(Dim!$B$6:$D$45,MATCH(Ind!D45,DIM,0),3),"") ->  | G45: =IF(F45<>"",INDEX(Pro!$B$7:$C$16,MATCH(Ind!F45,PROSP,0),2),"") ->  | H45: =IF(I45<>"",INDEX(Proc!$B$7:$C$26,MATCH(Ind!I45,processi,0),1),"") -> 
B46: 41 | D46: =IF(E46<>"",INDEX(Dim!$B$6:$C$45,MATCH(Ind!E46,DIMDESC,0),1),"") ->  | F46: =IF(D46<>"",INDEX(Dim!$B$6:$D$45,MATCH(Ind!D46,DIM,0),3),"") ->  | G46: =IF(F46<>"",INDEX(Pro!$B$7:$C$16,MATCH(Ind!F46,PROSP,0),2),"") ->  | H46: =IF(I46<>"",INDEX(Proc!$B$7:$C$26,MATCH(Ind!I46,processi,0),1),"") -> 
B47: 42 | D47: =IF(E47<>"",INDEX(Dim!$B$6:$C$45,MATCH(Ind!E47,DIMDESC,0),1),"") ->  | F47: =IF(D47<>"",INDEX(Dim!$B$6:$D$45,MATCH(Ind!D47,DIM,0),3),"") ->  | G47: =IF(F47<>"",INDEX(Pro!$B$7:$C$16,MATCH(Ind!F47,PROSP,0),2),"") ->  | H47: =IF(I47<>"",INDEX(Proc!$B$7:$C$26,MATCH(Ind!I47,processi,0),1),"") -> 
B48: 43 | D48: =IF(E48<>"",INDEX(Dim!$B$6:$C$45,MATCH(Ind!E48,DIMDESC,0),1),"") ->  | F48: =IF(D48<>"",INDEX(Dim!$B$6:$D$45,MATCH(Ind!D48,DIM,0),3),"") ->  | G48: =IF(F48<>"",INDEX(Pro!$B$7:$C$16,MATCH(Ind!F48,PROSP,0),2),"") ->  | H48: =IF(I48<>"",INDEX(Proc!$B$7:$C$26,MATCH(Ind!I48,processi,0),1),"") -> 
B49: 44 | D49: =IF(E49<>"",INDEX(Dim!$B$6:$C$45,MATCH(Ind!E49,DIMDESC,0),1),"") ->  | F49: =IF(D49<>"",INDEX(Dim!$B$6:$D$45,MATCH(Ind!D49,DIM,0),3),"") ->  | G49: =IF(F49<>"",INDEX(Pro!$B$7:$C$16,MATCH(Ind!F49,PROSP,0),2),"") ->  | H49: =IF(I49<>"",INDEX(Proc!$B$7:$C$26,MATCH(Ind!I49,processi,0),1),"") -> 
B50: 45 | D50: =IF(E50<>"",INDEX(Dim!$B$6:$C$45,MATCH(Ind!E50,DIMDESC,0),1),"") ->  | F50: =IF(D50<>"",INDEX(Dim!$B$6:$D$45,MATCH(Ind!D50,DIM,0),3),"") ->  | G50: =IF(F50<>"",INDEX(Pro!$B$7:$C$16,MATCH(Ind!F50,PROSP,0),2),"") ->  | H50: =IF(I50<>"",INDEX(Proc!$B$7:$C$26,MATCH(Ind!I50,processi,0),1),"") -> 
B51: 46 | D51: =IF(E51<>"",INDEX(Dim!$B$6:$C$45,MATCH(Ind!E51,DIMDESC,0),1),"") ->  | F51: =IF(D51<>"",INDEX(Dim!$B$6:$D$45,MATCH(Ind!D51,DIM,0),3),"") ->  | G51: =IF(F51<>"",INDEX(Pro!$B$7:$C$16,MATCH(Ind!F51,PROSP,0),2),"") ->  | H51: =IF(I51<>"",INDEX(Proc!$B$7:$C$26,MATCH(Ind!I51,processi,0),1),"") -> 
B52: 47 | D52: =IF(E52<>"",INDEX(Dim!$B$6:$C$45,MATCH(Ind!E52,DIMDESC,0),1),"") ->  | F52: =IF(D52<>"",INDEX(Dim!$B$6:$D$45,MATCH(Ind!D52,DIM,0),3),"") ->  | G52: =IF(F52<>"",INDEX(Pro!$B$7:$C$16,MATCH(Ind!F52,PROSP,0),2),"") ->  | H52: =IF(I52<>"",INDEX(Proc!$B$7:$C$26,MATCH(Ind!I52,processi,0),1),"") -> 
B53: 48 | D53: =IF(E53<>"",INDEX(Dim!$B$6:$C$45,MATCH(Ind!E53,DIMDESC,0),1),"") ->  | F53: =IF(D53<>"",INDEX(Dim!$B$6:$D$45,MATCH(Ind!D53,DIM,0),3),"") ->  | G53: =IF(F53<>"",INDEX(Pro!$B$7:$C$16,MATCH(Ind!F53,PROSP,0),2),"") ->  | H53: =IF(I53<>"",INDEX(Proc!$B$7:$C$26,MATCH(Ind!I53,processi,0),1),"") -> 
B54: 49 | D54: =IF(E54<>"",INDEX(Dim!$B$6:$C$45,MATCH(Ind!E54,DIMDESC,0),1),"") ->  | F54: =IF(D54<>"",INDEX(Dim!$B$6:$D$45,MATCH(Ind!D54,DIM,0),3),"") ->  | G54: =IF(F54<>"",INDEX(Pro!$B$7:$C$16,MATCH(Ind!F54,PROSP,0),2),"") ->  | H54: =IF(I54<>"",INDEX(Proc!$B$7:$C$26,MATCH(Ind!I54,processi,0),1),"") -> 
B55: 50 | D55: =IF(E55<>"",INDEX(Dim!$B$6:$C$45,MATCH(Ind!E55,DIMDESC,0),1),"") ->  | F55: =IF(D55<>"",INDEX(Dim!$B$6:$D$45,MATCH(Ind!D55,DIM,0),3),"") ->  | G55: =IF(F55<>"",INDEX(Pro!$B$7:$C$16,MATCH(Ind!F55,PROSP,0),2),"") ->  | H55: =IF(I55<>"",INDEX(Proc!$B$7:$C$26,MATCH(Ind!I55,processi,0),1),"") -> 
B56: 51 | D56: =IF(E56<>"",INDEX(Dim!$B$6:$C$45,MATCH(Ind!E56,DIMDESC,0),1),"") ->  | F56: =IF(D56<>"",INDEX(Dim!$B$6:$D$45,MATCH(Ind!D56,DIM,0),3),"") ->  | G56: =IF(F56<>"",INDEX(Pro!$B$7:$C$16,MATCH(Ind!F56,PROSP,0),2),"") ->  | H56: =IF(I56<>"",INDEX(Proc!$B$7:$C$26,MATCH(Ind!I56,processi,0),1),"") -> 
B57: 52 | D57: =IF(E57<>"",INDEX(Dim!$B$6:$C$45,MATCH(Ind!E57,DIMDESC,0),1),"") ->  | F57: =IF(D57<>"",INDEX(Dim!$B$6:$D$45,MATCH(Ind!D57,DIM,0),3),"") ->  | G57: =IF(F57<>"",INDEX(Pro!$B$7:$C$16,MATCH(Ind!F57,PROSP,0),2),"") ->  | H57: =IF(I57<>"",INDEX(Proc!$B$7:$C$26,MATCH(Ind!I57,processi,0),1),"") -> 
B58: 53 | D58: =IF(E58<>"",INDEX(Dim!$B$6:$C$45,MATCH(Ind!E58,DIMDESC,0),1),"") ->  | F58: =IF(D58<>"",INDEX(Dim!$B$6:$D$45,MATCH(Ind!D58,DIM,0),3),"") ->  | G58: =IF(F58<>"",INDEX(Pro!$B$7:$C$16,MATCH(Ind!F58,PROSP,0),2),"") ->  | H58: =IF(I58<>"",INDEX(Proc!$B$7:$C$26,MATCH(Ind!I58,processi,0),1),"") -> 
B59: 54 | D59: =IF(E59<>"",INDEX(Dim!$B$6:$C$45,MATCH(Ind!E59,DIMDESC,0),1),"") ->  | F59: =IF(D59<>"",INDEX(Dim!$B$6:$D$45,MATCH(Ind!D59,DIM,0),3),"") ->  | G59: =IF(F59<>"",INDEX(Pro!$B$7:$C$16,MATCH(Ind!F59,PROSP,0),2),"") ->  | H59: =IF(I59<>"",INDEX(Proc!$B$7:$C$26,MATCH(Ind!I59,processi,0),1),"") -> 
B60: 55 | D60: =IF(E60<>"",INDEX(Dim!$B$6:$C$45,MATCH(Ind!E60,DIMDESC,0),1),"") ->  | F60: =IF(D60<>"",INDEX(Dim!$B$6:$D$45,MATCH(Ind!D60,DIM,0),3),"") ->  | G60: =IF(F60<>"",INDEX(Pro!$B$7:$C$16,MATCH(Ind!F60,PROSP,0),2),"") ->  | H60: =IF(I60<>"",INDEX(Proc!$B$7:$C$26,MATCH(Ind!I60,processi,0),1),"") -> 
B61: 56 | D61: =IF(E61<>"",INDEX(Dim!$B$6:$C$45,MATCH(Ind!E61,DIMDESC,0),1),"") ->  | F61: =IF(D61<>"",INDEX(Dim!$B$6:$D$45,MATCH(Ind!D61,DIM,0),3),"") ->  | G61: =IF(F61<>"",INDEX(Pro!$B$7:$C$16,MATCH(Ind!F61,PROSP,0),2),"") ->  | H61: =IF(I61<>"",INDEX(Proc!$B$7:$C$26,MATCH(Ind!I61,processi,0),1),"") -> 
B62: 57 | D62: =IF(E62<>"",INDEX(Dim!$B$6:$C$45,MATCH(Ind!E62,DIMDESC,0),1),"") ->  | F62: =IF(D62<>"",INDEX(Dim!$B$6:$D$45,MATCH(Ind!D62,DIM,0),3),"") ->  | G62: =IF(F62<>"",INDEX(Pro!$B$7:$C$16,MATCH(Ind!F62,PROSP,0),2),"") ->  | H62: =IF(I62<>"",INDEX(Proc!$B$7:$C$26,MATCH(Ind!I62,processi,0),1),"") -> 
B63: 58 | D63: =IF(E63<>"",INDEX(Dim!$B$6:$C$45,MATCH(Ind!E63,DIMDESC,0),1),"") ->  | F63: =IF(D63<>"",INDEX(Dim!$B$6:$D$45,MATCH(Ind!D63,DIM,0),3),"") ->  | G63: =IF(F63<>"",INDEX(Pro!$B$7:$C$16,MATCH(Ind!F63,PROSP,0),2),"") ->  | H63: =IF(I63<>"",INDEX(Proc!$B$7:$C$26,MATCH(Ind!I63,processi,0),1),"") -> 
B64: 59 | D64: =IF(E64<>"",INDEX(Dim!$B$6:$C$45,MATCH(Ind!E64,DIMDESC,0),1),"") ->  | F64: =IF(D64<>"",INDEX(Dim!$B$6:$D$45,MATCH(Ind!D64,DIM,0),3),"") ->  | G64: =IF(F64<>"",INDEX(Pro!$B$7:$C$16,MATCH(Ind!F64,PROSP,0),2),"") ->  | H64: =IF(I64<>"",INDEX(Proc!$B$7:$C$26,MATCH(Ind!I64,processi,0),1),"") -> 
B65: 60 | D65: =IF(E65<>"",INDEX(Dim!$B$6:$C$45,MATCH(Ind!E65,DIMDESC,0),1),"") ->  | F65: =IF(D65<>"",INDEX(Dim!$B$6:$D$45,MATCH(Ind!D65,DIM,0),3),"") ->  | G65: =IF(F65<>"",INDEX(Pro!$B$7:$C$16,MATCH(Ind!F65,PROSP,0),2),"") ->  | H65: =IF(I65<>"",INDEX(Proc!$B$7:$C$26,MATCH(Ind!I65,processi,0),1),"") -> 
B66: 61 | D66: =IF(E66<>"",INDEX(Dim!$B$6:$C$45,MATCH(Ind!E66,DIMDESC,0),1),"") ->  | F66: =IF(D66<>"",INDEX(Dim!$B$6:$D$45,MATCH(Ind!D66,DIM,0),3),"") ->  | G66: =IF(F66<>"",INDEX(Pro!$B$7:$C$16,MATCH(Ind!F66,PROSP,0),2),"") ->  | H66: =IF(I66<>"",INDEX(Proc!$B$7:$C$26,MATCH(Ind!I66,processi,0),1),"") -> 
B67: 62 | D67: =IF(E67<>"",INDEX(Dim!$B$6:$C$45,MATCH(Ind!E67,DIMDESC,0),1),"") ->  | F67: =IF(D67<>"",INDEX(Dim!$B$6:$D$45,MATCH(Ind!D67,DIM,0),3),"") ->  | G67: =IF(F67<>"",INDEX(Pro!$B$7:$C$16,MATCH(Ind!F67,PROSP,0),2),"") ->  | H67: =IF(I67<>"",INDEX(Proc!$B$7:$C$26,MATCH(Ind!I67,processi,0),1),"") -> 
B68: 63 | D68: =IF(E68<>"",INDEX(Dim!$B$6:$C$45,MATCH(Ind!E68,DIMDESC,0),1),"") ->  | F68: =IF(D68<>"",INDEX(Dim!$B$6:$D$45,MATCH(Ind!D68,DIM,0),3),"") ->  | G68: =IF(F68<>"",INDEX(Pro!$B$7:$C$16,MATCH(Ind!F68,PROSP,0),2),"") ->  | H68: =IF(I68<>"",INDEX(Proc!$B$7:$C$26,MATCH(Ind!I68,processi,0),1),"") -> 
B69: 64 | D69: =IF(E69<>"",INDEX(Dim!$B$6:$C$45,MATCH(Ind!E69,DIMDESC,0),1),"") ->  | F69: =IF(D69<>"",INDEX(Dim!$B$6:$D$45,MATCH(Ind!D69,DIM,0),3),"") ->  | G69: =IF(F69<>"",INDEX(Pro!$B$7:$C$16,MATCH(Ind!F69,PROSP,0),2),"") ->  | H69: =IF(I69<>"",INDEX(Proc!$B$7:$C$26,MATCH(Ind!I69,processi,0),1),"") -> 
B70: 65 | D70: =IF(E70<>"",INDEX(Dim!$B$6:$C$45,MATCH(Ind!E70,DIMDESC,0),1),"") ->  | F70: =IF(D70<>"",INDEX(Dim!$B$6:$D$45,MATCH(Ind!D70,DIM,0),3),"") ->  | G70: =IF(F70<>"",INDEX(Pro!$B$7:$C$16,MATCH(Ind!F70,PROSP,0),2),"") ->  | H70: =IF(I70<>"",INDEX(Proc!$B$7:$C$26,MATCH(Ind!I70,processi,0),1),"") -> 
B71: 66 | D71: =IF(E71<>"",INDEX(Dim!$B$6:$C$45,MATCH(Ind!E71,DIMDESC,0),1),"") ->  | F71: =IF(D71<>"",INDEX(Dim!$B$6:$D$45,MATCH(Ind!D71,DIM,0),3),"") ->  | G71: =IF(F71<>"",INDEX(Pro!$B$7:$C$16,MATCH(Ind!F71,PROSP,0),2),"") ->  | H71: =IF(I71<>"",INDEX(Proc!$B$7:$C$26,MATCH(Ind!I71,processi,0),1),"") ->  | Q71: =IF(C71<>"",B71&"-"&C71,"") -> 
B72: 67 | D72: =IF(E72<>"",INDEX(Dim!$B$6:$C$45,MATCH(Ind!E72,DIMDESC,0),1),"") ->  | F72: =IF(D72<>"",INDEX(Dim!$B$6:$D$45,MATCH(Ind!D72,DIM,0),3),"") ->  | G72: =IF(F72<>"",INDEX(Pro!$B$7:$C$16,MATCH(Ind!F72,PROSP,0),2),"") ->  | H72: =IF(I72<>"",INDEX(Proc!$B$7:$C$26,MATCH(Ind!I72,processi,0),1),"") -> 
B73: 68 | D73: =IF(E73<>"",INDEX(Dim!$B$6:$C$45,MATCH(Ind!E73,DIMDESC,0),1),"") ->  | F73: =IF(D73<>"",INDEX(Dim!$B$6:$D$45,MATCH(Ind!D73,DIM,0),3),"") ->  | G73: =IF(F73<>"",INDEX(Pro!$B$7:$C$16,MATCH(Ind!F73,PROSP,0),2),"") ->  | H73: =IF(I73<>"",INDEX(Proc!$B$7:$C$26,MATCH(Ind!I73,processi,0),1),"") -> 
B74: 69 | D74: =IF(E74<>"",INDEX(Dim!$B$6:$C$45,MATCH(Ind!E74,DIMDESC,0),1),"") ->  | F74: =IF(D74<>"",INDEX(Dim!$B$6:$D$45,MATCH(Ind!D74,DIM,0),3),"") ->  | G74: =IF(F74<>"",INDEX(Pro!$B$7:$C$16,MATCH(Ind!F74,PROSP,0),2),"") ->  | H74: =IF(I74<>"",INDEX(Proc!$B$7:$C$26,MATCH(Ind!I74,processi,0),1),"") -> 
B75: 70 | D75: =IF(E75<>"",INDEX(Dim!$B$6:$C$45,MATCH(Ind!E75,DIMDESC,0),1),"") ->  | F75: =IF(D75<>"",INDEX(Dim!$B$6:$D$45,MATCH(Ind!D75,DIM,0),3),"") ->  | G75: =IF(F75<>"",INDEX(Pro!$B$7:$C$16,MATCH(Ind!F75,PROSP,0),2),"") ->  | H75: =IF(I75<>"",INDEX(Proc!$B$7:$C$26,MATCH(Ind!I75,processi,0),1),"") -> 
B76: 71 | D76: =IF(E76<>"",INDEX(Dim!$B$6:$C$45,MATCH(Ind!E76,DIMDESC,0),1),"") ->  | F76: =IF(D76<>"",INDEX(Dim!$B$6:$D$45,MATCH(Ind!D76,DIM,0),3),"") ->  | G76: =IF(F76<>"",INDEX(Pro!$B$7:$C$16,MATCH(Ind!F76,PROSP,0),2),"") ->  | H76: =IF(I76<>"",INDEX(Proc!$B$7:$C$26,MATCH(Ind!I76,processi,0),1),"") -> 
B77: 72 | D77: =IF(E77<>"",INDEX(Dim!$B$6:$C$45,MATCH(Ind!E77,DIMDESC,0),1),"") ->  | F77: =IF(D77<>"",INDEX(Dim!$B$6:$D$45,MATCH(Ind!D77,DIM,0),3),"") ->  | G77: =IF(F77<>"",INDEX(Pro!$B$7:$C$16,MATCH(Ind!F77,PROSP,0),2),"") ->  | H77: =IF(I77<>"",INDEX(Proc!$B$7:$C$26,MATCH(Ind!I77,processi,0),1),"") -> 
B78: 73 | D78: =IF(E78<>"",INDEX(Dim!$B$6:$C$45,MATCH(Ind!E78,DIMDESC,0),1),"") ->  | F78: =IF(D78<>"",INDEX(Dim!$B$6:$D$45,MATCH(Ind!D78,DIM,0),3),"") ->  | G78: =IF(F78<>"",INDEX(Pro!$B$7:$C$16,MATCH(Ind!F78,PROSP,0),2),"") ->  | H78: =IF(I78<>"",INDEX(Proc!$B$7:$C$26,MATCH(Ind!I78,processi,0),1),"") -> 
B79: 74 | D79: =IF(E79<>"",INDEX(Dim!$B$6:$C$45,MATCH(Ind!E79,DIMDESC,0),1),"") ->  | F79: =IF(D79<>"",INDEX(Dim!$B$6:$D$45,MATCH(Ind!D79,DIM,0),3),"") ->  | G79: =IF(F79<>"",INDEX(Pro!$B$7:$C$16,MATCH(Ind!F79,PROSP,0),2),"") ->  | H79: =IF(I79<>"",INDEX(Proc!$B$7:$C$26,MATCH(Ind!I79,processi,0),1),"") -> 
B80: 75 | D80: =IF(E80<>"",INDEX(Dim!$B$6:$C$45,MATCH(Ind!E80,DIMDESC,0),1),"") ->  | F80: =IF(D80<>"",INDEX(Dim!$B$6:$D$45,MATCH(Ind!D80,DIM,0),3),"") ->  | G80: =IF(F80<>"",INDEX(Pro!$B$7:$C$16,MATCH(Ind!F80,PROSP,0),2),"") ->  | H80: =IF(I80<>"",INDEX(Proc!$B$7:$C$26,MATCH(Ind!I80,processi,0),1),"") -> 
B81: 76 | D81: =IF(E81<>"",INDEX(Dim!$B$6:$C$45,MATCH(Ind!E81,DIMDESC,0),1),"") ->  | F81: =IF(D81<>"",INDEX(Dim!$B$6:$D$45,MATCH(Ind!D81,DIM,0),3),"") ->  | G81: =IF(F81<>"",INDEX(Pro!$B$7:$C$16,MATCH(Ind!F81,PROSP,0),2),"") ->  | H81: =IF(I81<>"",INDEX(Proc!$B$7:$C$26,MATCH(Ind!I81,processi,0),1),"") -> 
B82: 77 | D82: =IF(E82<>"",INDEX(Dim!$B$6:$C$45,MATCH(Ind!E82,DIMDESC,0),1),"") ->  | F82: =IF(D82<>"",INDEX(Dim!$B$6:$D$45,MATCH(Ind!D82,DIM,0),3),"") ->  | G82: =IF(F82<>"",INDEX(Pro!$B$7:$C$16,MATCH(Ind!F82,PROSP,0),2),"") ->  | H82: =IF(I82<>"",INDEX(Proc!$B$7:$C$26,MATCH(Ind!I82,processi,0),1),"") -> 
B83: 78 | D83: =IF(E83<>"",INDEX(Dim!$B$6:$C$45,MATCH(Ind!E83,DIMDESC,0),1),"") ->  | F83: =IF(D83<>"",INDEX(Dim!$B$6:$D$45,MATCH(Ind!D83,DIM,0),3),"") ->  | G83: =IF(F83<>"",INDEX(Pro!$B$7:$C$16,MATCH(Ind!F83,PROSP,0),2),"") ->  | H83: =IF(I83<>"",INDEX(Proc!$B$7:$C$26,MATCH(Ind!I83,processi,0),1),"") -> 
B84: 79 | D84: =IF(E84<>"",INDEX(Dim!$B$6:$C$45,MATCH(Ind!E84,DIMDESC,0),1),"") ->  | F84: =IF(D84<>"",INDEX(Dim!$B$6:$D$45,MATCH(Ind!D84,DIM,0),3),"") ->  | G84: =IF(F84<>"",INDEX(Pro!$B$7:$C$16,MATCH(Ind!F84,PROSP,0),2),"") ->  | H84: =IF(I84<>"",INDEX(Proc!$B$7:$C$26,MATCH(Ind!I84,processi,0),1),"") -> 
B85: 80 | D85: =IF(E85<>"",INDEX(Dim!$B$6:$C$45,MATCH(Ind!E85,DIMDESC,0),1),"") ->  | F85: =IF(D85<>"",INDEX(Dim!$B$6:$D$45,MATCH(Ind!D85,DIM,0),3),"") ->  | G85: =IF(F85<>"",INDEX(Pro!$B$7:$C$16,MATCH(Ind!F85,PROSP,0),2),"") ->  | H85: =IF(I85<>"",INDEX(Proc!$B$7:$C$26,MATCH(Ind!I85,processi,0),1),"") -> 
B86: 81 | D86: =IF(E86<>"",INDEX(Dim!$B$6:$C$45,MATCH(Ind!E86,DIMDESC,0),1),"") ->  | F86: =IF(D86<>"",INDEX(Dim!$B$6:$D$45,MATCH(Ind!D86,DIM,0),3),"") ->  | G86: =IF(F86<>"",INDEX(Pro!$B$7:$C$16,MATCH(Ind!F86,PROSP,0),2),"") ->  | H86: =IF(I86<>"",INDEX(Proc!$B$7:$C$26,MATCH(Ind!I86,processi,0),1),"") -> 
B87: 82 | D87: =IF(E87<>"",INDEX(Dim!$B$6:$C$45,MATCH(Ind!E87,DIMDESC,0),1),"") ->  | F87: =IF(D87<>"",INDEX(Dim!$B$6:$D$45,MATCH(Ind!D87,DIM,0),3),"") ->  | G87: =IF(F87<>"",INDEX(Pro!$B$7:$C$16,MATCH(Ind!F87,PROSP,0),2),"") ->  | H87: =IF(I87<>"",INDEX(Proc!$B$7:$C$26,MATCH(Ind!I87,processi,0),1),"") -> 
B88: 83 | D88: =IF(E88<>"",INDEX(Dim!$B$6:$C$45,MATCH(Ind!E88,DIMDESC,0),1),"") ->  | F88: =IF(D88<>"",INDEX(Dim!$B$6:$D$45,MATCH(Ind!D88,DIM,0),3),"") ->  | G88: =IF(F88<>"",INDEX(Pro!$B$7:$C$16,MATCH(Ind!F88,PROSP,0),2),"") ->  | H88: =IF(I88<>"",INDEX(Proc!$B$7:$C$26,MATCH(Ind!I88,processi,0),1),"") -> 
B89: 84 | D89: =IF(E89<>"",INDEX(Dim!$B$6:$C$45,MATCH(Ind!E89,DIMDESC,0),1),"") ->  | F89: =IF(D89<>"",INDEX(Dim!$B$6:$D$45,MATCH(Ind!D89,DIM,0),3),"") ->  | G89: =IF(F89<>"",INDEX(Pro!$B$7:$C$16,MATCH(Ind!F89,PROSP,0),2),"") ->  | H89: =IF(I89<>"",INDEX(Proc!$B$7:$C$26,MATCH(Ind!I89,processi,0),1),"") -> 
B90: 85 | D90: =IF(E90<>"",INDEX(Dim!$B$6:$C$45,MATCH(Ind!E90,DIMDESC,0),1),"") ->  | F90: =IF(D90<>"",INDEX(Dim!$B$6:$D$45,MATCH(Ind!D90,DIM,0),3),"") ->  | G90: =IF(F90<>"",INDEX(Pro!$B$7:$C$16,MATCH(Ind!F90,PROSP,0),2),"") ->  | H90: =IF(I90<>"",INDEX(Proc!$B$7:$C$26,MATCH(Ind!I90,processi,0),1),"") -> 
B91: 86 | D91: =IF(E91<>"",INDEX(Dim!$B$6:$C$45,MATCH(Ind!E91,DIMDESC,0),1),"") ->  | F91: =IF(D91<>"",INDEX(Dim!$B$6:$D$45,MATCH(Ind!D91,DIM,0),3),"") ->  | G91: =IF(F91<>"",INDEX(Pro!$B$7:$C$16,MATCH(Ind!F91,PROSP,0),2),"") ->  | H91: =IF(I91<>"",INDEX(Proc!$B$7:$C$26,MATCH(Ind!I91,processi,0),1),"") -> 
B92: 87 | D92: =IF(E92<>"",INDEX(Dim!$B$6:$C$45,MATCH(Ind!E92,DIMDESC,0),1),"") ->  | F92: =IF(D92<>"",INDEX(Dim!$B$6:$D$45,MATCH(Ind!D92,DIM,0),3),"") ->  | G92: =IF(F92<>"",INDEX(Pro!$B$7:$C$16,MATCH(Ind!F92,PROSP,0),2),"") ->  | H92: =IF(I92<>"",INDEX(Proc!$B$7:$C$26,MATCH(Ind!I92,processi,0),1),"") -> 
B93: 88 | D93: =IF(E93<>"",INDEX(Dim!$B$6:$C$45,MATCH(Ind!E93,DIMDESC,0),1),"") ->  | F93: =IF(D93<>"",INDEX(Dim!$B$6:$D$45,MATCH(Ind!D93,DIM,0),3),"") ->  | G93: =IF(F93<>"",INDEX(Pro!$B$7:$C$16,MATCH(Ind!F93,PROSP,0),2),"") ->  | H93: =IF(I93<>"",INDEX(Proc!$B$7:$C$26,MATCH(Ind!I93,processi,0),1),"") -> 
B94: 89 | D94: =IF(E94<>"",INDEX(Dim!$B$6:$C$45,MATCH(Ind!E94,DIMDESC,0),1),"") ->  | F94: =IF(D94<>"",INDEX(Dim!$B$6:$D$45,MATCH(Ind!D94,DIM,0),3),"") ->  | G94: =IF(F94<>"",INDEX(Pro!$B$7:$C$16,MATCH(Ind!F94,PROSP,0),2),"") ->  | H94: =IF(I94<>"",INDEX(Proc!$B$7:$C$26,MATCH(Ind!I94,processi,0),1),"") -> 
B95: 90 | D95: =IF(E95<>"",INDEX(Dim!$B$6:$C$45,MATCH(Ind!E95,DIMDESC,0),1),"") ->  | F95: =IF(D95<>"",INDEX(Dim!$B$6:$D$45,MATCH(Ind!D95,DIM,0),3),"") ->  | G95: =IF(F95<>"",INDEX(Pro!$B$7:$C$16,MATCH(Ind!F95,PROSP,0),2),"") ->  | H95: =IF(I95<>"",INDEX(Proc!$B$7:$C$26,MATCH(Ind!I95,processi,0),1),"") -> 
B96: 91 | D96: =IF(E96<>"",INDEX(Dim!$B$6:$C$45,MATCH(Ind!E96,DIMDESC,0),1),"") ->  | F96: =IF(D96<>"",INDEX(Dim!$B$6:$D$45,MATCH(Ind!D96,DIM,0),3),"") ->  | G96: =IF(F96<>"",INDEX(Pro!$B$7:$C$16,MATCH(Ind!F96,PROSP,0),2),"") ->  | H96: =IF(I96<>"",INDEX(Proc!$B$7:$C$26,MATCH(Ind!I96,processi,0),1),"") -> 
B97: 92 | D97: =IF(E97<>"",INDEX(Dim!$B$6:$C$45,MATCH(Ind!E97,DIMDESC,0),1),"") ->  | F97: =IF(D97<>"",INDEX(Dim!$B$6:$D$45,MATCH(Ind!D97,DIM,0),3),"") ->  | G97: =IF(F97<>"",INDEX(Pro!$B$7:$C$16,MATCH(Ind!F97,PROSP,0),2),"") ->  | H97: =IF(I97<>"",INDEX(Proc!$B$7:$C$26,MATCH(Ind!I97,processi,0),1),"") -> 
B98: 93 | D98: =IF(E98<>"",INDEX(Dim!$B$6:$C$45,MATCH(Ind!E98,DIMDESC,0),1),"") ->  | F98: =IF(D98<>"",INDEX(Dim!$B$6:$D$45,MATCH(Ind!D98,DIM,0),3),"") ->  | G98: =IF(F98<>"",INDEX(Pro!$B$7:$C$16,MATCH(Ind!F98,PROSP,0),2),"") ->  | H98: =IF(I98<>"",INDEX(Proc!$B$7:$C$26,MATCH(Ind!I98,processi,0),1),"") -> 
B99: 94 | D99: =IF(E99<>"",INDEX(Dim!$B$6:$C$45,MATCH(Ind!E99,DIMDESC,0),1),"") ->  | F99: =IF(D99<>"",INDEX(Dim!$B$6:$D$45,MATCH(Ind!D99,DIM,0),3),"") ->  | G99: =IF(F99<>"",INDEX(Pro!$B$7:$C$16,MATCH(Ind!F99,PROSP,0),2),"") ->  | H99: =IF(I99<>"",INDEX(Proc!$B$7:$C$26,MATCH(Ind!I99,processi,0),1),"") -> 
B100: 95 | D100: =IF(E100<>"",INDEX(Dim!$B$6:$C$45,MATCH(Ind!E100,DIMDESC,0),1),"") ->  | F100: =IF(D100<>"",INDEX(Dim!$B$6:$D$45,MATCH(Ind!D100,DIM,0),3),"") ->  | G100: =IF(F100<>"",INDEX(Pro!$B$7:$C$16,MATCH(Ind!F100,PROSP,0),2),"") ->  | H100: =IF(I100<>"",INDEX(Proc!$B$7:$C$26,MATCH(Ind!I100,processi,0),1),"") -> 
B101: 96 | D101: =IF(E101<>"",INDEX(Dim!$B$6:$C$45,MATCH(Ind!E101,DIMDESC,0),1),"") ->  | F101: =IF(D101<>"",INDEX(Dim!$B$6:$D$45,MATCH(Ind!D101,DIM,0),3),"") ->  | G101: =IF(F101<>"",INDEX(Pro!$B$7:$C$16,MATCH(Ind!F101,PROSP,0),2),"") ->  | H101: =IF(I101<>"",INDEX(Proc!$B$7:$C$26,MATCH(Ind!I101,processi,0),1),"") -> 
B102: 97 | D102: =IF(E102<>"",INDEX(Dim!$B$6:$C$45,MATCH(Ind!E102,DIMDESC,0),1),"") ->  | F102: =IF(D102<>"",INDEX(Dim!$B$6:$D$45,MATCH(Ind!D102,DIM,0),3),"") ->  | G102: =IF(F102<>"",INDEX(Pro!$B$7:$C$16,MATCH(Ind!F102,PROSP,0),2),"") ->  | H102: =IF(I102<>"",INDEX(Proc!$B$7:$C$26,MATCH(Ind!I102,processi,0),1),"") -> 
B103: 98 | D103: =IF(E103<>"",INDEX(Dim!$B$6:$C$45,MATCH(Ind!E103,DIMDESC,0),1),"") ->  | F103: =IF(D103<>"",INDEX(Dim!$B$6:$D$45,MATCH(Ind!D103,DIM,0),3),"") ->  | G103: =IF(F103<>"",INDEX(Pro!$B$7:$C$16,MATCH(Ind!F103,PROSP,0),2),"") ->  | H103: =IF(I103<>"",INDEX(Proc!$B$7:$C$26,MATCH(Ind!I103,processi,0),1),"") -> 
B104: 99 | D104: =IF(E104<>"",INDEX(Dim!$B$6:$C$45,MATCH(Ind!E104,DIMDESC,0),1),"") ->  | F104: =IF(D104<>"",INDEX(Dim!$B$6:$D$45,MATCH(Ind!D104,DIM,0),3),"") ->  | G104: =IF(F104<>"",INDEX(Pro!$B$7:$C$16,MATCH(Ind!F104,PROSP,0),2),"") ->  | H104: =IF(I104<>"",INDEX(Proc!$B$7:$C$26,MATCH(Ind!I104,processi,0),1),"") -> 
B105: 100 | D105: =IF(E105<>"",INDEX(Dim!$B$6:$C$45,MATCH(Ind!E105,DIMDESC,0),1),"") ->  | F105: =IF(D105<>"",INDEX(Dim!$B$6:$D$45,MATCH(Ind!D105,DIM,0),3),"") ->  | G105: =IF(F105<>"",INDEX(Pro!$B$7:$C$16,MATCH(Ind!F105,PROSP,0),2),"") ->  | H105: =IF(I105<>"",INDEX(Proc!$B$7:$C$26,MATCH(Ind!I105,processi,0),1),"") -> 

Sheet InputActual
B3: INPUT ACTUAL
B5: CodKpi | C5: KPI Description | D5: Number Format | E5: Frequency | F5: Time Frame | G5: Band Type | H5: =+Menu!$F$11&"."&"01" -> 2012.01 | I5: =+Menu!$F$11&"."&"02" -> 2012.02 | J5: =+Menu!$F$11&"."&"03" -> 2012.03 | K5: =+Menu!$F$11&"."&"04" -> 2012.04 | L5: =+Menu!$F$11&"."&"05" -> 2012.05 | M5: =+Menu!$F$11&"."&"06" -> 2012.06 | N5: =+Menu!$F$11&"."&"07" -> 2012.07 | O5: =+Menu!$F$11&"."&"08" -> 2012.08 | P5: =+Menu!$F$11&"."&"09" -> 2012.09 | Q5: =+Menu!$F$11&"."&"10" -> 2012.10 | R5: =+Menu!$F$11&"."&"11" -> 2012.11 | S5: =+Menu!$F$11&"."&"12" -> 2012.12 | T5: =+Menu!$F$11+1&"."&"01" -> 2013.01 | U5: =+Menu!$F$11+1&"."&"02" -> 2013.02 | V5: =+Menu!$F$11+1&"."&"03" -> 2013.03 | W5: =+Menu!$F$11+1&"."&"04" -> 2013.04 | X5: =+Menu!$F$11+1&"."&"05" -> 2013.05 | Y5: =+Menu!$F$11+1&"."&"06" -> 2013.06 | Z5: =+Menu!$F$11+1&"."&"07" -> 2013.07 | AA5: =+Menu!$F$11+1&"."&"08" -> 2013.08 | AB5: =+Menu!$F$11+1&"."&"09" -> 2013.09 | AC5: =+Menu!$F$11+1&"."&"10" -> 2013.10 | AD5: =+Menu!$F$11+1&"."&"11" -> 2013.11 | AE5: =+Menu!$F$11+1&"."&"12" -> 2013.12 | AF5: =+Menu!$F$11+2&"."&"01" -> 2014.01 | AG5: =+Menu!$F$11+2&"."&"02" -> 2014.02 | AH5: =+Menu!$F$11+2&"."&"03" -> 2014.03 | AI5: =+Menu!$F$11+2&"."&"04" -> 2014.04 | AJ5: =+Menu!$F$11+2&"."&"05" -> 2014.05 | AK5: =+Menu!$F$11+2&"."&"06" -> 2014.06 | AL5: =+Menu!$F$11+2&"."&"07" -> 2014.07 | AM5: =+Menu!$F$11+2&"."&"08" -> 2014.08 | AN5: =+Menu!$F$11+2&"."&"09" -> 2014.09 | AO5: =+Menu!$F$11+2&"."&"10" -> 2014.10 | AP5: =+Menu!$F$11+2&"."&"11" -> 2014.11 | AQ5: =+Menu!$F$11+2&"."&"12" -> 2014.12 | AR5: =+Menu!$F$11+3&"."&"01" -> 2015.01 | AS5: =+Menu!$F$11+3&"."&"02" -> 2015.02 | AT5: =+Menu!$F$11+3&"."&"03" -> 2015.03 | AU5: =+Menu!$F$11+3&"."&"04" -> 2015.04 | AV5: =+Menu!$F$11+3&"."&"05" -> 2015.05 | AW5: =+Menu!$F$11+3&"."&"06" -> 2015.06 | AX5: =+Menu!$F$11+3&"."&"07" -> 2015.07 | AY5: =+Menu!$F$11+3&"."&"08" -> 2015.08 | AZ5: =+Menu!$F$11+3&"."&"09" -> 2015.09 | BA5: =+Menu!$F$11+3&"."&"10" -> 2015.10 | BB5: =+Menu!$F$11+3&"."&"11" -> 2015.11 | BC5: =+Menu!$F$11+3&"."&"12" -> 2015.12 | BD5: =+Menu!$F$11+4&"."&"01" -> 2016.01 | BE5: =+Menu!$F$11+4&"."&"02" -> 2016.02 | BF5: =+Menu!$F$11+4&"."&"03" -> 2016.03 | BG5: =+Menu!$F$11+4&"."&"04" -> 2016.04 | BH5: =+Menu!$F$11+4&"."&"05" -> 2016.05 | BI5: =+Menu!$F$11+4&"."&"06" -> 2016.06 | BJ5: =+Menu!$F$11+4&"."&"07" -> 2016.07 | BK5: =+Menu!$F$11+4&"."&"08" -> 2016.08 | BL5: =+Menu!$F$11+4&"."&"09" -> 2016.09 | BM5: =+Menu!$F$11+4&"."&"10" -> 2016.10 | BN5: =+Menu!$F$11+4&"."&"11" -> 2016.11 | BO5: =+Menu!$F$11+4&"."&"12" -> 2016.12
B6: 01 | C6: =+IF(Ind!C6<>"",INDEX(Ind!$B$6:$C$105,MATCH(InputActual!B6,Ind!$B$6:$B$105,0),2),"") -> LOGRAR UN INCREMENTO DEL 5% EN VENTAS | D6: =+IF(C6<>"",INDEX(Ind!$B$6:$J$105,MATCH(InputActual!B6,Ind!$B$6:$B$105,0),9),"") -> Percentage | E6: =+IF(C6<>"",INDEX(Ind!$B$6:$L$105,MATCH(InputActual!B6,Ind!$B$6:$B$105,0),11),"") -> Month | F6: =+IF(C6<>"",INDEX(Ind!$B$6:$M$105,MATCH(InputActual!B6,Ind!$B$6:$B$105,0),12),"") -> At present | G6: =+IF(C6<>"",INDEX(Ind!$B$6:$M$105,MATCH(InputActual!B6,Ind!$B$6:$B$105,0),10),"") -> + | H6: 4500 | I6: 5000 | J6: 5500 | K6: 7000 | L6: 7500 | M6: 7500 | N6: 2100 | O6: 3500 | P6: 4000 | Q6: 5000 | R6: 5500 | S6: 6500
B7: 02 | C7: =+IF(Ind!C7<>"",INDEX(Ind!$B$6:$C$105,MATCH(InputActual!B7,Ind!$B$6:$B$105,0),2),"") -> EXPADIR PUNTOS DE VENTA ZONA MARINA | D7: =+IF(C7<>"",INDEX(Ind!$B$6:$J$105,MATCH(InputActual!B7,Ind!$B$6:$B$105,0),9),"") -> Percentage | E7: =+IF(C7<>"",INDEX(Ind!$B$6:$L$105,MATCH(InputActual!B7,Ind!$B$6:$B$105,0),11),"") -> Month | F7: =+IF(C7<>"",INDEX(Ind!$B$6:$M$105,MATCH(InputActual!B7,Ind!$B$6:$B$105,0),12),"") -> At present | G7: =+IF(C7<>"",INDEX(Ind!$B$6:$M$105,MATCH(InputActual!B7,Ind!$B$6:$B$105,0),10),"") -> +
B8: 03 | C8: =+IF(Ind!C8<>"",INDEX(Ind!$B$6:$C$105,MATCH(InputActual!B8,Ind!$B$6:$B$105,0),2),"") -> INCREMENTAR EL ISC | D8: =+IF(C8<>"",INDEX(Ind!$B$6:$J$105,MATCH(InputActual!B8,Ind!$B$6:$B$105,0),9),"") -> Percentage | E8: =+IF(C8<>"",INDEX(Ind!$B$6:$L$105,MATCH(InputActual!B8,Ind!$B$6:$B$105,0),11),"") -> Month | F8: =+IF(C8<>"",INDEX(Ind!$B$6:$M$105,MATCH(InputActual!B8,Ind!$B$6:$B$105,0),12),"") -> At present | G8: =+IF(C8<>"",INDEX(Ind!$B$6:$M$105,MATCH(InputActual!B8,Ind!$B$6:$B$105,0),10),"") -> +
B9: 04 | C9: =+IF(Ind!C9<>"",INDEX(Ind!$B$6:$C$105,MATCH(InputActual!B9,Ind!$B$6:$B$105,0),2),"") -> REDUCIR QUEJAS POR FALLOS HERRAMIENTA | D9: =+IF(C9<>"",INDEX(Ind!$B$6:$J$105,MATCH(InputActual!B9,Ind!$B$6:$B$105,0),9),"") -> Percentage | E9: =+IF(C9<>"",INDEX(Ind!$B$6:$L$105,MATCH(InputActual!B9,Ind!$B$6:$B$105,0),11),"") -> Month | F9: =+IF(C9<>"",INDEX(Ind!$B$6:$M$105,MATCH(InputActual!B9,Ind!$B$6:$B$105,0),12),"") -> At present | G9: =+IF(C9<>"",INDEX(Ind!$B$6:$M$105,MATCH(InputActual!B9,Ind!$B$6:$B$105,0),10),"") -> -
B10: 05 | C10: =+IF(Ind!C10<>"",INDEX(Ind!$B$6:$C$105,MATCH(InputActual!B10,Ind!$B$6:$B$105,0),2),"") -> CUMPLIR CON ESTANDAR DE CALIBRACION | D10: =+IF(C10<>"",INDEX(Ind!$B$6:$J$105,MATCH(InputActual!B10,Ind!$B$6:$B$105,0),9),"") -> Percentage | E10: =+IF(C10<>"",INDEX(Ind!$B$6:$L$105,MATCH(InputActual!B10,Ind!$B$6:$B$105,0),11),"") -> Month | F10: =+IF(C10<>"",INDEX(Ind!$B$6:$M$105,MATCH(InputActual!B10,Ind!$B$6:$B$105,0),12),"") -> At present | G10: =+IF(C10<>"",INDEX(Ind!$B$6:$M$105,MATCH(InputActual!B10,Ind!$B$6:$B$105,0),10),"") -> +
B11: 06 | C11: =+IF(Ind!C11<>"",INDEX(Ind!$B$6:$C$105,MATCH(InputActual!B11,Ind!$B$6:$B$105,0),2),"") -> LOGRAR LA EFICACIA DEL SGC | D11: =+IF(C11<>"",INDEX(Ind!$B$6:$J$105,MATCH(InputActual!B11,Ind!$B$6:$B$105,0),9),"") -> Percentage | E11: =+IF(C11<>"",INDEX(Ind!$B$6:$L$105,MATCH(InputActual!B11,Ind!$B$6:$B$105,0),11),"") -> Month | F11: =+IF(C11<>"",INDEX(Ind!$B$6:$M$105,MATCH(InputActual!B11,Ind!$B$6:$B$105,0),12),"") -> At present | G11: =+IF(C11<>"",INDEX(Ind!$B$6:$M$105,MATCH(InputActual!B11,Ind!$B$6:$B$105,0),10),"") -> +
B12: 07 | C12: =+IF(Ind!C12<>"",INDEX(Ind!$B$6:$C$105,MATCH(InputActual!B12,Ind!$B$6:$B$105,0),2),"") -> TENER PERSONAL COMPETENTE | D12: =+IF(C12<>"",INDEX(Ind!$B$6:$J$105,MATCH(InputActual!B12,Ind!$B$6:$B$105,0),9),"") -> Percentage | E12: =+IF(C12<>"",INDEX(Ind!$B$6:$L$105,MATCH(InputActual!B12,Ind!$B$6:$B$105,0),11),"") -> Month | F12: =+IF(C12<>"",INDEX(Ind!$B$6:$M$105,MATCH(InputActual!B12,Ind!$B$6:$B$105,0),12),"") -> At present | G12: =+IF(C12<>"",INDEX(Ind!$B$6:$M$105,MATCH(InputActual!B12,Ind!$B$6:$B$105,0),10),"") -> -
B13: 08 | C13: =+IF(Ind!C13<>"",INDEX(Ind!$B$6:$C$105,MATCH(InputActual!B13,Ind!$B$6:$B$105,0),2),"") -> CONSOLIDAR EFECTIVIDAD ERP | D13: =+IF(C13<>"",INDEX(Ind!$B$6:$J$105,MATCH(InputActual!B13,Ind!$B$6:$B$105,0),9),"") -> Percentage | E13: =+IF(C13<>"",INDEX(Ind!$B$6:$L$105,MATCH(InputActual!B13,Ind!$B$6:$B$105,0),11),"") -> Month | F13: =+IF(C13<>"",INDEX(Ind!$B$6:$M$105,MATCH(InputActual!B13,Ind!$B$6:$B$105,0),12),"") -> At present | G13: =+IF(C13<>"",INDEX(Ind!$B$6:$M$105,MATCH(InputActual!B13,Ind!$B$6:$B$105,0),10),"") -> +
B14: 09 | C14: =+IF(Ind!C14<>"",INDEX(Ind!$B$6:$C$105,MATCH(InputActual!B14,Ind!$B$6:$B$105,0),2),"") ->  | D14: =+IF(C14<>"",INDEX(Ind!$B$6:$J$105,MATCH(InputActual!B14,Ind!$B$6:$B$105,0),9),"") ->  | E14: =+IF(C14<>"",INDEX(Ind!$B$6:$L$105,MATCH(InputActual!B14,Ind!$B$6:$B$105,0),11),"") ->  | F14: =+IF(C14<>"",INDEX(Ind!$B$6:$M$105,MATCH(InputActual!B14,Ind!$B$6:$B$105,0),12),"") ->  | G14: =+IF(C14<>"",INDEX(Ind!$B$6:$M$105,MATCH(InputActual!B14,Ind!$B$6:$B$105,0),10),"") -> 
B15: 10 | C15: =+IF(Ind!C15<>"",INDEX(Ind!$B$6:$C$105,MATCH(InputActual!B15,Ind!$B$6:$B$105,0),2),"") ->  | D15: =+IF(C15<>"",INDEX(Ind!$B$6:$J$105,MATCH(InputActual!B15,Ind!$B$6:$B$105,0),9),"") ->  | E15: =+IF(C15<>"",INDEX(Ind!$B$6:$L$105,MATCH(InputActual!B15,Ind!$B$6:$B$105,0),11),"") ->  | F15: =+IF(C15<>"",INDEX(Ind!$B$6:$M$105,MATCH(InputActual!B15,Ind!$B$6:$B$105,0),12),"") ->  | G15: =+IF(C15<>"",INDEX(Ind!$B$6:$M$105,MATCH(InputActual!B15,Ind!$B$6:$B$105,0),10),"") -> 
B16: 11 | C16: =+IF(Ind!C16<>"",INDEX(Ind!$B$6:$C$105,MATCH(InputActual!B16,Ind!$B$6:$B$105,0),2),"") ->  | D16: =+IF(C16<>"",INDEX(Ind!$B$6:$J$105,MATCH(InputActual!B16,Ind!$B$6:$B$105,0),9),"") ->  | E16: =+IF(C16<>"",INDEX(Ind!$B$6:$L$105,MATCH(InputActual!B16,Ind!$B$6:$B$105,0),11),"") ->  | F16: =+IF(C16<>"",INDEX(Ind!$B$6:$M$105,MATCH(InputActual!B16,Ind!$B$6:$B$105,0),12),"") ->  | G16: =+IF(C16<>"",INDEX(Ind!$B$6:$M$105,MATCH(InputActual!B16,Ind!$B$6:$B$105,0),10),"") -> 
B17: 12 | C17: =+IF(Ind!C17<>"",INDEX(Ind!$B$6:$C$105,MATCH(InputActual!B17,Ind!$B$6:$B$105,0),2),"") ->  | D17: =+IF(C17<>"",INDEX(Ind!$B$6:$J$105,MATCH(InputActual!B17,Ind!$B$6:$B$105,0),9),"") ->  | E17: =+IF(C17<>"",INDEX(Ind!$B$6:$L$105,MATCH(InputActual!B17,Ind!$B$6:$B$105,0),11),"") ->  | F17: =+IF(C17<>"",INDEX(Ind!$B$6:$M$105,MATCH(InputActual!B17,Ind!$B$6:$B$105,0),12),"") ->  | G17: =+IF(C17<>"",INDEX(Ind!$B$6:$M$105,MATCH(InputActual!B17,Ind!$B$6:$B$105,0),10),"") -> 
B18: 13 | C18: =+IF(Ind!C18<>"",INDEX(Ind!$B$6:$C$105,MATCH(InputActual!B18,Ind!$B$6:$B$105,0),2),"") ->  | D18: =+IF(C18<>"",INDEX(Ind!$B$6:$J$105,MATCH(InputActual!B18,Ind!$B$6:$B$105,0),9),"") ->  | E18: =+IF(C18<>"",INDEX(Ind!$B$6:$L$105,MATCH(InputActual!B18,Ind!$B$6:$B$105,0),11),"") ->  | F18: =+IF(C18<>"",INDEX(Ind!$B$6:$M$105,MATCH(InputActual!B18,Ind!$B$6:$B$105,0),12),"") ->  | G18: =+IF(C18<>"",INDEX(Ind!$B$6:$M$105,MATCH(InputActual!B18,Ind!$B$6:$B$105,0),10),"") -> 
B19: 14 | C19: =+IF(Ind!C19<>"",INDEX(Ind!$B$6:$C$105,MATCH(InputActual!B19,Ind!$B$6:$B$105,0),2),"") ->  | D19: =+IF(C19<>"",INDEX(Ind!$B$6:$J$105,MATCH(InputActual!B19,Ind!$B$6:$B$105,0),9),"") ->  | E19: =+IF(C19<>"",INDEX(Ind!$B$6:$L$105,MATCH(InputActual!B19,Ind!$B$6:$B$105,0),11),"") ->  | F19: =+IF(C19<>"",INDEX(Ind!$B$6:$M$105,MATCH(InputActual!B19,Ind!$B$6:$B$105,0),12),"") ->  | G19: =+IF(C19<>"",INDEX(Ind!$B$6:$M$105,MATCH(InputActual!B19,Ind!$B$6:$B$105,0),10),"") -> 
B20: 15 | C20: =+IF(Ind!C20<>"",INDEX(Ind!$B$6:$C$105,MATCH(InputActual!B20,Ind!$B$6:$B$105,0),2),"") ->  | D20: =+IF(C20<>"",INDEX(Ind!$B$6:$J$105,MATCH(InputActual!B20,Ind!$B$6:$B$105,0),9),"") ->  | E20: =+IF(C20<>"",INDEX(Ind!$B$6:$L$105,MATCH(InputActual!B20,Ind!$B$6:$B$105,0),11),"") ->  | F20: =+IF(C20<>"",INDEX(Ind!$B$6:$M$105,MATCH(InputActual!B20,Ind!$B$6:$B$105,0),12),"") ->  | G20: =+IF(C20<>"",INDEX(Ind!$B$6:$M$105,MATCH(InputActual!B20,Ind!$B$6:$B$105,0),10),"") -> 
B21: 16 | C21: =+IF(Ind!C21<>"",INDEX(Ind!$B$6:$C$105,MATCH(InputActual!B21,Ind!$B$6:$B$105,0),2),"") ->  | D21: =+IF(C21<>"",INDEX(Ind!$B$6:$J$105,MATCH(InputActual!B21,Ind!$B$6:$B$105,0),9),"") ->  | E21: =+IF(C21<>"",INDEX(Ind!$B$6:$L$105,MATCH(InputActual!B21,Ind!$B$6:$B$105,0),11),"") ->  | F21: =+IF(C21<>"",INDEX(Ind!$B$6:$M$105,MATCH(InputActual!B21,Ind!$B$6:$B$105,0),12),"") ->  | G21: =+IF(C21<>"",INDEX(Ind!$B$6:$M$105,MATCH(InputActual!B21,Ind!$B$6:$B$105,0),10),"") -> 
B22: 17 | C22: =+IF(Ind!C22<>"",INDEX(Ind!$B$6:$C$105,MATCH(InputActual!B22,Ind!$B$6:$B$105,0),2),"") ->  | D22: =+IF(C22<>"",INDEX(Ind!$B$6:$J$105,MATCH(InputActual!B22,Ind!$B$6:$B$105,0),9),"") ->  | E22: =+IF(C22<>"",INDEX(Ind!$B$6:$L$105,MATCH(InputActual!B22,Ind!$B$6:$B$105,0),11),"") ->  | F22: =+IF(C22<>"",INDEX(Ind!$B$6:$M$105,MATCH(InputActual!B22,Ind!$B$6:$B$105,0),12),"") ->  | G22: =+IF(C22<>"",INDEX(Ind!$B$6:$M$105,MATCH(InputActual!B22,Ind!$B$6:$B$105,0),10),"") -> 
B23: 18 | C23: =+IF(Ind!C23<>"",INDEX(Ind!$B$6:$C$105,MATCH(InputActual!B23,Ind!$B$6:$B$105,0),2),"") ->  | D23: =+IF(C23<>"",INDEX(Ind!$B$6:$J$105,MATCH(InputActual!B23,Ind!$B$6:$B$105,0),9),"") ->  | E23: =+IF(C23<>"",INDEX(Ind!$B$6:$L$105,MATCH(InputActual!B23,Ind!$B$6:$B$105,0),11),"") ->  | F23: =+IF(C23<>"",INDEX(Ind!$B$6:$M$105,MATCH(InputActual!B23,Ind!$B$6:$B$105,0),12),"") ->  | G23: =+IF(C23<>"",INDEX(Ind!$B$6:$M$105,MATCH(InputActual!B23,Ind!$B$6:$B$105,0),10),"") -> 
B24: 19 | C24: =+IF(Ind!C24<>"",INDEX(Ind!$B$6:$C$105,MATCH(InputActual!B24,Ind!$B$6:$B$105,0),2),"") ->  | D24: =+IF(C24<>"",INDEX(Ind!$B$6:$J$105,MATCH(InputActual!B24,Ind!$B$6:$B$105,0),9),"") ->  | E24: =+IF(C24<>"",INDEX(Ind!$B$6:$L$105,MATCH(InputActual!B24,Ind!$B$6:$B$105,0),11),"") ->  | F24: =+IF(C24<>"",INDEX(Ind!$B$6:$M$105,MATCH(InputActual!B24,Ind!$B$6:$B$105,0),12),"") ->  | G24: =+IF(C24<>"",INDEX(Ind!$B$6:$M$105,MATCH(InputActual!B24,Ind!$B$6:$B$105,0),10),"") -> 
B25: 20 | C25: =+IF(Ind!C25<>"",INDEX(Ind!$B$6:$C$105,MATCH(InputActual!B25,Ind!$B$6:$B$105,0),2),"") ->  | D25: =+IF(C25<>"",INDEX(Ind!$B$6:$J$105,MATCH(InputActual!B25,Ind!$B$6:$B$105,0),9),"") ->  | E25: =+IF(C25<>"",INDEX(Ind!$B$6:$L$105,MATCH(InputActual!B25,Ind!$B$6:$B$105,0),11),"") ->  | F25: =+IF(C25<>"",INDEX(Ind!$B$6:$M$105,MATCH(InputActual!B25,Ind!$B$6:$B$105,0),12),"") ->  | G25: =+IF(C25<>"",INDEX(Ind!$B$6:$M$105,MATCH(InputActual!B25,Ind!$B$6:$B$105,0),10),"") -> 
B26: 21 | C26: =+IF(Ind!C26<>"",INDEX(Ind!$B$6:$C$105,MATCH(InputActual!B26,Ind!$B$6:$B$105,0),2),"") ->  | D26: =+IF(C26<>"",INDEX(Ind!$B$6:$J$105,MATCH(InputActual!B26,Ind!$B$6:$B$105,0),9),"") ->  | E26: =+IF(C26<>"",INDEX(Ind!$B$6:$L$105,MATCH(InputActual!B26,Ind!$B$6:$B$105,0),11),"") ->  | F26: =+IF(C26<>"",INDEX(Ind!$B$6:$M$105,MATCH(InputActual!B26,Ind!$B$6:$B$105,0),12),"") ->  | G26: =+IF(C26<>"",INDEX(Ind!$B$6:$M$105,MATCH(InputActual!B26,Ind!$B$6:$B$105,0),10),"") -> 
B27: 22 | C27: =+IF(Ind!C27<>"",INDEX(Ind!$B$6:$C$105,MATCH(InputActual!B27,Ind!$B$6:$B$105,0),2),"") ->  | D27: =+IF(C27<>"",INDEX(Ind!$B$6:$J$105,MATCH(InputActual!B27,Ind!$B$6:$B$105,0),9),"") ->  | E27: =+IF(C27<>"",INDEX(Ind!$B$6:$L$105,MATCH(InputActual!B27,Ind!$B$6:$B$105,0),11),"") ->  | F27: =+IF(C27<>"",INDEX(Ind!$B$6:$M$105,MATCH(InputActual!B27,Ind!$B$6:$B$105,0),12),"") ->  | G27: =+IF(C27<>"",INDEX(Ind!$B$6:$M$105,MATCH(InputActual!B27,Ind!$B$6:$B$105,0),10),"") -> 
B28: 23 | C28: =+IF(Ind!C28<>"",INDEX(Ind!$B$6:$C$105,MATCH(InputActual!B28,Ind!$B$6:$B$105,0),2),"") ->  | D28: =+IF(C28<>"",INDEX(Ind!$B$6:$J$105,MATCH(InputActual!B28,Ind!$B$6:$B$105,0),9),"") ->  | E28: =+IF(C28<>"",INDEX(Ind!$B$6:$L$105,MATCH(InputActual!B28,Ind!$B$6:$B$105,0),11),"") ->  | F28: =+IF(C28<>"",INDEX(Ind!$B$6:$M$105,MATCH(InputActual!B28,Ind!$B$6:$B$105,0),12),"") ->  | G28: =+IF(C28<>"",INDEX(Ind!$B$6:$M$105,MATCH(InputActual!B28,Ind!$B$6:$B$105,0),10),"") -> 
B29: 24 | C29: =+IF(Ind!C29<>"",INDEX(Ind!$B$6:$C$105,MATCH(InputActual!B29,Ind!$B$6:$B$105,0),2),"") ->  | D29: =+IF(C29<>"",INDEX(Ind!$B$6:$J$105,MATCH(InputActual!B29,Ind!$B$6:$B$105,0),9),"") ->  | E29: =+IF(C29<>"",INDEX(Ind!$B$6:$L$105,MATCH(InputActual!B29,Ind!$B$6:$B$105,0),11),"") ->  | F29: =+IF(C29<>"",INDEX(Ind!$B$6:$M$105,MATCH(InputActual!B29,Ind!$B$6:$B$105,0),12),"") ->  | G29: =+IF(C29<>"",INDEX(Ind!$B$6:$M$105,MATCH(InputActual!B29,Ind!$B$6:$B$105,0),10),"") -> 
B30: 25 | C30: =+IF(Ind!C30<>"",INDEX(Ind!$B$6:$C$105,MATCH(InputActual!B30,Ind!$B$6:$B$105,0),2),"") ->  | D30: =+IF(C30<>"",INDEX(Ind!$B$6:$J$105,MATCH(InputActual!B30,Ind!$B$6:$B$105,0),9),"") ->  | E30: =+IF(C30<>"",INDEX(Ind!$B$6:$L$105,MATCH(InputActual!B30,Ind!$B$6:$B$105,0),11),"") ->  | F30: =+IF(C30<>"",INDEX(Ind!$B$6:$M$105,MATCH(InputActual!B30,Ind!$B$6:$B$105,0),12),"") ->  | G30: =+IF(C30<>"",INDEX(Ind!$B$6:$M$105,MATCH(InputActual!B30,Ind!$B$6:$B$105,0),10),"") -> 
B31: 26 | C31: =+IF(Ind!C31<>"",INDEX(Ind!$B$6:$C$105,MATCH(InputActual!B31,Ind!$B$6:$B$105,0),2),"") ->  | D31: =+IF(C31<>"",INDEX(Ind!$B$6:$J$105,MATCH(InputActual!B31,Ind!$B$6:$B$105,0),9),"") ->  | E31: =+IF(C31<>"",INDEX(Ind!$B$6:$L$105,MATCH(InputActual!B31,Ind!$B$6:$B$105,0),11),"") ->  | F31: =+IF(C31<>"",INDEX(Ind!$B$6:$M$105,MATCH(InputActual!B31,Ind!$B$6:$B$105,0),12),"") ->  | G31: =+IF(C31<>"",INDEX(Ind!$B$6:$M$105,MATCH(InputActual!B31,Ind!$B$6:$B$105,0),10),"") -> 
B32: 27 | C32: =+IF(Ind!C32<>"",INDEX(Ind!$B$6:$C$105,MATCH(InputActual!B32,Ind!$B$6:$B$105,0),2),"") ->  | D32: =+IF(C32<>"",INDEX(Ind!$B$6:$J$105,MATCH(InputActual!B32,Ind!$B$6:$B$105,0),9),"") ->  | E32: =+IF(C32<>"",INDEX(Ind!$B$6:$L$105,MATCH(InputActual!B32,Ind!$B$6:$B$105,0),11),"") ->  | F32: =+IF(C32<>"",INDEX(Ind!$B$6:$M$105,MATCH(InputActual!B32,Ind!$B$6:$B$105,0),12),"") ->  | G32: =+IF(C32<>"",INDEX(Ind!$B$6:$M$105,MATCH(InputActual!B32,Ind!$B$6:$B$105,0),10),"") -> 
B33: 28 | C33: =+IF(Ind!C33<>"",INDEX(Ind!$B$6:$C$105,MATCH(InputActual!B33,Ind!$B$6:$B$105,0),2),"") ->  | D33: =+IF(C33<>"",INDEX(Ind!$B$6:$J$105,MATCH(InputActual!B33,Ind!$B$6:$B$105,0),9),"") ->  | E33: =+IF(C33<>"",INDEX(Ind!$B$6:$L$105,MATCH(InputActual!B33,Ind!$B$6:$B$105,0),11),"") ->  | F33: =+IF(C33<>"",INDEX(Ind!$B$6:$M$105,MATCH(InputActual!B33,Ind!$B$6:$B$105,0),12),"") ->  | G33: =+IF(C33<>"",INDEX(Ind!$B$6:$M$105,MATCH(InputActual!B33,Ind!$B$6:$B$105,0),10),"") -> 
B34: 29 | C34: =+IF(Ind!C34<>"",INDEX(Ind!$B$6:$C$105,MATCH(InputActual!B34,Ind!$B$6:$B$105,0),2),"") ->  | D34: =+IF(C34<>"",INDEX(Ind!$B$6:$J$105,MATCH(InputActual!B34,Ind!$B$6:$B$105,0),9),"") ->  | E34: =+IF(C34<>"",INDEX(Ind!$B$6:$L$105,MATCH(InputActual!B34,Ind!$B$6:$B$105,0),11),"") ->  | F34: =+IF(C34<>"",INDEX(Ind!$B$6:$M$105,MATCH(InputActual!B34,Ind!$B$6:$B$105,0),12),"") ->  | G34: =+IF(C34<>"",INDEX(Ind!$B$6:$M$105,MATCH(InputActual!B34,Ind!$B$6:$B$105,0),10),"") -> 
B35: 30 | C35: =+IF(Ind!C35<>"",INDEX(Ind!$B$6:$C$105,MATCH(InputActual!B35,Ind!$B$6:$B$105,0),2),"") ->  | D35: =+IF(C35<>"",INDEX(Ind!$B$6:$J$105,MATCH(InputActual!B35,Ind!$B$6:$B$105,0),9),"") ->  | E35: =+IF(C35<>"",INDEX(Ind!$B$6:$L$105,MATCH(InputActual!B35,Ind!$B$6:$B$105,0),11),"") ->  | F35: =+IF(C35<>"",INDEX(Ind!$B$6:$M$105,MATCH(InputActual!B35,Ind!$B$6:$B$105,0),12),"") ->  | G35: =+IF(C35<>"",INDEX(Ind!$B$6:$M$105,MATCH(InputActual!B35,Ind!$B$6:$B$105,0),10),"") -> 
B36: 31 | C36: =+IF(Ind!C36<>"",INDEX(Ind!$B$6:$C$105,MATCH(InputActual!B36,Ind!$B$6:$B$105,0),2),"") ->  | D36: =+IF(C36<>"",INDEX(Ind!$B$6:$J$105,MATCH(InputActual!B36,Ind!$B$6:$B$105,0),9),"") ->  | E36: =+IF(C36<>"",INDEX(Ind!$B$6:$L$105,MATCH(InputActual!B36,Ind!$B$6:$B$105,0),11),"") ->  | F36: =+IF(C36<>"",INDEX(Ind!$B$6:$M$105,MATCH(InputActual!B36,Ind!$B$6:$B$105,0),12),"") ->  | G36: =+IF(C36<>"",INDEX(Ind!$B$6:$M$105,MATCH(InputActual!B36,Ind!$B$6:$B$105,0),10),"") -> 
B37: 32 | C37: =+IF(Ind!C37<>"",INDEX(Ind!$B$6:$C$105,MATCH(InputActual!B37,Ind!$B$6:$B$105,0),2),"") ->  | D37: =+IF(C37<>"",INDEX(Ind!$B$6:$J$105,MATCH(InputActual!B37,Ind!$B$6:$B$105,0),9),"") ->  | E37: =+IF(C37<>"",INDEX(Ind!$B$6:$L$105,MATCH(InputActual!B37,Ind!$B$6:$B$105,0),11),"") ->  | F37: =+IF(C37<>"",INDEX(Ind!$B$6:$M$105,MATCH(InputActual!B37,Ind!$B$6:$B$105,0),12),"") ->  | G37: =+IF(C37<>"",INDEX(Ind!$B$6:$M$105,MATCH(InputActual!B37,Ind!$B$6:$B$105,0),10),"") -> 
B38: 33 | C38: =+IF(Ind!C38<>"",INDEX(Ind!$B$6:$C$105,MATCH(InputActual!B38,Ind!$B$6:$B$105,0),2),"") ->  | D38: =+IF(C38<>"",INDEX(Ind!$B$6:$J$105,MATCH(InputActual!B38,Ind!$B$6:$B$105,0),9),"") ->  | E38: =+IF(C38<>"",INDEX(Ind!$B$6:$L$105,MATCH(InputActual!B38,Ind!$B$6:$B$105,0),11),"") ->  | F38: =+IF(C38<>"",INDEX(Ind!$B$6:$M$105,MATCH(InputActual!B38,Ind!$B$6:$B$105,0),12),"") ->  | G38: =+IF(C38<>"",INDEX(Ind!$B$6:$M$105,MATCH(InputActual!B38,Ind!$B$6:$B$105,0),10),"") -> 
B39: 34 | C39: =+IF(Ind!C39<>"",INDEX(Ind!$B$6:$C$105,MATCH(InputActual!B39,Ind!$B$6:$B$105,0),2),"") ->  | D39: =+IF(C39<>"",INDEX(Ind!$B$6:$J$105,MATCH(InputActual!B39,Ind!$B$6:$B$105,0),9),"") ->  | E39: =+IF(C39<>"",INDEX(Ind!$B$6:$L$105,MATCH(InputActual!B39,Ind!$B$6:$B$105,0),11),"") ->  | F39: =+IF(C39<>"",INDEX(Ind!$B$6:$M$105,MATCH(InputActual!B39,Ind!$B$6:$B$105,0),12),"") ->  | G39: =+IF(C39<>"",INDEX(Ind!$B$6:$M$105,MATCH(InputActual!B39,Ind!$B$6:$B$105,0),10),"") -> 
B40: 35 | C40: =+IF(Ind!C40<>"",INDEX(Ind!$B$6:$C$105,MATCH(InputActual!B40,Ind!$B$6:$B$105,0),2),"") ->  | D40: =+IF(C40<>"",INDEX(Ind!$B$6:$J$105,MATCH(InputActual!B40,Ind!$B$6:$B$105,0),9),"") ->  | E40: =+IF(C40<>"",INDEX(Ind!$B$6:$L$105,MATCH(InputActual!B40,Ind!$B$6:$B$105,0),11),"") ->  | F40: =+IF(C40<>"",INDEX(Ind!$B$6:$M$105,MATCH(InputActual!B40,Ind!$B$6:$B$105,0),12),"") ->  | G40: =+IF(C40<>"",INDEX(Ind!$B$6:$M$105,MATCH(InputActual!B40,Ind!$B$6:$B$105,0),10),"") -> 
B41: 36 | C41: =+IF(Ind!C41<>"",INDEX(Ind!$B$6:$C$105,MATCH(InputActual!B41,Ind!$B$6:$B$105,0),2),"") ->  | D41: =+IF(C41<>"",INDEX(Ind!$B$6:$J$105,MATCH(InputActual!B41,Ind!$B$6:$B$105,0),9),"") ->  | E41: =+IF(C41<>"",INDEX(Ind!$B$6:$L$105,MATCH(InputActual!B41,Ind!$B$6:$B$105,0),11),"") ->  | F41: =+IF(C41<>"",INDEX(Ind!$B$6:$M$105,MATCH(InputActual!B41,Ind!$B$6:$B$105,0),12),"") ->  | G41: =+IF(C41<>"",INDEX(Ind!$B$6:$M$105,MATCH(InputActual!B41,Ind!$B$6:$B$105,0),10),"") -> 
B42: 37 | C42: =+IF(Ind!C42<>"",INDEX(Ind!$B$6:$C$105,MATCH(InputActual!B42,Ind!$B$6:$B$105,0),2),"") ->  | D42: =+IF(C42<>"",INDEX(Ind!$B$6:$J$105,MATCH(InputActual!B42,Ind!$B$6:$B$105,0),9),"") ->  | E42: =+IF(C42<>"",INDEX(Ind!$B$6:$L$105,MATCH(InputActual!B42,Ind!$B$6:$B$105,0),11),"") ->  | F42: =+IF(C42<>"",INDEX(Ind!$B$6:$M$105,MATCH(InputActual!B42,Ind!$B$6:$B$105,0),12),"") ->  | G42: =+IF(C42<>"",INDEX(Ind!$B$6:$M$105,MATCH(InputActual!B42,Ind!$B$6:$B$105,0),10),"") -> 
B43: 38 | C43: =+IF(Ind!C43<>"",INDEX(Ind!$B$6:$C$105,MATCH(InputActual!B43,Ind!$B$6:$B$105,0),2),"") ->  | D43: =+IF(C43<>"",INDEX(Ind!$B$6:$J$105,MATCH(InputActual!B43,Ind!$B$6:$B$105,0),9),"") ->  | E43: =+IF(C43<>"",INDEX(Ind!$B$6:$L$105,MATCH(InputActual!B43,Ind!$B$6:$B$105,0),11),"") ->  | F43: =+IF(C43<>"",INDEX(Ind!$B$6:$M$105,MATCH(InputActual!B43,Ind!$B$6:$B$105,0),12),"") ->  | G43: =+IF(C43<>"",INDEX(Ind!$B$6:$M$105,MATCH(InputActual!B43,Ind!$B$6:$B$105,0),10),"") -> 
B44: 39 | C44: =+IF(Ind!C44<>"",INDEX(Ind!$B$6:$C$105,MATCH(InputActual!B44,Ind!$B$6:$B$105,0),2),"") ->  | D44: =+IF(C44<>"",INDEX(Ind!$B$6:$J$105,MATCH(InputActual!B44,Ind!$B$6:$B$105,0),9),"") ->  | E44: =+IF(C44<>"",INDEX(Ind!$B$6:$L$105,MATCH(InputActual!B44,Ind!$B$6:$B$105,0),11),"") ->  | F44: =+IF(C44<>"",INDEX(Ind!$B$6:$M$105,MATCH(InputActual!B44,Ind!$B$6:$B$105,0),12),"") ->  | G44: =+IF(C44<>"",INDEX(Ind!$B$6:$M$105,MATCH(InputActual!B44,Ind!$B$6:$B$105,0),10),"") -> 
B45: 40 | C45: =+IF(Ind!C45<>"",INDEX(Ind!$B$6:$C$105,MATCH(InputActual!B45,Ind!$B$6:$B$105,0),2),"") ->  | D45: =+IF(C45<>"",INDEX(Ind!$B$6:$J$105,MATCH(InputActual!B45,Ind!$B$6:$B$105,0),9),"") ->  | E45: =+IF(C45<>"",INDEX(Ind!$B$6:$L$105,MATCH(InputActual!B45,Ind!$B$6:$B$105,0),11),"") ->  | F45: =+IF(C45<>"",INDEX(Ind!$B$6:$M$105,MATCH(InputActual!B45,Ind!$B$6:$B$105,0),12),"") ->  | G45: =+IF(C45<>"",INDEX(Ind!$B$6:$M$105,MATCH(InputActual!B45,Ind!$B$6:$B$105,0),10),"") -> 
B46: 41 | C46: =+IF(Ind!C46<>"",INDEX(Ind!$B$6:$C$105,MATCH(InputActual!B46,Ind!$B$6:$B$105,0),2),"") ->  | D46: =+IF(C46<>"",INDEX(Ind!$B$6:$J$105,MATCH(InputActual!B46,Ind!$B$6:$B$105,0),9),"") ->  | E46: =+IF(C46<>"",INDEX(Ind!$B$6:$L$105,MATCH(InputActual!B46,Ind!$B$6:$B$105,0),11),"") ->  | F46: =+IF(C46<>"",INDEX(Ind!$B$6:$M$105,MATCH(InputActual!B46,Ind!$B$6:$B$105,0),12),"") ->  | G46: =+IF(C46<>"",INDEX(Ind!$B$6:$M$105,MATCH(InputActual!B46,Ind!$B$6:$B$105,0),10),"") -> 
B47: 42 | C47: =+IF(Ind!C47<>"",INDEX(Ind!$B$6:$C$105,MATCH(InputActual!B47,Ind!$B$6:$B$105,0),2),"") ->  | D47: =+IF(C47<>"",INDEX(Ind!$B$6:$J$105,MATCH(InputActual!B47,Ind!$B$6:$B$105,0),9),"") ->  | E47: =+IF(C47<>"",INDEX(Ind!$B$6:$L$105,MATCH(InputActual!B47,Ind!$B$6:$B$105,0),11),"") ->  | F47: =+IF(C47<>"",INDEX(Ind!$B$6:$M$105,MATCH(InputActual!B47,Ind!$B$6:$B$105,0),12),"") ->  | G47: =+IF(C47<>"",INDEX(Ind!$B$6:$M$105,MATCH(InputActual!B47,Ind!$B$6:$B$105,0),10),"") -> 
B48: 43 | C48: =+IF(Ind!C48<>"",INDEX(Ind!$B$6:$C$105,MATCH(InputActual!B48,Ind!$B$6:$B$105,0),2),"") ->  | D48: =+IF(C48<>"",INDEX(Ind!$B$6:$J$105,MATCH(InputActual!B48,Ind!$B$6:$B$105,0),9),"") ->  | E48: =+IF(C48<>"",INDEX(Ind!$B$6:$L$105,MATCH(InputActual!B48,Ind!$B$6:$B$105,0),11),"") ->  | F48: =+IF(C48<>"",INDEX(Ind!$B$6:$M$105,MATCH(InputActual!B48,Ind!$B$6:$B$105,0),12),"") ->  | G48: =+IF(C48<>"",INDEX(Ind!$B$6:$M$105,MATCH(InputActual!B48,Ind!$B$6:$B$105,0),10),"") -> 
B49: 44 | C49: =+IF(Ind!C49<>"",INDEX(Ind!$B$6:$C$105,MATCH(InputActual!B49,Ind!$B$6:$B$105,0),2),"") ->  | D49: =+IF(C49<>"",INDEX(Ind!$B$6:$J$105,MATCH(InputActual!B49,Ind!$B$6:$B$105,0),9),"") ->  | E49: =+IF(C49<>"",INDEX(Ind!$B$6:$L$105,MATCH(InputActual!B49,Ind!$B$6:$B$105,0),11),"") ->  | F49: =+IF(C49<>"",INDEX(Ind!$B$6:$M$105,MATCH(InputActual!B49,Ind!$B$6:$B$105,0),12),"") ->  | G49: =+IF(C49<>"",INDEX(Ind!$B$6:$M$105,MATCH(InputActual!B49,Ind!$B$6:$B$105,0),10),"") -> 
B50: 45 | C50: =+IF(Ind!C50<>"",INDEX(Ind!$B$6:$C$105,MATCH(InputActual!B50,Ind!$B$6:$B$105,0),2),"") ->  | D50: =+IF(C50<>"",INDEX(Ind!$B$6:$J$105,MATCH(InputActual!B50,Ind!$B$6:$B$105,0),9),"") ->  | E50: =+IF(C50<>"",INDEX(Ind!$B$6:$L$105,MATCH(InputActual!B50,Ind!$B$6:$B$105,0),11),"") ->  | F50: =+IF(C50<>"",INDEX(Ind!$B$6:$M$105,MATCH(InputActual!B50,Ind!$B$6:$B$105,0),12),"") ->  | G50: =+IF(C50<>"",INDEX(Ind!$B$6:$M$105,MATCH(InputActual!B50,Ind!$B$6:$B$105,0),10),"") -> 
B51: 46 | C51: =+IF(Ind!C51<>"",INDEX(Ind!$B$6:$C$105,MATCH(InputActual!B51,Ind!$B$6:$B$105,0),2),"") ->  | D51: =+IF(C51<>"",INDEX(Ind!$B$6:$J$105,MATCH(InputActual!B51,Ind!$B$6:$B$105,0),9),"") ->  | E51: =+IF(C51<>"",INDEX(Ind!$B$6:$L$105,MATCH(InputActual!B51,Ind!$B$6:$B$105,0),11),"") ->  | F51: =+IF(C51<>"",INDEX(Ind!$B$6:$M$105,MATCH(InputActual!B51,Ind!$B$6:$B$105,0),12),"") ->  | G51: =+IF(C51<>"",INDEX(Ind!$B$6:$M$105,MATCH(InputActual!B51,Ind!$B$6:$B$105,0),10),"") -> 
B52: 47 | C52: =+IF(Ind!C52<>"",INDEX(Ind!$B$6:$C$105,MATCH(InputActual!B52,Ind!$B$6:$B$105,0),2),"") ->  | D52: =+IF(C52<>"",INDEX(Ind!$B$6:$J$105,MATCH(InputActual!B52,Ind!$B$6:$B$105,0),9),"") ->  | E52: =+IF(C52<>"",INDEX(Ind!$B$6:$L$105,MATCH(InputActual!B52,Ind!$B$6:$B$105,0),11),"") ->  | F52: =+IF(C52<>"",INDEX(Ind!$B$6:$M$105,MATCH(InputActual!B52,Ind!$B$6:$B$105,0),12),"") ->  | G52: =+IF(C52<>"",INDEX(Ind!$B$6:$M$105,MATCH(InputActual!B52,Ind!$B$6:$B$105,0),10),"") -> 
B53: 48 | C53: =+IF(Ind!C53<>"",INDEX(Ind!$B$6:$C$105,MATCH(InputActual!B53,Ind!$B$6:$B$105,0),2),"") ->  | D53: =+IF(C53<>"",INDEX(Ind!$B$6:$J$105,MATCH(InputActual!B53,Ind!$B$6:$B$105,0),9),"") ->  | E53: =+IF(C53<>"",INDEX(Ind!$B$6:$L$105,MATCH(InputActual!B53,Ind!$B$6:$B$105,0),11),"") ->  | F53: =+IF(C53<>"",INDEX(Ind!$B$6:$M$105,MATCH(InputActual!B53,Ind!$B$6:$B$105,0),12),"") ->  | G53: =+IF(C53<>"",INDEX(Ind!$B$6:$M$105,MATCH(InputActual!B53,Ind!$B$6:$B$105,0),10),"") -> 
B54: 49 | C54: =+IF(Ind!C54<>"",INDEX(Ind!$B$6:$C$105,MATCH(InputActual!B54,Ind!$B$6:$B$105,0),2),"") ->  | D54: =+IF(C54<>"",INDEX(Ind!$B$6:$J$105,MATCH(InputActual!B54,Ind!$B$6:$B$105,0),9),"") ->  | E54: =+IF(C54<>"",INDEX(Ind!$B$6:$L$105,MATCH(InputActual!B54,Ind!$B$6:$B$105,0),11),"") ->  | F54: =+IF(C54<>"",INDEX(Ind!$B$6:$M$105,MATCH(InputActual!B54,Ind!$B$6:$B$105,0),12),"") ->  | G54: =+IF(C54<>"",INDEX(Ind!$B$6:$M$105,MATCH(InputActual!B54,Ind!$B$6:$B$105,0),10),"") -> 
B55: 50 | C55: =+IF(Ind!C55<>"",INDEX(Ind!$B$6:$C$105,MATCH(InputActual!B55,Ind!$B$6:$B$105,0),2),"") ->  | D55: =+IF(C55<>"",INDEX(Ind!$B$6:$J$105,MATCH(InputActual!B55,Ind!$B$6:$B$105,0),9),"") ->  | E55: =+IF(C55<>"",INDEX(Ind!$B$6:$L$105,MATCH(InputActual!B55,Ind!$B$6:$B$105,0),11),"") ->  | F55: =+IF(C55<>"",INDEX(Ind!$B$6:$M$105,MATCH(InputActual!B55,Ind!$B$6:$B$105,0),12),"") ->  | G55: =+IF(C55<>"",INDEX(Ind!$B$6:$M$105,MATCH(InputActual!B55,Ind!$B$6:$B$105,0),10),"") -> 
B56: 51 | C56: =+IF(Ind!C56<>"",INDEX(Ind!$B$6:$C$105,MATCH(InputActual!B56,Ind!$B$6:$B$105,0),2),"") ->  | D56: =+IF(C56<>"",INDEX(Ind!$B$6:$J$105,MATCH(InputActual!B56,Ind!$B$6:$B$105,0),9),"") ->  | E56: =+IF(C56<>"",INDEX(Ind!$B$6:$L$105,MATCH(InputActual!B56,Ind!$B$6:$B$105,0),11),"") ->  | F56: =+IF(C56<>"",INDEX(Ind!$B$6:$M$105,MATCH(InputActual!B56,Ind!$B$6:$B$105,0),12),"") ->  | G56: =+IF(C56<>"",INDEX(Ind!$B$6:$M$105,MATCH(InputActual!B56,Ind!$B$6:$B$105,0),10),"") -> 
B57: 52 | C57: =+IF(Ind!C57<>"",INDEX(Ind!$B$6:$C$105,MATCH(InputActual!B57,Ind!$B$6:$B$105,0),2),"") ->  | D57: =+IF(C57<>"",INDEX(Ind!$B$6:$J$105,MATCH(InputActual!B57,Ind!$B$6:$B$105,0),9),"") ->  | E57: =+IF(C57<>"",INDEX(Ind!$B$6:$L$105,MATCH(InputActual!B57,Ind!$B$6:$B$105,0),11),"") ->  | F57: =+IF(C57<>"",INDEX(Ind!$B$6:$M$105,MATCH(InputActual!B57,Ind!$B$6:$B$105,0),12),"") ->  | G57: =+IF(C57<>"",INDEX(Ind!$B$6:$M$105,MATCH(InputActual!B57,Ind!$B$6:$B$105,0),10),"") -> 
B58: 53 | C58: =+IF(Ind!C58<>"",INDEX(Ind!$B$6:$C$105,MATCH(InputActual!B58,Ind!$B$6:$B$105,0),2),"") ->  | D58: =+IF(C58<>"",INDEX(Ind!$B$6:$J$105,MATCH(InputActual!B58,Ind!$B$6:$B$105,0),9),"") ->  | E58: =+IF(C58<>"",INDEX(Ind!$B$6:$L$105,MATCH(InputActual!B58,Ind!$B$6:$B$105,0),11),"") ->  | F58: =+IF(C58<>"",INDEX(Ind!$B$6:$M$105,MATCH(InputActual!B58,Ind!$B$6:$B$105,0),12),"") ->  | G58: =+IF(C58<>"",INDEX(Ind!$B$6:$M$105,MATCH(InputActual!B58,Ind!$B$6:$B$105,0),10),"") -> 
B59: 54 | C59: =+IF(Ind!C59<>"",INDEX(Ind!$B$6:$C$105,MATCH(InputActual!B59,Ind!$B$6:$B$105,0),2),"") ->  | D59: =+IF(C59<>"",INDEX(Ind!$B$6:$J$105,MATCH(InputActual!B59,Ind!$B$6:$B$105,0),9),"") ->  | E59: =+IF(C59<>"",INDEX(Ind!$B$6:$L$105,MATCH(InputActual!B59,Ind!$B$6:$B$105,0),11),"") ->  | F59: =+IF(C59<>"",INDEX(Ind!$B$6:$M$105,MATCH(InputActual!B59,Ind!$B$6:$B$105,0),12),"") ->  | G59: =+IF(C59<>"",INDEX(Ind!$B$6:$M$105,MATCH(InputActual!B59,Ind!$B$6:$B$105,0),10),"") -> 
B60: 55 | C60: =+IF(Ind!C60<>"",INDEX(Ind!$B$6:$C$105,MATCH(InputActual!B60,Ind!$B$6:$B$105,0),2),"") ->  | D60: =+IF(C60<>"",INDEX(Ind!$B$6:$J$105,MATCH(InputActual!B60,Ind!$B$6:$B$105,0),9),"") ->  | E60: =+IF(C60<>"",INDEX(Ind!$B$6:$L$105,MATCH(InputActual!B60,Ind!$B$6:$B$105,0),11),"") ->  | F60: =+IF(C60<>"",INDEX(Ind!$B$6:$M$105,MATCH(InputActual!B60,Ind!$B$6:$B$105,0),12),"") ->  | G60: =+IF(C60<>"",INDEX(Ind!$B$6:$M$105,MATCH(InputActual!B60,Ind!$B$6:$B$105,0),10),"") -> 
B61: 56 | C61: =+IF(Ind!C61<>"",INDEX(Ind!$B$6:$C$105,MATCH(InputActual!B61,Ind!$B$6:$B$105,0),2),"") ->  | D61: =+IF(C61<>"",INDEX(Ind!$B$6:$J$105,MATCH(InputActual!B61,Ind!$B$6:$B$105,0),9),"") ->  | E61: =+IF(C61<>"",INDEX(Ind!$B$6:$L$105,MATCH(InputActual!B61,Ind!$B$6:$B$105,0),11),"") ->  | F61: =+IF(C61<>"",INDEX(Ind!$B$6:$M$105,MATCH(InputActual!B61,Ind!$B$6:$B$105,0),12),"") ->  | G61: =+IF(C61<>"",INDEX(Ind!$B$6:$M$105,MATCH(InputActual!B61,Ind!$B$6:$B$105,0),10),"") -> 
B62: 57 | C62: =+IF(Ind!C62<>"",INDEX(Ind!$B$6:$C$105,MATCH(InputActual!B62,Ind!$B$6:$B$105,0),2),"") ->  | D62: =+IF(C62<>"",INDEX(Ind!$B$6:$J$105,MATCH(InputActual!B62,Ind!$B$6:$B$105,0),9),"") ->  | E62: =+IF(C62<>"",INDEX(Ind!$B$6:$L$105,MATCH(InputActual!B62,Ind!$B$6:$B$105,0),11),"") ->  | F62: =+IF(C62<>"",INDEX(Ind!$B$6:$M$105,MATCH(InputActual!B62,Ind!$B$6:$B$105,0),12),"") ->  | G62: =+IF(C62<>"",INDEX(Ind!$B$6:$M$105,MATCH(InputActual!B62,Ind!$B$6:$B$105,0),10),"") -> 
B63: 58 | C63: =+IF(Ind!C63<>"",INDEX(Ind!$B$6:$C$105,MATCH(InputActual!B63,Ind!$B$6:$B$105,0),2),"") ->  | D63: =+IF(C63<>"",INDEX(Ind!$B$6:$J$105,MATCH(InputActual!B63,Ind!$B$6:$B$105,0),9),"") ->  | E63: =+IF(C63<>"",INDEX(Ind!$B$6:$L$105,MATCH(InputActual!B63,Ind!$B$6:$B$105,0),11),"") ->  | F63: =+IF(C63<>"",INDEX(Ind!$B$6:$M$105,MATCH(InputActual!B63,Ind!$B$6:$B$105,0),12),"") ->  | G63: =+IF(C63<>"",INDEX(Ind!$B$6:$M$105,MATCH(InputActual!B63,Ind!$B$6:$B$105,0),10),"") -> 
B64: 59 | C64: =+IF(Ind!C64<>"",INDEX(Ind!$B$6:$C$105,MATCH(InputActual!B64,Ind!$B$6:$B$105,0),2),"") ->  | D64: =+IF(C64<>"",INDEX(Ind!$B$6:$J$105,MATCH(InputActual!B64,Ind!$B$6:$B$105,0),9),"") ->  | E64: =+IF(C64<>"",INDEX(Ind!$B$6:$L$105,MATCH(InputActual!B64,Ind!$B$6:$B$105,0),11),"") ->  | F64: =+IF(C64<>"",INDEX(Ind!$B$6:$M$105,MATCH(InputActual!B64,Ind!$B$6:$B$105,0),12),"") ->  | G64: =+IF(C64<>"",INDEX(Ind!$B$6:$M$105,MATCH(InputActual!B64,Ind!$B$6:$B$105,0),10),"") -> 
B65: 60 | C65: =+IF(Ind!C65<>"",INDEX(Ind!$B$6:$C$105,MATCH(InputActual!B65,Ind!$B$6:$B$105,0),2),"") ->  | D65: =+IF(C65<>"",INDEX(Ind!$B$6:$J$105,MATCH(InputActual!B65,Ind!$B$6:$B$105,0),9),"") ->  | E65: =+IF(C65<>"",INDEX(Ind!$B$6:$L$105,MATCH(InputActual!B65,Ind!$B$6:$B$105,0),11),"") ->  | F65: =+IF(C65<>"",INDEX(Ind!$B$6:$M$105,MATCH(InputActual!B65,Ind!$B$6:$B$105,0),12),"") ->  | G65: =+IF(C65<>"",INDEX(Ind!$B$6:$M$105,MATCH(InputActual!B65,Ind!$B$6:$B$105,0),10),"") -> 
B66: 61 | C66: =+IF(Ind!C66<>"",INDEX(Ind!$B$6:$C$105,MATCH(InputActual!B66,Ind!$B$6:$B$105,0),2),"") ->  | D66: =+IF(C66<>"",INDEX(Ind!$B$6:$J$105,MATCH(InputActual!B66,Ind!$B$6:$B$105,0),9),"") ->  | E66: =+IF(C66<>"",INDEX(Ind!$B$6:$L$105,MATCH(InputActual!B66,Ind!$B$6:$B$105,0),11),"") ->  | F66: =+IF(C66<>"",INDEX(Ind!$B$6:$M$105,MATCH(InputActual!B66,Ind!$B$6:$B$105,0),12),"") ->  | G66: =+IF(C66<>"",INDEX(Ind!$B$6:$M$105,MATCH(InputActual!B66,Ind!$B$6:$B$105,0),10),"") -> 
B67: 62 | C67: =+IF(Ind!C67<>"",INDEX(Ind!$B$6:$C$105,MATCH(InputActual!B67,Ind!$B$6:$B$105,0),2),"") ->  | D67: =+IF(C67<>"",INDEX(Ind!$B$6:$J$105,MATCH(InputActual!B67,Ind!$B$6:$B$105,0),9),"") ->  | E67: =+IF(C67<>"",INDEX(Ind!$B$6:$L$105,MATCH(InputActual!B67,Ind!$B$6:$B$105,0),11),"") ->  | F67: =+IF(C67<>"",INDEX(Ind!$B$6:$M$105,MATCH(InputActual!B67,Ind!$B$6:$B$105,0),12),"") ->  | G67: =+IF(C67<>"",INDEX(Ind!$B$6:$M$105,MATCH(InputActual!B67,Ind!$B$6:$B$105,0),10),"") -> 
B68: 63 | C68: =+IF(Ind!C68<>"",INDEX(Ind!$B$6:$C$105,MATCH(InputActual!B68,Ind!$B$6:$B$105,0),2),"") ->  | D68: =+IF(C68<>"",INDEX(Ind!$B$6:$J$105,MATCH(InputActual!B68,Ind!$B$6:$B$105,0),9),"") ->  | E68: =+IF(C68<>"",INDEX(Ind!$B$6:$L$105,MATCH(InputActual!B68,Ind!$B$6:$B$105,0),11),"") ->  | F68: =+IF(C68<>"",INDEX(Ind!$B$6:$M$105,MATCH(InputActual!B68,Ind!$B$6:$B$105,0),12),"") ->  | G68: =+IF(C68<>"",INDEX(Ind!$B$6:$M$105,MATCH(InputActual!B68,Ind!$B$6:$B$105,0),10),"") -> 
B69: 64 | C69: =+IF(Ind!C69<>"",INDEX(Ind!$B$6:$C$105,MATCH(InputActual!B69,Ind!$B$6:$B$105,0),2),"") ->  | D69: =+IF(C69<>"",INDEX(Ind!$B$6:$J$105,MATCH(InputActual!B69,Ind!$B$6:$B$105,0),9),"") ->  | E69: =+IF(C69<>"",INDEX(Ind!$B$6:$L$105,MATCH(InputActual!B69,Ind!$B$6:$B$105,0),11),"") ->  | F69: =+IF(C69<>"",INDEX(Ind!$B$6:$M$105,MATCH(InputActual!B69,Ind!$B$6:$B$105,0),12),"") ->  | G69: =+IF(C69<>"",INDEX(Ind!$B$6:$M$105,MATCH(InputActual!B69,Ind!$B$6:$B$105,0),10),"") -> 
B70: 65 | C70: =+IF(Ind!C70<>"",INDEX(Ind!$B$6:$C$105,MATCH(InputActual!B70,Ind!$B$6:$B$105,0),2),"") ->  | D70: =+IF(C70<>"",INDEX(Ind!$B$6:$J$105,MATCH(InputActual!B70,Ind!$B$6:$B$105,0),9),"") ->  | E70: =+IF(C70<>"",INDEX(Ind!$B$6:$L$105,MATCH(InputActual!B70,Ind!$B$6:$B$105,0),11),"") ->  | F70: =+IF(C70<>"",INDEX(Ind!$B$6:$M$105,MATCH(InputActual!B70,Ind!$B$6:$B$105,0),12),"") ->  | G70: =+IF(C70<>"",INDEX(Ind!$B$6:$M$105,MATCH(InputActual!B70,Ind!$B$6:$B$105,0),10),"") -> 
B71: 66 | C71: =+IF(Ind!C71<>"",INDEX(Ind!$B$6:$C$105,MATCH(InputActual!B71,Ind!$B$6:$B$105,0),2),"") ->  | D71: =+IF(C71<>"",INDEX(Ind!$B$6:$J$105,MATCH(InputActual!B71,Ind!$B$6:$B$105,0),9),"") ->  | E71: =+IF(C71<>"",INDEX(Ind!$B$6:$L$105,MATCH(InputActual!B71,Ind!$B$6:$B$105,0),11),"") ->  | F71: =+IF(C71<>"",INDEX(Ind!$B$6:$M$105,MATCH(InputActual!B71,Ind!$B$6:$B$105,0),12),"") ->  | G71: =+IF(C71<>"",INDEX(Ind!$B$6:$M$105,MATCH(InputActual!B71,Ind!$B$6:$B$105,0),10),"") -> 
B72: 67 | C72: =+IF(Ind!C72<>"",INDEX(Ind!$B$6:$C$105,MATCH(InputActual!B72,Ind!$B$6:$B$105,0),2),"") ->  | D72: =+IF(C72<>"",INDEX(Ind!$B$6:$J$105,MATCH(InputActual!B72,Ind!$B$6:$B$105,0),9),"") ->  | E72: =+IF(C72<>"",INDEX(Ind!$B$6:$L$105,MATCH(InputActual!B72,Ind!$B$6:$B$105,0),11),"") ->  | F72: =+IF(C72<>"",INDEX(Ind!$B$6:$M$105,MATCH(InputActual!B72,Ind!$B$6:$B$105,0),12),"") ->  | G72: =+IF(C72<>"",INDEX(Ind!$B$6:$M$105,MATCH(InputActual!B72,Ind!$B$6:$B$105,0),10),"") -> 
B73: 68 | C73: =+IF(Ind!C73<>"",INDEX(Ind!$B$6:$C$105,MATCH(InputActual!B73,Ind!$B$6:$B$105,0),2),"") ->  | D73: =+IF(C73<>"",INDEX(Ind!$B$6:$J$105,MATCH(InputActual!B73,Ind!$B$6:$B$105,0),9),"") ->  | E73: =+IF(C73<>"",INDEX(Ind!$B$6:$L$105,MATCH(InputActual!B73,Ind!$B$6:$B$105,0),11),"") ->  | F73: =+IF(C73<>"",INDEX(Ind!$B$6:$M$105,MATCH(InputActual!B73,Ind!$B$6:$B$105,0),12),"") ->  | G73: =+IF(C73<>"",INDEX(Ind!$B$6:$M$105,MATCH(InputActual!B73,Ind!$B$6:$B$105,0),10),"") -> 
B74: 69 | C74: =+IF(Ind!C74<>"",INDEX(Ind!$B$6:$C$105,MATCH(InputActual!B74,Ind!$B$6:$B$105,0),2),"") ->  | D74: =+IF(C74<>"",INDEX(Ind!$B$6:$J$105,MATCH(InputActual!B74,Ind!$B$6:$B$105,0),9),"") ->  | E74: =+IF(C74<>"",INDEX(Ind!$B$6:$L$105,MATCH(InputActual!B74,Ind!$B$6:$B$105,0),11),"") ->  | F74: =+IF(C74<>"",INDEX(Ind!$B$6:$M$105,MATCH(InputActual!B74,Ind!$B$6:$B$105,0),12),"") ->  | G74: =+IF(C74<>"",INDEX(Ind!$B$6:$M$105,MATCH(InputActual!B74,Ind!$B$6:$B$105,0),10),"") -> 
B75: 70 | C75: =+IF(Ind!C75<>"",INDEX(Ind!$B$6:$C$105,MATCH(InputActual!B75,Ind!$B$6:$B$105,0),2),"") ->  | D75: =+IF(C75<>"",INDEX(Ind!$B$6:$J$105,MATCH(InputActual!B75,Ind!$B$6:$B$105,0),9),"") ->  | E75: =+IF(C75<>"",INDEX(Ind!$B$6:$L$105,MATCH(InputActual!B75,Ind!$B$6:$B$105,0),11),"") ->  | F75: =+IF(C75<>"",INDEX(Ind!$B$6:$M$105,MATCH(InputActual!B75,Ind!$B$6:$B$105,0),12),"") ->  | G75: =+IF(C75<>"",INDEX(Ind!$B$6:$M$105,MATCH(InputActual!B75,Ind!$B$6:$B$105,0),10),"") -> 
B76: 71 | C76: =+IF(Ind!C76<>"",INDEX(Ind!$B$6:$C$105,MATCH(InputActual!B76,Ind!$B$6:$B$105,0),2),"") ->  | D76: =+IF(C76<>"",INDEX(Ind!$B$6:$J$105,MATCH(InputActual!B76,Ind!$B$6:$B$105,0),9),"") ->  | E76: =+IF(C76<>"",INDEX(Ind!$B$6:$L$105,MATCH(InputActual!B76,Ind!$B$6:$B$105,0),11),"") ->  | F76: =+IF(C76<>"",INDEX(Ind!$B$6:$M$105,MATCH(InputActual!B76,Ind!$B$6:$B$105,0),12),"") ->  | G76: =+IF(C76<>"",INDEX(Ind!$B$6:$M$105,MATCH(InputActual!B76,Ind!$B$6:$B$105,0),10),"") -> 
B77: 72 | C77: =+IF(Ind!C77<>"",INDEX(Ind!$B$6:$C$105,MATCH(InputActual!B77,Ind!$B$6:$B$105,0),2),"") ->  | D77: =+IF(C77<>"",INDEX(Ind!$B$6:$J$105,MATCH(InputActual!B77,Ind!$B$6:$B$105,0),9),"") ->  | E77: =+IF(C77<>"",INDEX(Ind!$B$6:$L$105,MATCH(InputActual!B77,Ind!$B$6:$B$105,0),11),"") ->  | F77: =+IF(C77<>"",INDEX(Ind!$B$6:$M$105,MATCH(InputActual!B77,Ind!$B$6:$B$105,0),12),"") ->  | G77: =+IF(C77<>"",INDEX(Ind!$B$6:$M$105,MATCH(InputActual!B77,Ind!$B$6:$B$105,0),10),"") -> 
B78: 73 | C78: =+IF(Ind!C78<>"",INDEX(Ind!$B$6:$C$105,MATCH(InputActual!B78,Ind!$B$6:$B$105,0),2),"") ->  | D78: =+IF(C78<>"",INDEX(Ind!$B$6:$J$105,MATCH(InputActual!B78,Ind!$B$6:$B$105,0),9),"") ->  | E78: =+IF(C78<>"",INDEX(Ind!$B$6:$L$105,MATCH(InputActual!B78,Ind!$B$6:$B$105,0),11),"") ->  | F78: =+IF(C78<>"",INDEX(Ind!$B$6:$M$105,MATCH(InputActual!B78,Ind!$B$6:$B$105,0),12),"") ->  | G78: =+IF(C78<>"",INDEX(Ind!$B$6:$M$105,MATCH(InputActual!B78,Ind!$B$6:$B$105,0),10),"") -> 
B79: 74 | C79: =+IF(Ind!C79<>"",INDEX(Ind!$B$6:$C$105,MATCH(InputActual!B79,Ind!$B$6:$B$105,0),2),"") ->  | D79: =+IF(C79<>"",INDEX(Ind!$B$6:$J$105,MATCH(InputActual!B79,Ind!$B$6:$B$105,0),9),"") ->  | E79: =+IF(C79<>"",INDEX(Ind!$B$6:$L$105,MATCH(InputActual!B79,Ind!$B$6:$B$105,0),11),"") ->  | F79: =+IF(C79<>"",INDEX(Ind!$B$6:$M$105,MATCH(InputActual!B79,Ind!$B$6:$B$105,0),12),"") ->  | G79: =+IF(C79<>"",INDEX(Ind!$B$6:$M$105,MATCH(InputActual!B79,Ind!$B$6:$B$105,0),10),"") -> 
B80: 75 | C80: =+IF(Ind!C80<>"",INDEX(Ind!$B$6:$C$105,MATCH(InputActual!B80,Ind!$B$6:$B$105,0),2),"") ->  | D80: =+IF(C80<>"",INDEX(Ind!$B$6:$J$105,MATCH(InputActual!B80,Ind!$B$6:$B$105,0),9),"") ->  | E80: =+IF(C80<>"",INDEX(Ind!$B$6:$L$105,MATCH(InputActual!B80,Ind!$B$6:$B$105,0),11),"") ->  | F80: =+IF(C80<>"",INDEX(Ind!$B$6:$M$105,MATCH(InputActual!B80,Ind!$B$6:$B$105,0),12),"") ->  | G80: =+IF(C80<>"",INDEX(Ind!$B$6:$M$105,MATCH(InputActual!B80,Ind!$B$6:$B$105,0),10),"") -> 
B81: 76 | C81: =+IF(Ind!C81<>"",INDEX(Ind!$B$6:$C$105,MATCH(InputActual!B81,Ind!$B$6:$B$105,0),2),"") ->  | D81: =+IF(C81<>"",INDEX(Ind!$B$6:$J$105,MATCH(InputActual!B81,Ind!$B$6:$B$105,0),9),"") ->  | E81: =+IF(C81<>"",INDEX(Ind!$B$6:$L$105,MATCH(InputActual!B81,Ind!$B$6:$B$105,0),11),"") ->  | F81: =+IF(C81<>"",INDEX(Ind!$B$6:$M$105,MATCH(InputActual!B81,Ind!$B$6:$B$105,0),12),"") ->  | G81: =+IF(C81<>"",INDEX(Ind!$B$6:$M$105,MATCH(InputActual!B81,Ind!$B$6:$B$105,0),10),"") -> 
B82: 77 | C82: =+IF(Ind!C82<>"",INDEX(Ind!$B$6:$C$105,MATCH(InputActual!B82,Ind!$B$6:$B$105,0),2),"") ->  | D82: =+IF(C82<>"",INDEX(Ind!$B$6:$J$105,MATCH(InputActual!B82,Ind!$B$6:$B$105,0),9),"") ->  | E82: =+IF(C82<>"",INDEX(Ind!$B$6:$L$105,MATCH(InputActual!B82,Ind!$B$6:$B$105,0),11),"") ->  | F82: =+IF(C82<>"",INDEX(Ind!$B$6:$M$105,MATCH(InputActual!B82,Ind!$B$6:$B$105,0),12),"") ->  | G82: =+IF(C82<>"",INDEX(Ind!$B$6:$M$105,MATCH(InputActual!B82,Ind!$B$6:$B$105,0),10),"") -> 
B83: 78 | C83: =+IF(Ind!C83<>"",INDEX(Ind!$B$6:$C$105,MATCH(InputActual!B83,Ind!$B$6:$B$105,0),2),"") ->  | D83: =+IF(C83<>"",INDEX(Ind!$B$6:$J$105,MATCH(InputActual!B83,Ind!$B$6:$B$105,0),9),"") ->  | E83: =+IF(C83<>"",INDEX(Ind!$B$6:$L$105,MATCH(InputActual!B83,Ind!$B$6:$B$105,0),11),"") ->  | F83: =+IF(C83<>"",INDEX(Ind!$B$6:$M$105,MATCH(InputActual!B83,Ind!$B$6:$B$105,0),12),"") ->  | G83: =+IF(C83<>"",INDEX(Ind!$B$6:$M$105,MATCH(InputActual!B83,Ind!$B$6:$B$105,0),10),"") -> 
B84: 79 | C84: =+IF(Ind!C84<>"",INDEX(Ind!$B$6:$C$105,MATCH(InputActual!B84,Ind!$B$6:$B$105,0),2),"") ->  | D84: =+IF(C84<>"",INDEX(Ind!$B$6:$J$105,MATCH(InputActual!B84,Ind!$B$6:$B$105,0),9),"") ->  | E84: =+IF(C84<>"",INDEX(Ind!$B$6:$L$105,MATCH(InputActual!B84,Ind!$B$6:$B$105,0),11),"") ->  | F84: =+IF(C84<>"",INDEX(Ind!$B$6:$M$105,MATCH(InputActual!B84,Ind!$B$6:$B$105,0),12),"") ->  | G84: =+IF(C84<>"",INDEX(Ind!$B$6:$M$105,MATCH(InputActual!B84,Ind!$B$6:$B$105,0),10),"") -> 
B85: 80 | C85: =+IF(Ind!C85<>"",INDEX(Ind!$B$6:$C$105,MATCH(InputActual!B85,Ind!$B$6:$B$105,0),2),"") ->  | D85: =+IF(C85<>"",INDEX(Ind!$B$6:$J$105,MATCH(InputActual!B85,Ind!$B$6:$B$105,0),9),"") ->  | E85: =+IF(C85<>"",INDEX(Ind!$B$6:$L$105,MATCH(InputActual!B85,Ind!$B$6:$B$105,0),11),"") ->  | F85: =+IF(C85<>"",INDEX(Ind!$B$6:$M$105,MATCH(InputActual!B85,Ind!$B$6:$B$105,0),12),"") ->  | G85: =+IF(C85<>"",INDEX(Ind!$B$6:$M$105,MATCH(InputActual!B85,Ind!$B$6:$B$105,0),10),"") -> 
B86: 81 | C86: =+IF(Ind!C86<>"",INDEX(Ind!$B$6:$C$105,MATCH(InputActual!B86,Ind!$B$6:$B$105,0),2),"") ->  | D86: =+IF(C86<>"",INDEX(Ind!$B$6:$J$105,MATCH(InputActual!B86,Ind!$B$6:$B$105,0),9),"") ->  | E86: =+IF(C86<>"",INDEX(Ind!$B$6:$L$105,MATCH(InputActual!B86,Ind!$B$6:$B$105,0),11),"") ->  | F86: =+IF(C86<>"",INDEX(Ind!$B$6:$M$105,MATCH(InputActual!B86,Ind!$B$6:$B$105,0),12),"") ->  | G86: =+IF(C86<>"",INDEX(Ind!$B$6:$M$105,MATCH(InputActual!B86,Ind!$B$6:$B$105,0),10),"") -> 
B87: 82 | C87: =+IF(Ind!C87<>"",INDEX(Ind!$B$6:$C$105,MATCH(InputActual!B87,Ind!$B$6:$B$105,0),2),"") ->  | D87: =+IF(C87<>"",INDEX(Ind!$B$6:$J$105,MATCH(InputActual!B87,Ind!$B$6:$B$105,0),9),"") ->  | E87: =+IF(C87<>"",INDEX(Ind!$B$6:$L$105,MATCH(InputActual!B87,Ind!$B$6:$B$105,0),11),"") ->  | F87: =+IF(C87<>"",INDEX(Ind!$B$6:$M$105,MATCH(InputActual!B87,Ind!$B$6:$B$105,0),12),"") ->  | G87: =+IF(C87<>"",INDEX(Ind!$B$6:$M$105,MATCH(InputActual!B87,Ind!$B$6:$B$105,0),10),"") -> 
B88: 83 | C88: =+IF(Ind!C88<>"",INDEX(Ind!$B$6:$C$105,MATCH(InputActual!B88,Ind!$B$6:$B$105,0),2),"") ->  | D88: =+IF(C88<>"",INDEX(Ind!$B$6:$J$105,MATCH(InputActual!B88,Ind!$B$6:$B$105,0),9),"") ->  | E88: =+IF(C88<>"",INDEX(Ind!$B$6:$L$105,MATCH(InputActual!B88,Ind!$B$6:$B$105,0),11),"") ->  | F88: =+IF(C88<>"",INDEX(Ind!$B$6:$M$105,MATCH(InputActual!B88,Ind!$B$6:$B$105,0),12),"") ->  | G88: =+IF(C88<>"",INDEX(Ind!$B$6:$M$105,MATCH(InputActual!B88,Ind!$B$6:$B$105,0),10),"") -> 
B89: 84 | C89: =+IF(Ind!C89<>"",INDEX(Ind!$B$6:$C$105,MATCH(InputActual!B89,Ind!$B$6:$B$105,0),2),"") ->  | D89: =+IF(C89<>"",INDEX(Ind!$B$6:$J$105,MATCH(InputActual!B89,Ind!$B$6:$B$105,0),9),"") ->  | E89: =+IF(C89<>"",INDEX(Ind!$B$6:$L$105,MATCH(InputActual!B89,Ind!$B$6:$B$105,0),11),"") ->  | F89: =+IF(C89<>"",INDEX(Ind!$B$6:$M$105,MATCH(InputActual!B89,Ind!$B$6:$B$105,0),12),"") ->  | G89: =+IF(C89<>"",INDEX(Ind!$B$6:$M$105,MATCH(InputActual!B89,Ind!$B$6:$B$105,0),10),"") -> 
B90: 85 | C90: =+IF(Ind!C90<>"",INDEX(Ind!$B$6:$C$105,MATCH(InputActual!B90,Ind!$B$6:$B$105,0),2),"") ->  | D90: =+IF(C90<>"",INDEX(Ind!$B$6:$J$105,MATCH(InputActual!B90,Ind!$B$6:$B$105,0),9),"") ->  | E90: =+IF(C90<>"",INDEX(Ind!$B$6:$L$105,MATCH(InputActual!B90,Ind!$B$6:$B$105,0),11),"") ->  | F90: =+IF(C90<>"",INDEX(Ind!$B$6:$M$105,MATCH(InputActual!B90,Ind!$B$6:$B$105,0),12),"") ->  | G90: =+IF(C90<>"",INDEX(Ind!$B$6:$M$105,MATCH(InputActual!B90,Ind!$B$6:$B$105,0),10),"") -> 
B91: 86 | C91: =+IF(Ind!C91<>"",INDEX(Ind!$B$6:$C$105,MATCH(InputActual!B91,Ind!$B$6:$B$105,0),2),"") ->  | D91: =+IF(C91<>"",INDEX(Ind!$B$6:$J$105,MATCH(InputActual!B91,Ind!$B$6:$B$105,0),9),"") ->  | E91: =+IF(C91<>"",INDEX(Ind!$B$6:$L$105,MATCH(InputActual!B91,Ind!$B$6:$B$105,0),11),"") ->  | F91: =+IF(C91<>"",INDEX(Ind!$B$6:$M$105,MATCH(InputActual!B91,Ind!$B$6:$B$105,0),12),"") ->  | G91: =+IF(C91<>"",INDEX(Ind!$B$6:$M$105,MATCH(InputActual!B91,Ind!$B$6:$B$105,0),10),"") -> 
B92: 87 | C92: =+IF(Ind!C92<>"",INDEX(Ind!$B$6:$C$105,MATCH(InputActual!B92,Ind!$B$6:$B$105,0),2),"") ->  | D92: =+IF(C92<>"",INDEX(Ind!$B$6:$J$105,MATCH(InputActual!B92,Ind!$B$6:$B$105,0),9),"") ->  | E92: =+IF(C92<>"",INDEX(Ind!$B$6:$L$105,MATCH(InputActual!B92,Ind!$B$6:$B$105,0),11),"") ->  | F92: =+IF(C92<>"",INDEX(Ind!$B$6:$M$105,MATCH(InputActual!B92,Ind!$B$6:$B$105,0),12),"") ->  | G92: =+IF(C92<>"",INDEX(Ind!$B$6:$M$105,MATCH(InputActual!B92,Ind!$B$6:$B$105,0),10),"") -> 
B93: 88 | C93: =+IF(Ind!C93<>"",INDEX(Ind!$B$6:$C$105,MATCH(InputActual!B93,Ind!$B$6:$B$105,0),2),"") ->  | D93: =+IF(C93<>"",INDEX(Ind!$B$6:$J$105,MATCH(InputActual!B93,Ind!$B$6:$B$105,0),9),"") ->  | E93: =+IF(C93<>"",INDEX(Ind!$B$6:$L$105,MATCH(InputActual!B93,Ind!$B$6:$B$105,0),11),"") ->  | F93: =+IF(C93<>"",INDEX(Ind!$B$6:$M$105,MATCH(InputActual!B93,Ind!$B$6:$B$105,0),12),"") ->  | G93: =+IF(C93<>"",INDEX(Ind!$B$6:$M$105,MATCH(InputActual!B93,Ind!$B$6:$B$105,0),10),"") -> 
B94: 89 | C94: =+IF(Ind!C94<>"",INDEX(Ind!$B$6:$C$105,MATCH(InputActual!B94,Ind!$B$6:$B$105,0),2),"") ->  | D94: =+IF(C94<>"",INDEX(Ind!$B$6:$J$105,MATCH(InputActual!B94,Ind!$B$6:$B$105,0),9),"") ->  | E94: =+IF(C94<>"",INDEX(Ind!$B$6:$L$105,MATCH(InputActual!B94,Ind!$B$6:$B$105,0),11),"") ->  | F94: =+IF(C94<>"",INDEX(Ind!$B$6:$M$105,MATCH(InputActual!B94,Ind!$B$6:$B$105,0),12),"") ->  | G94: =+IF(C94<>"",INDEX(Ind!$B$6:$M$105,MATCH(InputActual!B94,Ind!$B$6:$B$105,0),10),"") -> 
B95: 90 | C95: =+IF(Ind!C95<>"",INDEX(Ind!$B$6:$C$105,MATCH(InputActual!B95,Ind!$B$6:$B$105,0),2),"") ->  | D95: =+IF(C95<>"",INDEX(Ind!$B$6:$J$105,MATCH(InputActual!B95,Ind!$B$6:$B$105,0),9),"") ->  | E95: =+IF(C95<>"",INDEX(Ind!$B$6:$L$105,MATCH(InputActual!B95,Ind!$B$6:$B$105,0),11),"") ->  | F95: =+IF(C95<>"",INDEX(Ind!$B$6:$M$105,MATCH(InputActual!B95,Ind!$B$6:$B$105,0),12),"") ->  | G95: =+IF(C95<>"",INDEX(Ind!$B$6:$M$105,MATCH(InputActual!B95,Ind!$B$6:$B$105,0),10),"") -> 
B96: 91 | C96: =+IF(Ind!C96<>"",INDEX(Ind!$B$6:$C$105,MATCH(InputActual!B96,Ind!$B$6:$B$105,0),2),"") ->  | D96: =+IF(C96<>"",INDEX(Ind!$B$6:$J$105,MATCH(InputActual!B96,Ind!$B$6:$B$105,0),9),"") ->  | E96: =+IF(C96<>"",INDEX(Ind!$B$6:$L$105,MATCH(InputActual!B96,Ind!$B$6:$B$105,0),11),"") ->  | F96: =+IF(C96<>"",INDEX(Ind!$B$6:$M$105,MATCH(InputActual!B96,Ind!$B$6:$B$105,0),12),"") ->  | G96: =+IF(C96<>"",INDEX(Ind!$B$6:$M$105,MATCH(InputActual!B96,Ind!$B$6:$B$105,0),10),"") -> 
B97: 92 | C97: =+IF(Ind!C97<>"",INDEX(Ind!$B$6:$C$105,MATCH(InputActual!B97,Ind!$B$6:$B$105,0),2),"") ->  | D97: =+IF(C97<>"",INDEX(Ind!$B$6:$J$105,MATCH(InputActual!B97,Ind!$B$6:$B$105,0),9),"") ->  | E97: =+IF(C97<>"",INDEX(Ind!$B$6:$L$105,MATCH(InputActual!B97,Ind!$B$6:$B$105,0),11),"") ->  | F97: =+IF(C97<>"",INDEX(Ind!$B$6:$M$105,MATCH(InputActual!B97,Ind!$B$6:$B$105,0),12),"") ->  | G97: =+IF(C97<>"",INDEX(Ind!$B$6:$M$105,MATCH(InputActual!B97,Ind!$B$6:$B$105,0),10),"") -> 
B98: 93 | C98: =+IF(Ind!C98<>"",INDEX(Ind!$B$6:$C$105,MATCH(InputActual!B98,Ind!$B$6:$B$105,0),2),"") ->  | D98: =+IF(C98<>"",INDEX(Ind!$B$6:$J$105,MATCH(InputActual!B98,Ind!$B$6:$B$105,0),9),"") ->  | E98: =+IF(C98<>"",INDEX(Ind!$B$6:$L$105,MATCH(InputActual!B98,Ind!$B$6:$B$105,0),11),"") ->  | F98: =+IF(C98<>"",INDEX(Ind!$B$6:$M$105,MATCH(InputActual!B98,Ind!$B$6:$B$105,0),12),"") ->  | G98: =+IF(C98<>"",INDEX(Ind!$B$6:$M$105,MATCH(InputActual!B98,Ind!$B$6:$B$105,0),10),"") -> 
B99: 94 | C99: =+IF(Ind!C99<>"",INDEX(Ind!$B$6:$C$105,MATCH(InputActual!B99,Ind!$B$6:$B$105,0),2),"") ->  | D99: =+IF(C99<>"",INDEX(Ind!$B$6:$J$105,MATCH(InputActual!B99,Ind!$B$6:$B$105,0),9),"") ->  | E99: =+IF(C99<>"",INDEX(Ind!$B$6:$L$105,MATCH(InputActual!B99,Ind!$B$6:$B$105,0),11),"") ->  | F99: =+IF(C99<>"",INDEX(Ind!$B$6:$M$105,MATCH(InputActual!B99,Ind!$B$6:$B$105,0),12),"") ->  | G99: =+IF(C99<>"",INDEX(Ind!$B$6:$M$105,MATCH(InputActual!B99,Ind!$B$6:$B$105,0),10),"") -> 
B100: 95 | C100: =+IF(Ind!C100<>"",INDEX(Ind!$B$6:$C$105,MATCH(InputActual!B100,Ind!$B$6:$B$105,0),2),"") ->  | D100: =+IF(C100<>"",INDEX(Ind!$B$6:$J$105,MATCH(InputActual!B100,Ind!$B$6:$B$105,0),9),"") ->  | E100: =+IF(C100<>"",INDEX(Ind!$B$6:$L$105,MATCH(InputActual!B100,Ind!$B$6:$B$105,0),11),"") ->  | F100: =+IF(C100<>"",INDEX(Ind!$B$6:$M$105,MATCH(InputActual!B100,Ind!$B$6:$B$105,0),12),"") ->  | G100: =+IF(C100<>"",INDEX(Ind!$B$6:$M$105,MATCH(InputActual!B100,Ind!$B$6:$B$105,0),10),"") -> 
B101: 96 | C101: =+IF(Ind!C101<>"",INDEX(Ind!$B$6:$C$105,MATCH(InputActual!B101,Ind!$B$6:$B$105,0),2),"") ->  | D101: =+IF(C101<>"",INDEX(Ind!$B$6:$J$105,MATCH(InputActual!B101,Ind!$B$6:$B$105,0),9),"") ->  | E101: =+IF(C101<>"",INDEX(Ind!$B$6:$L$105,MATCH(InputActual!B101,Ind!$B$6:$B$105,0),11),"") ->  | F101: =+IF(C101<>"",INDEX(Ind!$B$6:$M$105,MATCH(InputActual!B101,Ind!$B$6:$B$105,0),12),"") ->  | G101: =+IF(C101<>"",INDEX(Ind!$B$6:$M$105,MATCH(InputActual!B101,Ind!$B$6:$B$105,0),10),"") -> 
B102: 97 | C102: =+IF(Ind!C102<>"",INDEX(Ind!$B$6:$C$105,MATCH(InputActual!B102,Ind!$B$6:$B$105,0),2),"") ->  | D102: =+IF(C102<>"",INDEX(Ind!$B$6:$J$105,MATCH(InputActual!B102,Ind!$B$6:$B$105,0),9),"") ->  | E102: =+IF(C102<>"",INDEX(Ind!$B$6:$L$105,MATCH(InputActual!B102,Ind!$B$6:$B$105,0),11),"") ->  | F102: =+IF(C102<>"",INDEX(Ind!$B$6:$M$105,MATCH(InputActual!B102,Ind!$B$6:$B$105,0),12),"") ->  | G102: =+IF(C102<>"",INDEX(Ind!$B$6:$M$105,MATCH(InputActual!B102,Ind!$B$6:$B$105,0),10),"") -> 
B103: 98 | C103: =+IF(Ind!C103<>"",INDEX(Ind!$B$6:$C$105,MATCH(InputActual!B103,Ind!$B$6:$B$105,0),2),"") ->  | D103: =+IF(C103<>"",INDEX(Ind!$B$6:$J$105,MATCH(InputActual!B103,Ind!$B$6:$B$105,0),9),"") ->  | E103: =+IF(C103<>"",INDEX(Ind!$B$6:$L$105,MATCH(InputActual!B103,Ind!$B$6:$B$105,0),11),"") ->  | F103: =+IF(C103<>"",INDEX(Ind!$B$6:$M$105,MATCH(InputActual!B103,Ind!$B$6:$B$105,0),12),"") ->  | G103: =+IF(C103<>"",INDEX(Ind!$B$6:$M$105,MATCH(InputActual!B103,Ind!$B$6:$B$105,0),10),"") -> 
B104: 99 | C104: =+IF(Ind!C104<>"",INDEX(Ind!$B$6:$C$105,MATCH(InputActual!B104,Ind!$B$6:$B$105,0),2),"") ->  | D104: =+IF(C104<>"",INDEX(Ind!$B$6:$J$105,MATCH(InputActual!B104,Ind!$B$6:$B$105,0),9),"") ->  | E104: =+IF(C104<>"",INDEX(Ind!$B$6:$L$105,MATCH(InputActual!B104,Ind!$B$6:$B$105,0),11),"") ->  | F104: =+IF(C104<>"",INDEX(Ind!$B$6:$M$105,MATCH(InputActual!B104,Ind!$B$6:$B$105,0),12),"") ->  | G104: =+IF(C104<>"",INDEX(Ind!$B$6:$M$105,MATCH(InputActual!B104,Ind!$B$6:$B$105,0),10),"") -> 
B105: 100 | C105: =+IF(Ind!C105<>"",INDEX(Ind!$B$6:$C$105,MATCH(InputActual!B105,Ind!$B$6:$B$105,0),2),"") ->  | D105: =+IF(C105<>"",INDEX(Ind!$B$6:$J$105,MATCH(InputActual!B105,Ind!$B$6:$B$105,0),9),"") ->  | E105: =+IF(C105<>"",INDEX(Ind!$B$6:$L$105,MATCH(InputActual!B105,Ind!$B$6:$B$105,0),11),"") ->  | F105: =+IF(C105<>"",INDEX(Ind!$B$6:$M$105,MATCH(InputActual!B105,Ind!$B$6:$B$105,0),12),"") ->  | G105: =+IF(C105<>"",INDEX(Ind!$B$6:$M$105,MATCH(InputActual!B105,Ind!$B$6:$B$105,0),10),"") -> 

Sheet InputTg
B3: INPUT TARGET
B5: CodKpi | C5: KPI Description | D5: Number Format | E5: Frequency | F5: Time Frame | G5: Band Type | H5: =+Menu!$F$11&"."&"01" -> 2012.01 | I5: =+Menu!$F$11&"."&"02" -> 2012.02 | J5: =+Menu!$F$11&"."&"03" -> 2012.03 | K5: =+Menu!$F$11&"."&"04" -> 2012.04 | L5: =+Menu!$F$11&"."&"05" -> 2012.05 | M5: =+Menu!$F$11&"."&"06" -> 2012.06 | N5: =+Menu!$F$11&"."&"07" -> 2012.07 | O5: =+Menu!$F$11&"."&"08" -> 2012.08 | P5: =+Menu!$F$11&"."&"09" -> 2012.09 | Q5: =+Menu!$F$11&"."&"10" -> 2012.10 | R5: =+Menu!$F$11&"."&"11" -> 2012.11 | S5: =+Menu!$F$11&"."&"12" -> 2012.12 | T5: =+Menu!$F$11+1&"."&"01" -> 2013.01 | U5: =+Menu!$F$11+1&"."&"02" -> 2013.02 | V5: =+Menu!$F$11+1&"."&"03" -> 2013.03 | W5: =+Menu!$F$11+1&"."&"04" -> 2013.04 | X5: =+Menu!$F$11+1&"."&"05" -> 2013.05 | Y5: =+Menu!$F$11+1&"."&"06" -> 2013.06 | Z5: =+Menu!$F$11+1&"."&"07" -> 2013.07 | AA5: =+Menu!$F$11+1&"."&"08" -> 2013.08 | AB5: =+Menu!$F$11+1&"."&"09" -> 2013.09 | AC5: =+Menu!$F$11+1&"."&"10" -> 2013.10 | AD5: =+Menu!$F$11+1&"."&"11" -> 2013.11 | AE5: =+Menu!$F$11+1&"."&"12" -> 2013.12 | AF5: =+Menu!$F$11+2&"."&"01" -> 2014.01 | AG5: =+Menu!$F$11+2&"."&"02" -> 2014.02 | AH5: =+Menu!$F$11+2&"."&"03" -> 2014.03 | AI5: =+Menu!$F$11+2&"."&"04" -> 2014.04 | AJ5: =+Menu!$F$11+2&"."&"05" -> 2014.05 | AK5: =+Menu!$F$11+2&"."&"06" -> 2014.06 | AL5: =+Menu!$F$11+2&"."&"07" -> 2014.07 | AM5: =+Menu!$F$11+2&"."&"08" -> 2014.08 | AN5: =+Menu!$F$11+2&"."&"09" -> 2014.09 | AO5: =+Menu!$F$11+2&"."&"10" -> 2014.10 | AP5: =+Menu!$F$11+2&"."&"11" -> 2014.11 | AQ5: =+Menu!$F$11+2&"."&"12" -> 2014.12 | AR5: =+Menu!$F$11+3&"."&"01" -> 2015.01 | AS5: =+Menu!$F$11+3&"."&"02" -> 2015.02 | AT5: =+Menu!$F$11+3&"."&"03" -> 2015.03 | AU5: =+Menu!$F$11+3&"."&"04" -> 2015.04 | AV5: =+Menu!$F$11+3&"."&"05" -> 2015.05 | AW5: =+Menu!$F$11+3&"."&"06" -> 2015.06 | AX5: =+Menu!$F$11+3&"."&"07" -> 2015.07 | AY5: =+Menu!$F$11+3&"."&"08" -> 2015.08 | AZ5: =+Menu!$F$11+3&"."&"09" -> 2015.09 | BA5: =+Menu!$F$11+3&"."&"10" -> 2015.10 | BB5: =+Menu!$F$11+3&"."&"11" -> 2015.11 | BC5: =+Menu!$F$11+3&"."&"12" -> 2015.12 | BD5: =+Menu!$F$11+4&"."&"01" -> 2016.01 | BE5: =+Menu!$F$11+4&"."&"02" -> 2016.02 | BF5: =+Menu!$F$11+4&"."&"03" -> 2016.03 | BG5: =+Menu!$F$11+4&"."&"04" -> 2016.04 | BH5: =+Menu!$F$11+4&"."&"05" -> 2016.05 | BI5: =+Menu!$F$11+4&"."&"06" -> 2016.06 | BJ5: =+Menu!$F$11+4&"."&"07" -> 2016.07 | BK5: =+Menu!$F$11+4&"."&"08" -> 2016.08 | BL5: =+Menu!$F$11+4&"."&"09" -> 2016.09 | BM5: =+Menu!$F$11+4&"."&"10" -> 2016.10 | BN5: =+Menu!$F$11+4&"."&"11" -> 2016.11 | BO5: =+Menu!$F$11+4&"."&"12" -> 2016.12
B6: 01 | C6: =+IF(Ind!C6<>"",INDEX(Ind!$B$6:$C$105,MATCH(InputTg!B6,Ind!$B$6:$B$105,0),2),"") -> LOGRAR UN INCREMENTO DEL 5% EN VENTAS | D6: =+IF(C6<>"",INDEX(Ind!$B$6:$J$105,MATCH(InputTg!B6,Ind!$B$6:$B$105,0),9),"") -> Percentage | E6: =+IF(C6<>"",INDEX(Ind!$B$6:$L$105,MATCH(InputTg!B6,Ind!$B$6:$B$105,0),11),"") -> Month | F6: =+IF(C6<>"",INDEX(Ind!$B$6:$M$105,MATCH(InputTg!B6,Ind!$B$6:$B$105,0),12),"") -> At present | G6: =+IF(C6<>"",INDEX(Ind!$B$6:$K$105,MATCH(InputTg!B6,Ind!$B$6:$B$105,0),10),"") -> + | H6: 5500 | I6: 6000 | J6: 6000 | K6: 7500 | L6: 7500 | M6: 8000 | N6: 6500 | O6: 6500 | P6: 5500 | Q6: 5500 | R6: 6000 | S6: 7000
B7: 02 | C7: =+IF(Ind!C7<>"",INDEX(Ind!$B$6:$C$105,MATCH(InputTg!B7,Ind!$B$6:$B$105,0),2),"") -> EXPADIR PUNTOS DE VENTA ZONA MARINA | D7: =+IF(C7<>"",INDEX(Ind!$B$6:$J$105,MATCH(InputTg!B7,Ind!$B$6:$B$105,0),9),"") -> Percentage | E7: =+IF(C7<>"",INDEX(Ind!$B$6:$L$105,MATCH(InputTg!B7,Ind!$B$6:$B$105,0),11),"") -> Month | F7: =+IF(C7<>"",INDEX(Ind!$B$6:$M$105,MATCH(InputTg!B7,Ind!$B$6:$B$105,0),12),"") -> At present | G7: =+IF(C7<>"",INDEX(Ind!$B$6:$K$105,MATCH(InputTg!B7,Ind!$B$6:$B$105,0),10),"") -> + | H7: 0 | I7: 0 | J7: 0 | K7: 1 | L7: 0 | M7: 0 | N7: 0 | O7: 1 | P7: 0 | Q7: 0 | R7: 0 | S7: 0
B8: 03 | C8: =+IF(Ind!C8<>"",INDEX(Ind!$B$6:$C$105,MATCH(InputTg!B8,Ind!$B$6:$B$105,0),2),"") -> INCREMENTAR EL ISC | D8: =+IF(C8<>"",INDEX(Ind!$B$6:$J$105,MATCH(InputTg!B8,Ind!$B$6:$B$105,0),9),"") -> Percentage | E8: =+IF(C8<>"",INDEX(Ind!$B$6:$L$105,MATCH(InputTg!B8,Ind!$B$6:$B$105,0),11),"") -> Month | F8: =+IF(C8<>"",INDEX(Ind!$B$6:$M$105,MATCH(InputTg!B8,Ind!$B$6:$B$105,0),12),"") -> At present | G8: =+IF(C8<>"",INDEX(Ind!$B$6:$K$105,MATCH(InputTg!B8,Ind!$B$6:$B$105,0),10),"") -> + | H8: 60 | I8: 65 | J8: 65 | K8: 70 | L8: 70 | M8: 75 | N8: 75 | O8: 80 | P8: 80 | Q8: 85 | R8: 90 | S8: 90
B9: 04 | C9: =+IF(Ind!C9<>"",INDEX(Ind!$B$6:$C$105,MATCH(InputTg!B9,Ind!$B$6:$B$105,0),2),"") -> REDUCIR QUEJAS POR FALLOS HERRAMIENTA | D9: =+IF(C9<>"",INDEX(Ind!$B$6:$J$105,MATCH(InputTg!B9,Ind!$B$6:$B$105,0),9),"") -> Percentage | E9: =+IF(C9<>"",INDEX(Ind!$B$6:$L$105,MATCH(InputTg!B9,Ind!$B$6:$B$105,0),11),"") -> Month | F9: =+IF(C9<>"",INDEX(Ind!$B$6:$M$105,MATCH(InputTg!B9,Ind!$B$6:$B$105,0),12),"") -> At present | G9: =+IF(C9<>"",INDEX(Ind!$B$6:$K$105,MATCH(InputTg!B9,Ind!$B$6:$B$105,0),10),"") -> - | H9: 24 | I9: 20 | J9: 20 | K9: 20 | L9: 15 | M9: 15 | N9: 15 | O9: 10 | P9: 10 | Q9: 5 | R9: 5 | S9: 3
B10: 05 | C10: =+IF(Ind!C10<>"",INDEX(Ind!$B$6:$C$105,MATCH(InputTg!B10,Ind!$B$6:$B$105,0),2),"") -> CUMPLIR CON ESTANDAR DE CALIBRACION | D10: =+IF(C10<>"",INDEX(Ind!$B$6:$J$105,MATCH(InputTg!B10,Ind!$B$6:$B$105,0),9),"") -> Percentage | E10: =+IF(C10<>"",INDEX(Ind!$B$6:$L$105,MATCH(InputTg!B10,Ind!$B$6:$B$105,0),11),"") -> Month | F10: =+IF(C10<>"",INDEX(Ind!$B$6:$M$105,MATCH(InputTg!B10,Ind!$B$6:$B$105,0),12),"") -> At present | G10: =+IF(C10<>"",INDEX(Ind!$B$6:$K$105,MATCH(InputTg!B10,Ind!$B$6:$B$105,0),10),"") -> + | H10: 1 | I10: 3 | J10: 3 | K10: 10 | L10: 15 | M10: 20 | N10: 25 | O10: 30 | P10: 35 | Q10: 40 | R10: 45 | S10: 50
B11: 06 | C11: =+IF(Ind!C11<>"",INDEX(Ind!$B$6:$C$105,MATCH(InputTg!B11,Ind!$B$6:$B$105,0),2),"") -> LOGRAR LA EFICACIA DEL SGC | D11: =+IF(C11<>"",INDEX(Ind!$B$6:$J$105,MATCH(InputTg!B11,Ind!$B$6:$B$105,0),9),"") -> Percentage | E11: =+IF(C11<>"",INDEX(Ind!$B$6:$L$105,MATCH(InputTg!B11,Ind!$B$6:$B$105,0),11),"") -> Month | F11: =+IF(C11<>"",INDEX(Ind!$B$6:$M$105,MATCH(InputTg!B11,Ind!$B$6:$B$105,0),12),"") -> At present | G11: =+IF(C11<>"",INDEX(Ind!$B$6:$K$105,MATCH(InputTg!B11,Ind!$B$6:$B$105,0),10),"") -> + | H11: 75 | I11: 80 | J11: 80 | K11: 80 | L11: 85 | M11: 85 | N11: 85 | O11: 90 | P11: 90 | Q11: 90 | R11: 95 | S11: 95
B12: 07 | C12: =+IF(Ind!C12<>"",INDEX(Ind!$B$6:$C$105,MATCH(InputTg!B12,Ind!$B$6:$B$105,0),2),"") -> TENER PERSONAL COMPETENTE | D12: =+IF(C12<>"",INDEX(Ind!$B$6:$J$105,MATCH(InputTg!B12,Ind!$B$6:$B$105,0),9),"") -> Percentage | E12: =+IF(C12<>"",INDEX(Ind!$B$6:$L$105,MATCH(InputTg!B12,Ind!$B$6:$B$105,0),11),"") -> Month | F12: =+IF(C12<>"",INDEX(Ind!$B$6:$M$105,MATCH(InputTg!B12,Ind!$B$6:$B$105,0),12),"") -> At present | G12: =+IF(C12<>"",INDEX(Ind!$B$6:$K$105,MATCH(InputTg!B12,Ind!$B$6:$B$105,0),10),"") -> - | H12: 60 | I12: 55 | J12: 50 | K12: 45 | L12: 40 | M12: 35 | N12: 37 | O12: 30 | P12: 25 | Q12: 20 | R12: 15 | S12: 10
B13: 08 | C13: =+IF(Ind!C13<>"",INDEX(Ind!$B$6:$C$105,MATCH(InputTg!B13,Ind!$B$6:$B$105,0),2),"") -> CONSOLIDAR EFECTIVIDAD ERP | D13: =+IF(C13<>"",INDEX(Ind!$B$6:$J$105,MATCH(InputTg!B13,Ind!$B$6:$B$105,0),9),"") -> Percentage | E13: =+IF(C13<>"",INDEX(Ind!$B$6:$L$105,MATCH(InputTg!B13,Ind!$B$6:$B$105,0),11),"") -> Month | F13: =+IF(C13<>"",INDEX(Ind!$B$6:$M$105,MATCH(InputTg!B13,Ind!$B$6:$B$105,0),12),"") -> At present | G13: =+IF(C13<>"",INDEX(Ind!$B$6:$K$105,MATCH(InputTg!B13,Ind!$B$6:$B$105,0),10),"") -> + | H13: 25 | I13: 25 | J13: 30 | K13: 30 | L13: 35 | M13: 35 | N13: 40 | O13: 40 | P13: 40 | Q13: 40 | R13: 45 | S13: 45
B14: 09 | C14: =+IF(Ind!C14<>"",INDEX(Ind!$B$6:$C$105,MATCH(InputTg!B14,Ind!$B$6:$B$105,0),2),"") ->  | D14: =+IF(C14<>"",INDEX(Ind!$B$6:$J$105,MATCH(InputTg!B14,Ind!$B$6:$B$105,0),9),"") ->  | E14: =+IF(C14<>"",INDEX(Ind!$B$6:$L$105,MATCH(InputTg!B14,Ind!$B$6:$B$105,0),11),"") ->  | F14: =+IF(C14<>"",INDEX(Ind!$B$6:$M$105,MATCH(InputTg!B14,Ind!$B$6:$B$105,0),12),"") ->  | G14: =+IF(C14<>"",INDEX(Ind!$B$6:$K$105,MATCH(InputTg!B14,Ind!$B$6:$B$105,0),10),"") -> 
B15: 10 | C15: =+IF(Ind!C15<>"",INDEX(Ind!$B$6:$C$105,MATCH(InputTg!B15,Ind!$B$6:$B$105,0),2),"") ->  | D15: =+IF(C15<>"",INDEX(Ind!$B$6:$J$105,MATCH(InputTg!B15,Ind!$B$6:$B$105,0),9),"") ->  | E15: =+IF(C15<>"",INDEX(Ind!$B$6:$L$105,MATCH(InputTg!B15,Ind!$B$6:$B$105,0),11),"") ->  | F15: =+IF(C15<>"",INDEX(Ind!$B$6:$M$105,MATCH(InputTg!B15,Ind!$B$6:$B$105,0),12),"") ->  | G15: =+IF(C15<>"",INDEX(Ind!$B$6:$K$105,MATCH(InputTg!B15,Ind!$B$6:$B$105,0),10),"") -> 
B16: 11 | C16: =+IF(Ind!C16<>"",INDEX(Ind!$B$6:$C$105,MATCH(InputTg!B16,Ind!$B$6:$B$105,0),2),"") ->  | D16: =+IF(C16<>"",INDEX(Ind!$B$6:$J$105,MATCH(InputTg!B16,Ind!$B$6:$B$105,0),9),"") ->  | E16: =+IF(C16<>"",INDEX(Ind!$B$6:$L$105,MATCH(InputTg!B16,Ind!$B$6:$B$105,0),11),"") ->  | F16: =+IF(C16<>"",INDEX(Ind!$B$6:$M$105,MATCH(InputTg!B16,Ind!$B$6:$B$105,0),12),"") ->  | G16: =+IF(C16<>"",INDEX(Ind!$B$6:$K$105,MATCH(InputTg!B16,Ind!$B$6:$B$105,0),10),"") -> 
B17: 12 | C17: =+IF(Ind!C17<>"",INDEX(Ind!$B$6:$C$105,MATCH(InputTg!B17,Ind!$B$6:$B$105,0),2),"") ->  | D17: =+IF(C17<>"",INDEX(Ind!$B$6:$J$105,MATCH(InputTg!B17,Ind!$B$6:$B$105,0),9),"") ->  | E17: =+IF(C17<>"",INDEX(Ind!$B$6:$L$105,MATCH(InputTg!B17,Ind!$B$6:$B$105,0),11),"") ->  | F17: =+IF(C17<>"",INDEX(Ind!$B$6:$M$105,MATCH(InputTg!B17,Ind!$B$6:$B$105,0),12),"") ->  | G17: =+IF(C17<>"",INDEX(Ind!$B$6:$K$105,MATCH(InputTg!B17,Ind!$B$6:$B$105,0),10),"") -> 
B18: 13 | C18: =+IF(Ind!C18<>"",INDEX(Ind!$B$6:$C$105,MATCH(InputTg!B18,Ind!$B$6:$B$105,0),2),"") ->  | D18: =+IF(C18<>"",INDEX(Ind!$B$6:$J$105,MATCH(InputTg!B18,Ind!$B$6:$B$105,0),9),"") ->  | E18: =+IF(C18<>"",INDEX(Ind!$B$6:$L$105,MATCH(InputTg!B18,Ind!$B$6:$B$105,0),11),"") ->  | F18: =+IF(C18<>"",INDEX(Ind!$B$6:$M$105,MATCH(InputTg!B18,Ind!$B$6:$B$105,0),12),"") ->  | G18: =+IF(C18<>"",INDEX(Ind!$B$6:$K$105,MATCH(InputTg!B18,Ind!$B$6:$B$105,0),10),"") -> 
B19: 14 | C19: =+IF(Ind!C19<>"",INDEX(Ind!$B$6:$C$105,MATCH(InputTg!B19,Ind!$B$6:$B$105,0),2),"") ->  | D19: =+IF(C19<>"",INDEX(Ind!$B$6:$J$105,MATCH(InputTg!B19,Ind!$B$6:$B$105,0),9),"") ->  | E19: =+IF(C19<>"",INDEX(Ind!$B$6:$L$105,MATCH(InputTg!B19,Ind!$B$6:$B$105,0),11),"") ->  | F19: =+IF(C19<>"",INDEX(Ind!$B$6:$M$105,MATCH(InputTg!B19,Ind!$B$6:$B$105,0),12),"") ->  | G19: =+IF(C19<>"",INDEX(Ind!$B$6:$K$105,MATCH(InputTg!B19,Ind!$B$6:$B$105,0),10),"") -> 
B20: 15 | C20: =+IF(Ind!C20<>"",INDEX(Ind!$B$6:$C$105,MATCH(InputTg!B20,Ind!$B$6:$B$105,0),2),"") ->  | D20: =+IF(C20<>"",INDEX(Ind!$B$6:$J$105,MATCH(InputTg!B20,Ind!$B$6:$B$105,0),9),"") ->  | E20: =+IF(C20<>"",INDEX(Ind!$B$6:$L$105,MATCH(InputTg!B20,Ind!$B$6:$B$105,0),11),"") ->  | F20: =+IF(C20<>"",INDEX(Ind!$B$6:$M$105,MATCH(InputTg!B20,Ind!$B$6:$B$105,0),12),"") ->  | G20: =+IF(C20<>"",INDEX(Ind!$B$6:$K$105,MATCH(InputTg!B20,Ind!$B$6:$B$105,0),10),"") -> 
B21: 16 | C21: =+IF(Ind!C21<>"",INDEX(Ind!$B$6:$C$105,MATCH(InputTg!B21,Ind!$B$6:$B$105,0),2),"") ->  | D21: =+IF(C21<>"",INDEX(Ind!$B$6:$J$105,MATCH(InputTg!B21,Ind!$B$6:$B$105,0),9),"") ->  | E21: =+IF(C21<>"",INDEX(Ind!$B$6:$L$105,MATCH(InputTg!B21,Ind!$B$6:$B$105,0),11),"") ->  | F21: =+IF(C21<>"",INDEX(Ind!$B$6:$M$105,MATCH(InputTg!B21,Ind!$B$6:$B$105,0),12),"") ->  | G21: =+IF(C21<>"",INDEX(Ind!$B$6:$K$105,MATCH(InputTg!B21,Ind!$B$6:$B$105,0),10),"") -> 
B22: 17 | C22: =+IF(Ind!C22<>"",INDEX(Ind!$B$6:$C$105,MATCH(InputTg!B22,Ind!$B$6:$B$105,0),2),"") ->  | D22: =+IF(C22<>"",INDEX(Ind!$B$6:$J$105,MATCH(InputTg!B22,Ind!$B$6:$B$105,0),9),"") ->  | E22: =+IF(C22<>"",INDEX(Ind!$B$6:$L$105,MATCH(InputTg!B22,Ind!$B$6:$B$105,0),11),"") ->  | F22: =+IF(C22<>"",INDEX(Ind!$B$6:$M$105,MATCH(InputTg!B22,Ind!$B$6:$B$105,0),12),"") ->  | G22: =+IF(C22<>"",INDEX(Ind!$B$6:$K$105,MATCH(InputTg!B22,Ind!$B$6:$B$105,0),10),"") -> 
B23: 18 | C23: =+IF(Ind!C23<>"",INDEX(Ind!$B$6:$C$105,MATCH(InputTg!B23,Ind!$B$6:$B$105,0),2),"") ->  | D23: =+IF(C23<>"",INDEX(Ind!$B$6:$J$105,MATCH(InputTg!B23,Ind!$B$6:$B$105,0),9),"") ->  | E23: =+IF(C23<>"",INDEX(Ind!$B$6:$L$105,MATCH(InputTg!B23,Ind!$B$6:$B$105,0),11),"") ->  | F23: =+IF(C23<>"",INDEX(Ind!$B$6:$M$105,MATCH(InputTg!B23,Ind!$B$6:$B$105,0),12),"") ->  | G23: =+IF(C23<>"",INDEX(Ind!$B$6:$K$105,MATCH(InputTg!B23,Ind!$B$6:$B$105,0),10),"") -> 
B24: 19 | C24: =+IF(Ind!C24<>"",INDEX(Ind!$B$6:$C$105,MATCH(InputTg!B24,Ind!$B$6:$B$105,0),2),"") ->  | D24: =+IF(C24<>"",INDEX(Ind!$B$6:$J$105,MATCH(InputTg!B24,Ind!$B$6:$B$105,0),9),"") ->  | E24: =+IF(C24<>"",INDEX(Ind!$B$6:$L$105,MATCH(InputTg!B24,Ind!$B$6:$B$105,0),11),"") ->  | F24: =+IF(C24<>"",INDEX(Ind!$B$6:$M$105,MATCH(InputTg!B24,Ind!$B$6:$B$105,0),12),"") ->  | G24: =+IF(C24<>"",INDEX(Ind!$B$6:$K$105,MATCH(InputTg!B24,Ind!$B$6:$B$105,0),10),"") -> 
B25: 20 | C25: =+IF(Ind!C25<>"",INDEX(Ind!$B$6:$C$105,MATCH(InputTg!B25,Ind!$B$6:$B$105,0),2),"") ->  | D25: =+IF(C25<>"",INDEX(Ind!$B$6:$J$105,MATCH(InputTg!B25,Ind!$B$6:$B$105,0),9),"") ->  | E25: =+IF(C25<>"",INDEX(Ind!$B$6:$L$105,MATCH(InputTg!B25,Ind!$B$6:$B$105,0),11),"") ->  | F25: =+IF(C25<>"",INDEX(Ind!$B$6:$M$105,MATCH(InputTg!B25,Ind!$B$6:$B$105,0),12),"") ->  | G25: =+IF(C25<>"",INDEX(Ind!$B$6:$K$105,MATCH(InputTg!B25,Ind!$B$6:$B$105,0),10),"") -> 
B26: 21 | C26: =+IF(Ind!C26<>"",INDEX(Ind!$B$6:$C$105,MATCH(InputTg!B26,Ind!$B$6:$B$105,0),2),"") ->  | D26: =+IF(C26<>"",INDEX(Ind!$B$6:$J$105,MATCH(InputTg!B26,Ind!$B$6:$B$105,0),9),"") ->  | E26: =+IF(C26<>"",INDEX(Ind!$B$6:$L$105,MATCH(InputTg!B26,Ind!$B$6:$B$105,0),11),"") ->  | F26: =+IF(C26<>"",INDEX(Ind!$B$6:$M$105,MATCH(InputTg!B26,Ind!$B$6:$B$105,0),12),"") ->  | G26: =+IF(C26<>"",INDEX(Ind!$B$6:$K$105,MATCH(InputTg!B26,Ind!$B$6:$B$105,0),10),"") -> 
B27: 22 | C27: =+IF(Ind!C27<>"",INDEX(Ind!$B$6:$C$105,MATCH(InputTg!B27,Ind!$B$6:$B$105,0),2),"") ->  | D27: =+IF(C27<>"",INDEX(Ind!$B$6:$J$105,MATCH(InputTg!B27,Ind!$B$6:$B$105,0),9),"") ->  | E27: =+IF(C27<>"",INDEX(Ind!$B$6:$L$105,MATCH(InputTg!B27,Ind!$B$6:$B$105,0),11),"") ->  | F27: =+IF(C27<>"",INDEX(Ind!$B$6:$M$105,MATCH(InputTg!B27,Ind!$B$6:$B$105,0),12),"") ->  | G27: =+IF(C27<>"",INDEX(Ind!$B$6:$K$105,MATCH(InputTg!B27,Ind!$B$6:$B$105,0),10),"") -> 
B28: 23 | C28: =+IF(Ind!C28<>"",INDEX(Ind!$B$6:$C$105,MATCH(InputTg!B28,Ind!$B$6:$B$105,0),2),"") ->  | D28: =+IF(C28<>"",INDEX(Ind!$B$6:$J$105,MATCH(InputTg!B28,Ind!$B$6:$B$105,0),9),"") ->  | E28: =+IF(C28<>"",INDEX(Ind!$B$6:$L$105,MATCH(InputTg!B28,Ind!$B$6:$B$105,0),11),"") ->  | F28: =+IF(C28<>"",INDEX(Ind!$B$6:$M$105,MATCH(InputTg!B28,Ind!$B$6:$B$105,0),12),"") ->  | G28: =+IF(C28<>"",INDEX(Ind!$B$6:$K$105,MATCH(InputTg!B28,Ind!$B$6:$B$105,0),10),"") -> 
B29: 24 | C29: =+IF(Ind!C29<>"",INDEX(Ind!$B$6:$C$105,MATCH(InputTg!B29,Ind!$B$6:$B$105,0),2),"") ->  | D29: =+IF(C29<>"",INDEX(Ind!$B$6:$J$105,MATCH(InputTg!B29,Ind!$B$6:$B$105,0),9),"") ->  | E29: =+IF(C29<>"",INDEX(Ind!$B$6:$L$105,MATCH(InputTg!B29,Ind!$B$6:$B$105,0),11),"") ->  | F29: =+IF(C29<>"",INDEX(Ind!$B$6:$M$105,MATCH(InputTg!B29,Ind!$B$6:$B$105,0),12),"") ->  | G29: =+IF(C29<>"",INDEX(Ind!$B$6:$K$105,MATCH(InputTg!B29,Ind!$B$6:$B$105,0),10),"") -> 
B30: 25 | C30: =+IF(Ind!C30<>"",INDEX(Ind!$B$6:$C$105,MATCH(InputTg!B30,Ind!$B$6:$B$105,0),2),"") ->  | D30: =+IF(C30<>"",INDEX(Ind!$B$6:$J$105,MATCH(InputTg!B30,Ind!$B$6:$B$105,0),9),"") ->  | E30: =+IF(C30<>"",INDEX(Ind!$B$6:$L$105,MATCH(InputTg!B30,Ind!$B$6:$B$105,0),11),"") ->  | F30: =+IF(C30<>"",INDEX(Ind!$B$6:$M$105,MATCH(InputTg!B30,Ind!$B$6:$B$105,0),12),"") ->  | G30: =+IF(C30<>"",INDEX(Ind!$B$6:$K$105,MATCH(InputTg!B30,Ind!$B$6:$B$105,0),10),"") -> 
B31: 26 | C31: =+IF(Ind!C31<>"",INDEX(Ind!$B$6:$C$105,MATCH(InputTg!B31,Ind!$B$6:$B$105,0),2),"") ->  | D31: =+IF(C31<>"",INDEX(Ind!$B$6:$J$105,MATCH(InputTg!B31,Ind!$B$6:$B$105,0),9),"") ->  | E31: =+IF(C31<>"",INDEX(Ind!$B$6:$L$105,MATCH(InputTg!B31,Ind!$B$6:$B$105,0),11),"") ->  | F31: =+IF(C31<>"",INDEX(Ind!$B$6:$M$105,MATCH(InputTg!B31,Ind!$B$6:$B$105,0),12),"") ->  | G31: =+IF(C31<>"",INDEX(Ind!$B$6:$K$105,MATCH(InputTg!B31,Ind!$B$6:$B$105,0),10),"") -> 
B32: 27 | C32: =+IF(Ind!C32<>"",INDEX(Ind!$B$6:$C$105,MATCH(InputTg!B32,Ind!$B$6:$B$105,0),2),"") ->  | D32: =+IF(C32<>"",INDEX(Ind!$B$6:$J$105,MATCH(InputTg!B32,Ind!$B$6:$B$105,0),9),"") ->  | E32: =+IF(C32<>"",INDEX(Ind!$B$6:$L$105,MATCH(InputTg!B32,Ind!$B$6:$B$105,0),11),"") ->  | F32: =+IF(C32<>"",INDEX(Ind!$B$6:$M$105,MATCH(InputTg!B32,Ind!$B$6:$B$105,0),12),"") ->  | G32: =+IF(C32<>"",INDEX(Ind!$B$6:$K$105,MATCH(InputTg!B32,Ind!$B$6:$B$105,0),10),"") -> 
B33: 28 | C33: =+IF(Ind!C33<>"",INDEX(Ind!$B$6:$C$105,MATCH(InputTg!B33,Ind!$B$6:$B$105,0),2),"") ->  | D33: =+IF(C33<>"",INDEX(Ind!$B$6:$J$105,MATCH(InputTg!B33,Ind!$B$6:$B$105,0),9),"") ->  | E33: =+IF(C33<>"",INDEX(Ind!$B$6:$L$105,MATCH(InputTg!B33,Ind!$B$6:$B$105,0),11),"") ->  | F33: =+IF(C33<>"",INDEX(Ind!$B$6:$M$105,MATCH(InputTg!B33,Ind!$B$6:$B$105,0),12),"") ->  | G33: =+IF(C33<>"",INDEX(Ind!$B$6:$K$105,MATCH(InputTg!B33,Ind!$B$6:$B$105,0),10),"") -> 
B34: 29 | C34: =+IF(Ind!C34<>"",INDEX(Ind!$B$6:$C$105,MATCH(InputTg!B34,Ind!$B$6:$B$105,0),2),"") ->  | D34: =+IF(C34<>"",INDEX(Ind!$B$6:$J$105,MATCH(InputTg!B34,Ind!$B$6:$B$105,0),9),"") ->  | E34: =+IF(C34<>"",INDEX(Ind!$B$6:$L$105,MATCH(InputTg!B34,Ind!$B$6:$B$105,0),11),"") ->  | F34: =+IF(C34<>"",INDEX(Ind!$B$6:$M$105,MATCH(InputTg!B34,Ind!$B$6:$B$105,0),12),"") ->  | G34: =+IF(C34<>"",INDEX(Ind!$B$6:$K$105,MATCH(InputTg!B34,Ind!$B$6:$B$105,0),10),"") -> 
B35: 30 | C35: =+IF(Ind!C35<>"",INDEX(Ind!$B$6:$C$105,MATCH(InputTg!B35,Ind!$B$6:$B$105,0),2),"") ->  | D35: =+IF(C35<>"",INDEX(Ind!$B$6:$J$105,MATCH(InputTg!B35,Ind!$B$6:$B$105,0),9),"") ->  | E35: =+IF(C35<>"",INDEX(Ind!$B$6:$L$105,MATCH(InputTg!B35,Ind!$B$6:$B$105,0),11),"") ->  | F35: =+IF(C35<>"",INDEX(Ind!$B$6:$M$105,MATCH(InputTg!B35,Ind!$B$6:$B$105,0),12),"") ->  | G35: =+IF(C35<>"",INDEX(Ind!$B$6:$K$105,MATCH(InputTg!B35,Ind!$B$6:$B$105,0),10),"") -> 
B36: 31 | C36: =+IF(Ind!C36<>"",INDEX(Ind!$B$6:$C$105,MATCH(InputTg!B36,Ind!$B$6:$B$105,0),2),"") ->  | D36: =+IF(C36<>"",INDEX(Ind!$B$6:$J$105,MATCH(InputTg!B36,Ind!$B$6:$B$105,0),9),"") ->  | E36: =+IF(C36<>"",INDEX(Ind!$B$6:$L$105,MATCH(InputTg!B36,Ind!$B$6:$B$105,0),11),"") ->  | F36: =+IF(C36<>"",INDEX(Ind!$B$6:$M$105,MATCH(InputTg!B36,Ind!$B$6:$B$105,0),12),"") ->  | G36: =+IF(C36<>"",INDEX(Ind!$B$6:$K$105,MATCH(InputTg!B36,Ind!$B$6:$B$105,0),10),"") -> 
B37: 32 | C37: =+IF(Ind!C37<>"",INDEX(Ind!$B$6:$C$105,MATCH(InputTg!B37,Ind!$B$6:$B$105,0),2),"") ->  | D37: =+IF(C37<>"",INDEX(Ind!$B$6:$J$105,MATCH(InputTg!B37,Ind!$B$6:$B$105,0),9),"") ->  | E37: =+IF(C37<>"",INDEX(Ind!$B$6:$L$105,MATCH(InputTg!B37,Ind!$B$6:$B$105,0),11),"") ->  | F37: =+IF(C37<>"",INDEX(Ind!$B$6:$M$105,MATCH(InputTg!B37,Ind!$B$6:$B$105,0),12),"") ->  | G37: =+IF(C37<>"",INDEX(Ind!$B$6:$K$105,MATCH(InputTg!B37,Ind!$B$6:$B$105,0),10),"") -> 
B38: 33 | C38: =+IF(Ind!C38<>"",INDEX(Ind!$B$6:$C$105,MATCH(InputTg!B38,Ind!$B$6:$B$105,0),2),"") ->  | D38: =+IF(C38<>"",INDEX(Ind!$B$6:$J$105,MATCH(InputTg!B38,Ind!$B$6:$B$105,0),9),"") ->  | E38: =+IF(C38<>"",INDEX(Ind!$B$6:$L$105,MATCH(InputTg!B38,Ind!$B$6:$B$105,0),11),"") ->  | F38: =+IF(C38<>"",INDEX(Ind!$B$6:$M$105,MATCH(InputTg!B38,Ind!$B$6:$B$105,0),12),"") ->  | G38: =+IF(C38<>"",INDEX(Ind!$B$6:$K$105,MATCH(InputTg!B38,Ind!$B$6:$B$105,0),10),"") -> 
B39: 34 | C39: =+IF(Ind!C39<>"",INDEX(Ind!$B$6:$C$105,MATCH(InputTg!B39,Ind!$B$6:$B$105,0),2),"") ->  | D39: =+IF(C39<>"",INDEX(Ind!$B$6:$J$105,MATCH(InputTg!B39,Ind!$B$6:$B$105,0),9),"") ->  | E39: =+IF(C39<>"",INDEX(Ind!$B$6:$L$105,MATCH(InputTg!B39,Ind!$B$6:$B$105,0),11),"") ->  | F39: =+IF(C39<>"",INDEX(Ind!$B$6:$M$105,MATCH(InputTg!B39,Ind!$B$6:$B$105,0),12),"") ->  | G39: =+IF(C39<>"",INDEX(Ind!$B$6:$K$105,MATCH(InputTg!B39,Ind!$B$6:$B$105,0),10),"") -> 
B40: 35 | C40: =+IF(Ind!C40<>"",INDEX(Ind!$B$6:$C$105,MATCH(InputTg!B40,Ind!$B$6:$B$105,0),2),"") ->  | D40: =+IF(C40<>"",INDEX(Ind!$B$6:$J$105,MATCH(InputTg!B40,Ind!$B$6:$B$105,0),9),"") ->  | E40: =+IF(C40<>"",INDEX(Ind!$B$6:$L$105,MATCH(InputTg!B40,Ind!$B$6:$B$105,0),11),"") ->  | F40: =+IF(C40<>"",INDEX(Ind!$B$6:$M$105,MATCH(InputTg!B40,Ind!$B$6:$B$105,0),12),"") ->  | G40: =+IF(C40<>"",INDEX(Ind!$B$6:$K$105,MATCH(InputTg!B40,Ind!$B$6:$B$105,0),10),"") -> 
B41: 36 | C41: =+IF(Ind!C41<>"",INDEX(Ind!$B$6:$C$105,MATCH(InputTg!B41,Ind!$B$6:$B$105,0),2),"") ->  | D41: =+IF(C41<>"",INDEX(Ind!$B$6:$J$105,MATCH(InputTg!B41,Ind!$B$6:$B$105,0),9),"") ->  | E41: =+IF(C41<>"",INDEX(Ind!$B$6:$L$105,MATCH(InputTg!B41,Ind!$B$6:$B$105,0),11),"") ->  | F41: =+IF(C41<>"",INDEX(Ind!$B$6:$M$105,MATCH(InputTg!B41,Ind!$B$6:$B$105,0),12),"") ->  | G41: =+IF(C41<>"",INDEX(Ind!$B$6:$K$105,MATCH(InputTg!B41,Ind!$B$6:$B$105,0),10),"") -> 
B42: 37 | C42: =+IF(Ind!C42<>"",INDEX(Ind!$B$6:$C$105,MATCH(InputTg!B42,Ind!$B$6:$B$105,0),2),"") ->  | D42: =+IF(C42<>"",INDEX(Ind!$B$6:$J$105,MATCH(InputTg!B42,Ind!$B$6:$B$105,0),9),"") ->  | E42: =+IF(C42<>"",INDEX(Ind!$B$6:$L$105,MATCH(InputTg!B42,Ind!$B$6:$B$105,0),11),"") ->  | F42: =+IF(C42<>"",INDEX(Ind!$B$6:$M$105,MATCH(InputTg!B42,Ind!$B$6:$B$105,0),12),"") ->  | G42: =+IF(C42<>"",INDEX(Ind!$B$6:$K$105,MATCH(InputTg!B42,Ind!$B$6:$B$105,0),10),"") -> 
B43: 38 | C43: =+IF(Ind!C43<>"",INDEX(Ind!$B$6:$C$105,MATCH(InputTg!B43,Ind!$B$6:$B$105,0),2),"") ->  | D43: =+IF(C43<>"",INDEX(Ind!$B$6:$J$105,MATCH(InputTg!B43,Ind!$B$6:$B$105,0),9),"") ->  | E43: =+IF(C43<>"",INDEX(Ind!$B$6:$L$105,MATCH(InputTg!B43,Ind!$B$6:$B$105,0),11),"") ->  | F43: =+IF(C43<>"",INDEX(Ind!$B$6:$M$105,MATCH(InputTg!B43,Ind!$B$6:$B$105,0),12),"") ->  | G43: =+IF(C43<>"",INDEX(Ind!$B$6:$K$105,MATCH(InputTg!B43,Ind!$B$6:$B$105,0),10),"") -> 
B44: 39 | C44: =+IF(Ind!C44<>"",INDEX(Ind!$B$6:$C$105,MATCH(InputTg!B44,Ind!$B$6:$B$105,0),2),"") ->  | D44: =+IF(C44<>"",INDEX(Ind!$B$6:$J$105,MATCH(InputTg!B44,Ind!$B$6:$B$105,0),9),"") ->  | E44: =+IF(C44<>"",INDEX(Ind!$B$6:$L$105,MATCH(InputTg!B44,Ind!$B$6:$B$105,0),11),"") ->  | F44: =+IF(C44<>"",INDEX(Ind!$B$6:$M$105,MATCH(InputTg!B44,Ind!$B$6:$B$105,0),12),"") ->  | G44: =+IF(C44<>"",INDEX(Ind!$B$6:$K$105,MATCH(InputTg!B44,Ind!$B$6:$B$105,0),10),"") -> 
B45: 40 | C45: =+IF(Ind!C45<>"",INDEX(Ind!$B$6:$C$105,MATCH(InputTg!B45,Ind!$B$6:$B$105,0),2),"") ->  | D45: =+IF(C45<>"",INDEX(Ind!$B$6:$J$105,MATCH(InputTg!B45,Ind!$B$6:$B$105,0),9),"") ->  | E45: =+IF(C45<>"",INDEX(Ind!$B$6:$L$105,MATCH(InputTg!B45,Ind!$B$6:$B$105,0),11),"") ->  | F45: =+IF(C45<>"",INDEX(Ind!$B$6:$M$105,MATCH(InputTg!B45,Ind!$B$6:$B$105,0),12),"") ->  | G45: =+IF(C45<>"",INDEX(Ind!$B$6:$K$105,MATCH(InputTg!B45,Ind!$B$6:$B$105,0),10),"") -> 
B46: 41 | C46: =+IF(Ind!C46<>"",INDEX(Ind!$B$6:$C$105,MATCH(InputTg!B46,Ind!$B$6:$B$105,0),2),"") ->  | D46: =+IF(C46<>"",INDEX(Ind!$B$6:$J$105,MATCH(InputTg!B46,Ind!$B$6:$B$105,0),9),"") ->  | E46: =+IF(C46<>"",INDEX(Ind!$B$6:$L$105,MATCH(InputTg!B46,Ind!$B$6:$B$105,0),11),"") ->  | F46: =+IF(C46<>"",INDEX(Ind!$B$6:$M$105,MATCH(InputTg!B46,Ind!$B$6:$B$105,0),12),"") ->  | G46: =+IF(C46<>"",INDEX(Ind!$B$6:$K$105,MATCH(InputTg!B46,Ind!$B$6:$B$105,0),10),"") -> 
B47: 42 | C47: =+IF(Ind!C47<>"",INDEX(Ind!$B$6:$C$105,MATCH(InputTg!B47,Ind!$B$6:$B$105,0),2),"") ->  | D47: =+IF(C47<>"",INDEX(Ind!$B$6:$J$105,MATCH(InputTg!B47,Ind!$B$6:$B$105,0),9),"") ->  | E47: =+IF(C47<>"",INDEX(Ind!$B$6:$L$105,MATCH(InputTg!B47,Ind!$B$6:$B$105,0),11),"") ->  | F47: =+IF(C47<>"",INDEX(Ind!$B$6:$M$105,MATCH(InputTg!B47,Ind!$B$6:$B$105,0),12),"") ->  | G47: =+IF(C47<>"",INDEX(Ind!$B$6:$K$105,MATCH(InputTg!B47,Ind!$B$6:$B$105,0),10),"") -> 
B48: 43 | C48: =+IF(Ind!C48<>"",INDEX(Ind!$B$6:$C$105,MATCH(InputTg!B48,Ind!$B$6:$B$105,0),2),"") ->  | D48: =+IF(C48<>"",INDEX(Ind!$B$6:$J$105,MATCH(InputTg!B48,Ind!$B$6:$B$105,0),9),"") ->  | E48: =+IF(C48<>"",INDEX(Ind!$B$6:$L$105,MATCH(InputTg!B48,Ind!$B$6:$B$105,0),11),"") ->  | F48: =+IF(C48<>"",INDEX(Ind!$B$6:$M$105,MATCH(InputTg!B48,Ind!$B$6:$B$105,0),12),"") ->  | G48: =+IF(C48<>"",INDEX(Ind!$B$6:$K$105,MATCH(InputTg!B48,Ind!$B$6:$B$105,0),10),"") -> 
B49: 44 | C49: =+IF(Ind!C49<>"",INDEX(Ind!$B$6:$C$105,MATCH(InputTg!B49,Ind!$B$6:$B$105,0),2),"") ->  | D49: =+IF(C49<>"",INDEX(Ind!$B$6:$J$105,MATCH(InputTg!B49,Ind!$B$6:$B$105,0),9),"") ->  | E49: =+IF(C49<>"",INDEX(Ind!$B$6:$L$105,MATCH(InputTg!B49,Ind!$B$6:$B$105,0),11),"") ->  | F49: =+IF(C49<>"",INDEX(Ind!$B$6:$M$105,MATCH(InputTg!B49,Ind!$B$6:$B$105,0),12),"") ->  | G49: =+IF(C49<>"",INDEX(Ind!$B$6:$K$105,MATCH(InputTg!B49,Ind!$B$6:$B$105,0),10),"") -> 
B50: 45 | C50: =+IF(Ind!C50<>"",INDEX(Ind!$B$6:$C$105,MATCH(InputTg!B50,Ind!$B$6:$B$105,0),2),"") ->  | D50: =+IF(C50<>"",INDEX(Ind!$B$6:$J$105,MATCH(InputTg!B50,Ind!$B$6:$B$105,0),9),"") ->  | E50: =+IF(C50<>"",INDEX(Ind!$B$6:$L$105,MATCH(InputTg!B50,Ind!$B$6:$B$105,0),11),"") ->  | F50: =+IF(C50<>"",INDEX(Ind!$B$6:$M$105,MATCH(InputTg!B50,Ind!$B$6:$B$105,0),12),"") ->  | G50: =+IF(C50<>"",INDEX(Ind!$B$6:$K$105,MATCH(InputTg!B50,Ind!$B$6:$B$105,0),10),"") -> 
B51: 46 | C51: =+IF(Ind!C51<>"",INDEX(Ind!$B$6:$C$105,MATCH(InputTg!B51,Ind!$B$6:$B$105,0),2),"") ->  | D51: =+IF(C51<>"",INDEX(Ind!$B$6:$J$105,MATCH(InputTg!B51,Ind!$B$6:$B$105,0),9),"") ->  | E51: =+IF(C51<>"",INDEX(Ind!$B$6:$L$105,MATCH(InputTg!B51,Ind!$B$6:$B$105,0),11),"") ->  | F51: =+IF(C51<>"",INDEX(Ind!$B$6:$M$105,MATCH(InputTg!B51,Ind!$B$6:$B$105,0),12),"") ->  | G51: =+IF(C51<>"",INDEX(Ind!$B$6:$K$105,MATCH(InputTg!B51,Ind!$B$6:$B$105,0),10),"") -> 
B52: 47 | C52: =+IF(Ind!C52<>"",INDEX(Ind!$B$6:$C$105,MATCH(InputTg!B52,Ind!$B$6:$B$105,0),2),"") ->  | D52: =+IF(C52<>"",INDEX(Ind!$B$6:$J$105,MATCH(InputTg!B52,Ind!$B$6:$B$105,0),9),"") ->  | E52: =+IF(C52<>"",INDEX(Ind!$B$6:$L$105,MATCH(InputTg!B52,Ind!$B$6:$B$105,0),11),"") ->  | F52: =+IF(C52<>"",INDEX(Ind!$B$6:$M$105,MATCH(InputTg!B52,Ind!$B$6:$B$105,0),12),"") ->  | G52: =+IF(C52<>"",INDEX(Ind!$B$6:$K$105,MATCH(InputTg!B52,Ind!$B$6:$B$105,0),10),"") -> 
B53: 48 | C53: =+IF(Ind!C53<>"",INDEX(Ind!$B$6:$C$105,MATCH(InputTg!B53,Ind!$B$6:$B$105,0),2),"") ->  | D53: =+IF(C53<>"",INDEX(Ind!$B$6:$J$105,MATCH(InputTg!B53,Ind!$B$6:$B$105,0),9),"") ->  | E53: =+IF(C53<>"",INDEX(Ind!$B$6:$L$105,MATCH(InputTg!B53,Ind!$B$6:$B$105,0),11),"") ->  | F53: =+IF(C53<>"",INDEX(Ind!$B$6:$M$105,MATCH(InputTg!B53,Ind!$B$6:$B$105,0),12),"") ->  | G53: =+IF(C53<>"",INDEX(Ind!$B$6:$K$105,MATCH(InputTg!B53,Ind!$B$6:$B$105,0),10),"") -> 
B54: 49 | C54: =+IF(Ind!C54<>"",INDEX(Ind!$B$6:$C$105,MATCH(InputTg!B54,Ind!$B$6:$B$105,0),2),"") ->  | D54: =+IF(C54<>"",INDEX(Ind!$B$6:$J$105,MATCH(InputTg!B54,Ind!$B$6:$B$105,0),9),"") ->  | E54: =+IF(C54<>"",INDEX(Ind!$B$6:$L$105,MATCH(InputTg!B54,Ind!$B$6:$B$105,0),11),"") ->  | F54: =+IF(C54<>"",INDEX(Ind!$B$6:$M$105,MATCH(InputTg!B54,Ind!$B$6:$B$105,0),12),"") ->  | G54: =+IF(C54<>"",INDEX(Ind!$B$6:$K$105,MATCH(InputTg!B54,Ind!$B$6:$B$105,0),10),"") -> 
B55: 50 | C55: =+IF(Ind!C55<>"",INDEX(Ind!$B$6:$C$105,MATCH(InputTg!B55,Ind!$B$6:$B$105,0),2),"") ->  | D55: =+IF(C55<>"",INDEX(Ind!$B$6:$J$105,MATCH(InputTg!B55,Ind!$B$6:$B$105,0),9),"") ->  | E55: =+IF(C55<>"",INDEX(Ind!$B$6:$L$105,MATCH(InputTg!B55,Ind!$B$6:$B$105,0),11),"") ->  | F55: =+IF(C55<>"",INDEX(Ind!$B$6:$M$105,MATCH(InputTg!B55,Ind!$B$6:$B$105,0),12),"") ->  | G55: =+IF(C55<>"",INDEX(Ind!$B$6:$K$105,MATCH(InputTg!B55,Ind!$B$6:$B$105,0),10),"") -> 
B56: 51 | C56: =+IF(Ind!C56<>"",INDEX(Ind!$B$6:$C$105,MATCH(InputTg!B56,Ind!$B$6:$B$105,0),2),"") ->  | D56: =+IF(C56<>"",INDEX(Ind!$B$6:$J$105,MATCH(InputTg!B56,Ind!$B$6:$B$105,0),9),"") ->  | E56: =+IF(C56<>"",INDEX(Ind!$B$6:$L$105,MATCH(InputTg!B56,Ind!$B$6:$B$105,0),11),"") ->  | F56: =+IF(C56<>"",INDEX(Ind!$B$6:$M$105,MATCH(InputTg!B56,Ind!$B$6:$B$105,0),12),"") ->  | G56: =+IF(C56<>"",INDEX(Ind!$B$6:$K$105,MATCH(InputTg!B56,Ind!$B$6:$B$105,0),10),"") -> 
B57: 52 | C57: =+IF(Ind!C57<>"",INDEX(Ind!$B$6:$C$105,MATCH(InputTg!B57,Ind!$B$6:$B$105,0),2),"") ->  | D57: =+IF(C57<>"",INDEX(Ind!$B$6:$J$105,MATCH(InputTg!B57,Ind!$B$6:$B$105,0),9),"") ->  | E57: =+IF(C57<>"",INDEX(Ind!$B$6:$L$105,MATCH(InputTg!B57,Ind!$B$6:$B$105,0),11),"") ->  | F57: =+IF(C57<>"",INDEX(Ind!$B$6:$M$105,MATCH(InputTg!B57,Ind!$B$6:$B$105,0),12),"") ->  | G57: =+IF(C57<>"",INDEX(Ind!$B$6:$K$105,MATCH(InputTg!B57,Ind!$B$6:$B$105,0),10),"") -> 
B58: 53 | C58: =+IF(Ind!C58<>"",INDEX(Ind!$B$6:$C$105,MATCH(InputTg!B58,Ind!$B$6:$B$105,0),2),"") ->  | D58: =+IF(C58<>"",INDEX(Ind!$B$6:$J$105,MATCH(InputTg!B58,Ind!$B$6:$B$105,0),9),"") ->  | E58: =+IF(C58<>"",INDEX(Ind!$B$6:$L$105,MATCH(InputTg!B58,Ind!$B$6:$B$105,0),11),"") ->  | F58: =+IF(C58<>"",INDEX(Ind!$B$6:$M$105,MATCH(InputTg!B58,Ind!$B$6:$B$105,0),12),"") ->  | G58: =+IF(C58<>"",INDEX(Ind!$B$6:$K$105,MATCH(InputTg!B58,Ind!$B$6:$B$105,0),10),"") -> 
B59: 54 | C59: =+IF(Ind!C59<>"",INDEX(Ind!$B$6:$C$105,MATCH(InputTg!B59,Ind!$B$6:$B$105,0),2),"") ->  | D59: =+IF(C59<>"",INDEX(Ind!$B$6:$J$105,MATCH(InputTg!B59,Ind!$B$6:$B$105,0),9),"") ->  | E59: =+IF(C59<>"",INDEX(Ind!$B$6:$L$105,MATCH(InputTg!B59,Ind!$B$6:$B$105,0),11),"") ->  | F59: =+IF(C59<>"",INDEX(Ind!$B$6:$M$105,MATCH(InputTg!B59,Ind!$B$6:$B$105,0),12),"") ->  | G59: =+IF(C59<>"",INDEX(Ind!$B$6:$K$105,MATCH(InputTg!B59,Ind!$B$6:$B$105,0),10),"") -> 
B60: 55 | C60: =+IF(Ind!C60<>"",INDEX(Ind!$B$6:$C$105,MATCH(InputTg!B60,Ind!$B$6:$B$105,0),2),"") ->  | D60: =+IF(C60<>"",INDEX(Ind!$B$6:$J$105,MATCH(InputTg!B60,Ind!$B$6:$B$105,0),9),"") ->  | E60: =+IF(C60<>"",INDEX(Ind!$B$6:$L$105,MATCH(InputTg!B60,Ind!$B$6:$B$105,0),11),"") ->  | F60: =+IF(C60<>"",INDEX(Ind!$B$6:$M$105,MATCH(InputTg!B60,Ind!$B$6:$B$105,0),12),"") ->  | G60: =+IF(C60<>"",INDEX(Ind!$B$6:$K$105,MATCH(InputTg!B60,Ind!$B$6:$B$105,0),10),"") -> 
B61: 56 | C61: =+IF(Ind!C61<>"",INDEX(Ind!$B$6:$C$105,MATCH(InputTg!B61,Ind!$B$6:$B$105,0),2),"") ->  | D61: =+IF(C61<>"",INDEX(Ind!$B$6:$J$105,MATCH(InputTg!B61,Ind!$B$6:$B$105,0),9),"") ->  | E61: =+IF(C61<>"",INDEX(Ind!$B$6:$L$105,MATCH(InputTg!B61,Ind!$B$6:$B$105,0),11),"") ->  | F61: =+IF(C61<>"",INDEX(Ind!$B$6:$M$105,MATCH(InputTg!B61,Ind!$B$6:$B$105,0),12),"") ->  | G61: =+IF(C61<>"",INDEX(Ind!$B$6:$K$105,MATCH(InputTg!B61,Ind!$B$6:$B$105,0),10),"") -> 
B62: 57 | C62: =+IF(Ind!C62<>"",INDEX(Ind!$B$6:$C$105,MATCH(InputTg!B62,Ind!$B$6:$B$105,0),2),"") ->  | D62: =+IF(C62<>"",INDEX(Ind!$B$6:$J$105,MATCH(InputTg!B62,Ind!$B$6:$B$105,0),9),"") ->  | E62: =+IF(C62<>"",INDEX(Ind!$B$6:$L$105,MATCH(InputTg!B62,Ind!$B$6:$B$105,0),11),"") ->  | F62: =+IF(C62<>"",INDEX(Ind!$B$6:$M$105,MATCH(InputTg!B62,Ind!$B$6:$B$105,0),12),"") ->  | G62: =+IF(C62<>"",INDEX(Ind!$B$6:$K$105,MATCH(InputTg!B62,Ind!$B$6:$B$105,0),10),"") -> 
B63: 58 | C63: =+IF(Ind!C63<>"",INDEX(Ind!$B$6:$C$105,MATCH(InputTg!B63,Ind!$B$6:$B$105,0),2),"") ->  | D63: =+IF(C63<>"",INDEX(Ind!$B$6:$J$105,MATCH(InputTg!B63,Ind!$B$6:$B$105,0),9),"") ->  | E63: =+IF(C63<>"",INDEX(Ind!$B$6:$L$105,MATCH(InputTg!B63,Ind!$B$6:$B$105,0),11),"") ->  | F63: =+IF(C63<>"",INDEX(Ind!$B$6:$M$105,MATCH(InputTg!B63,Ind!$B$6:$B$105,0),12),"") ->  | G63: =+IF(C63<>"",INDEX(Ind!$B$6:$K$105,MATCH(InputTg!B63,Ind!$B$6:$B$105,0),10),"") -> 
B64: 59 | C64: =+IF(Ind!C64<>"",INDEX(Ind!$B$6:$C$105,MATCH(InputTg!B64,Ind!$B$6:$B$105,0),2),"") ->  | D64: =+IF(C64<>"",INDEX(Ind!$B$6:$J$105,MATCH(InputTg!B64,Ind!$B$6:$B$105,0),9),"") ->  | E64: =+IF(C64<>"",INDEX(Ind!$B$6:$L$105,MATCH(InputTg!B64,Ind!$B$6:$B$105,0),11),"") ->  | F64: =+IF(C64<>"",INDEX(Ind!$B$6:$M$105,MATCH(InputTg!B64,Ind!$B$6:$B$105,0),12),"") ->  | G64: =+IF(C64<>"",INDEX(Ind!$B$6:$K$105,MATCH(InputTg!B64,Ind!$B$6:$B$105,0),10),"") -> 
B65: 60 | C65: =+IF(Ind!C65<>"",INDEX(Ind!$B$6:$C$105,MATCH(InputTg!B65,Ind!$B$6:$B$105,0),2),"") ->  | D65: =+IF(C65<>"",INDEX(Ind!$B$6:$J$105,MATCH(InputTg!B65,Ind!$B$6:$B$105,0),9),"") ->  | E65: =+IF(C65<>"",INDEX(Ind!$B$6:$L$105,MATCH(InputTg!B65,Ind!$B$6:$B$105,0),11),"") ->  | F65: =+IF(C65<>"",INDEX(Ind!$B$6:$M$105,MATCH(InputTg!B65,Ind!$B$6:$B$105,0),12),"") ->  | G65: =+IF(C65<>"",INDEX(Ind!$B$6:$K$105,MATCH(InputTg!B65,Ind!$B$6:$B$105,0),10),"") -> 
B66: 61 | C66: =+IF(Ind!C66<>"",INDEX(Ind!$B$6:$C$105,MATCH(InputTg!B66,Ind!$B$6:$B$105,0),2),"") ->  | D66: =+IF(C66<>"",INDEX(Ind!$B$6:$J$105,MATCH(InputTg!B66,Ind!$B$6:$B$105,0),9),"") ->  | E66: =+IF(C66<>"",INDEX(Ind!$B$6:$L$105,MATCH(InputTg!B66,Ind!$B$6:$B$105,0),11),"") ->  | F66: =+IF(C66<>"",INDEX(Ind!$B$6:$M$105,MATCH(InputTg!B66,Ind!$B$6:$B$105,0),12),"") ->  | G66: =+IF(C66<>"",INDEX(Ind!$B$6:$K$105,MATCH(InputTg!B66,Ind!$B$6:$B$105,0),10),"") -> 
B67: 62 | C67: =+IF(Ind!C67<>"",INDEX(Ind!$B$6:$C$105,MATCH(InputTg!B67,Ind!$B$6:$B$105,0),2),"") ->  | D67: =+IF(C67<>"",INDEX(Ind!$B$6:$J$105,MATCH(InputTg!B67,Ind!$B$6:$B$105,0),9),"") ->  | E67: =+IF(C67<>"",INDEX(Ind!$B$6:$L$105,MATCH(InputTg!B67,Ind!$B$6:$B$105,0),11),"") ->  | F67: =+IF(C67<>"",INDEX(Ind!$B$6:$M$105,MATCH(InputTg!B67,Ind!$B$6:$B$105,0),12),"") ->  | G67: =+IF(C67<>"",INDEX(Ind!$B$6:$K$105,MATCH(InputTg!B67,Ind!$B$6:$B$105,0),10),"") -> 
B68: 63 | C68: =+IF(Ind!C68<>"",INDEX(Ind!$B$6:$C$105,MATCH(InputTg!B68,Ind!$B$6:$B$105,0),2),"") ->  | D68: =+IF(C68<>"",INDEX(Ind!$B$6:$J$105,MATCH(InputTg!B68,Ind!$B$6:$B$105,0),9),"") ->  | E68: =+IF(C68<>"",INDEX(Ind!$B$6:$L$105,MATCH(InputTg!B68,Ind!$B$6:$B$105,0),11),"") ->  | F68: =+IF(C68<>"",INDEX(Ind!$B$6:$M$105,MATCH(InputTg!B68,Ind!$B$6:$B$105,0),12),"") ->  | G68: =+IF(C68<>"",INDEX(Ind!$B$6:$K$105,MATCH(InputTg!B68,Ind!$B$6:$B$105,0),10),"") -> 
B69: 64 | C69: =+IF(Ind!C69<>"",INDEX(Ind!$B$6:$C$105,MATCH(InputTg!B69,Ind!$B$6:$B$105,0),2),"") ->  | D69: =+IF(C69<>"",INDEX(Ind!$B$6:$J$105,MATCH(InputTg!B69,Ind!$B$6:$B$105,0),9),"") ->  | E69: =+IF(C69<>"",INDEX(Ind!$B$6:$L$105,MATCH(InputTg!B69,Ind!$B$6:$B$105,0),11),"") ->  | F69: =+IF(C69<>"",INDEX(Ind!$B$6:$M$105,MATCH(InputTg!B69,Ind!$B$6:$B$105,0),12),"") ->  | G69: =+IF(C69<>"",INDEX(Ind!$B$6:$K$105,MATCH(InputTg!B69,Ind!$B$6:$B$105,0),10),"") -> 
B70: 65 | C70: =+IF(Ind!C70<>"",INDEX(Ind!$B$6:$C$105,MATCH(InputTg!B70,Ind!$B$6:$B$105,0),2),"") ->  | D70: =+IF(C70<>"",INDEX(Ind!$B$6:$J$105,MATCH(InputTg!B70,Ind!$B$6:$B$105,0),9),"") ->  | E70: =+IF(C70<>"",INDEX(Ind!$B$6:$L$105,MATCH(InputTg!B70,Ind!$B$6:$B$105,0),11),"") ->  | F70: =+IF(C70<>"",INDEX(Ind!$B$6:$M$105,MATCH(InputTg!B70,Ind!$B$6:$B$105,0),12),"") ->  | G70: =+IF(C70<>"",INDEX(Ind!$B$6:$K$105,MATCH(InputTg!B70,Ind!$B$6:$B$105,0),10),"") -> 
B71: 66 | C71: =+IF(Ind!C71<>"",INDEX(Ind!$B$6:$C$105,MATCH(InputTg!B71,Ind!$B$6:$B$105,0),2),"") ->  | D71: =+IF(C71<>"",INDEX(Ind!$B$6:$J$105,MATCH(InputTg!B71,Ind!$B$6:$B$105,0),9),"") ->  | E71: =+IF(C71<>"",INDEX(Ind!$B$6:$L$105,MATCH(InputTg!B71,Ind!$B$6:$B$105,0),11),"") ->  | F71: =+IF(C71<>"",INDEX(Ind!$B$6:$M$105,MATCH(InputTg!B71,Ind!$B$6:$B$105,0),12),"") ->  | G71: =+IF(C71<>"",INDEX(Ind!$B$6:$K$105,MATCH(InputTg!B71,Ind!$B$6:$B$105,0),10),"") -> 
B72: 67 | C72: =+IF(Ind!C72<>"",INDEX(Ind!$B$6:$C$105,MATCH(InputTg!B72,Ind!$B$6:$B$105,0),2),"") ->  | D72: =+IF(C72<>"",INDEX(Ind!$B$6:$J$105,MATCH(InputTg!B72,Ind!$B$6:$B$105,0),9),"") ->  | E72: =+IF(C72<>"",INDEX(Ind!$B$6:$L$105,MATCH(InputTg!B72,Ind!$B$6:$B$105,0),11),"") ->  | F72: =+IF(C72<>"",INDEX(Ind!$B$6:$M$105,MATCH(InputTg!B72,Ind!$B$6:$B$105,0),12),"") ->  | G72: =+IF(C72<>"",INDEX(Ind!$B$6:$K$105,MATCH(InputTg!B72,Ind!$B$6:$B$105,0),10),"") -> 
B73: 68 | C73: =+IF(Ind!C73<>"",INDEX(Ind!$B$6:$C$105,MATCH(InputTg!B73,Ind!$B$6:$B$105,0),2),"") ->  | D73: =+IF(C73<>"",INDEX(Ind!$B$6:$J$105,MATCH(InputTg!B73,Ind!$B$6:$B$105,0),9),"") ->  | E73: =+IF(C73<>"",INDEX(Ind!$B$6:$L$105,MATCH(InputTg!B73,Ind!$B$6:$B$105,0),11),"") ->  | F73: =+IF(C73<>"",INDEX(Ind!$B$6:$M$105,MATCH(InputTg!B73,Ind!$B$6:$B$105,0),12),"") ->  | G73: =+IF(C73<>"",INDEX(Ind!$B$6:$K$105,MATCH(InputTg!B73,Ind!$B$6:$B$105,0),10),"") -> 
B74: 69 | C74: =+IF(Ind!C74<>"",INDEX(Ind!$B$6:$C$105,MATCH(InputTg!B74,Ind!$B$6:$B$105,0),2),"") ->  | D74: =+IF(C74<>"",INDEX(Ind!$B$6:$J$105,MATCH(InputTg!B74,Ind!$B$6:$B$105,0),9),"") ->  | E74: =+IF(C74<>"",INDEX(Ind!$B$6:$L$105,MATCH(InputTg!B74,Ind!$B$6:$B$105,0),11),"") ->  | F74: =+IF(C74<>"",INDEX(Ind!$B$6:$M$105,MATCH(InputTg!B74,Ind!$B$6:$B$105,0),12),"") ->  | G74: =+IF(C74<>"",INDEX(Ind!$B$6:$K$105,MATCH(InputTg!B74,Ind!$B$6:$B$105,0),10),"") -> 
B75: 70 | C75: =+IF(Ind!C75<>"",INDEX(Ind!$B$6:$C$105,MATCH(InputTg!B75,Ind!$B$6:$B$105,0),2),"") ->  | D75: =+IF(C75<>"",INDEX(Ind!$B$6:$J$105,MATCH(InputTg!B75,Ind!$B$6:$B$105,0),9),"") ->  | E75: =+IF(C75<>"",INDEX(Ind!$B$6:$L$105,MATCH(InputTg!B75,Ind!$B$6:$B$105,0),11),"") ->  | F75: =+IF(C75<>"",INDEX(Ind!$B$6:$M$105,MATCH(InputTg!B75,Ind!$B$6:$B$105,0),12),"") ->  | G75: =+IF(C75<>"",INDEX(Ind!$B$6:$K$105,MATCH(InputTg!B75,Ind!$B$6:$B$105,0),10),"") -> 
B76: 71 | C76: =+IF(Ind!C76<>"",INDEX(Ind!$B$6:$C$105,MATCH(InputTg!B76,Ind!$B$6:$B$105,0),2),"") ->  | D76: =+IF(C76<>"",INDEX(Ind!$B$6:$J$105,MATCH(InputTg!B76,Ind!$B$6:$B$105,0),9),"") ->  | E76: =+IF(C76<>"",INDEX(Ind!$B$6:$L$105,MATCH(InputTg!B76,Ind!$B$6:$B$105,0),11),"") ->  | F76: =+IF(C76<>"",INDEX(Ind!$B$6:$M$105,MATCH(InputTg!B76,Ind!$B$6:$B$105,0),12),"") ->  | G76: =+IF(C76<>"",INDEX(Ind!$B$6:$K$105,MATCH(InputTg!B76,Ind!$B$6:$B$105,0),10),"") -> 
B77: 72 | C77: =+IF(Ind!C77<>"",INDEX(Ind!$B$6:$C$105,MATCH(InputTg!B77,Ind!$B$6:$B$105,0),2),"") ->  | D77: =+IF(C77<>"",INDEX(Ind!$B$6:$J$105,MATCH(InputTg!B77,Ind!$B$6:$B$105,0),9),"") ->  | E77: =+IF(C77<>"",INDEX(Ind!$B$6:$L$105,MATCH(InputTg!B77,Ind!$B$6:$B$105,0),11),"") ->  | F77: =+IF(C77<>"",INDEX(Ind!$B$6:$M$105,MATCH(InputTg!B77,Ind!$B$6:$B$105,0),12),"") ->  | G77: =+IF(C77<>"",INDEX(Ind!$B$6:$K$105,MATCH(InputTg!B77,Ind!$B$6:$B$105,0),10),"") -> 
B78: 73 | C78: =+IF(Ind!C78<>"",INDEX(Ind!$B$6:$C$105,MATCH(InputTg!B78,Ind!$B$6:$B$105,0),2),"") ->  | D78: =+IF(C78<>"",INDEX(Ind!$B$6:$J$105,MATCH(InputTg!B78,Ind!$B$6:$B$105,0),9),"") ->  | E78: =+IF(C78<>"",INDEX(Ind!$B$6:$L$105,MATCH(InputTg!B78,Ind!$B$6:$B$105,0),11),"") ->  | F78: =+IF(C78<>"",INDEX(Ind!$B$6:$M$105,MATCH(InputTg!B78,Ind!$B$6:$B$105,0),12),"") ->  | G78: =+IF(C78<>"",INDEX(Ind!$B$6:$K$105,MATCH(InputTg!B78,Ind!$B$6:$B$105,0),10),"") -> 
B79: 74 | C79: =+IF(Ind!C79<>"",INDEX(Ind!$B$6:$C$105,MATCH(InputTg!B79,Ind!$B$6:$B$105,0),2),"") ->  | D79: =+IF(C79<>"",INDEX(Ind!$B$6:$J$105,MATCH(InputTg!B79,Ind!$B$6:$B$105,0),9),"") ->  | E79: =+IF(C79<>"",INDEX(Ind!$B$6:$L$105,MATCH(InputTg!B79,Ind!$B$6:$B$105,0),11),"") ->  | F79: =+IF(C79<>"",INDEX(Ind!$B$6:$M$105,MATCH(InputTg!B79,Ind!$B$6:$B$105,0),12),"") ->  | G79: =+IF(C79<>"",INDEX(Ind!$B$6:$K$105,MATCH(InputTg!B79,Ind!$B$6:$B$105,0),10),"") -> 
B80: 75 | C80: =+IF(Ind!C80<>"",INDEX(Ind!$B$6:$C$105,MATCH(InputTg!B80,Ind!$B$6:$B$105,0),2),"") ->  | D80: =+IF(C80<>"",INDEX(Ind!$B$6:$J$105,MATCH(InputTg!B80,Ind!$B$6:$B$105,0),9),"") ->  | E80: =+IF(C80<>"",INDEX(Ind!$B$6:$L$105,MATCH(InputTg!B80,Ind!$B$6:$B$105,0),11),"") ->  | F80: =+IF(C80<>"",INDEX(Ind!$B$6:$M$105,MATCH(InputTg!B80,Ind!$B$6:$B$105,0),12),"") ->  | G80: =+IF(C80<>"",INDEX(Ind!$B$6:$K$105,MATCH(InputTg!B80,Ind!$B$6:$B$105,0),10),"") -> 
B81: 76 | C81: =+IF(Ind!C81<>"",INDEX(Ind!$B$6:$C$105,MATCH(InputTg!B81,Ind!$B$6:$B$105,0),2),"") ->  | D81: =+IF(C81<>"",INDEX(Ind!$B$6:$J$105,MATCH(InputTg!B81,Ind!$B$6:$B$105,0),9),"") ->  | E81: =+IF(C81<>"",INDEX(Ind!$B$6:$L$105,MATCH(InputTg!B81,Ind!$B$6:$B$105,0),11),"") ->  | F81: =+IF(C81<>"",INDEX(Ind!$B$6:$M$105,MATCH(InputTg!B81,Ind!$B$6:$B$105,0),12),"") ->  | G81: =+IF(C81<>"",INDEX(Ind!$B$6:$K$105,MATCH(InputTg!B81,Ind!$B$6:$B$105,0),10),"") -> 
B82: 77 | C82: =+IF(Ind!C82<>"",INDEX(Ind!$B$6:$C$105,MATCH(InputTg!B82,Ind!$B$6:$B$105,0),2),"") ->  | D82: =+IF(C82<>"",INDEX(Ind!$B$6:$J$105,MATCH(InputTg!B82,Ind!$B$6:$B$105,0),9),"") ->  | E82: =+IF(C82<>"",INDEX(Ind!$B$6:$L$105,MATCH(InputTg!B82,Ind!$B$6:$B$105,0),11),"") ->  | F82: =+IF(C82<>"",INDEX(Ind!$B$6:$M$105,MATCH(InputTg!B82,Ind!$B$6:$B$105,0),12),"") ->  | G82: =+IF(C82<>"",INDEX(Ind!$B$6:$K$105,MATCH(InputTg!B82,Ind!$B$6:$B$105,0),10),"") -> 
B83: 78 | C83: =+IF(Ind!C83<>"",INDEX(Ind!$B$6:$C$105,MATCH(InputTg!B83,Ind!$B$6:$B$105,0),2),"") ->  | D83: =+IF(C83<>"",INDEX(Ind!$B$6:$J$105,MATCH(InputTg!B83,Ind!$B$6:$B$105,0),9),"") ->  | E83: =+IF(C83<>"",INDEX(Ind!$B$6:$L$105,MATCH(InputTg!B83,Ind!$B$6:$B$105,0),11),"") ->  | F83: =+IF(C83<>"",INDEX(Ind!$B$6:$M$105,MATCH(InputTg!B83,Ind!$B$6:$B$105,0),12),"") ->  | G83: =+IF(C83<>"",INDEX(Ind!$B$6:$K$105,MATCH(InputTg!B83,Ind!$B$6:$B$105,0),10),"") -> 
B84: 79 | C84: =+IF(Ind!C84<>"",INDEX(Ind!$B$6:$C$105,MATCH(InputTg!B84,Ind!$B$6:$B$105,0),2),"") ->  | D84: =+IF(C84<>"",INDEX(Ind!$B$6:$J$105,MATCH(InputTg!B84,Ind!$B$6:$B$105,0),9),"") ->  | E84: =+IF(C84<>"",INDEX(Ind!$B$6:$L$105,MATCH(InputTg!B84,Ind!$B$6:$B$105,0),11),"") ->  | F84: =+IF(C84<>"",INDEX(Ind!$B$6:$M$105,MATCH(InputTg!B84,Ind!$B$6:$B$105,0),12),"") ->  | G84: =+IF(C84<>"",INDEX(Ind!$B$6:$K$105,MATCH(InputTg!B84,Ind!$B$6:$B$105,0),10),"") -> 
B85: 80 | C85: =+IF(Ind!C85<>"",INDEX(Ind!$B$6:$C$105,MATCH(InputTg!B85,Ind!$B$6:$B$105,0),2),"") ->  | D85: =+IF(C85<>"",INDEX(Ind!$B$6:$J$105,MATCH(InputTg!B85,Ind!$B$6:$B$105,0),9),"") ->  | E85: =+IF(C85<>"",INDEX(Ind!$B$6:$L$105,MATCH(InputTg!B85,Ind!$B$6:$B$105,0),11),"") ->  | F85: =+IF(C85<>"",INDEX(Ind!$B$6:$M$105,MATCH(InputTg!B85,Ind!$B$6:$B$105,0),12),"") ->  | G85: =+IF(C85<>"",INDEX(Ind!$B$6:$K$105,MATCH(InputTg!B85,Ind!$B$6:$B$105,0),10),"") -> 
B86: 81 | C86: =+IF(Ind!C86<>"",INDEX(Ind!$B$6:$C$105,MATCH(InputTg!B86,Ind!$B$6:$B$105,0),2),"") ->  | D86: =+IF(C86<>"",INDEX(Ind!$B$6:$J$105,MATCH(InputTg!B86,Ind!$B$6:$B$105,0),9),"") ->  | E86: =+IF(C86<>"",INDEX(Ind!$B$6:$L$105,MATCH(InputTg!B86,Ind!$B$6:$B$105,0),11),"") ->  | F86: =+IF(C86<>"",INDEX(Ind!$B$6:$M$105,MATCH(InputTg!B86,Ind!$B$6:$B$105,0),12),"") ->  | G86: =+IF(C86<>"",INDEX(Ind!$B$6:$K$105,MATCH(InputTg!B86,Ind!$B$6:$B$105,0),10),"") -> 
B87: 82 | C87: =+IF(Ind!C87<>"",INDEX(Ind!$B$6:$C$105,MATCH(InputTg!B87,Ind!$B$6:$B$105,0),2),"") ->  | D87: =+IF(C87<>"",INDEX(Ind!$B$6:$J$105,MATCH(InputTg!B87,Ind!$B$6:$B$105,0),9),"") ->  | E87: =+IF(C87<>"",INDEX(Ind!$B$6:$L$105,MATCH(InputTg!B87,Ind!$B$6:$B$105,0),11),"") ->  | F87: =+IF(C87<>"",INDEX(Ind!$B$6:$M$105,MATCH(InputTg!B87,Ind!$B$6:$B$105,0),12),"") ->  | G87: =+IF(C87<>"",INDEX(Ind!$B$6:$K$105,MATCH(InputTg!B87,Ind!$B$6:$B$105,0),10),"") -> 
B88: 83 | C88: =+IF(Ind!C88<>"",INDEX(Ind!$B$6:$C$105,MATCH(InputTg!B88,Ind!$B$6:$B$105,0),2),"") ->  | D88: =+IF(C88<>"",INDEX(Ind!$B$6:$J$105,MATCH(InputTg!B88,Ind!$B$6:$B$105,0),9),"") ->  | E88: =+IF(C88<>"",INDEX(Ind!$B$6:$L$105,MATCH(InputTg!B88,Ind!$B$6:$B$105,0),11),"") ->  | F88: =+IF(C88<>"",INDEX(Ind!$B$6:$M$105,MATCH(InputTg!B88,Ind!$B$6:$B$105,0),12),"") ->  | G88: =+IF(C88<>"",INDEX(Ind!$B$6:$K$105,MATCH(InputTg!B88,Ind!$B$6:$B$105,0),10),"") -> 
B89: 84 | C89: =+IF(Ind!C89<>"",INDEX(Ind!$B$6:$C$105,MATCH(InputTg!B89,Ind!$B$6:$B$105,0),2),"") ->  | D89: =+IF(C89<>"",INDEX(Ind!$B$6:$J$105,MATCH(InputTg!B89,Ind!$B$6:$B$105,0),9),"") ->  | E89: =+IF(C89<>"",INDEX(Ind!$B$6:$L$105,MATCH(InputTg!B89,Ind!$B$6:$B$105,0),11),"") ->  | F89: =+IF(C89<>"",INDEX(Ind!$B$6:$M$105,MATCH(InputTg!B89,Ind!$B$6:$B$105,0),12),"") ->  | G89: =+IF(C89<>"",INDEX(Ind!$B$6:$K$105,MATCH(InputTg!B89,Ind!$B$6:$B$105,0),10),"") -> 
B90: 85 | C90: =+IF(Ind!C90<>"",INDEX(Ind!$B$6:$C$105,MATCH(InputTg!B90,Ind!$B$6:$B$105,0),2),"") ->  | D90: =+IF(C90<>"",INDEX(Ind!$B$6:$J$105,MATCH(InputTg!B90,Ind!$B$6:$B$105,0),9),"") ->  | E90: =+IF(C90<>"",INDEX(Ind!$B$6:$L$105,MATCH(InputTg!B90,Ind!$B$6:$B$105,0),11),"") ->  | F90: =+IF(C90<>"",INDEX(Ind!$B$6:$M$105,MATCH(InputTg!B90,Ind!$B$6:$B$105,0),12),"") ->  | G90: =+IF(C90<>"",INDEX(Ind!$B$6:$K$105,MATCH(InputTg!B90,Ind!$B$6:$B$105,0),10),"") -> 
B91: 86 | C91: =+IF(Ind!C91<>"",INDEX(Ind!$B$6:$C$105,MATCH(InputTg!B91,Ind!$B$6:$B$105,0),2),"") ->  | D91: =+IF(C91<>"",INDEX(Ind!$B$6:$J$105,MATCH(InputTg!B91,Ind!$B$6:$B$105,0),9),"") ->  | E91: =+IF(C91<>"",INDEX(Ind!$B$6:$L$105,MATCH(InputTg!B91,Ind!$B$6:$B$105,0),11),"") ->  | F91: =+IF(C91<>"",INDEX(Ind!$B$6:$M$105,MATCH(InputTg!B91,Ind!$B$6:$B$105,0),12),"") ->  | G91: =+IF(C91<>"",INDEX(Ind!$B$6:$K$105,MATCH(InputTg!B91,Ind!$B$6:$B$105,0),10),"") -> 
B92: 87 | C92: =+IF(Ind!C92<>"",INDEX(Ind!$B$6:$C$105,MATCH(InputTg!B92,Ind!$B$6:$B$105,0),2),"") ->  | D92: =+IF(C92<>"",INDEX(Ind!$B$6:$J$105,MATCH(InputTg!B92,Ind!$B$6:$B$105,0),9),"") ->  | E92: =+IF(C92<>"",INDEX(Ind!$B$6:$L$105,MATCH(InputTg!B92,Ind!$B$6:$B$105,0),11),"") ->  | F92: =+IF(C92<>"",INDEX(Ind!$B$6:$M$105,MATCH(InputTg!B92,Ind!$B$6:$B$105,0),12),"") ->  | G92: =+IF(C92<>"",INDEX(Ind!$B$6:$K$105,MATCH(InputTg!B92,Ind!$B$6:$B$105,0),10),"") -> 
B93: 88 | C93: =+IF(Ind!C93<>"",INDEX(Ind!$B$6:$C$105,MATCH(InputTg!B93,Ind!$B$6:$B$105,0),2),"") ->  | D93: =+IF(C93<>"",INDEX(Ind!$B$6:$J$105,MATCH(InputTg!B93,Ind!$B$6:$B$105,0),9),"") ->  | E93: =+IF(C93<>"",INDEX(Ind!$B$6:$L$105,MATCH(InputTg!B93,Ind!$B$6:$B$105,0),11),"") ->  | F93: =+IF(C93<>"",INDEX(Ind!$B$6:$M$105,MATCH(InputTg!B93,Ind!$B$6:$B$105,0),12),"") ->  | G93: =+IF(C93<>"",INDEX(Ind!$B$6:$K$105,MATCH(InputTg!B93,Ind!$B$6:$B$105,0),10),"") -> 
B94: 89 | C94: =+IF(Ind!C94<>"",INDEX(Ind!$B$6:$C$105,MATCH(InputTg!B94,Ind!$B$6:$B$105,0),2),"") ->  | D94: =+IF(C94<>"",INDEX(Ind!$B$6:$J$105,MATCH(InputTg!B94,Ind!$B$6:$B$105,0),9),"") ->  | E94: =+IF(C94<>"",INDEX(Ind!$B$6:$L$105,MATCH(InputTg!B94,Ind!$B$6:$B$105,0),11),"") ->  | F94: =+IF(C94<>"",INDEX(Ind!$B$6:$M$105,MATCH(InputTg!B94,Ind!$B$6:$B$105,0),12),"") ->  | G94: =+IF(C94<>"",INDEX(Ind!$B$6:$K$105,MATCH(InputTg!B94,Ind!$B$6:$B$105,0),10),"") -> 
B95: 90 | C95: =+IF(Ind!C95<>"",INDEX(Ind!$B$6:$C$105,MATCH(InputTg!B95,Ind!$B$6:$B$105,0),2),"") ->  | D95: =+IF(C95<>"",INDEX(Ind!$B$6:$J$105,MATCH(InputTg!B95,Ind!$B$6:$B$105,0),9),"") ->  | E95: =+IF(C95<>"",INDEX(Ind!$B$6:$L$105,MATCH(InputTg!B95,Ind!$B$6:$B$105,0),11),"") ->  | F95: =+IF(C95<>"",INDEX(Ind!$B$6:$M$105,MATCH(InputTg!B95,Ind!$B$6:$B$105,0),12),"") ->  | G95: =+IF(C95<>"",INDEX(Ind!$B$6:$K$105,MATCH(InputTg!B95,Ind!$B$6:$B$105,0),10),"") -> 
B96: 91 | C96: =+IF(Ind!C96<>"",INDEX(Ind!$B$6:$C$105,MATCH(InputTg!B96,Ind!$B$6:$B$105,0),2),"") ->  | D96: =+IF(C96<>"",INDEX(Ind!$B$6:$J$105,MATCH(InputTg!B96,Ind!$B$6:$B$105,0),9),"") ->  | E96: =+IF(C96<>"",INDEX(Ind!$B$6:$L$105,MATCH(InputTg!B96,Ind!$B$6:$B$105,0),11),"") ->  | F96: =+IF(C96<>"",INDEX(Ind!$B$6:$M$105,MATCH(InputTg!B96,Ind!$B$6:$B$105,0),12),"") ->  | G96: =+IF(C96<>"",INDEX(Ind!$B$6:$K$105,MATCH(InputTg!B96,Ind!$B$6:$B$105,0),10),"") -> 
B97: 92 | C97: =+IF(Ind!C97<>"",INDEX(Ind!$B$6:$C$105,MATCH(InputTg!B97,Ind!$B$6:$B$105,0),2),"") ->  | D97: =+IF(C97<>"",INDEX(Ind!$B$6:$J$105,MATCH(InputTg!B97,Ind!$B$6:$B$105,0),9),"") ->  | E97: =+IF(C97<>"",INDEX(Ind!$B$6:$L$105,MATCH(InputTg!B97,Ind!$B$6:$B$105,0),11),"") ->  | F97: =+IF(C97<>"",INDEX(Ind!$B$6:$M$105,MATCH(InputTg!B97,Ind!$B$6:$B$105,0),12),"") ->  | G97: =+IF(C97<>"",INDEX(Ind!$B$6:$K$105,MATCH(InputTg!B97,Ind!$B$6:$B$105,0),10),"") -> 
B98: 93 | C98: =+IF(Ind!C98<>"",INDEX(Ind!$B$6:$C$105,MATCH(InputTg!B98,Ind!$B$6:$B$105,0),2),"") ->  | D98: =+IF(C98<>"",INDEX(Ind!$B$6:$J$105,MATCH(InputTg!B98,Ind!$B$6:$B$105,0),9),"") ->  | E98: =+IF(C98<>"",INDEX(Ind!$B$6:$L$105,MATCH(InputTg!B98,Ind!$B$6:$B$105,0),11),"") ->  | F98: =+IF(C98<>"",INDEX(Ind!$B$6:$M$105,MATCH(InputTg!B98,Ind!$B$6:$B$105,0),12),"") ->  | G98: =+IF(C98<>"",INDEX(Ind!$B$6:$K$105,MATCH(InputTg!B98,Ind!$B$6:$B$105,0),10),"") -> 
B99: 94 | C99: =+IF(Ind!C99<>"",INDEX(Ind!$B$6:$C$105,MATCH(InputTg!B99,Ind!$B$6:$B$105,0),2),"") ->  | D99: =+IF(C99<>"",INDEX(Ind!$B$6:$J$105,MATCH(InputTg!B99,Ind!$B$6:$B$105,0),9),"") ->  | E99: =+IF(C99<>"",INDEX(Ind!$B$6:$L$105,MATCH(InputTg!B99,Ind!$B$6:$B$105,0),11),"") ->  | F99: =+IF(C99<>"",INDEX(Ind!$B$6:$M$105,MATCH(InputTg!B99,Ind!$B$6:$B$105,0),12),"") ->  | G99: =+IF(C99<>"",INDEX(Ind!$B$6:$K$105,MATCH(InputTg!B99,Ind!$B$6:$B$105,0),10),"") -> 
B100: 95 | C100: =+IF(Ind!C100<>"",INDEX(Ind!$B$6:$C$105,MATCH(InputTg!B100,Ind!$B$6:$B$105,0),2),"") ->  | D100: =+IF(C100<>"",INDEX(Ind!$B$6:$J$105,MATCH(InputTg!B100,Ind!$B$6:$B$105,0),9),"") ->  | E100: =+IF(C100<>"",INDEX(Ind!$B$6:$L$105,MATCH(InputTg!B100,Ind!$B$6:$B$105,0),11),"") ->  | F100: =+IF(C100<>"",INDEX(Ind!$B$6:$M$105,MATCH(InputTg!B100,Ind!$B$6:$B$105,0),12),"") ->  | G100: =+IF(C100<>"",INDEX(Ind!$B$6:$K$105,MATCH(InputTg!B100,Ind!$B$6:$B$105,0),10),"") -> 
B101: 96 | C101: =+IF(Ind!C101<>"",INDEX(Ind!$B$6:$C$105,MATCH(InputTg!B101,Ind!$B$6:$B$105,0),2),"") ->  | D101: =+IF(C101<>"",INDEX(Ind!$B$6:$J$105,MATCH(InputTg!B101,Ind!$B$6:$B$105,0),9),"") ->  | E101: =+IF(C101<>"",INDEX(Ind!$B$6:$L$105,MATCH(InputTg!B101,Ind!$B$6:$B$105,0),11),"") ->  | F101: =+IF(C101<>"",INDEX(Ind!$B$6:$M$105,MATCH(InputTg!B101,Ind!$B$6:$B$105,0),12),"") ->  | G101: =+IF(C101<>"",INDEX(Ind!$B$6:$K$105,MATCH(InputTg!B101,Ind!$B$6:$B$105,0),10),"") -> 
B102: 97 | C102: =+IF(Ind!C102<>"",INDEX(Ind!$B$6:$C$105,MATCH(InputTg!B102,Ind!$B$6:$B$105,0),2),"") ->  | D102: =+IF(C102<>"",INDEX(Ind!$B$6:$J$105,MATCH(InputTg!B102,Ind!$B$6:$B$105,0),9),"") ->  | E102: =+IF(C102<>"",INDEX(Ind!$B$6:$L$105,MATCH(InputTg!B102,Ind!$B$6:$B$105,0),11),"") ->  | F102: =+IF(C102<>"",INDEX(Ind!$B$6:$M$105,MATCH(InputTg!B102,Ind!$B$6:$B$105,0),12),"") ->  | G102: =+IF(C102<>"",INDEX(Ind!$B$6:$K$105,MATCH(InputTg!B102,Ind!$B$6:$B$105,0),10),"") -> 
B103: 98 | C103: =+IF(Ind!C103<>"",INDEX(Ind!$B$6:$C$105,MATCH(InputTg!B103,Ind!$B$6:$B$105,0),2),"") ->  | D103: =+IF(C103<>"",INDEX(Ind!$B$6:$J$105,MATCH(InputTg!B103,Ind!$B$6:$B$105,0),9),"") ->  | E103: =+IF(C103<>"",INDEX(Ind!$B$6:$L$105,MATCH(InputTg!B103,Ind!$B$6:$B$105,0),11),"") ->  | F103: =+IF(C103<>"",INDEX(Ind!$B$6:$M$105,MATCH(InputTg!B103,Ind!$B$6:$B$105,0),12),"") ->  | G103: =+IF(C103<>"",INDEX(Ind!$B$6:$K$105,MATCH(InputTg!B103,Ind!$B$6:$B$105,0),10),"") -> 
B104: 99 | C104: =+IF(Ind!C104<>"",INDEX(Ind!$B$6:$C$105,MATCH(InputTg!B104,Ind!$B$6:$B$105,0),2),"") ->  | D104: =+IF(C104<>"",INDEX(Ind!$B$6:$J$105,MATCH(InputTg!B104,Ind!$B$6:$B$105,0),9),"") ->  | E104: =+IF(C104<>"",INDEX(Ind!$B$6:$L$105,MATCH(InputTg!B104,Ind!$B$6:$B$105,0),11),"") ->  | F104: =+IF(C104<>"",INDEX(Ind!$B$6:$M$105,MATCH(InputTg!B104,Ind!$B$6:$B$105,0),12),"") ->  | G104: =+IF(C104<>"",INDEX(Ind!$B$6:$K$105,MATCH(InputTg!B104,Ind!$B$6:$B$105,0),10),"") -> 
B105: 100 | C105: =+IF(Ind!C105<>"",INDEX(Ind!$B$6:$C$105,MATCH(InputTg!B105,Ind!$B$6:$B$105,0),2),"") ->  | D105: =+IF(C105<>"",INDEX(Ind!$B$6:$J$105,MATCH(InputTg!B105,Ind!$B$6:$B$105,0),9),"") ->  | E105: =+IF(C105<>"",INDEX(Ind!$B$6:$L$105,MATCH(InputTg!B105,Ind!$B$6:$B$105,0),11),"") ->  | F105: =+IF(C105<>"",INDEX(Ind!$B$6:$M$105,MATCH(InputTg!B105,Ind!$B$6:$B$105,0),12),"") ->  | G105: =+IF(C105<>"",INDEX(Ind!$B$6:$K$105,MATCH(InputTg!B105,Ind!$B$6:$B$105,0),10),"") -> 

Sheet Cfr_Periodi (hidden)
L1: =+T_KPI_Cfr_PD!G4 -> 2012.02 | M1: =+T_KPI_Cfr_PD!H4 -> 2012.01 | N1: =+T_KPI_Cfr_PD!L4 -> 2012.03
A2: CodInd | B2: Descrizione Indicatore | C2: KPI | D2: Perspective | E2: Category | F2: Process | G2: Formato | H2: % | I2: Band | J2: segno Pol | K2: Area Manager | L2: Precedente | M2: Actual | N2: Tgt
A3: 01 | B3: =IF(Ind!C6<>"",INDEX(Ind!$B:$O,MATCH($A3,Ind!$B:$B,0),2),"") -> LOGRAR UN INCREMENTO DEL 5% EN VENTAS | C3: =IF(B3<>"",A3&"-"&B3,"") -> 01-LOGRAR UN INCREMENTO DEL 5% EN VENTAS | D3: =IF($B3="","",IF(INDEX(Ind!$B:$O,MATCH($A3,Ind!$B:$B,0),6)<>0,INDEX(Ind!$B:$O,MATCH($A3,Ind!$B:$B,0),6),"")) -> segmento financiero | E3: =IF($B3="","",IF(INDEX(Ind!$B:$O,MATCH($A3,Ind!$B:$B,0),4)<>0,INDEX(Ind!$B:$O,MATCH($A3,Ind!$B:$B,0),4),0)) -> CONTROL PRESUPUESTAL | F3: =IF(INDEX(Ind!$B$6:$I$105,MATCH($A3,Ind!$B$6:$B$105,0),8)<>0,INDEX(Ind!$B$6:$I$105,MATCH($A3,Ind!$B$6:$B$105,0),8),"") -> COMERCIALIZACION | G3: =IF($B3<>"",INDEX(Ind!$B:$O,MATCH($A3,Ind!$B:$B,0),9),"") -> Percentage | H3: =+IF(G3="","",IF(G3="Percentuale",0,1)) -> 1 | I3: =IF($B3<>"",INDEX(Ind!$B:$O,MATCH($A3,Ind!$B:$B,0),10),"") -> + | J3: =IF(I3="","",IF(I3="+",1,-1)) -> 1 | K3: =IF(INDEX(Ind!$B$6:$O$105,MATCH($A3,Ind!$B$6:$B$105,0),14)<>0,INDEX(Ind!$B$6:$O$105,MATCH($A3,Ind!$B$6:$B$105,0),14),"") -> DIRECCIÓN DE COMERCIALIZACIÓN | L3: =+SUMIF(InputActual!$5:$5,Cfr_Periodi!$L$1,InputActual!6:6) -> 5000 | M3: =+SUMIF(InputActual!$5:$5,Cfr_Periodi!$M$1,InputActual!6:6) -> 4500 | N3: =+IF(SUMIF(InputTg!$5:$5,Cfr_Periodi!$N$1,InputTg!6:6)<>0,SUMIF(InputTg!$5:$5,Cfr_Periodi!$N$1,InputTg!6:6),"") -> 6000 | P3: 1 | R3: =INDEX(Cfr_Periodi!C3:P102,MATCH(Grafico!B3,Cfr_Periodi!C3:C102,0),14) -> 1 | S3: =INDEX($C$3:$P$102,MATCH(R3,$P$3:$P$102,0),1) -> 01-LOGRAR UN INCREMENTO DEL 5% EN VENTAS | U3: =INDEX(Cfr_Periodi!C3:P102,MATCH(SchQual!B3,Cfr_Periodi!C3:C102,0),14) ->  | V3: =INDEX($C$3:$P$102,MATCH(U3,$P$3:$P$102,0),1) -> 
A4: 02 | B4: =IF(Ind!C7<>"",INDEX(Ind!$B:$O,MATCH($A4,Ind!$B:$B,0),2),"") -> EXPADIR PUNTOS DE VENTA ZONA MARINA | C4: =IF(B4<>"",A4&"-"&B4,"") -> 02-EXPADIR PUNTOS DE VENTA ZONA MARINA | D4: =IF($B4="","",IF(INDEX(Ind!$B:$O,MATCH($A4,Ind!$B:$B,0),6)<>0,INDEX(Ind!$B:$O,MATCH($A4,Ind!$B:$B,0),6),"")) -> segmento financiero | E4: =IF($B4="","",IF(INDEX(Ind!$B:$O,MATCH($A4,Ind!$B:$B,0),4)<>0,INDEX(Ind!$B:$O,MATCH($A4,Ind!$B:$B,0),4),0)) -> INVERSIONES | F4: =IF(INDEX(Ind!$B$6:$I$105,MATCH($A4,Ind!$B$6:$B$105,0),8)<>0,INDEX(Ind!$B$6:$I$105,MATCH($A4,Ind!$B$6:$B$105,0),8),"") -> COMERCIALIZACION | G4: =IF($B4<>"",INDEX(Ind!$B:$O,MATCH($A4,Ind!$B:$B,0),9),"") -> Percentage | H4: =+IF(G4="","",IF(G4="Percentuale",0,1)) -> 1 | I4: =IF($B4<>"",INDEX(Ind!$B:$O,MATCH($A4,Ind!$B:$B,0),10),"") -> + | J4: =IF(I4="","",IF(I4="+",1,-1)) -> 1 | K4: =IF(INDEX(Ind!$B$6:$O$105,MATCH($A4,Ind!$B$6:$B$105,0),14)<>0,INDEX(Ind!$B$6:$O$105,MATCH($A4,Ind!$B$6:$B$105,0),14),"") -> DIRECCIÓN DE COMERCIALIZACIÓN | L4: =+SUMIF(InputActual!$5:$5,Cfr_Periodi!$L$1,InputActual!7:7) -> 0 | M4: =+SUMIF(InputActual!$5:$5,Cfr_Periodi!$M$1,InputActual!7:7) -> 0 | N4: =+IF(SUMIF(InputTg!$5:$5,Cfr_Periodi!$N$1,InputTg!7:7)<>0,SUMIF(InputTg!$5:$5,Cfr_Periodi!$N$1,InputTg!7:7),"") ->  | P4: 2
A5: 03 | B5: =IF(Ind!C8<>"",INDEX(Ind!$B:$O,MATCH($A5,Ind!$B:$B,0),2),"") -> INCREMENTAR EL ISC | C5: 03-INCREMENTAR EL ISC | D5: =IF($B5="","",IF(INDEX(Ind!$B:$O,MATCH($A5,Ind!$B:$B,0),6)<>0,INDEX(Ind!$B:$O,MATCH($A5,Ind!$B:$B,0),6),"")) -> CLIENTES | E5: =IF($B5="","",IF(INDEX(Ind!$B:$O,MATCH($A5,Ind!$B:$B,0),4)<>0,INDEX(Ind!$B:$O,MATCH($A5,Ind!$B:$B,0),4),0)) -> PEMEX | F5: =IF(INDEX(Ind!$B$6:$I$105,MATCH($A5,Ind!$B$6:$B$105,0),8)<>0,INDEX(Ind!$B$6:$I$105,MATCH($A5,Ind!$B$6:$B$105,0),8),"") -> CONSTRUCCION | G5: =IF($B5<>"",INDEX(Ind!$B:$O,MATCH($A5,Ind!$B:$B,0),9),"") -> Percentage | H5: 1 | I5: =IF($B5<>"",INDEX(Ind!$B:$O,MATCH($A5,Ind!$B:$B,0),10),"") -> + | J5: 1 | K5: =IF(INDEX(Ind!$B$6:$O$105,MATCH($A5,Ind!$B$6:$B$105,0),14)<>0,INDEX(Ind!$B$6:$O$105,MATCH($A5,Ind!$B$6:$B$105,0),14),"") -> DIRECCION DE PROYECTOS | L5: =+SUMIF(InputActual!$5:$5,Cfr_Periodi!$L$1,InputActual!8:8) -> 0 | M5: =+SUMIF(InputActual!$5:$5,Cfr_Periodi!$M$1,InputActual!8:8) -> 0 | N5: =+IF(SUMIF(InputTg!$5:$5,Cfr_Periodi!$N$1,InputTg!8:8)<>0,SUMIF(InputTg!$5:$5,Cfr_Periodi!$N$1,InputTg!8:8),"") -> 65 | P5: 3 | R5: =+R3+1 -> 2 | S5: =IF(R5=MAX(P3:P102),"",INDEX($C$3:$P$102,MATCH(R5,$P$3:$P$102,0),1)) -> 02-EXPADIR PUNTOS DE VENTA ZONA MARINA | U5: =+U3+1 ->  | V5: =IF(U5=MAX(P3:P102),"",INDEX($C$3:$P$102,MATCH(U5,$P$3:$P$102,0),1)) -> 
A6: 04 | B6: =IF(Ind!C9<>"",INDEX(Ind!$B:$O,MATCH($A6,Ind!$B:$B,0),2),"") -> REDUCIR QUEJAS POR FALLOS HERRAMIENTA | C6: 04-REDUCIR QUEJAS POR FALLOS HERRAMIENTA | D6: =IF($B6="","",IF(INDEX(Ind!$B:$O,MATCH($A6,Ind!$B:$B,0),6)<>0,INDEX(Ind!$B:$O,MATCH($A6,Ind!$B:$B,0),6),"")) -> CLIENTES | E6: =IF($B6="","",IF(INDEX(Ind!$B:$O,MATCH($A6,Ind!$B:$B,0),4)<>0,INDEX(Ind!$B:$O,MATCH($A6,Ind!$B:$B,0),4),0)) -> PEMEX | F6: =IF(INDEX(Ind!$B$6:$I$105,MATCH($A6,Ind!$B$6:$B$105,0),8)<>0,INDEX(Ind!$B$6:$I$105,MATCH($A6,Ind!$B$6:$B$105,0),8),"") -> MANTENIMIENTO | G6: =IF($B6<>"",INDEX(Ind!$B:$O,MATCH($A6,Ind!$B:$B,0),9),"") -> Percentage | H6: 1 | I6: =IF($B6<>"",INDEX(Ind!$B:$O,MATCH($A6,Ind!$B:$B,0),10),"") -> - | J6: -1 | K6: =IF(INDEX(Ind!$B$6:$O$105,MATCH($A6,Ind!$B$6:$B$105,0),14)<>0,INDEX(Ind!$B$6:$O$105,MATCH($A6,Ind!$B$6:$B$105,0),14),"") -> DIRECCIÓN DE ADMINISTRACIÓN | L6: =+SUMIF(InputActual!$5:$5,Cfr_Periodi!$L$1,InputActual!9:9) -> 0 | M6: =+SUMIF(InputActual!$5:$5,Cfr_Periodi!$M$1,InputActual!9:9) -> 0 | N6: =+IF(SUMIF(InputTg!$5:$5,Cfr_Periodi!$N$1,InputTg!9:9)<>0,SUMIF(InputTg!$5:$5,Cfr_Periodi!$N$1,InputTg!9:9),"") -> 20 | P6: 4 | R6: =+R3-1 -> 0 | S6: =IF(R6=0,"",INDEX($C$3:$P$102,MATCH(R6,$P$3:$P$102,0),1)) ->  | U6: =+U3-1 ->  | V6: =IF(U6=0,"",INDEX($C$3:$P$102,MATCH(U6,$P$3:$P$102,0),1)) -> 
A7: 05 | B7: =IF(Ind!C10<>"",INDEX(Ind!$B:$O,MATCH($A7,Ind!$B:$B,0),2),"") -> CUMPLIR CON ESTANDAR DE CALIBRACION | C7: 05-CUMPLIR CON ESTANDAR DE CALIBRACION | D7: =IF($B7="","",IF(INDEX(Ind!$B:$O,MATCH($A7,Ind!$B:$B,0),6)<>0,INDEX(Ind!$B:$O,MATCH($A7,Ind!$B:$B,0),6),"")) -> PROCESOS | E7: =IF($B7="","",IF(INDEX(Ind!$B:$O,MATCH($A7,Ind!$B:$B,0),4)<>0,INDEX(Ind!$B:$O,MATCH($A7,Ind!$B:$B,0),4),0)) -> SISTEMAS DE CALIDAD | F7: =IF(INDEX(Ind!$B$6:$I$105,MATCH($A7,Ind!$B$6:$B$105,0),8)<>0,INDEX(Ind!$B$6:$I$105,MATCH($A7,Ind!$B$6:$B$105,0),8),"") -> MANTENIMIENTO | G7: =IF($B7<>"",INDEX(Ind!$B:$O,MATCH($A7,Ind!$B:$B,0),9),"") -> Percentage | H7: 1 | I7: =IF($B7<>"",INDEX(Ind!$B:$O,MATCH($A7,Ind!$B:$B,0),10),"") -> + | J7: 1 | K7: =IF(INDEX(Ind!$B$6:$O$105,MATCH($A7,Ind!$B$6:$B$105,0),14)<>0,INDEX(Ind!$B$6:$O$105,MATCH($A7,Ind!$B$6:$B$105,0),14),"") -> DIRECCION DE PROYECTOS | L7: =+SUMIF(InputActual!$5:$5,Cfr_Periodi!$L$1,InputActual!10:10) -> 0 | M7: =+SUMIF(InputActual!$5:$5,Cfr_Periodi!$M$1,InputActual!10:10) -> 0 | N7: =+IF(SUMIF(InputTg!$5:$5,Cfr_Periodi!$N$1,InputTg!10:10)<>0,SUMIF(InputTg!$5:$5,Cfr_Periodi!$N$1,InputTg!10:10),"") -> 3 | P7: 5
A8: 06 | B8: =IF(Ind!C11<>"",INDEX(Ind!$B:$O,MATCH($A8,Ind!$B:$B,0),2),"") -> LOGRAR LA EFICACIA DEL SGC | C8: 06-LOGRAR LA EFICACIA DEL SGC | D8: =IF($B8="","",IF(INDEX(Ind!$B:$O,MATCH($A8,Ind!$B:$B,0),6)<>0,INDEX(Ind!$B:$O,MATCH($A8,Ind!$B:$B,0),6),"")) -> PROCESOS | E8: =IF($B8="","",IF(INDEX(Ind!$B:$O,MATCH($A8,Ind!$B:$B,0),4)<>0,INDEX(Ind!$B:$O,MATCH($A8,Ind!$B:$B,0),4),0)) -> SISTEMAS DE CALIDAD | F8: =IF(INDEX(Ind!$B$6:$I$105,MATCH($A8,Ind!$B$6:$B$105,0),8)<>0,INDEX(Ind!$B$6:$I$105,MATCH($A8,Ind!$B$6:$B$105,0),8),"") -> MANTENIMIENTO | G8: =IF($B8<>"",INDEX(Ind!$B:$O,MATCH($A8,Ind!$B:$B,0),9),"") -> Percentage | H8: 1 | I8: =IF($B8<>"",INDEX(Ind!$B:$O,MATCH($A8,Ind!$B:$B,0),10),"") -> + | J8: 1 | K8: =IF(INDEX(Ind!$B$6:$O$105,MATCH($A8,Ind!$B$6:$B$105,0),14)<>0,INDEX(Ind!$B$6:$O$105,MATCH($A8,Ind!$B$6:$B$105,0),14),"") -> DIRECCIÓN DE ADMINISTRACIÓN | L8: =+SUMIF(InputActual!$5:$5,Cfr_Periodi!$L$1,InputActual!11:11) -> 0 | M8: =+SUMIF(InputActual!$5:$5,Cfr_Periodi!$M$1,InputActual!11:11) -> 0 | N8: =+IF(SUMIF(InputTg!$5:$5,Cfr_Periodi!$N$1,InputTg!11:11)<>0,SUMIF(InputTg!$5:$5,Cfr_Periodi!$N$1,InputTg!11:11),"") -> 80 | P8: 6
A9: 07 | B9: =IF(Ind!C12<>"",INDEX(Ind!$B:$O,MATCH($A9,Ind!$B:$B,0),2),"") -> TENER PERSONAL COMPETENTE | C9: 07-TENER PERSONAL COMPETENTE | D9: =IF($B9="","",IF(INDEX(Ind!$B:$O,MATCH($A9,Ind!$B:$B,0),6)<>0,INDEX(Ind!$B:$O,MATCH($A9,Ind!$B:$B,0),6),"")) -> APRENDIZAJE Y TECNOLOGÍA | E9: =IF($B9="","",IF(INDEX(Ind!$B:$O,MATCH($A9,Ind!$B:$B,0),4)<>0,INDEX(Ind!$B:$O,MATCH($A9,Ind!$B:$B,0),4),0)) -> DESARROLLO DE COMPETENCIAS | F9: =IF(INDEX(Ind!$B$6:$I$105,MATCH($A9,Ind!$B$6:$B$105,0),8)<>0,INDEX(Ind!$B$6:$I$105,MATCH($A9,Ind!$B$6:$B$105,0),8),"") -> CONSTRUCCION | G9: =IF($B9<>"",INDEX(Ind!$B:$O,MATCH($A9,Ind!$B:$B,0),9),"") -> Percentage | H9: 1 | I9: =IF($B9<>"",INDEX(Ind!$B:$O,MATCH($A9,Ind!$B:$B,0),10),"") -> - | J9: -1 | K9: =IF(INDEX(Ind!$B$6:$O$105,MATCH($A9,Ind!$B$6:$B$105,0),14)<>0,INDEX(Ind!$B$6:$O$105,MATCH($A9,Ind!$B$6:$B$105,0),14),"") -> DIRECCIÓN DE ADMINISTRACIÓN | L9: =+SUMIF(InputActual!$5:$5,Cfr_Periodi!$L$1,InputActual!12:12) -> 0 | M9: =+SUMIF(InputActual!$5:$5,Cfr_Periodi!$M$1,InputActual!12:12) -> 0 | N9: =+IF(SUMIF(InputTg!$5:$5,Cfr_Periodi!$N$1,InputTg!12:12)<>0,SUMIF(InputTg!$5:$5,Cfr_Periodi!$N$1,InputTg!12:12),"") -> 50 | P9: 7
A10: 08 | B10: =IF(Ind!C13<>"",INDEX(Ind!$B:$O,MATCH($A10,Ind!$B:$B,0),2),"") -> CONSOLIDAR EFECTIVIDAD ERP | C10: 08-CONSOLIDAR EFECTIVIDAD ERP | D10: =IF($B10="","",IF(INDEX(Ind!$B:$O,MATCH($A10,Ind!$B:$B,0),6)<>0,INDEX(Ind!$B:$O,MATCH($A10,Ind!$B:$B,0),6),"")) ->  | E10: =IF($B10="","",IF(INDEX(Ind!$B:$O,MATCH($A10,Ind!$B:$B,0),4)<>0,INDEX(Ind!$B:$O,MATCH($A10,Ind!$B:$B,0),4),0)) -> 0 | F10: =IF(INDEX(Ind!$B$6:$I$105,MATCH($A10,Ind!$B$6:$B$105,0),8)<>0,INDEX(Ind!$B$6:$I$105,MATCH($A10,Ind!$B$6:$B$105,0),8),"") -> FINANZAS | G10: =IF($B10<>"",INDEX(Ind!$B:$O,MATCH($A10,Ind!$B:$B,0),9),"") -> Percentage | H10: 1 | I10: =IF($B10<>"",INDEX(Ind!$B:$O,MATCH($A10,Ind!$B:$B,0),10),"") -> + | J10: 1 | K10: =IF(INDEX(Ind!$B$6:$O$105,MATCH($A10,Ind!$B$6:$B$105,0),14)<>0,INDEX(Ind!$B$6:$O$105,MATCH($A10,Ind!$B$6:$B$105,0),14),"") -> DIRECCIÓN DE ADMINISTRACIÓN | L10: =+SUMIF(InputActual!$5:$5,Cfr_Periodi!$L$1,InputActual!13:13) -> 0 | M10: =+SUMIF(InputActual!$5:$5,Cfr_Periodi!$M$1,InputActual!13:13) -> 0 | N10: =+IF(SUMIF(InputTg!$5:$5,Cfr_Periodi!$N$1,InputTg!13:13)<>0,SUMIF(InputTg!$5:$5,Cfr_Periodi!$N$1,InputTg!13:13),"") -> 30 | P10: 8
A11: 09 | B11: =IF(Ind!C14<>"",INDEX(Ind!$B:$O,MATCH($A11,Ind!$B:$B,0),2),"") ->  | D11: =IF($B11="","",IF(INDEX(Ind!$B:$O,MATCH($A11,Ind!$B:$B,0),6)<>0,INDEX(Ind!$B:$O,MATCH($A11,Ind!$B:$B,0),6),"")) ->  | E11: =IF($B11="","",IF(INDEX(Ind!$B:$O,MATCH($A11,Ind!$B:$B,0),4)<>0,INDEX(Ind!$B:$O,MATCH($A11,Ind!$B:$B,0),4),0)) ->  | F11: =IF(INDEX(Ind!$B$6:$I$105,MATCH($A11,Ind!$B$6:$B$105,0),8)<>0,INDEX(Ind!$B$6:$I$105,MATCH($A11,Ind!$B$6:$B$105,0),8),"") ->  | G11: =IF($B11<>"",INDEX(Ind!$B:$O,MATCH($A11,Ind!$B:$B,0),9),"") ->  | I11: =IF($B11<>"",INDEX(Ind!$B:$O,MATCH($A11,Ind!$B:$B,0),10),"") ->  | K11: =IF(INDEX(Ind!$B$6:$O$105,MATCH($A11,Ind!$B$6:$B$105,0),14)<>0,INDEX(Ind!$B$6:$O$105,MATCH($A11,Ind!$B$6:$B$105,0),14),"") ->  | L11: =+SUMIF(InputActual!$5:$5,Cfr_Periodi!$L$1,InputActual!14:14) -> 0 | M11: =+SUMIF(InputActual!$5:$5,Cfr_Periodi!$M$1,InputActual!14:14) -> 0 | N11: =+IF(SUMIF(InputTg!$5:$5,Cfr_Periodi!$N$1,InputTg!14:14)<>0,SUMIF(InputTg!$5:$5,Cfr_Periodi!$N$1,InputTg!14:14),"") ->  | P11: 9
A12: 10 | B12: =IF(Ind!C15<>"",INDEX(Ind!$B:$O,MATCH($A12,Ind!$B:$B,0),2),"") ->  | D12: =IF($B12="","",IF(INDEX(Ind!$B:$O,MATCH($A12,Ind!$B:$B,0),6)<>0,INDEX(Ind!$B:$O,MATCH($A12,Ind!$B:$B,0),6),"")) ->  | E12: =IF($B12="","",IF(INDEX(Ind!$B:$O,MATCH($A12,Ind!$B:$B,0),4)<>0,INDEX(Ind!$B:$O,MATCH($A12,Ind!$B:$B,0),4),0)) ->  | F12: =IF(INDEX(Ind!$B$6:$I$105,MATCH($A12,Ind!$B$6:$B$105,0),8)<>0,INDEX(Ind!$B$6:$I$105,MATCH($A12,Ind!$B$6:$B$105,0),8),"") ->  | G12: =IF($B12<>"",INDEX(Ind!$B:$O,MATCH($A12,Ind!$B:$B,0),9),"") ->  | I12: =IF($B12<>"",INDEX(Ind!$B:$O,MATCH($A12,Ind!$B:$B,0),10),"") ->  | K12: =IF(INDEX(Ind!$B$6:$O$105,MATCH($A12,Ind!$B$6:$B$105,0),14)<>0,INDEX(Ind!$B$6:$O$105,MATCH($A12,Ind!$B$6:$B$105,0),14),"") ->  | L12: =+SUMIF(InputActual!$5:$5,Cfr_Periodi!$L$1,InputActual!15:15) -> 0 | M12: =+SUMIF(InputActual!$5:$5,Cfr_Periodi!$M$1,InputActual!15:15) -> 0 | N12: =+IF(SUMIF(InputTg!$5:$5,Cfr_Periodi!$N$1,InputTg!15:15)<>0,SUMIF(InputTg!$5:$5,Cfr_Periodi!$N$1,InputTg!15:15),"") ->  | P12: 10
A13: 11 | B13: =IF(Ind!C16<>"",INDEX(Ind!$B:$O,MATCH($A13,Ind!$B:$B,0),2),"") ->  | D13: =IF($B13="","",IF(INDEX(Ind!$B:$O,MATCH($A13,Ind!$B:$B,0),6)<>0,INDEX(Ind!$B:$O,MATCH($A13,Ind!$B:$B,0),6),"")) ->  | E13: =IF($B13="","",IF(INDEX(Ind!$B:$O,MATCH($A13,Ind!$B:$B,0),4)<>0,INDEX(Ind!$B:$O,MATCH($A13,Ind!$B:$B,0),4),0)) ->  | F13: =IF(INDEX(Ind!$B$6:$I$105,MATCH($A13,Ind!$B$6:$B$105,0),8)<>0,INDEX(Ind!$B$6:$I$105,MATCH($A13,Ind!$B$6:$B$105,0),8),"") ->  | G13: =IF($B13<>"",INDEX(Ind!$B:$O,MATCH($A13,Ind!$B:$B,0),9),"") ->  | I13: =IF($B13<>"",INDEX(Ind!$B:$O,MATCH($A13,Ind!$B:$B,0),10),"") ->  | K13: =IF(INDEX(Ind!$B$6:$O$105,MATCH($A13,Ind!$B$6:$B$105,0),14)<>0,INDEX(Ind!$B$6:$O$105,MATCH($A13,Ind!$B$6:$B$105,0),14),"") ->  | L13: =+SUMIF(InputActual!$5:$5,Cfr_Periodi!$L$1,InputActual!16:16) -> 0 | M13: =+SUMIF(InputActual!$5:$5,Cfr_Periodi!$M$1,InputActual!16:16) -> 0 | N13: =+IF(SUMIF(InputTg!$5:$5,Cfr_Periodi!$N$1,InputTg!16:16)<>0,SUMIF(InputTg!$5:$5,Cfr_Periodi!$N$1,InputTg!16:16),"") ->  | P13: 11
A14: 12 | B14: =IF(Ind!C17<>"",INDEX(Ind!$B:$O,MATCH($A14,Ind!$B:$B,0),2),"") ->  | D14: =IF($B14="","",IF(INDEX(Ind!$B:$O,MATCH($A14,Ind!$B:$B,0),6)<>0,INDEX(Ind!$B:$O,MATCH($A14,Ind!$B:$B,0),6),"")) ->  | E14: =IF($B14="","",IF(INDEX(Ind!$B:$O,MATCH($A14,Ind!$B:$B,0),4)<>0,INDEX(Ind!$B:$O,MATCH($A14,Ind!$B:$B,0),4),0)) ->  | F14: =IF(INDEX(Ind!$B$6:$I$105,MATCH($A14,Ind!$B$6:$B$105,0),8)<>0,INDEX(Ind!$B$6:$I$105,MATCH($A14,Ind!$B$6:$B$105,0),8),"") ->  | G14: =IF($B14<>"",INDEX(Ind!$B:$O,MATCH($A14,Ind!$B:$B,0),9),"") ->  | I14: =IF($B14<>"",INDEX(Ind!$B:$O,MATCH($A14,Ind!$B:$B,0),10),"") ->  | K14: =IF(INDEX(Ind!$B$6:$O$105,MATCH($A14,Ind!$B$6:$B$105,0),14)<>0,INDEX(Ind!$B$6:$O$105,MATCH($A14,Ind!$B$6:$B$105,0),14),"") ->  | L14: =+SUMIF(InputActual!$5:$5,Cfr_Periodi!$L$1,InputActual!17:17) -> 0 | M14: =+SUMIF(InputActual!$5:$5,Cfr_Periodi!$M$1,InputActual!17:17) -> 0 | N14: =+IF(SUMIF(InputTg!$5:$5,Cfr_Periodi!$N$1,InputTg!17:17)<>0,SUMIF(InputTg!$5:$5,Cfr_Periodi!$N$1,InputTg!17:17),"") ->  | P14: 12
A15: 13 | B15: =IF(Ind!C18<>"",INDEX(Ind!$B:$O,MATCH($A15,Ind!$B:$B,0),2),"") ->  | D15: =IF($B15="","",IF(INDEX(Ind!$B:$O,MATCH($A15,Ind!$B:$B,0),6)<>0,INDEX(Ind!$B:$O,MATCH($A15,Ind!$B:$B,0),6),"")) ->  | E15: =IF($B15="","",IF(INDEX(Ind!$B:$O,MATCH($A15,Ind!$B:$B,0),4)<>0,INDEX(Ind!$B:$O,MATCH($A15,Ind!$B:$B,0),4),0)) ->  | F15: =IF(INDEX(Ind!$B$6:$I$105,MATCH($A15,Ind!$B$6:$B$105,0),8)<>0,INDEX(Ind!$B$6:$I$105,MATCH($A15,Ind!$B$6:$B$105,0),8),"") ->  | G15: =IF($B15<>"",INDEX(Ind!$B:$O,MATCH($A15,Ind!$B:$B,0),9),"") ->  | I15: =IF($B15<>"",INDEX(Ind!$B:$O,MATCH($A15,Ind!$B:$B,0),10),"") ->  | K15: =IF(INDEX(Ind!$B$6:$O$105,MATCH($A15,Ind!$B$6:$B$105,0),14)<>0,INDEX(Ind!$B$6:$O$105,MATCH($A15,Ind!$B$6:$B$105,0),14),"") ->  | L15: =+SUMIF(InputActual!$5:$5,Cfr_Periodi!$L$1,InputActual!18:18) -> 0 | M15: =+SUMIF(InputActual!$5:$5,Cfr_Periodi!$M$1,InputActual!18:18) -> 0 | N15: =+IF(SUMIF(InputTg!$5:$5,Cfr_Periodi!$N$1,InputTg!18:18)<>0,SUMIF(InputTg!$5:$5,Cfr_Periodi!$N$1,InputTg!18:18),"") ->  | P15: 13
A16: 14 | B16: =IF(Ind!C19<>"",INDEX(Ind!$B:$O,MATCH($A16,Ind!$B:$B,0),2),"") ->  | D16: =IF($B16="","",IF(INDEX(Ind!$B:$O,MATCH($A16,Ind!$B:$B,0),6)<>0,INDEX(Ind!$B:$O,MATCH($A16,Ind!$B:$B,0),6),"")) ->  | E16: =IF($B16="","",IF(INDEX(Ind!$B:$O,MATCH($A16,Ind!$B:$B,0),4)<>0,INDEX(Ind!$B:$O,MATCH($A16,Ind!$B:$B,0),4),0)) ->  | F16: =IF(INDEX(Ind!$B$6:$I$105,MATCH($A16,Ind!$B$6:$B$105,0),8)<>0,INDEX(Ind!$B$6:$I$105,MATCH($A16,Ind!$B$6:$B$105,0),8),"") ->  | G16: =IF($B16<>"",INDEX(Ind!$B:$O,MATCH($A16,Ind!$B:$B,0),9),"") ->  | I16: =IF($B16<>"",INDEX(Ind!$B:$O,MATCH($A16,Ind!$B:$B,0),10),"") ->  | K16: =IF(INDEX(Ind!$B$6:$O$105,MATCH($A16,Ind!$B$6:$B$105,0),14)<>0,INDEX(Ind!$B$6:$O$105,MATCH($A16,Ind!$B$6:$B$105,0),14),"") ->  | L16: =+SUMIF(InputActual!$5:$5,Cfr_Periodi!$L$1,InputActual!19:19) -> 0 | M16: =+SUMIF(InputActual!$5:$5,Cfr_Periodi!$M$1,InputActual!19:19) -> 0 | N16: =+IF(SUMIF(InputTg!$5:$5,Cfr_Periodi!$N$1,InputTg!19:19)<>0,SUMIF(InputTg!$5:$5,Cfr_Periodi!$N$1,InputTg!19:19),"") ->  | P16: 14
A17: 15 | B17: =IF(Ind!C20<>"",INDEX(Ind!$B:$O,MATCH($A17,Ind!$B:$B,0),2),"") ->  | D17: =IF($B17="","",IF(INDEX(Ind!$B:$O,MATCH($A17,Ind!$B:$B,0),6)<>0,INDEX(Ind!$B:$O,MATCH($A17,Ind!$B:$B,0),6),"")) ->  | E17: =IF($B17="","",IF(INDEX(Ind!$B:$O,MATCH($A17,Ind!$B:$B,0),4)<>0,INDEX(Ind!$B:$O,MATCH($A17,Ind!$B:$B,0),4),0)) ->  | F17: =IF(INDEX(Ind!$B$6:$I$105,MATCH($A17,Ind!$B$6:$B$105,0),8)<>0,INDEX(Ind!$B$6:$I$105,MATCH($A17,Ind!$B$6:$B$105,0),8),"") ->  | G17: =IF($B17<>"",INDEX(Ind!$B:$O,MATCH($A17,Ind!$B:$B,0),9),"") ->  | I17: =IF($B17<>"",INDEX(Ind!$B:$O,MATCH($A17,Ind!$B:$B,0),10),"") ->  | K17: =IF(INDEX(Ind!$B$6:$O$105,MATCH($A17,Ind!$B$6:$B$105,0),14)<>0,INDEX(Ind!$B$6:$O$105,MATCH($A17,Ind!$B$6:$B$105,0),14),"") ->  | L17: =+SUMIF(InputActual!$5:$5,Cfr_Periodi!$L$1,InputActual!20:20) -> 0 | M17: =+SUMIF(InputActual!$5:$5,Cfr_Periodi!$M$1,InputActual!20:20) -> 0 | N17: =+IF(SUMIF(InputTg!$5:$5,Cfr_Periodi!$N$1,InputTg!20:20)<>0,SUMIF(InputTg!$5:$5,Cfr_Periodi!$N$1,InputTg!20:20),"") ->  | P17: 15
A18: 16 | B18: =IF(Ind!C21<>"",INDEX(Ind!$B:$O,MATCH($A18,Ind!$B:$B,0),2),"") ->  | D18: =IF($B18="","",IF(INDEX(Ind!$B:$O,MATCH($A18,Ind!$B:$B,0),6)<>0,INDEX(Ind!$B:$O,MATCH($A18,Ind!$B:$B,0),6),"")) ->  | E18: =IF($B18="","",IF(INDEX(Ind!$B:$O,MATCH($A18,Ind!$B:$B,0),4)<>0,INDEX(Ind!$B:$O,MATCH($A18,Ind!$B:$B,0),4),0)) ->  | F18: =IF(INDEX(Ind!$B$6:$I$105,MATCH($A18,Ind!$B$6:$B$105,0),8)<>0,INDEX(Ind!$B$6:$I$105,MATCH($A18,Ind!$B$6:$B$105,0),8),"") ->  | G18: =IF($B18<>"",INDEX(Ind!$B:$O,MATCH($A18,Ind!$B:$B,0),9),"") ->  | I18: =IF($B18<>"",INDEX(Ind!$B:$O,MATCH($A18,Ind!$B:$B,0),10),"") ->  | K18: =IF(INDEX(Ind!$B$6:$O$105,MATCH($A18,Ind!$B$6:$B$105,0),14)<>0,INDEX(Ind!$B$6:$O$105,MATCH($A18,Ind!$B$6:$B$105,0),14),"") ->  | L18: =+SUMIF(InputActual!$5:$5,Cfr_Periodi!$L$1,InputActual!21:21) -> 0 | M18: =+SUMIF(InputActual!$5:$5,Cfr_Periodi!$M$1,InputActual!21:21) -> 0 | N18: =+IF(SUMIF(InputTg!$5:$5,Cfr_Periodi!$N$1,InputTg!21:21)<>0,SUMIF(InputTg!$5:$5,Cfr_Periodi!$N$1,InputTg!21:21),"") ->  | P18: 16
A19: 17 | B19: =IF(Ind!C22<>"",INDEX(Ind!$B:$O,MATCH($A19,Ind!$B:$B,0),2),"") ->  | D19: =IF($B19="","",IF(INDEX(Ind!$B:$O,MATCH($A19,Ind!$B:$B,0),6)<>0,INDEX(Ind!$B:$O,MATCH($A19,Ind!$B:$B,0),6),"")) ->  | E19: =IF($B19="","",IF(INDEX(Ind!$B:$O,MATCH($A19,Ind!$B:$B,0),4)<>0,INDEX(Ind!$B:$O,MATCH($A19,Ind!$B:$B,0),4),0)) ->  | F19: =IF(INDEX(Ind!$B$6:$I$105,MATCH($A19,Ind!$B$6:$B$105,0),8)<>0,INDEX(Ind!$B$6:$I$105,MATCH($A19,Ind!$B$6:$B$105,0),8),"") ->  | G19: =IF($B19<>"",INDEX(Ind!$B:$O,MATCH($A19,Ind!$B:$B,0),9),"") ->  | I19: =IF($B19<>"",INDEX(Ind!$B:$O,MATCH($A19,Ind!$B:$B,0),10),"") ->  | K19: =IF(INDEX(Ind!$B$6:$O$105,MATCH($A19,Ind!$B$6:$B$105,0),14)<>0,INDEX(Ind!$B$6:$O$105,MATCH($A19,Ind!$B$6:$B$105,0),14),"") ->  | L19: =+SUMIF(InputActual!$5:$5,Cfr_Periodi!$L$1,InputActual!22:22) -> 0 | M19: =+SUMIF(InputActual!$5:$5,Cfr_Periodi!$M$1,InputActual!22:22) -> 0 | N19: =+IF(SUMIF(InputTg!$5:$5,Cfr_Periodi!$N$1,InputTg!22:22)<>0,SUMIF(InputTg!$5:$5,Cfr_Periodi!$N$1,InputTg!22:22),"") ->  | P19: 17
A20: 18 | B20: =IF(Ind!C23<>"",INDEX(Ind!$B:$O,MATCH($A20,Ind!$B:$B,0),2),"") ->  | D20: =IF($B20="","",IF(INDEX(Ind!$B:$O,MATCH($A20,Ind!$B:$B,0),6)<>0,INDEX(Ind!$B:$O,MATCH($A20,Ind!$B:$B,0),6),"")) ->  | E20: =IF($B20="","",IF(INDEX(Ind!$B:$O,MATCH($A20,Ind!$B:$B,0),4)<>0,INDEX(Ind!$B:$O,MATCH($A20,Ind!$B:$B,0),4),0)) ->  | F20: =IF(INDEX(Ind!$B$6:$I$105,MATCH($A20,Ind!$B$6:$B$105,0),8)<>0,INDEX(Ind!$B$6:$I$105,MATCH($A20,Ind!$B$6:$B$105,0),8),"") ->  | G20: =IF($B20<>"",INDEX(Ind!$B:$O,MATCH($A20,Ind!$B:$B,0),9),"") ->  | I20: =IF($B20<>"",INDEX(Ind!$B:$O,MATCH($A20,Ind!$B:$B,0),10),"") ->  | K20: =IF(INDEX(Ind!$B$6:$O$105,MATCH($A20,Ind!$B$6:$B$105,0),14)<>0,INDEX(Ind!$B$6:$O$105,MATCH($A20,Ind!$B$6:$B$105,0),14),"") ->  | L20: =+SUMIF(InputActual!$5:$5,Cfr_Periodi!$L$1,InputActual!23:23) -> 0 | M20: =+SUMIF(InputActual!$5:$5,Cfr_Periodi!$M$1,InputActual!23:23) -> 0 | N20: =+IF(SUMIF(InputTg!$5:$5,Cfr_Periodi!$N$1,InputTg!23:23)<>0,SUMIF(InputTg!$5:$5,Cfr_Periodi!$N$1,InputTg!23:23),"") ->  | P20: 18
A21: 19 | B21: =IF(Ind!C24<>"",INDEX(Ind!$B:$O,MATCH($A21,Ind!$B:$B,0),2),"") ->  | D21: =IF($B21="","",IF(INDEX(Ind!$B:$O,MATCH($A21,Ind!$B:$B,0),6)<>0,INDEX(Ind!$B:$O,MATCH($A21,Ind!$B:$B,0),6),"")) ->  | E21: =IF($B21="","",IF(INDEX(Ind!$B:$O,MATCH($A21,Ind!$B:$B,0),4)<>0,INDEX(Ind!$B:$O,MATCH($A21,Ind!$B:$B,0),4),0)) ->  | F21: =IF(INDEX(Ind!$B$6:$I$105,MATCH($A21,Ind!$B$6:$B$105,0),8)<>0,INDEX(Ind!$B$6:$I$105,MATCH($A21,Ind!$B$6:$B$105,0),8),"") ->  | G21: =IF($B21<>"",INDEX(Ind!$B:$O,MATCH($A21,Ind!$B:$B,0),9),"") ->  | I21: =IF($B21<>"",INDEX(Ind!$B:$O,MATCH($A21,Ind!$B:$B,0),10),"") ->  | K21: =IF(INDEX(Ind!$B$6:$O$105,MATCH($A21,Ind!$B$6:$B$105,0),14)<>0,INDEX(Ind!$B$6:$O$105,MATCH($A21,Ind!$B$6:$B$105,0),14),"") ->  | L21: =+SUMIF(InputActual!$5:$5,Cfr_Periodi!$L$1,InputActual!24:24) -> 0 | M21: =+SUMIF(InputActual!$5:$5,Cfr_Periodi!$M$1,InputActual!24:24) -> 0 | N21: =+IF(SUMIF(InputTg!$5:$5,Cfr_Periodi!$N$1,InputTg!24:24)<>0,SUMIF(InputTg!$5:$5,Cfr_Periodi!$N$1,InputTg!24:24),"") ->  | P21: 19
A22: 20 | B22: =IF(Ind!C25<>"",INDEX(Ind!$B:$O,MATCH($A22,Ind!$B:$B,0),2),"") ->  | D22: =IF($B22="","",IF(INDEX(Ind!$B:$O,MATCH($A22,Ind!$B:$B,0),6)<>0,INDEX(Ind!$B:$O,MATCH($A22,Ind!$B:$B,0),6),"")) ->  | E22: =IF($B22="","",IF(INDEX(Ind!$B:$O,MATCH($A22,Ind!$B:$B,0),4)<>0,INDEX(Ind!$B:$O,MATCH($A22,Ind!$B:$B,0),4),0)) ->  | F22: =IF(INDEX(Ind!$B$6:$I$105,MATCH($A22,Ind!$B$6:$B$105,0),8)<>0,INDEX(Ind!$B$6:$I$105,MATCH($A22,Ind!$B$6:$B$105,0),8),"") ->  | G22: =IF($B22<>"",INDEX(Ind!$B:$O,MATCH($A22,Ind!$B:$B,0),9),"") ->  | I22: =IF($B22<>"",INDEX(Ind!$B:$O,MATCH($A22,Ind!$B:$B,0),10),"") ->  | K22: =IF(INDEX(Ind!$B$6:$O$105,MATCH($A22,Ind!$B$6:$B$105,0),14)<>0,INDEX(Ind!$B$6:$O$105,MATCH($A22,Ind!$B$6:$B$105,0),14),"") ->  | L22: =+SUMIF(InputActual!$5:$5,Cfr_Periodi!$L$1,InputActual!25:25) -> 0 | M22: =+SUMIF(InputActual!$5:$5,Cfr_Periodi!$M$1,InputActual!25:25) -> 0 | N22: =+IF(SUMIF(InputTg!$5:$5,Cfr_Periodi!$N$1,InputTg!25:25)<>0,SUMIF(InputTg!$5:$5,Cfr_Periodi!$N$1,InputTg!25:25),"") ->  | P22: 20
A23: 21 | B23: =IF(Ind!C26<>"",INDEX(Ind!$B:$O,MATCH($A23,Ind!$B:$B,0),2),"") ->  | D23: =IF($B23="","",IF(INDEX(Ind!$B:$O,MATCH($A23,Ind!$B:$B,0),6)<>0,INDEX(Ind!$B:$O,MATCH($A23,Ind!$B:$B,0),6),"")) ->  | E23: =IF($B23="","",IF(INDEX(Ind!$B:$O,MATCH($A23,Ind!$B:$B,0),4)<>0,INDEX(Ind!$B:$O,MATCH($A23,Ind!$B:$B,0),4),0)) ->  | F23: =IF(INDEX(Ind!$B$6:$I$105,MATCH($A23,Ind!$B$6:$B$105,0),8)<>0,INDEX(Ind!$B$6:$I$105,MATCH($A23,Ind!$B$6:$B$105,0),8),"") ->  | G23: =IF($B23<>"",INDEX(Ind!$B:$O,MATCH($A23,Ind!$B:$B,0),9),"") ->  | I23: =IF($B23<>"",INDEX(Ind!$B:$O,MATCH($A23,Ind!$B:$B,0),10),"") ->  | K23: =IF(INDEX(Ind!$B$6:$O$105,MATCH($A23,Ind!$B$6:$B$105,0),14)<>0,INDEX(Ind!$B$6:$O$105,MATCH($A23,Ind!$B$6:$B$105,0),14),"") ->  | L23: =+SUMIF(InputActual!$5:$5,Cfr_Periodi!$L$1,InputActual!26:26) -> 0 | M23: =+SUMIF(InputActual!$5:$5,Cfr_Periodi!$M$1,InputActual!26:26) -> 0 | N23: =+IF(SUMIF(InputTg!$5:$5,Cfr_Periodi!$N$1,InputTg!26:26)<>0,SUMIF(InputTg!$5:$5,Cfr_Periodi!$N$1,InputTg!26:26),"") ->  | P23: 21
A24: 22 | B24: =IF(Ind!C27<>"",INDEX(Ind!$B:$O,MATCH($A24,Ind!$B:$B,0),2),"") ->  | D24: =IF($B24="","",IF(INDEX(Ind!$B:$O,MATCH($A24,Ind!$B:$B,0),6)<>0,INDEX(Ind!$B:$O,MATCH($A24,Ind!$B:$B,0),6),"")) ->  | E24: =IF($B24="","",IF(INDEX(Ind!$B:$O,MATCH($A24,Ind!$B:$B,0),4)<>0,INDEX(Ind!$B:$O,MATCH($A24,Ind!$B:$B,0),4),0)) ->  | F24: =IF(INDEX(Ind!$B$6:$I$105,MATCH($A24,Ind!$B$6:$B$105,0),8)<>0,INDEX(Ind!$B$6:$I$105,MATCH($A24,Ind!$B$6:$B$105,0),8),"") ->  | G24: =IF($B24<>"",INDEX(Ind!$B:$O,MATCH($A24,Ind!$B:$B,0),9),"") ->  | I24: =IF($B24<>"",INDEX(Ind!$B:$O,MATCH($A24,Ind!$B:$B,0),10),"") ->  | K24: =IF(INDEX(Ind!$B$6:$O$105,MATCH($A24,Ind!$B$6:$B$105,0),14)<>0,INDEX(Ind!$B$6:$O$105,MATCH($A24,Ind!$B$6:$B$105,0),14),"") ->  | L24: =+SUMIF(InputActual!$5:$5,Cfr_Periodi!$L$1,InputActual!27:27) -> 0 | M24: =+SUMIF(InputActual!$5:$5,Cfr_Periodi!$M$1,InputActual!27:27) -> 0 | N24: =+IF(SUMIF(InputTg!$5:$5,Cfr_Periodi!$N$1,InputTg!27:27)<>0,SUMIF(InputTg!$5:$5,Cfr_Periodi!$N$1,InputTg!27:27),"") ->  | P24: 22
A25: 23 | B25: =IF(Ind!C28<>"",INDEX(Ind!$B:$O,MATCH($A25,Ind!$B:$B,0),2),"") ->  | D25: =IF($B25="","",IF(INDEX(Ind!$B:$O,MATCH($A25,Ind!$B:$B,0),6)<>0,INDEX(Ind!$B:$O,MATCH($A25,Ind!$B:$B,0),6),"")) ->  | E25: =IF($B25="","",IF(INDEX(Ind!$B:$O,MATCH($A25,Ind!$B:$B,0),4)<>0,INDEX(Ind!$B:$O,MATCH($A25,Ind!$B:$B,0),4),0)) ->  | F25: =IF(INDEX(Ind!$B$6:$I$105,MATCH($A25,Ind!$B$6:$B$105,0),8)<>0,INDEX(Ind!$B$6:$I$105,MATCH($A25,Ind!$B$6:$B$105,0),8),"") ->  | G25: =IF($B25<>"",INDEX(Ind!$B:$O,MATCH($A25,Ind!$B:$B,0),9),"") ->  | I25: =IF($B25<>"",INDEX(Ind!$B:$O,MATCH($A25,Ind!$B:$B,0),10),"") ->  | K25: =IF(INDEX(Ind!$B$6:$O$105,MATCH($A25,Ind!$B$6:$B$105,0),14)<>0,INDEX(Ind!$B$6:$O$105,MATCH($A25,Ind!$B$6:$B$105,0),14),"") ->  | L25: =+SUMIF(InputActual!$5:$5,Cfr_Periodi!$L$1,InputActual!28:28) -> 0 | M25: =+SUMIF(InputActual!$5:$5,Cfr_Periodi!$M$1,InputActual!28:28) -> 0 | N25: =+IF(SUMIF(InputTg!$5:$5,Cfr_Periodi!$N$1,InputTg!28:28)<>0,SUMIF(InputTg!$5:$5,Cfr_Periodi!$N$1,InputTg!28:28),"") ->  | P25: 23
A26: 24 | B26: =IF(Ind!C29<>"",INDEX(Ind!$B:$O,MATCH($A26,Ind!$B:$B,0),2),"") ->  | D26: =IF($B26="","",IF(INDEX(Ind!$B:$O,MATCH($A26,Ind!$B:$B,0),6)<>0,INDEX(Ind!$B:$O,MATCH($A26,Ind!$B:$B,0),6),"")) ->  | E26: =IF($B26="","",IF(INDEX(Ind!$B:$O,MATCH($A26,Ind!$B:$B,0),4)<>0,INDEX(Ind!$B:$O,MATCH($A26,Ind!$B:$B,0),4),0)) ->  | F26: =IF(INDEX(Ind!$B$6:$I$105,MATCH($A26,Ind!$B$6:$B$105,0),8)<>0,INDEX(Ind!$B$6:$I$105,MATCH($A26,Ind!$B$6:$B$105,0),8),"") ->  | G26: =IF($B26<>"",INDEX(Ind!$B:$O,MATCH($A26,Ind!$B:$B,0),9),"") ->  | I26: =IF($B26<>"",INDEX(Ind!$B:$O,MATCH($A26,Ind!$B:$B,0),10),"") ->  | K26: =IF(INDEX(Ind!$B$6:$O$105,MATCH($A26,Ind!$B$6:$B$105,0),14)<>0,INDEX(Ind!$B$6:$O$105,MATCH($A26,Ind!$B$6:$B$105,0),14),"") ->  | L26: =+SUMIF(InputActual!$5:$5,Cfr_Periodi!$L$1,InputActual!29:29) -> 0 | M26: =+SUMIF(InputActual!$5:$5,Cfr_Periodi!$M$1,InputActual!29:29) -> 0 | N26: =+IF(SUMIF(InputTg!$5:$5,Cfr_Periodi!$N$1,InputTg!29:29)<>0,SUMIF(InputTg!$5:$5,Cfr_Periodi!$N$1,InputTg!29:29),"") ->  | P26: 24
A27: 25 | B27: =IF(Ind!C30<>"",INDEX(Ind!$B:$O,MATCH($A27,Ind!$B:$B,0),2),"") ->  | D27: =IF($B27="","",IF(INDEX(Ind!$B:$O,MATCH($A27,Ind!$B:$B,0),6)<>0,INDEX(Ind!$B:$O,MATCH($A27,Ind!$B:$B,0),6),"")) ->  | E27: =IF($B27="","",IF(INDEX(Ind!$B:$O,MATCH($A27,Ind!$B:$B,0),4)<>0,INDEX(Ind!$B:$O,MATCH($A27,Ind!$B:$B,0),4),0)) ->  | F27: =IF(INDEX(Ind!$B$6:$I$105,MATCH($A27,Ind!$B$6:$B$105,0),8)<>0,INDEX(Ind!$B$6:$I$105,MATCH($A27,Ind!$B$6:$B$105,0),8),"") ->  | G27: =IF($B27<>"",INDEX(Ind!$B:$O,MATCH($A27,Ind!$B:$B,0),9),"") ->  | I27: =IF($B27<>"",INDEX(Ind!$B:$O,MATCH($A27,Ind!$B:$B,0),10),"") ->  | K27: =IF(INDEX(Ind!$B$6:$O$105,MATCH($A27,Ind!$B$6:$B$105,0),14)<>0,INDEX(Ind!$B$6:$O$105,MATCH($A27,Ind!$B$6:$B$105,0),14),"") ->  | L27: =+SUMIF(InputActual!$5:$5,Cfr_Periodi!$L$1,InputActual!30:30) -> 0 | M27: =+SUMIF(InputActual!$5:$5,Cfr_Periodi!$M$1,InputActual!30:30) -> 0 | N27: =+IF(SUMIF(InputTg!$5:$5,Cfr_Periodi!$N$1,InputTg!30:30)<>0,SUMIF(InputTg!$5:$5,Cfr_Periodi!$N$1,InputTg!30:30),"") ->  | P27: 25
A28: 26 | B28: =IF(Ind!C31<>"",INDEX(Ind!$B:$O,MATCH($A28,Ind!$B:$B,0),2),"") ->  | D28: =IF($B28="","",IF(INDEX(Ind!$B:$O,MATCH($A28,Ind!$B:$B,0),6)<>0,INDEX(Ind!$B:$O,MATCH($A28,Ind!$B:$B,0),6),"")) ->  | E28: =IF($B28="","",IF(INDEX(Ind!$B:$O,MATCH($A28,Ind!$B:$B,0),4)<>0,INDEX(Ind!$B:$O,MATCH($A28,Ind!$B:$B,0),4),0)) ->  | F28: =IF(INDEX(Ind!$B$6:$I$105,MATCH($A28,Ind!$B$6:$B$105,0),8)<>0,INDEX(Ind!$B$6:$I$105,MATCH($A28,Ind!$B$6:$B$105,0),8),"") ->  | G28: =IF($B28<>"",INDEX(Ind!$B:$O,MATCH($A28,Ind!$B:$B,0),9),"") ->  | I28: =IF($B28<>"",INDEX(Ind!$B:$O,MATCH($A28,Ind!$B:$B,0),10),"") ->  | K28: =IF(INDEX(Ind!$B$6:$O$105,MATCH($A28,Ind!$B$6:$B$105,0),14)<>0,INDEX(Ind!$B$6:$O$105,MATCH($A28,Ind!$B$6:$B$105,0),14),"") ->  | L28: =+SUMIF(InputActual!$5:$5,Cfr_Periodi!$L$1,InputActual!31:31) -> 0 | M28: =+SUMIF(InputActual!$5:$5,Cfr_Periodi!$M$1,InputActual!31:31) -> 0 | N28: =+IF(SUMIF(InputTg!$5:$5,Cfr_Periodi!$N$1,InputTg!31:31)<>0,SUMIF(InputTg!$5:$5,Cfr_Periodi!$N$1,InputTg!31:31),"") ->  | P28: 26
A29: 27 | B29: =IF(Ind!C32<>"",INDEX(Ind!$B:$O,MATCH($A29,Ind!$B:$B,0),2),"") ->  | D29: =IF($B29="","",IF(INDEX(Ind!$B:$O,MATCH($A29,Ind!$B:$B,0),6)<>0,INDEX(Ind!$B:$O,MATCH($A29,Ind!$B:$B,0),6),"")) ->  | E29: =IF($B29="","",IF(INDEX(Ind!$B:$O,MATCH($A29,Ind!$B:$B,0),4)<>0,INDEX(Ind!$B:$O,MATCH($A29,Ind!$B:$B,0),4),0)) ->  | F29: =IF(INDEX(Ind!$B$6:$I$105,MATCH($A29,Ind!$B$6:$B$105,0),8)<>0,INDEX(Ind!$B$6:$I$105,MATCH($A29,Ind!$B$6:$B$105,0),8),"") ->  | G29: =IF($B29<>"",INDEX(Ind!$B:$O,MATCH($A29,Ind!$B:$B,0),9),"") ->  | I29: =IF($B29<>"",INDEX(Ind!$B:$O,MATCH($A29,Ind!$B:$B,0),10),"") ->  | K29: =IF(INDEX(Ind!$B$6:$O$105,MATCH($A29,Ind!$B$6:$B$105,0),14)<>0,INDEX(Ind!$B$6:$O$105,MATCH($A29,Ind!$B$6:$B$105,0),14),"") ->  | L29: =+SUMIF(InputActual!$5:$5,Cfr_Periodi!$L$1,InputActual!32:32) -> 0 | M29: =+SUMIF(InputActual!$5:$5,Cfr_Periodi!$M$1,InputActual!32:32) -> 0 | N29: =+IF(SUMIF(InputTg!$5:$5,Cfr_Periodi!$N$1,InputTg!32:32)<>0,SUMIF(InputTg!$5:$5,Cfr_Periodi!$N$1,InputTg!32:32),"") ->  | P29: 27
A30: 28 | B30: =IF(Ind!C33<>"",INDEX(Ind!$B:$O,MATCH($A30,Ind!$B:$B,0),2),"") ->  | D30: =IF($B30="","",IF(INDEX(Ind!$B:$O,MATCH($A30,Ind!$B:$B,0),6)<>0,INDEX(Ind!$B:$O,MATCH($A30,Ind!$B:$B,0),6),"")) ->  | E30: =IF($B30="","",IF(INDEX(Ind!$B:$O,MATCH($A30,Ind!$B:$B,0),4)<>0,INDEX(Ind!$B:$O,MATCH($A30,Ind!$B:$B,0),4),0)) ->  | F30: =IF(INDEX(Ind!$B$6:$I$105,MATCH($A30,Ind!$B$6:$B$105,0),8)<>0,INDEX(Ind!$B$6:$I$105,MATCH($A30,Ind!$B$6:$B$105,0),8),"") ->  | G30: =IF($B30<>"",INDEX(Ind!$B:$O,MATCH($A30,Ind!$B:$B,0),9),"") ->  | I30: =IF($B30<>"",INDEX(Ind!$B:$O,MATCH($A30,Ind!$B:$B,0),10),"") ->  | K30: =IF(INDEX(Ind!$B$6:$O$105,MATCH($A30,Ind!$B$6:$B$105,0),14)<>0,INDEX(Ind!$B$6:$O$105,MATCH($A30,Ind!$B$6:$B$105,0),14),"") ->  | L30: =+SUMIF(InputActual!$5:$5,Cfr_Periodi!$L$1,InputActual!33:33) -> 0 | M30: =+SUMIF(InputActual!$5:$5,Cfr_Periodi!$M$1,InputActual!33:33) -> 0 | N30: =+IF(SUMIF(InputTg!$5:$5,Cfr_Periodi!$N$1,InputTg!33:33)<>0,SUMIF(InputTg!$5:$5,Cfr_Periodi!$N$1,InputTg!33:33),"") ->  | P30: 28
A31: 29 | B31: =IF(Ind!C34<>"",INDEX(Ind!$B:$O,MATCH($A31,Ind!$B:$B,0),2),"") ->  | D31: =IF($B31="","",IF(INDEX(Ind!$B:$O,MATCH($A31,Ind!$B:$B,0),6)<>0,INDEX(Ind!$B:$O,MATCH($A31,Ind!$B:$B,0),6),"")) ->  | E31: =IF($B31="","",IF(INDEX(Ind!$B:$O,MATCH($A31,Ind!$B:$B,0),4)<>0,INDEX(Ind!$B:$O,MATCH($A31,Ind!$B:$B,0),4),0)) ->  | F31: =IF(INDEX(Ind!$B$6:$I$105,MATCH($A31,Ind!$B$6:$B$105,0),8)<>0,INDEX(Ind!$B$6:$I$105,MATCH($A31,Ind!$B$6:$B$105,0),8),"") ->  | G31: =IF($B31<>"",INDEX(Ind!$B:$O,MATCH($A31,Ind!$B:$B,0),9),"") ->  | I31: =IF($B31<>"",INDEX(Ind!$B:$O,MATCH($A31,Ind!$B:$B,0),10),"") ->  | K31: =IF(INDEX(Ind!$B$6:$O$105,MATCH($A31,Ind!$B$6:$B$105,0),14)<>0,INDEX(Ind!$B$6:$O$105,MATCH($A31,Ind!$B$6:$B$105,0),14),"") ->  | L31: =+SUMIF(InputActual!$5:$5,Cfr_Periodi!$L$1,InputActual!34:34) -> 0 | M31: =+SUMIF(InputActual!$5:$5,Cfr_Periodi!$M$1,InputActual!34:34) -> 0 | N31: =+IF(SUMIF(InputTg!$5:$5,Cfr_Periodi!$N$1,InputTg!34:34)<>0,SUMIF(InputTg!$5:$5,Cfr_Periodi!$N$1,InputTg!34:34),"") ->  | P31: 29
A32: 30 | B32: =IF(Ind!C35<>"",INDEX(Ind!$B:$O,MATCH($A32,Ind!$B:$B,0),2),"") ->  | D32: =IF($B32="","",IF(INDEX(Ind!$B:$O,MATCH($A32,Ind!$B:$B,0),6)<>0,INDEX(Ind!$B:$O,MATCH($A32,Ind!$B:$B,0),6),"")) ->  | E32: =IF($B32="","",IF(INDEX(Ind!$B:$O,MATCH($A32,Ind!$B:$B,0),4)<>0,INDEX(Ind!$B:$O,MATCH($A32,Ind!$B:$B,0),4),0)) ->  | F32: =IF(INDEX(Ind!$B$6:$I$105,MATCH($A32,Ind!$B$6:$B$105,0),8)<>0,INDEX(Ind!$B$6:$I$105,MATCH($A32,Ind!$B$6:$B$105,0),8),"") ->  | G32: =IF($B32<>"",INDEX(Ind!$B:$O,MATCH($A32,Ind!$B:$B,0),9),"") ->  | I32: =IF($B32<>"",INDEX(Ind!$B:$O,MATCH($A32,Ind!$B:$B,0),10),"") ->  | K32: =IF(INDEX(Ind!$B$6:$O$105,MATCH($A32,Ind!$B$6:$B$105,0),14)<>0,INDEX(Ind!$B$6:$O$105,MATCH($A32,Ind!$B$6:$B$105,0),14),"") ->  | L32: =+SUMIF(InputActual!$5:$5,Cfr_Periodi!$L$1,InputActual!35:35) -> 0 | M32: =+SUMIF(InputActual!$5:$5,Cfr_Periodi!$M$1,InputActual!35:35) -> 0 | N32: =+IF(SUMIF(InputTg!$5:$5,Cfr_Periodi!$N$1,InputTg!35:35)<>0,SUMIF(InputTg!$5:$5,Cfr_Periodi!$N$1,InputTg!35:35),"") ->  | P32: 30
A33: 31 | B33: =IF(Ind!C36<>"",INDEX(Ind!$B:$O,MATCH($A33,Ind!$B:$B,0),2),"") ->  | D33: =IF($B33="","",IF(INDEX(Ind!$B:$O,MATCH($A33,Ind!$B:$B,0),6)<>0,INDEX(Ind!$B:$O,MATCH($A33,Ind!$B:$B,0),6),"")) ->  | E33: =IF($B33="","",IF(INDEX(Ind!$B:$O,MATCH($A33,Ind!$B:$B,0),4)<>0,INDEX(Ind!$B:$O,MATCH($A33,Ind!$B:$B,0),4),0)) ->  | F33: =IF(INDEX(Ind!$B$6:$I$105,MATCH($A33,Ind!$B$6:$B$105,0),8)<>0,INDEX(Ind!$B$6:$I$105,MATCH($A33,Ind!$B$6:$B$105,0),8),"") ->  | G33: =IF($B33<>"",INDEX(Ind!$B:$O,MATCH($A33,Ind!$B:$B,0),9),"") ->  | I33: =IF($B33<>"",INDEX(Ind!$B:$O,MATCH($A33,Ind!$B:$B,0),10),"") ->  | K33: =IF(INDEX(Ind!$B$6:$O$105,MATCH($A33,Ind!$B$6:$B$105,0),14)<>0,INDEX(Ind!$B$6:$O$105,MATCH($A33,Ind!$B$6:$B$105,0),14),"") ->  | L33: =+SUMIF(InputActual!$5:$5,Cfr_Periodi!$L$1,InputActual!36:36) -> 0 | M33: =+SUMIF(InputActual!$5:$5,Cfr_Periodi!$M$1,InputActual!36:36) -> 0 | N33: =+IF(SUMIF(InputTg!$5:$5,Cfr_Periodi!$N$1,InputTg!36:36)<>0,SUMIF(InputTg!$5:$5,Cfr_Periodi!$N$1,InputTg!36:36),"") ->  | P33: 31
A34: 32 | B34: =IF(Ind!C37<>"",INDEX(Ind!$B:$O,MATCH($A34,Ind!$B:$B,0),2),"") ->  | D34: =IF($B34="","",IF(INDEX(Ind!$B:$O,MATCH($A34,Ind!$B:$B,0),6)<>0,INDEX(Ind!$B:$O,MATCH($A34,Ind!$B:$B,0),6),"")) ->  | E34: =IF($B34="","",IF(INDEX(Ind!$B:$O,MATCH($A34,Ind!$B:$B,0),4)<>0,INDEX(Ind!$B:$O,MATCH($A34,Ind!$B:$B,0),4),0)) ->  | F34: =IF(INDEX(Ind!$B$6:$I$105,MATCH($A34,Ind!$B$6:$B$105,0),8)<>0,INDEX(Ind!$B$6:$I$105,MATCH($A34,Ind!$B$6:$B$105,0),8),"") ->  | G34: =IF($B34<>"",INDEX(Ind!$B:$O,MATCH($A34,Ind!$B:$B,0),9),"") ->  | I34: =IF($B34<>"",INDEX(Ind!$B:$O,MATCH($A34,Ind!$B:$B,0),10),"") ->  | K34: =IF(INDEX(Ind!$B$6:$O$105,MATCH($A34,Ind!$B$6:$B$105,0),14)<>0,INDEX(Ind!$B$6:$O$105,MATCH($A34,Ind!$B$6:$B$105,0),14),"") ->  | L34: =+SUMIF(InputActual!$5:$5,Cfr_Periodi!$L$1,InputActual!37:37) -> 0 | M34: =+SUMIF(InputActual!$5:$5,Cfr_Periodi!$M$1,InputActual!37:37) -> 0 | N34: =+IF(SUMIF(InputTg!$5:$5,Cfr_Periodi!$N$1,InputTg!37:37)<>0,SUMIF(InputTg!$5:$5,Cfr_Periodi!$N$1,InputTg!37:37),"") ->  | P34: 32
A35: 33 | B35: =IF(Ind!C38<>"",INDEX(Ind!$B:$O,MATCH($A35,Ind!$B:$B,0),2),"") ->  | D35: =IF($B35="","",IF(INDEX(Ind!$B:$O,MATCH($A35,Ind!$B:$B,0),6)<>0,INDEX(Ind!$B:$O,MATCH($A35,Ind!$B:$B,0),6),"")) ->  | E35: =IF($B35="","",IF(INDEX(Ind!$B:$O,MATCH($A35,Ind!$B:$B,0),4)<>0,INDEX(Ind!$B:$O,MATCH($A35,Ind!$B:$B,0),4),0)) ->  | F35: =IF(INDEX(Ind!$B$6:$I$105,MATCH($A35,Ind!$B$6:$B$105,0),8)<>0,INDEX(Ind!$B$6:$I$105,MATCH($A35,Ind!$B$6:$B$105,0),8),"") ->  | G35: =IF($B35<>"",INDEX(Ind!$B:$O,MATCH($A35,Ind!$B:$B,0),9),"") ->  | I35: =IF($B35<>"",INDEX(Ind!$B:$O,MATCH($A35,Ind!$B:$B,0),10),"") ->  | K35: =IF(INDEX(Ind!$B$6:$O$105,MATCH($A35,Ind!$B$6:$B$105,0),14)<>0,INDEX(Ind!$B$6:$O$105,MATCH($A35,Ind!$B$6:$B$105,0),14),"") ->  | L35: =+SUMIF(InputActual!$5:$5,Cfr_Periodi!$L$1,InputActual!38:38) -> 0 | M35: =+SUMIF(InputActual!$5:$5,Cfr_Periodi!$M$1,InputActual!38:38) -> 0 | N35: =+IF(SUMIF(InputTg!$5:$5,Cfr_Periodi!$N$1,InputTg!38:38)<>0,SUMIF(InputTg!$5:$5,Cfr_Periodi!$N$1,InputTg!38:38),"") ->  | P35: 33
A36: 34 | B36: =IF(Ind!C39<>"",INDEX(Ind!$B:$O,MATCH($A36,Ind!$B:$B,0),2),"") ->  | D36: =IF($B36="","",IF(INDEX(Ind!$B:$O,MATCH($A36,Ind!$B:$B,0),6)<>0,INDEX(Ind!$B:$O,MATCH($A36,Ind!$B:$B,0),6),"")) ->  | E36: =IF($B36="","",IF(INDEX(Ind!$B:$O,MATCH($A36,Ind!$B:$B,0),4)<>0,INDEX(Ind!$B:$O,MATCH($A36,Ind!$B:$B,0),4),0)) ->  | F36: =IF(INDEX(Ind!$B$6:$I$105,MATCH($A36,Ind!$B$6:$B$105,0),8)<>0,INDEX(Ind!$B$6:$I$105,MATCH($A36,Ind!$B$6:$B$105,0),8),"") ->  | G36: =IF($B36<>"",INDEX(Ind!$B:$O,MATCH($A36,Ind!$B:$B,0),9),"") ->  | I36: =IF($B36<>"",INDEX(Ind!$B:$O,MATCH($A36,Ind!$B:$B,0),10),"") ->  | K36: =IF(INDEX(Ind!$B$6:$O$105,MATCH($A36,Ind!$B$6:$B$105,0),14)<>0,INDEX(Ind!$B$6:$O$105,MATCH($A36,Ind!$B$6:$B$105,0),14),"") ->  | L36: =+SUMIF(InputActual!$5:$5,Cfr_Periodi!$L$1,InputActual!39:39) -> 0 | M36: =+SUMIF(InputActual!$5:$5,Cfr_Periodi!$M$1,InputActual!39:39) -> 0 | N36: =+IF(SUMIF(InputTg!$5:$5,Cfr_Periodi!$N$1,InputTg!39:39)<>0,SUMIF(InputTg!$5:$5,Cfr_Periodi!$N$1,InputTg!39:39),"") ->  | P36: 34
A37: 35 | B37: =IF(Ind!C40<>"",INDEX(Ind!$B:$O,MATCH($A37,Ind!$B:$B,0),2),"") ->  | D37: =IF($B37="","",IF(INDEX(Ind!$B:$O,MATCH($A37,Ind!$B:$B,0),6)<>0,INDEX(Ind!$B:$O,MATCH($A37,Ind!$B:$B,0),6),"")) ->  | E37: =IF($B37="","",IF(INDEX(Ind!$B:$O,MATCH($A37,Ind!$B:$B,0),4)<>0,INDEX(Ind!$B:$O,MATCH($A37,Ind!$B:$B,0),4),0)) ->  | F37: =IF(INDEX(Ind!$B$6:$I$105,MATCH($A37,Ind!$B$6:$B$105,0),8)<>0,INDEX(Ind!$B$6:$I$105,MATCH($A37,Ind!$B$6:$B$105,0),8),"") ->  | G37: =IF($B37<>"",INDEX(Ind!$B:$O,MATCH($A37,Ind!$B:$B,0),9),"") ->  | I37: =IF($B37<>"",INDEX(Ind!$B:$O,MATCH($A37,Ind!$B:$B,0),10),"") ->  | K37: =IF(INDEX(Ind!$B$6:$O$105,MATCH($A37,Ind!$B$6:$B$105,0),14)<>0,INDEX(Ind!$B$6:$O$105,MATCH($A37,Ind!$B$6:$B$105,0),14),"") ->  | L37: =+SUMIF(InputActual!$5:$5,Cfr_Periodi!$L$1,InputActual!40:40) -> 0 | M37: =+SUMIF(InputActual!$5:$5,Cfr_Periodi!$M$1,InputActual!40:40) -> 0 | N37: =+IF(SUMIF(InputTg!$5:$5,Cfr_Periodi!$N$1,InputTg!40:40)<>0,SUMIF(InputTg!$5:$5,Cfr_Periodi!$N$1,InputTg!40:40),"") ->  | P37: 35
A38: 36 | B38: =IF(Ind!C41<>"",INDEX(Ind!$B:$O,MATCH($A38,Ind!$B:$B,0),2),"") ->  | D38: =IF($B38="","",IF(INDEX(Ind!$B:$O,MATCH($A38,Ind!$B:$B,0),6)<>0,INDEX(Ind!$B:$O,MATCH($A38,Ind!$B:$B,0),6),"")) ->  | E38: =IF($B38="","",IF(INDEX(Ind!$B:$O,MATCH($A38,Ind!$B:$B,0),4)<>0,INDEX(Ind!$B:$O,MATCH($A38,Ind!$B:$B,0),4),0)) ->  | F38: =IF(INDEX(Ind!$B$6:$I$105,MATCH($A38,Ind!$B$6:$B$105,0),8)<>0,INDEX(Ind!$B$6:$I$105,MATCH($A38,Ind!$B$6:$B$105,0),8),"") ->  | G38: =IF($B38<>"",INDEX(Ind!$B:$O,MATCH($A38,Ind!$B:$B,0),9),"") ->  | I38: =IF($B38<>"",INDEX(Ind!$B:$O,MATCH($A38,Ind!$B:$B,0),10),"") ->  | K38: =IF(INDEX(Ind!$B$6:$O$105,MATCH($A38,Ind!$B$6:$B$105,0),14)<>0,INDEX(Ind!$B$6:$O$105,MATCH($A38,Ind!$B$6:$B$105,0),14),"") ->  | L38: =+SUMIF(InputActual!$5:$5,Cfr_Periodi!$L$1,InputActual!41:41) -> 0 | M38: =+SUMIF(InputActual!$5:$5,Cfr_Periodi!$M$1,InputActual!41:41) -> 0 | N38: =+IF(SUMIF(InputTg!$5:$5,Cfr_Periodi!$N$1,InputTg!41:41)<>0,SUMIF(InputTg!$5:$5,Cfr_Periodi!$N$1,InputTg!41:41),"") ->  | P38: 36
A39: 37 | B39: =IF(Ind!C42<>"",INDEX(Ind!$B:$O,MATCH($A39,Ind!$B:$B,0),2),"") ->  | D39: =IF($B39="","",IF(INDEX(Ind!$B:$O,MATCH($A39,Ind!$B:$B,0),6)<>0,INDEX(Ind!$B:$O,MATCH($A39,Ind!$B:$B,0),6),"")) ->  | E39: =IF($B39="","",IF(INDEX(Ind!$B:$O,MATCH($A39,Ind!$B:$B,0),4)<>0,INDEX(Ind!$B:$O,MATCH($A39,Ind!$B:$B,0),4),0)) ->  | F39: =IF(INDEX(Ind!$B$6:$I$105,MATCH($A39,Ind!$B$6:$B$105,0),8)<>0,INDEX(Ind!$B$6:$I$105,MATCH($A39,Ind!$B$6:$B$105,0),8),"") ->  | G39: =IF($B39<>"",INDEX(Ind!$B:$O,MATCH($A39,Ind!$B:$B,0),9),"") ->  | I39: =IF($B39<>"",INDEX(Ind!$B:$O,MATCH($A39,Ind!$B:$B,0),10),"") ->  | K39: =IF(INDEX(Ind!$B$6:$O$105,MATCH($A39,Ind!$B$6:$B$105,0),14)<>0,INDEX(Ind!$B$6:$O$105,MATCH($A39,Ind!$B$6:$B$105,0),14),"") ->  | L39: =+SUMIF(InputActual!$5:$5,Cfr_Periodi!$L$1,InputActual!42:42) -> 0 | M39: =+SUMIF(InputActual!$5:$5,Cfr_Periodi!$M$1,InputActual!42:42) -> 0 | N39: =+IF(SUMIF(InputTg!$5:$5,Cfr_Periodi!$N$1,InputTg!42:42)<>0,SUMIF(InputTg!$5:$5,Cfr_Periodi!$N$1,InputTg!42:42),"") ->  | P39: 37
A40: 38 | B40: =IF(Ind!C43<>"",INDEX(Ind!$B:$O,MATCH($A40,Ind!$B:$B,0),2),"") ->  | D40: =IF($B40="","",IF(INDEX(Ind!$B:$O,MATCH($A40,Ind!$B:$B,0),6)<>0,INDEX(Ind!$B:$O,MATCH($A40,Ind!$B:$B,0),6),"")) ->  | E40: =IF($B40="","",IF(INDEX(Ind!$B:$O,MATCH($A40,Ind!$B:$B,0),4)<>0,INDEX(Ind!$B:$O,MATCH($A40,Ind!$B:$B,0),4),0)) ->  | F40: =IF(INDEX(Ind!$B$6:$I$105,MATCH($A40,Ind!$B$6:$B$105,0),8)<>0,INDEX(Ind!$B$6:$I$105,MATCH($A40,Ind!$B$6:$B$105,0),8),"") ->  | G40: =IF($B40<>"",INDEX(Ind!$B:$O,MATCH($A40,Ind!$B:$B,0),9),"") ->  | I40: =IF($B40<>"",INDEX(Ind!$B:$O,MATCH($A40,Ind!$B:$B,0),10),"") ->  | K40: =IF(INDEX(Ind!$B$6:$O$105,MATCH($A40,Ind!$B$6:$B$105,0),14)<>0,INDEX(Ind!$B$6:$O$105,MATCH($A40,Ind!$B$6:$B$105,0),14),"") ->  | L40: =+SUMIF(InputActual!$5:$5,Cfr_Periodi!$L$1,InputActual!43:43) -> 0 | M40: =+SUMIF(InputActual!$5:$5,Cfr_Periodi!$M$1,InputActual!43:43) -> 0 | N40: =+IF(SUMIF(InputTg!$5:$5,Cfr_Periodi!$N$1,InputTg!43:43)<>0,SUMIF(InputTg!$5:$5,Cfr_Periodi!$N$1,InputTg!43:43),"") ->  | P40: 38
A41: 39 | B41: =IF(Ind!C44<>"",INDEX(Ind!$B:$O,MATCH($A41,Ind!$B:$B,0),2),"") ->  | D41: =IF($B41="","",IF(INDEX(Ind!$B:$O,MATCH($A41,Ind!$B:$B,0),6)<>0,INDEX(Ind!$B:$O,MATCH($A41,Ind!$B:$B,0),6),"")) ->  | E41: =IF($B41="","",IF(INDEX(Ind!$B:$O,MATCH($A41,Ind!$B:$B,0),4)<>0,INDEX(Ind!$B:$O,MATCH($A41,Ind!$B:$B,0),4),0)) ->  | F41: =IF(INDEX(Ind!$B$6:$I$105,MATCH($A41,Ind!$B$6:$B$105,0),8)<>0,INDEX(Ind!$B$6:$I$105,MATCH($A41,Ind!$B$6:$B$105,0),8),"") ->  | G41: =IF($B41<>"",INDEX(Ind!$B:$O,MATCH($A41,Ind!$B:$B,0),9),"") ->  | I41: =IF($B41<>"",INDEX(Ind!$B:$O,MATCH($A41,Ind!$B:$B,0),10),"") ->  | K41: =IF(INDEX(Ind!$B$6:$O$105,MATCH($A41,Ind!$B$6:$B$105,0),14)<>0,INDEX(Ind!$B$6:$O$105,MATCH($A41,Ind!$B$6:$B$105,0),14),"") ->  | L41: =+SUMIF(InputActual!$5:$5,Cfr_Periodi!$L$1,InputActual!44:44) -> 0 | M41: =+SUMIF(InputActual!$5:$5,Cfr_Periodi!$M$1,InputActual!44:44) -> 0 | N41: =+IF(SUMIF(InputTg!$5:$5,Cfr_Periodi!$N$1,InputTg!44:44)<>0,SUMIF(InputTg!$5:$5,Cfr_Periodi!$N$1,InputTg!44:44),"") ->  | P41: 39
A42: 40 | B42: =IF(Ind!C45<>"",INDEX(Ind!$B:$O,MATCH($A42,Ind!$B:$B,0),2),"") ->  | D42: =IF($B42="","",IF(INDEX(Ind!$B:$O,MATCH($A42,Ind!$B:$B,0),6)<>0,INDEX(Ind!$B:$O,MATCH($A42,Ind!$B:$B,0),6),"")) ->  | E42: =IF($B42="","",IF(INDEX(Ind!$B:$O,MATCH($A42,Ind!$B:$B,0),4)<>0,INDEX(Ind!$B:$O,MATCH($A42,Ind!$B:$B,0),4),0)) ->  | F42: =IF(INDEX(Ind!$B$6:$I$105,MATCH($A42,Ind!$B$6:$B$105,0),8)<>0,INDEX(Ind!$B$6:$I$105,MATCH($A42,Ind!$B$6:$B$105,0),8),"") ->  | G42: =IF($B42<>"",INDEX(Ind!$B:$O,MATCH($A42,Ind!$B:$B,0),9),"") ->  | I42: =IF($B42<>"",INDEX(Ind!$B:$O,MATCH($A42,Ind!$B:$B,0),10),"") ->  | K42: =IF(INDEX(Ind!$B$6:$O$105,MATCH($A42,Ind!$B$6:$B$105,0),14)<>0,INDEX(Ind!$B$6:$O$105,MATCH($A42,Ind!$B$6:$B$105,0),14),"") ->  | L42: =+SUMIF(InputActual!$5:$5,Cfr_Periodi!$L$1,InputActual!45:45) -> 0 | M42: =+SUMIF(InputActual!$5:$5,Cfr_Periodi!$M$1,InputActual!45:45) -> 0 | N42: =+IF(SUMIF(InputTg!$5:$5,Cfr_Periodi!$N$1,InputTg!45:45)<>0,SUMIF(InputTg!$5:$5,Cfr_Periodi!$N$1,InputTg!45:45),"") ->  | P42: 40
A43: 41 | B43: =IF(Ind!C46<>"",INDEX(Ind!$B:$O,MATCH($A43,Ind!$B:$B,0),2),"") ->  | D43: =IF($B43="","",IF(INDEX(Ind!$B:$O,MATCH($A43,Ind!$B:$B,0),6)<>0,INDEX(Ind!$B:$O,MATCH($A43,Ind!$B:$B,0),6),"")) ->  | E43: =IF($B43="","",IF(INDEX(Ind!$B:$O,MATCH($A43,Ind!$B:$B,0),4)<>0,INDEX(Ind!$B:$O,MATCH($A43,Ind!$B:$B,0),4),0)) ->  | F43: =IF(INDEX(Ind!$B$6:$I$105,MATCH($A43,Ind!$B$6:$B$105,0),8)<>0,INDEX(Ind!$B$6:$I$105,MATCH($A43,Ind!$B$6:$B$105,0),8),"") ->  | G43: =IF($B43<>"",INDEX(Ind!$B:$O,MATCH($A43,Ind!$B:$B,0),9),"") ->  | I43: =IF($B43<>"",INDEX(Ind!$B:$O,MATCH($A43,Ind!$B:$B,0),10),"") ->  | K43: =IF(INDEX(Ind!$B$6:$O$105,MATCH($A43,Ind!$B$6:$B$105,0),14)<>0,INDEX(Ind!$B$6:$O$105,MATCH($A43,Ind!$B$6:$B$105,0),14),"") ->  | L43: =+SUMIF(InputActual!$5:$5,Cfr_Periodi!$L$1,InputActual!46:46) -> 0 | M43: =+SUMIF(InputActual!$5:$5,Cfr_Periodi!$M$1,InputActual!46:46) -> 0 | N43: =+IF(SUMIF(InputTg!$5:$5,Cfr_Periodi!$N$1,InputTg!46:46)<>0,SUMIF(InputTg!$5:$5,Cfr_Periodi!$N$1,InputTg!46:46),"") ->  | P43: 41
A44: 42 | B44: =IF(Ind!C47<>"",INDEX(Ind!$B:$O,MATCH($A44,Ind!$B:$B,0),2),"") ->  | D44: =IF($B44="","",IF(INDEX(Ind!$B:$O,MATCH($A44,Ind!$B:$B,0),6)<>0,INDEX(Ind!$B:$O,MATCH($A44,Ind!$B:$B,0),6),"")) ->  | E44: =IF($B44="","",IF(INDEX(Ind!$B:$O,MATCH($A44,Ind!$B:$B,0),4)<>0,INDEX(Ind!$B:$O,MATCH($A44,Ind!$B:$B,0),4),0)) ->  | F44: =IF(INDEX(Ind!$B$6:$I$105,MATCH($A44,Ind!$B$6:$B$105,0),8)<>0,INDEX(Ind!$B$6:$I$105,MATCH($A44,Ind!$B$6:$B$105,0),8),"") ->  | G44: =IF($B44<>"",INDEX(Ind!$B:$O,MATCH($A44,Ind!$B:$B,0),9),"") ->  | I44: =IF($B44<>"",INDEX(Ind!$B:$O,MATCH($A44,Ind!$B:$B,0),10),"") ->  | K44: =IF(INDEX(Ind!$B$6:$O$105,MATCH($A44,Ind!$B$6:$B$105,0),14)<>0,INDEX(Ind!$B$6:$O$105,MATCH($A44,Ind!$B$6:$B$105,0),14),"") ->  | L44: =+SUMIF(InputActual!$5:$5,Cfr_Periodi!$L$1,InputActual!47:47) -> 0 | M44: =+SUMIF(InputActual!$5:$5,Cfr_Periodi!$M$1,InputActual!47:47) -> 0 | N44: =+IF(SUMIF(InputTg!$5:$5,Cfr_Periodi!$N$1,InputTg!47:47)<>0,SUMIF(InputTg!$5:$5,Cfr_Periodi!$N$1,InputTg!47:47),"") ->  | P44: 42
A45: 43 | B45: =IF(Ind!C48<>"",INDEX(Ind!$B:$O,MATCH($A45,Ind!$B:$B,0),2),"") ->  | D45: =IF($B45="","",IF(INDEX(Ind!$B:$O,MATCH($A45,Ind!$B:$B,0),6)<>0,INDEX(Ind!$B:$O,MATCH($A45,Ind!$B:$B,0),6),"")) ->  | E45: =IF($B45="","",IF(INDEX(Ind!$B:$O,MATCH($A45,Ind!$B:$B,0),4)<>0,INDEX(Ind!$B:$O,MATCH($A45,Ind!$B:$B,0),4),0)) ->  | F45: =IF(INDEX(Ind!$B$6:$I$105,MATCH($A45,Ind!$B$6:$B$105,0),8)<>0,INDEX(Ind!$B$6:$I$105,MATCH($A45,Ind!$B$6:$B$105,0),8),"") ->  | G45: =IF($B45<>"",INDEX(Ind!$B:$O,MATCH($A45,Ind!$B:$B,0),9),"") ->  | I45: =IF($B45<>"",INDEX(Ind!$B:$O,MATCH($A45,Ind!$B:$B,0),10),"") ->  | K45: =IF(INDEX(Ind!$B$6:$O$105,MATCH($A45,Ind!$B$6:$B$105,0),14)<>0,INDEX(Ind!$B$6:$O$105,MATCH($A45,Ind!$B$6:$B$105,0),14),"") ->  | L45: =+SUMIF(InputActual!$5:$5,Cfr_Periodi!$L$1,InputActual!48:48) -> 0 | M45: =+SUMIF(InputActual!$5:$5,Cfr_Periodi!$M$1,InputActual!48:48) -> 0 | N45: =+IF(SUMIF(InputTg!$5:$5,Cfr_Periodi!$N$1,InputTg!48:48)<>0,SUMIF(InputTg!$5:$5,Cfr_Periodi!$N$1,InputTg!48:48),"") ->  | P45: 43
A46: 44 | B46: =IF(Ind!C49<>"",INDEX(Ind!$B:$O,MATCH($A46,Ind!$B:$B,0),2),"") ->  | D46: =IF($B46="","",IF(INDEX(Ind!$B:$O,MATCH($A46,Ind!$B:$B,0),6)<>0,INDEX(Ind!$B:$O,MATCH($A46,Ind!$B:$B,0),6),"")) ->  | E46: =IF($B46="","",IF(INDEX(Ind!$B:$O,MATCH($A46,Ind!$B:$B,0),4)<>0,INDEX(Ind!$B:$O,MATCH($A46,Ind!$B:$B,0),4),0)) ->  | F46: =IF(INDEX(Ind!$B$6:$I$105,MATCH($A46,Ind!$B$6:$B$105,0),8)<>0,INDEX(Ind!$B$6:$I$105,MATCH($A46,Ind!$B$6:$B$105,0),8),"") ->  | G46: =IF($B46<>"",INDEX(Ind!$B:$O,MATCH($A46,Ind!$B:$B,0),9),"") ->  | I46: =IF($B46<>"",INDEX(Ind!$B:$O,MATCH($A46,Ind!$B:$B,0),10),"") ->  | K46: =IF(INDEX(Ind!$B$6:$O$105,MATCH($A46,Ind!$B$6:$B$105,0),14)<>0,INDEX(Ind!$B$6:$O$105,MATCH($A46,Ind!$B$6:$B$105,0),14),"") ->  | L46: =+SUMIF(InputActual!$5:$5,Cfr_Periodi!$L$1,InputActual!49:49) -> 0 | M46: =+SUMIF(InputActual!$5:$5,Cfr_Periodi!$M$1,InputActual!49:49) -> 0 | N46: =+IF(SUMIF(InputTg!$5:$5,Cfr_Periodi!$N$1,InputTg!49:49)<>0,SUMIF(InputTg!$5:$5,Cfr_Periodi!$N$1,InputTg!49:49),"") ->  | P46: 44
A47: 45 | B47: =IF(Ind!C50<>"",INDEX(Ind!$B:$O,MATCH($A47,Ind!$B:$B,0),2),"") ->  | D47: =IF($B47="","",IF(INDEX(Ind!$B:$O,MATCH($A47,Ind!$B:$B,0),6)<>0,INDEX(Ind!$B:$O,MATCH($A47,Ind!$B:$B,0),6),"")) ->  | E47: =IF($B47="","",IF(INDEX(Ind!$B:$O,MATCH($A47,Ind!$B:$B,0),4)<>0,INDEX(Ind!$B:$O,MATCH($A47,Ind!$B:$B,0),4),0)) ->  | F47: =IF(INDEX(Ind!$B$6:$I$105,MATCH($A47,Ind!$B$6:$B$105,0),8)<>0,INDEX(Ind!$B$6:$I$105,MATCH($A47,Ind!$B$6:$B$105,0),8),"") ->  | G47: =IF($B47<>"",INDEX(Ind!$B:$O,MATCH($A47,Ind!$B:$B,0),9),"") ->  | I47: =IF($B47<>"",INDEX(Ind!$B:$O,MATCH($A47,Ind!$B:$B,0),10),"") ->  | K47: =IF(INDEX(Ind!$B$6:$O$105,MATCH($A47,Ind!$B$6:$B$105,0),14)<>0,INDEX(Ind!$B$6:$O$105,MATCH($A47,Ind!$B$6:$B$105,0),14),"") ->  | L47: =+SUMIF(InputActual!$5:$5,Cfr_Periodi!$L$1,InputActual!50:50) -> 0 | M47: =+SUMIF(InputActual!$5:$5,Cfr_Periodi!$M$1,InputActual!50:50) -> 0 | N47: =+IF(SUMIF(InputTg!$5:$5,Cfr_Periodi!$N$1,InputTg!50:50)<>0,SUMIF(InputTg!$5:$5,Cfr_Periodi!$N$1,InputTg!50:50),"") ->  | P47: 45
A48: 46 | B48: =IF(Ind!C51<>"",INDEX(Ind!$B:$O,MATCH($A48,Ind!$B:$B,0),2),"") ->  | D48: =IF($B48="","",IF(INDEX(Ind!$B:$O,MATCH($A48,Ind!$B:$B,0),6)<>0,INDEX(Ind!$B:$O,MATCH($A48,Ind!$B:$B,0),6),"")) ->  | E48: =IF($B48="","",IF(INDEX(Ind!$B:$O,MATCH($A48,Ind!$B:$B,0),4)<>0,INDEX(Ind!$B:$O,MATCH($A48,Ind!$B:$B,0),4),0)) ->  | F48: =IF(INDEX(Ind!$B$6:$I$105,MATCH($A48,Ind!$B$6:$B$105,0),8)<>0,INDEX(Ind!$B$6:$I$105,MATCH($A48,Ind!$B$6:$B$105,0),8),"") ->  | G48: =IF($B48<>"",INDEX(Ind!$B:$O,MATCH($A48,Ind!$B:$B,0),9),"") ->  | I48: =IF($B48<>"",INDEX(Ind!$B:$O,MATCH($A48,Ind!$B:$B,0),10),"") ->  | K48: =IF(INDEX(Ind!$B$6:$O$105,MATCH($A48,Ind!$B$6:$B$105,0),14)<>0,INDEX(Ind!$B$6:$O$105,MATCH($A48,Ind!$B$6:$B$105,0),14),"") ->  | L48: =+SUMIF(InputActual!$5:$5,Cfr_Periodi!$L$1,InputActual!51:51) -> 0 | M48: =+SUMIF(InputActual!$5:$5,Cfr_Periodi!$M$1,InputActual!51:51) -> 0 | N48: =+IF(SUMIF(InputTg!$5:$5,Cfr_Periodi!$N$1,InputTg!51:51)<>0,SUMIF(InputTg!$5:$5,Cfr_Periodi!$N$1,InputTg!51:51),"") ->  | P48: 46
A49: 47 | B49: =IF(Ind!C52<>"",INDEX(Ind!$B:$O,MATCH($A49,Ind!$B:$B,0),2),"") ->  | D49: =IF($B49="","",IF(INDEX(Ind!$B:$O,MATCH($A49,Ind!$B:$B,0),6)<>0,INDEX(Ind!$B:$O,MATCH($A49,Ind!$B:$B,0),6),"")) ->  | E49: =IF($B49="","",IF(INDEX(Ind!$B:$O,MATCH($A49,Ind!$B:$B,0),4)<>0,INDEX(Ind!$B:$O,MATCH($A49,Ind!$B:$B,0),4),0)) ->  | F49: =IF(INDEX(Ind!$B$6:$I$105,MATCH($A49,Ind!$B$6:$B$105,0),8)<>0,INDEX(Ind!$B$6:$I$105,MATCH($A49,Ind!$B$6:$B$105,0),8),"") ->  | G49: =IF($B49<>"",INDEX(Ind!$B:$O,MATCH($A49,Ind!$B:$B,0),9),"") ->  | I49: =IF($B49<>"",INDEX(Ind!$B:$O,MATCH($A49,Ind!$B:$B,0),10),"") ->  | K49: =IF(INDEX(Ind!$B$6:$O$105,MATCH($A49,Ind!$B$6:$B$105,0),14)<>0,INDEX(Ind!$B$6:$O$105,MATCH($A49,Ind!$B$6:$B$105,0),14),"") ->  | L49: =+SUMIF(InputActual!$5:$5,Cfr_Periodi!$L$1,InputActual!52:52) -> 0 | M49: =+SUMIF(InputActual!$5:$5,Cfr_Periodi!$M$1,InputActual!52:52) -> 0 | N49: =+IF(SUMIF(InputTg!$5:$5,Cfr_Periodi!$N$1,InputTg!52:52)<>0,SUMIF(InputTg!$5:$5,Cfr_Periodi!$N$1,InputTg!52:52),"") ->  | P49: 47
A50: 48 | B50: =IF(Ind!C53<>"",INDEX(Ind!$B:$O,MATCH($A50,Ind!$B:$B,0),2),"") ->  | D50: =IF($B50="","",IF(INDEX(Ind!$B:$O,MATCH($A50,Ind!$B:$B,0),6)<>0,INDEX(Ind!$B:$O,MATCH($A50,Ind!$B:$B,0),6),"")) ->  | E50: =IF($B50="","",IF(INDEX(Ind!$B:$O,MATCH($A50,Ind!$B:$B,0),4)<>0,INDEX(Ind!$B:$O,MATCH($A50,Ind!$B:$B,0),4),0)) ->  | F50: =IF(INDEX(Ind!$B$6:$I$105,MATCH($A50,Ind!$B$6:$B$105,0),8)<>0,INDEX(Ind!$B$6:$I$105,MATCH($A50,Ind!$B$6:$B$105,0),8),"") ->  | G50: =IF($B50<>"",INDEX(Ind!$B:$O,MATCH($A50,Ind!$B:$B,0),9),"") ->  | I50: =IF($B50<>"",INDEX(Ind!$B:$O,MATCH($A50,Ind!$B:$B,0),10),"") ->  | K50: =IF(INDEX(Ind!$B$6:$O$105,MATCH($A50,Ind!$B$6:$B$105,0),14)<>0,INDEX(Ind!$B$6:$O$105,MATCH($A50,Ind!$B$6:$B$105,0),14),"") ->  | L50: =+SUMIF(InputActual!$5:$5,Cfr_Periodi!$L$1,InputActual!53:53) -> 0 | M50: =+SUMIF(InputActual!$5:$5,Cfr_Periodi!$M$1,InputActual!53:53) -> 0 | N50: =+IF(SUMIF(InputTg!$5:$5,Cfr_Periodi!$N$1,InputTg!53:53)<>0,SUMIF(InputTg!$5:$5,Cfr_Periodi!$N$1,InputTg!53:53),"") ->  | P50: 48
A51: 49 | B51: =IF(Ind!C54<>"",INDEX(Ind!$B:$O,MATCH($A51,Ind!$B:$B,0),2),"") ->  | D51: =IF($B51="","",IF(INDEX(Ind!$B:$O,MATCH($A51,Ind!$B:$B,0),6)<>0,INDEX(Ind!$B:$O,MATCH($A51,Ind!$B:$B,0),6),"")) ->  | E51: =IF($B51="","",IF(INDEX(Ind!$B:$O,MATCH($A51,Ind!$B:$B,0),4)<>0,INDEX(Ind!$B:$O,MATCH($A51,Ind!$B:$B,0),4),0)) ->  | F51: =IF(INDEX(Ind!$B$6:$I$105,MATCH($A51,Ind!$B$6:$B$105,0),8)<>0,INDEX(Ind!$B$6:$I$105,MATCH($A51,Ind!$B$6:$B$105,0),8),"") ->  | G51: =IF($B51<>"",INDEX(Ind!$B:$O,MATCH($A51,Ind!$B:$B,0),9),"") ->  | I51: =IF($B51<>"",INDEX(Ind!$B:$O,MATCH($A51,Ind!$B:$B,0),10),"") ->  | K51: =IF(INDEX(Ind!$B$6:$O$105,MATCH($A51,Ind!$B$6:$B$105,0),14)<>0,INDEX(Ind!$B$6:$O$105,MATCH($A51,Ind!$B$6:$B$105,0),14),"") ->  | L51: =+SUMIF(InputActual!$5:$5,Cfr_Periodi!$L$1,InputActual!54:54) -> 0 | M51: =+SUMIF(InputActual!$5:$5,Cfr_Periodi!$M$1,InputActual!54:54) -> 0 | N51: =+IF(SUMIF(InputTg!$5:$5,Cfr_Periodi!$N$1,InputTg!54:54)<>0,SUMIF(InputTg!$5:$5,Cfr_Periodi!$N$1,InputTg!54:54),"") ->  | P51: 49
A52: 50 | B52: =IF(Ind!C55<>"",INDEX(Ind!$B:$O,MATCH($A52,Ind!$B:$B,0),2),"") ->  | D52: =IF($B52="","",IF(INDEX(Ind!$B:$O,MATCH($A52,Ind!$B:$B,0),6)<>0,INDEX(Ind!$B:$O,MATCH($A52,Ind!$B:$B,0),6),"")) ->  | E52: =IF($B52="","",IF(INDEX(Ind!$B:$O,MATCH($A52,Ind!$B:$B,0),4)<>0,INDEX(Ind!$B:$O,MATCH($A52,Ind!$B:$B,0),4),0)) ->  | F52: =IF(INDEX(Ind!$B$6:$I$105,MATCH($A52,Ind!$B$6:$B$105,0),8)<>0,INDEX(Ind!$B$6:$I$105,MATCH($A52,Ind!$B$6:$B$105,0),8),"") ->  | G52: =IF($B52<>"",INDEX(Ind!$B:$O,MATCH($A52,Ind!$B:$B,0),9),"") ->  | I52: =IF($B52<>"",INDEX(Ind!$B:$O,MATCH($A52,Ind!$B:$B,0),10),"") ->  | K52: =IF(INDEX(Ind!$B$6:$O$105,MATCH($A52,Ind!$B$6:$B$105,0),14)<>0,INDEX(Ind!$B$6:$O$105,MATCH($A52,Ind!$B$6:$B$105,0),14),"") ->  | L52: =+SUMIF(InputActual!$5:$5,Cfr_Periodi!$L$1,InputActual!55:55) -> 0 | M52: =+SUMIF(InputActual!$5:$5,Cfr_Periodi!$M$1,InputActual!55:55) -> 0 | N52: =+IF(SUMIF(InputTg!$5:$5,Cfr_Periodi!$N$1,InputTg!55:55)<>0,SUMIF(InputTg!$5:$5,Cfr_Periodi!$N$1,InputTg!55:55),"") ->  | P52: 50
A53: 51 | B53: =IF(Ind!C56<>"",INDEX(Ind!$B:$O,MATCH($A53,Ind!$B:$B,0),2),"") ->  | D53: =IF($B53="","",IF(INDEX(Ind!$B:$O,MATCH($A53,Ind!$B:$B,0),6)<>0,INDEX(Ind!$B:$O,MATCH($A53,Ind!$B:$B,0),6),"")) ->  | E53: =IF($B53="","",IF(INDEX(Ind!$B:$O,MATCH($A53,Ind!$B:$B,0),4)<>0,INDEX(Ind!$B:$O,MATCH($A53,Ind!$B:$B,0),4),0)) ->  | F53: =IF(INDEX(Ind!$B$6:$I$105,MATCH($A53,Ind!$B$6:$B$105,0),8)<>0,INDEX(Ind!$B$6:$I$105,MATCH($A53,Ind!$B$6:$B$105,0),8),"") ->  | G53: =IF($B53<>"",INDEX(Ind!$B:$O,MATCH($A53,Ind!$B:$B,0),9),"") ->  | I53: =IF($B53<>"",INDEX(Ind!$B:$O,MATCH($A53,Ind!$B:$B,0),10),"") ->  | K53: =IF(INDEX(Ind!$B$6:$O$105,MATCH($A53,Ind!$B$6:$B$105,0),14)<>0,INDEX(Ind!$B$6:$O$105,MATCH($A53,Ind!$B$6:$B$105,0),14),"") ->  | L53: =+SUMIF(InputActual!$5:$5,Cfr_Periodi!$L$1,InputActual!56:56) -> 0 | M53: =+SUMIF(InputActual!$5:$5,Cfr_Periodi!$M$1,InputActual!56:56) -> 0 | N53: =+IF(SUMIF(InputTg!$5:$5,Cfr_Periodi!$N$1,InputTg!56:56)<>0,SUMIF(InputTg!$5:$5,Cfr_Periodi!$N$1,InputTg!56:56),"") ->  | P53: 51
A54: 52 | B54: =IF(Ind!C57<>"",INDEX(Ind!$B:$O,MATCH($A54,Ind!$B:$B,0),2),"") ->  | D54: =IF($B54="","",IF(INDEX(Ind!$B:$O,MATCH($A54,Ind!$B:$B,0),6)<>0,INDEX(Ind!$B:$O,MATCH($A54,Ind!$B:$B,0),6),"")) ->  | E54: =IF($B54="","",IF(INDEX(Ind!$B:$O,MATCH($A54,Ind!$B:$B,0),4)<>0,INDEX(Ind!$B:$O,MATCH($A54,Ind!$B:$B,0),4),0)) ->  | F54: =IF(INDEX(Ind!$B$6:$I$105,MATCH($A54,Ind!$B$6:$B$105,0),8)<>0,INDEX(Ind!$B$6:$I$105,MATCH($A54,Ind!$B$6:$B$105,0),8),"") ->  | G54: =IF($B54<>"",INDEX(Ind!$B:$O,MATCH($A54,Ind!$B:$B,0),9),"") ->  | I54: =IF($B54<>"",INDEX(Ind!$B:$O,MATCH($A54,Ind!$B:$B,0),10),"") ->  | K54: =IF(INDEX(Ind!$B$6:$O$105,MATCH($A54,Ind!$B$6:$B$105,0),14)<>0,INDEX(Ind!$B$6:$O$105,MATCH($A54,Ind!$B$6:$B$105,0),14),"") ->  | L54: =+SUMIF(InputActual!$5:$5,Cfr_Periodi!$L$1,InputActual!57:57) -> 0 | M54: =+SUMIF(InputActual!$5:$5,Cfr_Periodi!$M$1,InputActual!57:57) -> 0 | N54: =+IF(SUMIF(InputTg!$5:$5,Cfr_Periodi!$N$1,InputTg!57:57)<>0,SUMIF(InputTg!$5:$5,Cfr_Periodi!$N$1,InputTg!57:57),"") ->  | P54: 52
A55: 53 | B55: =IF(Ind!C58<>"",INDEX(Ind!$B:$O,MATCH($A55,Ind!$B:$B,0),2),"") ->  | D55: =IF($B55="","",IF(INDEX(Ind!$B:$O,MATCH($A55,Ind!$B:$B,0),6)<>0,INDEX(Ind!$B:$O,MATCH($A55,Ind!$B:$B,0),6),"")) ->  | E55: =IF($B55="","",IF(INDEX(Ind!$B:$O,MATCH($A55,Ind!$B:$B,0),4)<>0,INDEX(Ind!$B:$O,MATCH($A55,Ind!$B:$B,0),4),0)) ->  | F55: =IF(INDEX(Ind!$B$6:$I$105,MATCH($A55,Ind!$B$6:$B$105,0),8)<>0,INDEX(Ind!$B$6:$I$105,MATCH($A55,Ind!$B$6:$B$105,0),8),"") ->  | G55: =IF($B55<>"",INDEX(Ind!$B:$O,MATCH($A55,Ind!$B:$B,0),9),"") ->  | I55: =IF($B55<>"",INDEX(Ind!$B:$O,MATCH($A55,Ind!$B:$B,0),10),"") ->  | K55: =IF(INDEX(Ind!$B$6:$O$105,MATCH($A55,Ind!$B$6:$B$105,0),14)<>0,INDEX(Ind!$B$6:$O$105,MATCH($A55,Ind!$B$6:$B$105,0),14),"") ->  | L55: =+SUMIF(InputActual!$5:$5,Cfr_Periodi!$L$1,InputActual!58:58) -> 0 | M55: =+SUMIF(InputActual!$5:$5,Cfr_Periodi!$M$1,InputActual!58:58) -> 0 | N55: =+IF(SUMIF(InputTg!$5:$5,Cfr_Periodi!$N$1,InputTg!58:58)<>0,SUMIF(InputTg!$5:$5,Cfr_Periodi!$N$1,InputTg!58:58),"") ->  | P55: 53
A56: 54 | B56: =IF(Ind!C59<>"",INDEX(Ind!$B:$O,MATCH($A56,Ind!$B:$B,0),2),"") ->  | D56: =IF($B56="","",IF(INDEX(Ind!$B:$O,MATCH($A56,Ind!$B:$B,0),6)<>0,INDEX(Ind!$B:$O,MATCH($A56,Ind!$B:$B,0),6),"")) ->  | E56: =IF($B56="","",IF(INDEX(Ind!$B:$O,MATCH($A56,Ind!$B:$B,0),4)<>0,INDEX(Ind!$B:$O,MATCH($A56,Ind!$B:$B,0),4),0)) ->  | F56: =IF(INDEX(Ind!$B$6:$I$105,MATCH($A56,Ind!$B$6:$B$105,0),8)<>0,INDEX(Ind!$B$6:$I$105,MATCH($A56,Ind!$B$6:$B$105,0),8),"") ->  | G56: =IF($B56<>"",INDEX(Ind!$B:$O,MATCH($A56,Ind!$B:$B,0),9),"") ->  | I56: =IF($B56<>"",INDEX(Ind!$B:$O,MATCH($A56,Ind!$B:$B,0),10),"") ->  | K56: =IF(INDEX(Ind!$B$6:$O$105,MATCH($A56,Ind!$B$6:$B$105,0),14)<>0,INDEX(Ind!$B$6:$O$105,MATCH($A56,Ind!$B$6:$B$105,0),14),"") ->  | L56: =+SUMIF(InputActual!$5:$5,Cfr_Periodi!$L$1,InputActual!59:59) -> 0 | M56: =+SUMIF(InputActual!$5:$5,Cfr_Periodi!$M$1,InputActual!59:59) -> 0 | N56: =+IF(SUMIF(InputTg!$5:$5,Cfr_Periodi!$N$1,InputTg!59:59)<>0,SUMIF(InputTg!$5:$5,Cfr_Periodi!$N$1,InputTg!59:59),"") ->  | P56: 54
A57: 55 | B57: =IF(Ind!C60<>"",INDEX(Ind!$B:$O,MATCH($A57,Ind!$B:$B,0),2),"") ->  | D57: =IF($B57="","",IF(INDEX(Ind!$B:$O,MATCH($A57,Ind!$B:$B,0),6)<>0,INDEX(Ind!$B:$O,MATCH($A57,Ind!$B:$B,0),6),"")) ->  | E57: =IF($B57="","",IF(INDEX(Ind!$B:$O,MATCH($A57,Ind!$B:$B,0),4)<>0,INDEX(Ind!$B:$O,MATCH($A57,Ind!$B:$B,0),4),0)) ->  | F57: =IF(INDEX(Ind!$B$6:$I$105,MATCH($A57,Ind!$B$6:$B$105,0),8)<>0,INDEX(Ind!$B$6:$I$105,MATCH($A57,Ind!$B$6:$B$105,0),8),"") ->  | G57: =IF($B57<>"",INDEX(Ind!$B:$O,MATCH($A57,Ind!$B:$B,0),9),"") ->  | I57: =IF($B57<>"",INDEX(Ind!$B:$O,MATCH($A57,Ind!$B:$B,0),10),"") ->  | K57: =IF(INDEX(Ind!$B$6:$O$105,MATCH($A57,Ind!$B$6:$B$105,0),14)<>0,INDEX(Ind!$B$6:$O$105,MATCH($A57,Ind!$B$6:$B$105,0),14),"") ->  | L57: =+SUMIF(InputActual!$5:$5,Cfr_Periodi!$L$1,InputActual!60:60) -> 0 | M57: =+SUMIF(InputActual!$5:$5,Cfr_Periodi!$M$1,InputActual!60:60) -> 0 | N57: =+IF(SUMIF(InputTg!$5:$5,Cfr_Periodi!$N$1,InputTg!60:60)<>0,SUMIF(InputTg!$5:$5,Cfr_Periodi!$N$1,InputTg!60:60),"") ->  | P57: 55
A58: 56 | B58: =IF(Ind!C61<>"",INDEX(Ind!$B:$O,MATCH($A58,Ind!$B:$B,0),2),"") ->  | D58: =IF($B58="","",IF(INDEX(Ind!$B:$O,MATCH($A58,Ind!$B:$B,0),6)<>0,INDEX(Ind!$B:$O,MATCH($A58,Ind!$B:$B,0),6),"")) ->  | E58: =IF($B58="","",IF(INDEX(Ind!$B:$O,MATCH($A58,Ind!$B:$B,0),4)<>0,INDEX(Ind!$B:$O,MATCH($A58,Ind!$B:$B,0),4),0)) ->  | F58: =IF(INDEX(Ind!$B$6:$I$105,MATCH($A58,Ind!$B$6:$B$105,0),8)<>0,INDEX(Ind!$B$6:$I$105,MATCH($A58,Ind!$B$6:$B$105,0),8),"") ->  | G58: =IF($B58<>"",INDEX(Ind!$B:$O,MATCH($A58,Ind!$B:$B,0),9),"") ->  | I58: =IF($B58<>"",INDEX(Ind!$B:$O,MATCH($A58,Ind!$B:$B,0),10),"") ->  | K58: =IF(INDEX(Ind!$B$6:$O$105,MATCH($A58,Ind!$B$6:$B$105,0),14)<>0,INDEX(Ind!$B$6:$O$105,MATCH($A58,Ind!$B$6:$B$105,0),14),"") ->  | L58: =+SUMIF(InputActual!$5:$5,Cfr_Periodi!$L$1,InputActual!61:61) -> 0 | M58: =+SUMIF(InputActual!$5:$5,Cfr_Periodi!$M$1,InputActual!61:61) -> 0 | N58: =+IF(SUMIF(InputTg!$5:$5,Cfr_Periodi!$N$1,InputTg!61:61)<>0,SUMIF(InputTg!$5:$5,Cfr_Periodi!$N$1,InputTg!61:61),"") ->  | P58: 56
A59: 57 | B59: =IF(Ind!C62<>"",INDEX(Ind!$B:$O,MATCH($A59,Ind!$B:$B,0),2),"") ->  | D59: =IF($B59="","",IF(INDEX(Ind!$B:$O,MATCH($A59,Ind!$B:$B,0),6)<>0,INDEX(Ind!$B:$O,MATCH($A59,Ind!$B:$B,0),6),"")) ->  | E59: =IF($B59="","",IF(INDEX(Ind!$B:$O,MATCH($A59,Ind!$B:$B,0),4)<>0,INDEX(Ind!$B:$O,MATCH($A59,Ind!$B:$B,0),4),0)) ->  | F59: =IF(INDEX(Ind!$B$6:$I$105,MATCH($A59,Ind!$B$6:$B$105,0),8)<>0,INDEX(Ind!$B$6:$I$105,MATCH($A59,Ind!$B$6:$B$105,0),8),"") ->  | G59: =IF($B59<>"",INDEX(Ind!$B:$O,MATCH($A59,Ind!$B:$B,0),9),"") ->  | I59: =IF($B59<>"",INDEX(Ind!$B:$O,MATCH($A59,Ind!$B:$B,0),10),"") ->  | K59: =IF(INDEX(Ind!$B$6:$O$105,MATCH($A59,Ind!$B$6:$B$105,0),14)<>0,INDEX(Ind!$B$6:$O$105,MATCH($A59,Ind!$B$6:$B$105,0),14),"") ->  | L59: =+SUMIF(InputActual!$5:$5,Cfr_Periodi!$L$1,InputActual!62:62) -> 0 | M59: =+SUMIF(InputActual!$5:$5,Cfr_Periodi!$M$1,InputActual!62:62) -> 0 | N59: =+IF(SUMIF(InputTg!$5:$5,Cfr_Periodi!$N$1,InputTg!62:62)<>0,SUMIF(InputTg!$5:$5,Cfr_Periodi!$N$1,InputTg!62:62),"") ->  | P59: 57
A60: 58 | B60: =IF(Ind!C63<>"",INDEX(Ind!$B:$O,MATCH($A60,Ind!$B:$B,0),2),"") ->  | D60: =IF($B60="","",IF(INDEX(Ind!$B:$O,MATCH($A60,Ind!$B:$B,0),6)<>0,INDEX(Ind!$B:$O,MATCH($A60,Ind!$B:$B,0),6),"")) ->  | E60: =IF($B60="","",IF(INDEX(Ind!$B:$O,MATCH($A60,Ind!$B:$B,0),4)<>0,INDEX(Ind!$B:$O,MATCH($A60,Ind!$B:$B,0),4),0)) ->  | F60: =IF(INDEX(Ind!$B$6:$I$105,MATCH($A60,Ind!$B$6:$B$105,0),8)<>0,INDEX(Ind!$B$6:$I$105,MATCH($A60,Ind!$B$6:$B$105,0),8),"") ->  | G60: =IF($B60<>"",INDEX(Ind!$B:$O,MATCH($A60,Ind!$B:$B,0),9),"") ->  | I60: =IF($B60<>"",INDEX(Ind!$B:$O,MATCH($A60,Ind!$B:$B,0),10),"") ->  | K60: =IF(INDEX(Ind!$B$6:$O$105,MATCH($A60,Ind!$B$6:$B$105,0),14)<>0,INDEX(Ind!$B$6:$O$105,MATCH($A60,Ind!$B$6:$B$105,0),14),"") ->  | L60: =+SUMIF(InputActual!$5:$5,Cfr_Periodi!$L$1,InputActual!63:63) -> 0 | M60: =+SUMIF(InputActual!$5:$5,Cfr_Periodi!$M$1,InputActual!63:63) -> 0 | N60: =+IF(SUMIF(InputTg!$5:$5,Cfr_Periodi!$N$1,InputTg!63:63)<>0,SUMIF(InputTg!$5:$5,Cfr_Periodi!$N$1,InputTg!63:63),"") ->  | P60: 58
A61: 59 | B61: =IF(Ind!C64<>"",INDEX(Ind!$B:$O,MATCH($A61,Ind!$B:$B,0),2),"") ->  | D61: =IF($B61="","",IF(INDEX(Ind!$B:$O,MATCH($A61,Ind!$B:$B,0),6)<>0,INDEX(Ind!$B:$O,MATCH($A61,Ind!$B:$B,0),6),"")) ->  | E61: =IF($B61="","",IF(INDEX(Ind!$B:$O,MATCH($A61,Ind!$B:$B,0),4)<>0,INDEX(Ind!$B:$O,MATCH($A61,Ind!$B:$B,0),4),0)) ->  | F61: =IF(INDEX(Ind!$B$6:$I$105,MATCH($A61,Ind!$B$6:$B$105,0),8)<>0,INDEX(Ind!$B$6:$I$105,MATCH($A61,Ind!$B$6:$B$105,0),8),"") ->  | G61: =IF($B61<>"",INDEX(Ind!$B:$O,MATCH($A61,Ind!$B:$B,0),9),"") ->  | I61: =IF($B61<>"",INDEX(Ind!$B:$O,MATCH($A61,Ind!$B:$B,0),10),"") ->  | K61: =IF(INDEX(Ind!$B$6:$O$105,MATCH($A61,Ind!$B$6:$B$105,0),14)<>0,INDEX(Ind!$B$6:$O$105,MATCH($A61,Ind!$B$6:$B$105,0),14),"") ->  | L61: =+SUMIF(InputActual!$5:$5,Cfr_Periodi!$L$1,InputActual!64:64) -> 0 | M61: =+SUMIF(InputActual!$5:$5,Cfr_Periodi!$M$1,InputActual!64:64) -> 0 | N61: =+IF(SUMIF(InputTg!$5:$5,Cfr_Periodi!$N$1,InputTg!64:64)<>0,SUMIF(InputTg!$5:$5,Cfr_Periodi!$N$1,InputTg!64:64),"") ->  | P61: 59
A62: 60 | B62: =IF(Ind!C65<>"",INDEX(Ind!$B:$O,MATCH($A62,Ind!$B:$B,0),2),"") ->  | D62: =IF($B62="","",IF(INDEX(Ind!$B:$O,MATCH($A62,Ind!$B:$B,0),6)<>0,INDEX(Ind!$B:$O,MATCH($A62,Ind!$B:$B,0),6),"")) ->  | E62: =IF($B62="","",IF(INDEX(Ind!$B:$O,MATCH($A62,Ind!$B:$B,0),4)<>0,INDEX(Ind!$B:$O,MATCH($A62,Ind!$B:$B,0),4),0)) ->  | F62: =IF(INDEX(Ind!$B$6:$I$105,MATCH($A62,Ind!$B$6:$B$105,0),8)<>0,INDEX(Ind!$B$6:$I$105,MATCH($A62,Ind!$B$6:$B$105,0),8),"") ->  | G62: =IF($B62<>"",INDEX(Ind!$B:$O,MATCH($A62,Ind!$B:$B,0),9),"") ->  | I62: =IF($B62<>"",INDEX(Ind!$B:$O,MATCH($A62,Ind!$B:$B,0),10),"") ->  | K62: =IF(INDEX(Ind!$B$6:$O$105,MATCH($A62,Ind!$B$6:$B$105,0),14)<>0,INDEX(Ind!$B$6:$O$105,MATCH($A62,Ind!$B$6:$B$105,0),14),"") ->  | L62: =+SUMIF(InputActual!$5:$5,Cfr_Periodi!$L$1,InputActual!65:65) -> 0 | M62: =+SUMIF(InputActual!$5:$5,Cfr_Periodi!$M$1,InputActual!65:65) -> 0 | N62: =+IF(SUMIF(InputTg!$5:$5,Cfr_Periodi!$N$1,InputTg!65:65)<>0,SUMIF(InputTg!$5:$5,Cfr_Periodi!$N$1,InputTg!65:65),"") ->  | P62: 60
A63: 61 | B63: =IF(Ind!C66<>"",INDEX(Ind!$B:$O,MATCH($A63,Ind!$B:$B,0),2),"") ->  | D63: =IF($B63="","",IF(INDEX(Ind!$B:$O,MATCH($A63,Ind!$B:$B,0),6)<>0,INDEX(Ind!$B:$O,MATCH($A63,Ind!$B:$B,0),6),"")) ->  | E63: =IF($B63="","",IF(INDEX(Ind!$B:$O,MATCH($A63,Ind!$B:$B,0),4)<>0,INDEX(Ind!$B:$O,MATCH($A63,Ind!$B:$B,0),4),0)) ->  | F63: =IF(INDEX(Ind!$B$6:$I$105,MATCH($A63,Ind!$B$6:$B$105,0),8)<>0,INDEX(Ind!$B$6:$I$105,MATCH($A63,Ind!$B$6:$B$105,0),8),"") ->  | G63: =IF($B63<>"",INDEX(Ind!$B:$O,MATCH($A63,Ind!$B:$B,0),9),"") ->  | I63: =IF($B63<>"",INDEX(Ind!$B:$O,MATCH($A63,Ind!$B:$B,0),10),"") ->  | K63: =IF(INDEX(Ind!$B$6:$O$105,MATCH($A63,Ind!$B$6:$B$105,0),14)<>0,INDEX(Ind!$B$6:$O$105,MATCH($A63,Ind!$B$6:$B$105,0),14),"") ->  | L63: =+SUMIF(InputActual!$5:$5,Cfr_Periodi!$L$1,InputActual!66:66) -> 0 | M63: =+SUMIF(InputActual!$5:$5,Cfr_Periodi!$M$1,InputActual!66:66) -> 0 | N63: =+IF(SUMIF(InputTg!$5:$5,Cfr_Periodi!$N$1,InputTg!66:66)<>0,SUMIF(InputTg!$5:$5,Cfr_Periodi!$N$1,InputTg!66:66),"") ->  | P63: 61
A64: 62 | B64: =IF(Ind!C67<>"",INDEX(Ind!$B:$O,MATCH($A64,Ind!$B:$B,0),2),"") ->  | D64: =IF($B64="","",IF(INDEX(Ind!$B:$O,MATCH($A64,Ind!$B:$B,0),6)<>0,INDEX(Ind!$B:$O,MATCH($A64,Ind!$B:$B,0),6),"")) ->  | E64: =IF($B64="","",IF(INDEX(Ind!$B:$O,MATCH($A64,Ind!$B:$B,0),4)<>0,INDEX(Ind!$B:$O,MATCH($A64,Ind!$B:$B,0),4),0)) ->  | F64: =IF(INDEX(Ind!$B$6:$I$105,MATCH($A64,Ind!$B$6:$B$105,0),8)<>0,INDEX(Ind!$B$6:$I$105,MATCH($A64,Ind!$B$6:$B$105,0),8),"") ->  | G64: =IF($B64<>"",INDEX(Ind!$B:$O,MATCH($A64,Ind!$B:$B,0),9),"") ->  | I64: =IF($B64<>"",INDEX(Ind!$B:$O,MATCH($A64,Ind!$B:$B,0),10),"") ->  | K64: =IF(INDEX(Ind!$B$6:$O$105,MATCH($A64,Ind!$B$6:$B$105,0),14)<>0,INDEX(Ind!$B$6:$O$105,MATCH($A64,Ind!$B$6:$B$105,0),14),"") ->  | L64: =+SUMIF(InputActual!$5:$5,Cfr_Periodi!$L$1,InputActual!67:67) -> 0 | M64: =+SUMIF(InputActual!$5:$5,Cfr_Periodi!$M$1,InputActual!67:67) -> 0 | N64: =+IF(SUMIF(InputTg!$5:$5,Cfr_Periodi!$N$1,InputTg!67:67)<>0,SUMIF(InputTg!$5:$5,Cfr_Periodi!$N$1,InputTg!67:67),"") ->  | P64: 62
A65: 63 | B65: =IF(Ind!C68<>"",INDEX(Ind!$B:$O,MATCH($A65,Ind!$B:$B,0),2),"") ->  | D65: =IF($B65="","",IF(INDEX(Ind!$B:$O,MATCH($A65,Ind!$B:$B,0),6)<>0,INDEX(Ind!$B:$O,MATCH($A65,Ind!$B:$B,0),6),"")) ->  | E65: =IF($B65="","",IF(INDEX(Ind!$B:$O,MATCH($A65,Ind!$B:$B,0),4)<>0,INDEX(Ind!$B:$O,MATCH($A65,Ind!$B:$B,0),4),0)) ->  | F65: =IF(INDEX(Ind!$B$6:$I$105,MATCH($A65,Ind!$B$6:$B$105,0),8)<>0,INDEX(Ind!$B$6:$I$105,MATCH($A65,Ind!$B$6:$B$105,0),8),"") ->  | G65: =IF($B65<>"",INDEX(Ind!$B:$O,MATCH($A65,Ind!$B:$B,0),9),"") ->  | I65: =IF($B65<>"",INDEX(Ind!$B:$O,MATCH($A65,Ind!$B:$B,0),10),"") ->  | K65: =IF(INDEX(Ind!$B$6:$O$105,MATCH($A65,Ind!$B$6:$B$105,0),14)<>0,INDEX(Ind!$B$6:$O$105,MATCH($A65,Ind!$B$6:$B$105,0),14),"") ->  | L65: =+SUMIF(InputActual!$5:$5,Cfr_Periodi!$L$1,InputActual!68:68) -> 0 | M65: =+SUMIF(InputActual!$5:$5,Cfr_Periodi!$M$1,InputActual!68:68) -> 0 | N65: =+IF(SUMIF(InputTg!$5:$5,Cfr_Periodi!$N$1,InputTg!68:68)<>0,SUMIF(InputTg!$5:$5,Cfr_Periodi!$N$1,InputTg!68:68),"") ->  | P65: 63
A66: 64 | B66: =IF(Ind!C69<>"",INDEX(Ind!$B:$O,MATCH($A66,Ind!$B:$B,0),2),"") ->  | D66: =IF($B66="","",IF(INDEX(Ind!$B:$O,MATCH($A66,Ind!$B:$B,0),6)<>0,INDEX(Ind!$B:$O,MATCH($A66,Ind!$B:$B,0),6),"")) ->  | E66: =IF($B66="","",IF(INDEX(Ind!$B:$O,MATCH($A66,Ind!$B:$B,0),4)<>0,INDEX(Ind!$B:$O,MATCH($A66,Ind!$B:$B,0),4),0)) ->  | F66: =IF(INDEX(Ind!$B$6:$I$105,MATCH($A66,Ind!$B$6:$B$105,0),8)<>0,INDEX(Ind!$B$6:$I$105,MATCH($A66,Ind!$B$6:$B$105,0),8),"") ->  | G66: =IF($B66<>"",INDEX(Ind!$B:$O,MATCH($A66,Ind!$B:$B,0),9),"") ->  | I66: =IF($B66<>"",INDEX(Ind!$B:$O,MATCH($A66,Ind!$B:$B,0),10),"") ->  | K66: =IF(INDEX(Ind!$B$6:$O$105,MATCH($A66,Ind!$B$6:$B$105,0),14)<>0,INDEX(Ind!$B$6:$O$105,MATCH($A66,Ind!$B$6:$B$105,0),14),"") ->  | L66: =+SUMIF(InputActual!$5:$5,Cfr_Periodi!$L$1,InputActual!69:69) -> 0 | M66: =+SUMIF(InputActual!$5:$5,Cfr_Periodi!$M$1,InputActual!69:69) -> 0 | N66: =+IF(SUMIF(InputTg!$5:$5,Cfr_Periodi!$N$1,InputTg!69:69)<>0,SUMIF(InputTg!$5:$5,Cfr_Periodi!$N$1,InputTg!69:69),"") ->  | P66: 64
A67: 65 | B67: =IF(Ind!C70<>"",INDEX(Ind!$B:$O,MATCH($A67,Ind!$B:$B,0),2),"") ->  | D67: =IF($B67="","",IF(INDEX(Ind!$B:$O,MATCH($A67,Ind!$B:$B,0),6)<>0,INDEX(Ind!$B:$O,MATCH($A67,Ind!$B:$B,0),6),"")) ->  | E67: =IF($B67="","",IF(INDEX(Ind!$B:$O,MATCH($A67,Ind!$B:$B,0),4)<>0,INDEX(Ind!$B:$O,MATCH($A67,Ind!$B:$B,0),4),0)) ->  | F67: =IF(INDEX(Ind!$B$6:$I$105,MATCH($A67,Ind!$B$6:$B$105,0),8)<>0,INDEX(Ind!$B$6:$I$105,MATCH($A67,Ind!$B$6:$B$105,0),8),"") ->  | G67: =IF($B67<>"",INDEX(Ind!$B:$O,MATCH($A67,Ind!$B:$B,0),9),"") ->  | I67: =IF($B67<>"",INDEX(Ind!$B:$O,MATCH($A67,Ind!$B:$B,0),10),"") ->  | K67: =IF(INDEX(Ind!$B$6:$O$105,MATCH($A67,Ind!$B$6:$B$105,0),14)<>0,INDEX(Ind!$B$6:$O$105,MATCH($A67,Ind!$B$6:$B$105,0),14),"") ->  | L67: =+SUMIF(InputActual!$5:$5,Cfr_Periodi!$L$1,InputActual!70:70) -> 0 | M67: =+SUMIF(InputActual!$5:$5,Cfr_Periodi!$M$1,InputActual!70:70) -> 0 | N67: =+IF(SUMIF(InputTg!$5:$5,Cfr_Periodi!$N$1,InputTg!70:70)<>0,SUMIF(InputTg!$5:$5,Cfr_Periodi!$N$1,InputTg!70:70),"") ->  | P67: 65
A68: 66 | B68: =IF(Ind!C71<>"",INDEX(Ind!$B:$O,MATCH($A68,Ind!$B:$B,0),2),"") ->  | C68: =IF(B68<>"",A68&"-"&B68,"") ->  | D68: =IF($B68="","",IF(INDEX(Ind!$B:$O,MATCH($A68,Ind!$B:$B,0),6)<>0,INDEX(Ind!$B:$O,MATCH($A68,Ind!$B:$B,0),6),"")) ->  | E68: =IF($B68="","",IF(INDEX(Ind!$B:$O,MATCH($A68,Ind!$B:$B,0),4)<>0,INDEX(Ind!$B:$O,MATCH($A68,Ind!$B:$B,0),4),0)) ->  | F68: =IF(INDEX(Ind!$B$6:$I$105,MATCH($A68,Ind!$B$6:$B$105,0),8)<>0,INDEX(Ind!$B$6:$I$105,MATCH($A68,Ind!$B$6:$B$105,0),8),"") ->  | G68: =IF($B68<>"",INDEX(Ind!$B:$O,MATCH($A68,Ind!$B:$B,0),9),"") ->  | H68: =+IF(G68="","",IF(G68="Percentuale",0,1)) ->  | I68: =IF($B68<>"",INDEX(Ind!$B:$O,MATCH($A68,Ind!$B:$B,0),10),"") ->  | J68: =IF(I68="","",IF(I68="+",1,-1)) ->  | K68: =IF(INDEX(Ind!$B$6:$O$105,MATCH($A68,Ind!$B$6:$B$105,0),14)<>0,INDEX(Ind!$B$6:$O$105,MATCH($A68,Ind!$B$6:$B$105,0),14),"") ->  | L68: =+SUMIF(InputActual!$5:$5,Cfr_Periodi!$L$1,InputActual!71:71) -> 0 | M68: =+SUMIF(InputActual!$5:$5,Cfr_Periodi!$M$1,InputActual!71:71) -> 0 | N68: =+IF(SUMIF(InputTg!$5:$5,Cfr_Periodi!$N$1,InputTg!71:71)<>0,SUMIF(InputTg!$5:$5,Cfr_Periodi!$N$1,InputTg!71:71),"") ->  | P68: 66
A69: 67 | B69: =IF(Ind!C72<>"",INDEX(Ind!$B:$O,MATCH($A69,Ind!$B:$B,0),2),"") ->  | D69: =IF($B69="","",IF(INDEX(Ind!$B:$O,MATCH($A69,Ind!$B:$B,0),6)<>0,INDEX(Ind!$B:$O,MATCH($A69,Ind!$B:$B,0),6),"")) ->  | E69: =IF($B69="","",IF(INDEX(Ind!$B:$O,MATCH($A69,Ind!$B:$B,0),4)<>0,INDEX(Ind!$B:$O,MATCH($A69,Ind!$B:$B,0),4),0)) ->  | F69: =IF(INDEX(Ind!$B$6:$I$105,MATCH($A69,Ind!$B$6:$B$105,0),8)<>0,INDEX(Ind!$B$6:$I$105,MATCH($A69,Ind!$B$6:$B$105,0),8),"") ->  | G69: =IF($B69<>"",INDEX(Ind!$B:$O,MATCH($A69,Ind!$B:$B,0),9),"") ->  | I69: =IF($B69<>"",INDEX(Ind!$B:$O,MATCH($A69,Ind!$B:$B,0),10),"") ->  | K69: =IF(INDEX(Ind!$B$6:$O$105,MATCH($A69,Ind!$B$6:$B$105,0),14)<>0,INDEX(Ind!$B$6:$O$105,MATCH($A69,Ind!$B$6:$B$105,0),14),"") ->  | L69: =+SUMIF(InputActual!$5:$5,Cfr_Periodi!$L$1,InputActual!72:72) -> 0 | M69: =+SUMIF(InputActual!$5:$5,Cfr_Periodi!$M$1,InputActual!72:72) -> 0 | N69: =+IF(SUMIF(InputTg!$5:$5,Cfr_Periodi!$N$1,InputTg!72:72)<>0,SUMIF(InputTg!$5:$5,Cfr_Periodi!$N$1,InputTg!72:72),"") ->  | P69: 67
A70: 68 | B70: =IF(Ind!C73<>"",INDEX(Ind!$B:$O,MATCH($A70,Ind!$B:$B,0),2),"") ->  | D70: =IF($B70="","",IF(INDEX(Ind!$B:$O,MATCH($A70,Ind!$B:$B,0),6)<>0,INDEX(Ind!$B:$O,MATCH($A70,Ind!$B:$B,0),6),"")) ->  | E70: =IF($B70="","",IF(INDEX(Ind!$B:$O,MATCH($A70,Ind!$B:$B,0),4)<>0,INDEX(Ind!$B:$O,MATCH($A70,Ind!$B:$B,0),4),0)) ->  | F70: =IF(INDEX(Ind!$B$6:$I$105,MATCH($A70,Ind!$B$6:$B$105,0),8)<>0,INDEX(Ind!$B$6:$I$105,MATCH($A70,Ind!$B$6:$B$105,0),8),"") ->  | G70: =IF($B70<>"",INDEX(Ind!$B:$O,MATCH($A70,Ind!$B:$B,0),9),"") ->  | I70: =IF($B70<>"",INDEX(Ind!$B:$O,MATCH($A70,Ind!$B:$B,0),10),"") ->  | K70: =IF(INDEX(Ind!$B$6:$O$105,MATCH($A70,Ind!$B$6:$B$105,0),14)<>0,INDEX(Ind!$B$6:$O$105,MATCH($A70,Ind!$B$6:$B$105,0),14),"") ->  | L70: =+SUMIF(InputActual!$5:$5,Cfr_Periodi!$L$1,InputActual!73:73) -> 0 | M70: =+SUMIF(InputActual!$5:$5,Cfr_Periodi!$M$1,InputActual!73:73) -> 0 | N70: =+IF(SUMIF(InputTg!$5:$5,Cfr_Periodi!$N$1,InputTg!73:73)<>0,SUMIF(InputTg!$5:$5,Cfr_Periodi!$N$1,InputTg!73:73),"") ->  | P70: 68
A71: 69 | B71: =IF(Ind!C74<>"",INDEX(Ind!$B:$O,MATCH($A71,Ind!$B:$B,0),2),"") ->  | D71: =IF($B71="","",IF(INDEX(Ind!$B:$O,MATCH($A71,Ind!$B:$B,0),6)<>0,INDEX(Ind!$B:$O,MATCH($A71,Ind!$B:$B,0),6),"")) ->  | E71: =IF($B71="","",IF(INDEX(Ind!$B:$O,MATCH($A71,Ind!$B:$B,0),4)<>0,INDEX(Ind!$B:$O,MATCH($A71,Ind!$B:$B,0),4),0)) ->  | F71: =IF(INDEX(Ind!$B$6:$I$105,MATCH($A71,Ind!$B$6:$B$105,0),8)<>0,INDEX(Ind!$B$6:$I$105,MATCH($A71,Ind!$B$6:$B$105,0),8),"") ->  | G71: =IF($B71<>"",INDEX(Ind!$B:$O,MATCH($A71,Ind!$B:$B,0),9),"") ->  | I71: =IF($B71<>"",INDEX(Ind!$B:$O,MATCH($A71,Ind!$B:$B,0),10),"") ->  | K71: =IF(INDEX(Ind!$B$6:$O$105,MATCH($A71,Ind!$B$6:$B$105,0),14)<>0,INDEX(Ind!$B$6:$O$105,MATCH($A71,Ind!$B$6:$B$105,0),14),"") ->  | L71: =+SUMIF(InputActual!$5:$5,Cfr_Periodi!$L$1,InputActual!74:74) -> 0 | M71: =+SUMIF(InputActual!$5:$5,Cfr_Periodi!$M$1,InputActual!74:74) -> 0 | N71: =+IF(SUMIF(InputTg!$5:$5,Cfr_Periodi!$N$1,InputTg!74:74)<>0,SUMIF(InputTg!$5:$5,Cfr_Periodi!$N$1,InputTg!74:74),"") ->  | P71: 69
A72: 70 | B72: =IF(Ind!C75<>"",INDEX(Ind!$B:$O,MATCH($A72,Ind!$B:$B,0),2),"") ->  | D72: =IF($B72="","",IF(INDEX(Ind!$B:$O,MATCH($A72,Ind!$B:$B,0),6)<>0,INDEX(Ind!$B:$O,MATCH($A72,Ind!$B:$B,0),6),"")) ->  | E72: =IF($B72="","",IF(INDEX(Ind!$B:$O,MATCH($A72,Ind!$B:$B,0),4)<>0,INDEX(Ind!$B:$O,MATCH($A72,Ind!$B:$B,0),4),0)) ->  | F72: =IF(INDEX(Ind!$B$6:$I$105,MATCH($A72,Ind!$B$6:$B$105,0),8)<>0,INDEX(Ind!$B$6:$I$105,MATCH($A72,Ind!$B$6:$B$105,0),8),"") ->  | G72: =IF($B72<>"",INDEX(Ind!$B:$O,MATCH($A72,Ind!$B:$B,0),9),"") ->  | I72: =IF($B72<>"",INDEX(Ind!$B:$O,MATCH($A72,Ind!$B:$B,0),10),"") ->  | K72: =IF(INDEX(Ind!$B$6:$O$105,MATCH($A72,Ind!$B$6:$B$105,0),14)<>0,INDEX(Ind!$B$6:$O$105,MATCH($A72,Ind!$B$6:$B$105,0),14),"") ->  | L72: =+SUMIF(InputActual!$5:$5,Cfr_Periodi!$L$1,InputActual!75:75) -> 0 | M72: =+SUMIF(InputActual!$5:$5,Cfr_Periodi!$M$1,InputActual!75:75) -> 0 | N72: =+IF(SUMIF(InputTg!$5:$5,Cfr_Periodi!$N$1,InputTg!75:75)<>0,SUMIF(InputTg!$5:$5,Cfr_Periodi!$N$1,InputTg!75:75),"") ->  | P72: 70
A73: 71 | B73: =IF(Ind!C76<>"",INDEX(Ind!$B:$O,MATCH($A73,Ind!$B:$B,0),2),"") ->  | D73: =IF($B73="","",IF(INDEX(Ind!$B:$O,MATCH($A73,Ind!$B:$B,0),6)<>0,INDEX(Ind!$B:$O,MATCH($A73,Ind!$B:$B,0),6),"")) ->  | E73: =IF($B73="","",IF(INDEX(Ind!$B:$O,MATCH($A73,Ind!$B:$B,0),4)<>0,INDEX(Ind!$B:$O,MATCH($A73,Ind!$B:$B,0),4),0)) ->  | F73: =IF(INDEX(Ind!$B$6:$I$105,MATCH($A73,Ind!$B$6:$B$105,0),8)<>0,INDEX(Ind!$B$6:$I$105,MATCH($A73,Ind!$B$6:$B$105,0),8),"") ->  | G73: =IF($B73<>"",INDEX(Ind!$B:$O,MATCH($A73,Ind!$B:$B,0),9),"") ->  | I73: =IF($B73<>"",INDEX(Ind!$B:$O,MATCH($A73,Ind!$B:$B,0),10),"") ->  | K73: =IF(INDEX(Ind!$B$6:$O$105,MATCH($A73,Ind!$B$6:$B$105,0),14)<>0,INDEX(Ind!$B$6:$O$105,MATCH($A73,Ind!$B$6:$B$105,0),14),"") ->  | L73: =+SUMIF(InputActual!$5:$5,Cfr_Periodi!$L$1,InputActual!76:76) -> 0 | M73: =+SUMIF(InputActual!$5:$5,Cfr_Periodi!$M$1,InputActual!76:76) -> 0 | N73: =+IF(SUMIF(InputTg!$5:$5,Cfr_Periodi!$N$1,InputTg!76:76)<>0,SUMIF(InputTg!$5:$5,Cfr_Periodi!$N$1,InputTg!76:76),"") ->  | P73: 71
A74: 72 | B74: =IF(Ind!C77<>"",INDEX(Ind!$B:$O,MATCH($A74,Ind!$B:$B,0),2),"") ->  | D74: =IF($B74="","",IF(INDEX(Ind!$B:$O,MATCH($A74,Ind!$B:$B,0),6)<>0,INDEX(Ind!$B:$O,MATCH($A74,Ind!$B:$B,0),6),"")) ->  | E74: =IF($B74="","",IF(INDEX(Ind!$B:$O,MATCH($A74,Ind!$B:$B,0),4)<>0,INDEX(Ind!$B:$O,MATCH($A74,Ind!$B:$B,0),4),0)) ->  | F74: =IF(INDEX(Ind!$B$6:$I$105,MATCH($A74,Ind!$B$6:$B$105,0),8)<>0,INDEX(Ind!$B$6:$I$105,MATCH($A74,Ind!$B$6:$B$105,0),8),"") ->  | G74: =IF($B74<>"",INDEX(Ind!$B:$O,MATCH($A74,Ind!$B:$B,0),9),"") ->  | I74: =IF($B74<>"",INDEX(Ind!$B:$O,MATCH($A74,Ind!$B:$B,0),10),"") ->  | K74: =IF(INDEX(Ind!$B$6:$O$105,MATCH($A74,Ind!$B$6:$B$105,0),14)<>0,INDEX(Ind!$B$6:$O$105,MATCH($A74,Ind!$B$6:$B$105,0),14),"") ->  | L74: =+SUMIF(InputActual!$5:$5,Cfr_Periodi!$L$1,InputActual!77:77) -> 0 | M74: =+SUMIF(InputActual!$5:$5,Cfr_Periodi!$M$1,InputActual!77:77) -> 0 | N74: =+IF(SUMIF(InputTg!$5:$5,Cfr_Periodi!$N$1,InputTg!77:77)<>0,SUMIF(InputTg!$5:$5,Cfr_Periodi!$N$1,InputTg!77:77),"") ->  | P74: 72
A75: 73 | B75: =IF(Ind!C78<>"",INDEX(Ind!$B:$O,MATCH($A75,Ind!$B:$B,0),2),"") ->  | D75: =IF($B75="","",IF(INDEX(Ind!$B:$O,MATCH($A75,Ind!$B:$B,0),6)<>0,INDEX(Ind!$B:$O,MATCH($A75,Ind!$B:$B,0),6),"")) ->  | E75: =IF($B75="","",IF(INDEX(Ind!$B:$O,MATCH($A75,Ind!$B:$B,0),4)<>0,INDEX(Ind!$B:$O,MATCH($A75,Ind!$B:$B,0),4),0)) ->  | F75: =IF(INDEX(Ind!$B$6:$I$105,MATCH($A75,Ind!$B$6:$B$105,0),8)<>0,INDEX(Ind!$B$6:$I$105,MATCH($A75,Ind!$B$6:$B$105,0),8),"") ->  | G75: =IF($B75<>"",INDEX(Ind!$B:$O,MATCH($A75,Ind!$B:$B,0),9),"") ->  | I75: =IF($B75<>"",INDEX(Ind!$B:$O,MATCH($A75,Ind!$B:$B,0),10),"") ->  | K75: =IF(INDEX(Ind!$B$6:$O$105,MATCH($A75,Ind!$B$6:$B$105,0),14)<>0,INDEX(Ind!$B$6:$O$105,MATCH($A75,Ind!$B$6:$B$105,0),14),"") ->  | L75: =+SUMIF(InputActual!$5:$5,Cfr_Periodi!$L$1,InputActual!78:78) -> 0 | M75: =+SUMIF(InputActual!$5:$5,Cfr_Periodi!$M$1,InputActual!78:78) -> 0 | N75: =+IF(SUMIF(InputTg!$5:$5,Cfr_Periodi!$N$1,InputTg!78:78)<>0,SUMIF(InputTg!$5:$5,Cfr_Periodi!$N$1,InputTg!78:78),"") ->  | P75: 73
A76: 74 | B76: =IF(Ind!C79<>"",INDEX(Ind!$B:$O,MATCH($A76,Ind!$B:$B,0),2),"") ->  | D76: =IF($B76="","",IF(INDEX(Ind!$B:$O,MATCH($A76,Ind!$B:$B,0),6)<>0,INDEX(Ind!$B:$O,MATCH($A76,Ind!$B:$B,0),6),"")) ->  | E76: =IF($B76="","",IF(INDEX(Ind!$B:$O,MATCH($A76,Ind!$B:$B,0),4)<>0,INDEX(Ind!$B:$O,MATCH($A76,Ind!$B:$B,0),4),0)) ->  | F76: =IF(INDEX(Ind!$B$6:$I$105,MATCH($A76,Ind!$B$6:$B$105,0),8)<>0,INDEX(Ind!$B$6:$I$105,MATCH($A76,Ind!$B$6:$B$105,0),8),"") ->  | G76: =IF($B76<>"",INDEX(Ind!$B:$O,MATCH($A76,Ind!$B:$B,0),9),"") ->  | I76: =IF($B76<>"",INDEX(Ind!$B:$O,MATCH($A76,Ind!$B:$B,0),10),"") ->  | K76: =IF(INDEX(Ind!$B$6:$O$105,MATCH($A76,Ind!$B$6:$B$105,0),14)<>0,INDEX(Ind!$B$6:$O$105,MATCH($A76,Ind!$B$6:$B$105,0),14),"") ->  | L76: =+SUMIF(InputActual!$5:$5,Cfr_Periodi!$L$1,InputActual!79:79) -> 0 | M76: =+SUMIF(InputActual!$5:$5,Cfr_Periodi!$M$1,InputActual!79:79) -> 0 | N76: =+IF(SUMIF(InputTg!$5:$5,Cfr_Periodi!$N$1,InputTg!79:79)<>0,SUMIF(InputTg!$5:$5,Cfr_Periodi!$N$1,InputTg!79:79),"") ->  | P76: 74
A77: 75 | B77: =IF(Ind!C80<>"",INDEX(Ind!$B:$O,MATCH($A77,Ind!$B:$B,0),2),"") ->  | D77: =IF($B77="","",IF(INDEX(Ind!$B:$O,MATCH($A77,Ind!$B:$B,0),6)<>0,INDEX(Ind!$B:$O,MATCH($A77,Ind!$B:$B,0),6),"")) ->  | E77: =IF($B77="","",IF(INDEX(Ind!$B:$O,MATCH($A77,Ind!$B:$B,0),4)<>0,INDEX(Ind!$B:$O,MATCH($A77,Ind!$B:$B,0),4),0)) ->  | F77: =IF(INDEX(Ind!$B$6:$I$105,MATCH($A77,Ind!$B$6:$B$105,0),8)<>0,INDEX(Ind!$B$6:$I$105,MATCH($A77,Ind!$B$6:$B$105,0),8),"") ->  | G77: =IF($B77<>"",INDEX(Ind!$B:$O,MATCH($A77,Ind!$B:$B,0),9),"") ->  | I77: =IF($B77<>"",INDEX(Ind!$B:$O,MATCH($A77,Ind!$B:$B,0),10),"") ->  | K77: =IF(INDEX(Ind!$B$6:$O$105,MATCH($A77,Ind!$B$6:$B$105,0),14)<>0,INDEX(Ind!$B$6:$O$105,MATCH($A77,Ind!$B$6:$B$105,0),14),"") ->  | L77: =+SUMIF(InputActual!$5:$5,Cfr_Periodi!$L$1,InputActual!80:80) -> 0 | M77: =+SUMIF(InputActual!$5:$5,Cfr_Periodi!$M$1,InputActual!80:80) -> 0 | N77: =+IF(SUMIF(InputTg!$5:$5,Cfr_Periodi!$N$1,InputTg!80:80)<>0,SUMIF(InputTg!$5:$5,Cfr_Periodi!$N$1,InputTg!80:80),"") ->  | P77: 75
A78: 76 | B78: =IF(Ind!C81<>"",INDEX(Ind!$B:$O,MATCH($A78,Ind!$B:$B,0),2),"") ->  | D78: =IF($B78="","",IF(INDEX(Ind!$B:$O,MATCH($A78,Ind!$B:$B,0),6)<>0,INDEX(Ind!$B:$O,MATCH($A78,Ind!$B:$B,0),6),"")) ->  | E78: =IF($B78="","",IF(INDEX(Ind!$B:$O,MATCH($A78,Ind!$B:$B,0),4)<>0,INDEX(Ind!$B:$O,MATCH($A78,Ind!$B:$B,0),4),0)) ->  | F78: =IF(INDEX(Ind!$B$6:$I$105,MATCH($A78,Ind!$B$6:$B$105,0),8)<>0,INDEX(Ind!$B$6:$I$105,MATCH($A78,Ind!$B$6:$B$105,0),8),"") ->  | G78: =IF($B78<>"",INDEX(Ind!$B:$O,MATCH($A78,Ind!$B:$B,0),9),"") ->  | I78: =IF($B78<>"",INDEX(Ind!$B:$O,MATCH($A78,Ind!$B:$B,0),10),"") ->  | K78: =IF(INDEX(Ind!$B$6:$O$105,MATCH($A78,Ind!$B$6:$B$105,0),14)<>0,INDEX(Ind!$B$6:$O$105,MATCH($A78,Ind!$B$6:$B$105,0),14),"") ->  | L78: =+SUMIF(InputActual!$5:$5,Cfr_Periodi!$L$1,InputActual!81:81) -> 0 | M78: =+SUMIF(InputActual!$5:$5,Cfr_Periodi!$M$1,InputActual!81:81) -> 0 | N78: =+IF(SUMIF(InputTg!$5:$5,Cfr_Periodi!$N$1,InputTg!81:81)<>0,SUMIF(InputTg!$5:$5,Cfr_Periodi!$N$1,InputTg!81:81),"") ->  | P78: 76
A79: 77 | B79: =IF(Ind!C82<>"",INDEX(Ind!$B:$O,MATCH($A79,Ind!$B:$B,0),2),"") ->  | D79: =IF($B79="","",IF(INDEX(Ind!$B:$O,MATCH($A79,Ind!$B:$B,0),6)<>0,INDEX(Ind!$B:$O,MATCH($A79,Ind!$B:$B,0),6),"")) ->  | E79: =IF($B79="","",IF(INDEX(Ind!$B:$O,MATCH($A79,Ind!$B:$B,0),4)<>0,INDEX(Ind!$B:$O,MATCH($A79,Ind!$B:$B,0),4),0)) ->  | F79: =IF(INDEX(Ind!$B$6:$I$105,MATCH($A79,Ind!$B$6:$B$105,0),8)<>0,INDEX(Ind!$B$6:$I$105,MATCH($A79,Ind!$B$6:$B$105,0),8),"") ->  | G79: =IF($B79<>"",INDEX(Ind!$B:$O,MATCH($A79,Ind!$B:$B,0),9),"") ->  | I79: =IF($B79<>"",INDEX(Ind!$B:$O,MATCH($A79,Ind!$B:$B,0),10),"") ->  | K79: =IF(INDEX(Ind!$B$6:$O$105,MATCH($A79,Ind!$B$6:$B$105,0),14)<>0,INDEX(Ind!$B$6:$O$105,MATCH($A79,Ind!$B$6:$B$105,0),14),"") ->  | L79: =+SUMIF(InputActual!$5:$5,Cfr_Periodi!$L$1,InputActual!82:82) -> 0 | M79: =+SUMIF(InputActual!$5:$5,Cfr_Periodi!$M$1,InputActual!82:82) -> 0 | N79: =+IF(SUMIF(InputTg!$5:$5,Cfr_Periodi!$N$1,InputTg!82:82)<>0,SUMIF(InputTg!$5:$5,Cfr_Periodi!$N$1,InputTg!82:82),"") ->  | P79: 77
A80: 78 | B80: =IF(Ind!C83<>"",INDEX(Ind!$B:$O,MATCH($A80,Ind!$B:$B,0),2),"") ->  | D80: =IF($B80="","",IF(INDEX(Ind!$B:$O,MATCH($A80,Ind!$B:$B,0),6)<>0,INDEX(Ind!$B:$O,MATCH($A80,Ind!$B:$B,0),6),"")) ->  | E80: =IF($B80="","",IF(INDEX(Ind!$B:$O,MATCH($A80,Ind!$B:$B,0),4)<>0,INDEX(Ind!$B:$O,MATCH($A80,Ind!$B:$B,0),4),0)) ->  | F80: =IF(INDEX(Ind!$B$6:$I$105,MATCH($A80,Ind!$B$6:$B$105,0),8)<>0,INDEX(Ind!$B$6:$I$105,MATCH($A80,Ind!$B$6:$B$105,0),8),"") ->  | G80: =IF($B80<>"",INDEX(Ind!$B:$O,MATCH($A80,Ind!$B:$B,0),9),"") ->  | I80: =IF($B80<>"",INDEX(Ind!$B:$O,MATCH($A80,Ind!$B:$B,0),10),"") ->  | K80: =IF(INDEX(Ind!$B$6:$O$105,MATCH($A80,Ind!$B$6:$B$105,0),14)<>0,INDEX(Ind!$B$6:$O$105,MATCH($A80,Ind!$B$6:$B$105,0),14),"") ->  | L80: =+SUMIF(InputActual!$5:$5,Cfr_Periodi!$L$1,InputActual!83:83) -> 0 | M80: =+SUMIF(InputActual!$5:$5,Cfr_Periodi!$M$1,InputActual!83:83) -> 0 | N80: =+IF(SUMIF(InputTg!$5:$5,Cfr_Periodi!$N$1,InputTg!83:83)<>0,SUMIF(InputTg!$5:$5,Cfr_Periodi!$N$1,InputTg!83:83),"") ->  | P80: 78
A81: 79 | B81: =IF(Ind!C84<>"",INDEX(Ind!$B:$O,MATCH($A81,Ind!$B:$B,0),2),"") ->  | D81: =IF($B81="","",IF(INDEX(Ind!$B:$O,MATCH($A81,Ind!$B:$B,0),6)<>0,INDEX(Ind!$B:$O,MATCH($A81,Ind!$B:$B,0),6),"")) ->  | E81: =IF($B81="","",IF(INDEX(Ind!$B:$O,MATCH($A81,Ind!$B:$B,0),4)<>0,INDEX(Ind!$B:$O,MATCH($A81,Ind!$B:$B,0),4),0)) ->  | F81: =IF(INDEX(Ind!$B$6:$I$105,MATCH($A81,Ind!$B$6:$B$105,0),8)<>0,INDEX(Ind!$B$6:$I$105,MATCH($A81,Ind!$B$6:$B$105,0),8),"") ->  | G81: =IF($B81<>"",INDEX(Ind!$B:$O,MATCH($A81,Ind!$B:$B,0),9),"") ->  | I81: =IF($B81<>"",INDEX(Ind!$B:$O,MATCH($A81,Ind!$B:$B,0),10),"") ->  | K81: =IF(INDEX(Ind!$B$6:$O$105,MATCH($A81,Ind!$B$6:$B$105,0),14)<>0,INDEX(Ind!$B$6:$O$105,MATCH($A81,Ind!$B$6:$B$105,0),14),"") ->  | L81: =+SUMIF(InputActual!$5:$5,Cfr_Periodi!$L$1,InputActual!84:84) -> 0 | M81: =+SUMIF(InputActual!$5:$5,Cfr_Periodi!$M$1,InputActual!84:84) -> 0 | N81: =+IF(SUMIF(InputTg!$5:$5,Cfr_Periodi!$N$1,InputTg!84:84)<>0,SUMIF(InputTg!$5:$5,Cfr_Periodi!$N$1,InputTg!84:84),"") ->  | P81: 79
A82: 80 | B82: =IF(Ind!C85<>"",INDEX(Ind!$B:$O,MATCH($A82,Ind!$B:$B,0),2),"") ->  | D82: =IF($B82="","",IF(INDEX(Ind!$B:$O,MATCH($A82,Ind!$B:$B,0),6)<>0,INDEX(Ind!$B:$O,MATCH($A82,Ind!$B:$B,0),6),"")) ->  | E82: =IF($B82="","",IF(INDEX(Ind!$B:$O,MATCH($A82,Ind!$B:$B,0),4)<>0,INDEX(Ind!$B:$O,MATCH($A82,Ind!$B:$B,0),4),0)) ->  | F82: =IF(INDEX(Ind!$B$6:$I$105,MATCH($A82,Ind!$B$6:$B$105,0),8)<>0,INDEX(Ind!$B$6:$I$105,MATCH($A82,Ind!$B$6:$B$105,0),8),"") ->  | G82: =IF($B82<>"",INDEX(Ind!$B:$O,MATCH($A82,Ind!$B:$B,0),9),"") ->  | I82: =IF($B82<>"",INDEX(Ind!$B:$O,MATCH($A82,Ind!$B:$B,0),10),"") ->  | K82: =IF(INDEX(Ind!$B$6:$O$105,MATCH($A82,Ind!$B$6:$B$105,0),14)<>0,INDEX(Ind!$B$6:$O$105,MATCH($A82,Ind!$B$6:$B$105,0),14),"") ->  | L82: =+SUMIF(InputActual!$5:$5,Cfr_Periodi!$L$1,InputActual!85:85) -> 0 | M82: =+SUMIF(InputActual!$5:$5,Cfr_Periodi!$M$1,InputActual!85:85) -> 0 | N82: =+IF(SUMIF(InputTg!$5:$5,Cfr_Periodi!$N$1,InputTg!85:85)<>0,SUMIF(InputTg!$5:$5,Cfr_Periodi!$N$1,InputTg!85:85),"") ->  | P82: 80
A83: 81 | B83: =IF(Ind!C86<>"",INDEX(Ind!$B:$O,MATCH($A83,Ind!$B:$B,0),2),"") ->  | D83: =IF($B83="","",IF(INDEX(Ind!$B:$O,MATCH($A83,Ind!$B:$B,0),6)<>0,INDEX(Ind!$B:$O,MATCH($A83,Ind!$B:$B,0),6),"")) ->  | E83: =IF($B83="","",IF(INDEX(Ind!$B:$O,MATCH($A83,Ind!$B:$B,0),4)<>0,INDEX(Ind!$B:$O,MATCH($A83,Ind!$B:$B,0),4),0)) ->  | F83: =IF(INDEX(Ind!$B$6:$I$105,MATCH($A83,Ind!$B$6:$B$105,0),8)<>0,INDEX(Ind!$B$6:$I$105,MATCH($A83,Ind!$B$6:$B$105,0),8),"") ->  | G83: =IF($B83<>"",INDEX(Ind!$B:$O,MATCH($A83,Ind!$B:$B,0),9),"") ->  | I83: =IF($B83<>"",INDEX(Ind!$B:$O,MATCH($A83,Ind!$B:$B,0),10),"") ->  | K83: =IF(INDEX(Ind!$B$6:$O$105,MATCH($A83,Ind!$B$6:$B$105,0),14)<>0,INDEX(Ind!$B$6:$O$105,MATCH($A83,Ind!$B$6:$B$105,0),14),"") ->  | L83: =+SUMIF(InputActual!$5:$5,Cfr_Periodi!$L$1,InputActual!86:86) -> 0 | M83: =+SUMIF(InputActual!$5:$5,Cfr_Periodi!$M$1,InputActual!86:86) -> 0 | N83: =+IF(SUMIF(InputTg!$5:$5,Cfr_Periodi!$N$1,InputTg!86:86)<>0,SUMIF(InputTg!$5:$5,Cfr_Periodi!$N$1,InputTg!86:86),"") ->  | P83: 81
A84: 82 | B84: =IF(Ind!C87<>"",INDEX(Ind!$B:$O,MATCH($A84,Ind!$B:$B,0),2),"") ->  | D84: =IF($B84="","",IF(INDEX(Ind!$B:$O,MATCH($A84,Ind!$B:$B,0),6)<>0,INDEX(Ind!$B:$O,MATCH($A84,Ind!$B:$B,0),6),"")) ->  | E84: =IF($B84="","",IF(INDEX(Ind!$B:$O,MATCH($A84,Ind!$B:$B,0),4)<>0,INDEX(Ind!$B:$O,MATCH($A84,Ind!$B:$B,0),4),0)) ->  | F84: =IF(INDEX(Ind!$B$6:$I$105,MATCH($A84,Ind!$B$6:$B$105,0),8)<>0,INDEX(Ind!$B$6:$I$105,MATCH($A84,Ind!$B$6:$B$105,0),8),"") ->  | G84: =IF($B84<>"",INDEX(Ind!$B:$O,MATCH($A84,Ind!$B:$B,0),9),"") ->  | I84: =IF($B84<>"",INDEX(Ind!$B:$O,MATCH($A84,Ind!$B:$B,0),10),"") ->  | K84: =IF(INDEX(Ind!$B$6:$O$105,MATCH($A84,Ind!$B$6:$B$105,0),14)<>0,INDEX(Ind!$B$6:$O$105,MATCH($A84,Ind!$B$6:$B$105,0),14),"") ->  | L84: =+SUMIF(InputActual!$5:$5,Cfr_Periodi!$L$1,InputActual!87:87) -> 0 | M84: =+SUMIF(InputActual!$5:$5,Cfr_Periodi!$M$1,InputActual!87:87) -> 0 | N84: =+IF(SUMIF(InputTg!$5:$5,Cfr_Periodi!$N$1,InputTg!87:87)<>0,SUMIF(InputTg!$5:$5,Cfr_Periodi!$N$1,InputTg!87:87),"") ->  | P84: 82
A85: 83 | B85: =IF(Ind!C88<>"",INDEX(Ind!$B:$O,MATCH($A85,Ind!$B:$B,0),2),"") ->  | D85: =IF($B85="","",IF(INDEX(Ind!$B:$O,MATCH($A85,Ind!$B:$B,0),6)<>0,INDEX(Ind!$B:$O,MATCH($A85,Ind!$B:$B,0),6),"")) ->  | E85: =IF($B85="","",IF(INDEX(Ind!$B:$O,MATCH($A85,Ind!$B:$B,0),4)<>0,INDEX(Ind!$B:$O,MATCH($A85,Ind!$B:$B,0),4),0)) ->  | F85: =IF(INDEX(Ind!$B$6:$I$105,MATCH($A85,Ind!$B$6:$B$105,0),8)<>0,INDEX(Ind!$B$6:$I$105,MATCH($A85,Ind!$B$6:$B$105,0),8),"") ->  | G85: =IF($B85<>"",INDEX(Ind!$B:$O,MATCH($A85,Ind!$B:$B,0),9),"") ->  | I85: =IF($B85<>"",INDEX(Ind!$B:$O,MATCH($A85,Ind!$B:$B,0),10),"") ->  | K85: =IF(INDEX(Ind!$B$6:$O$105,MATCH($A85,Ind!$B$6:$B$105,0),14)<>0,INDEX(Ind!$B$6:$O$105,MATCH($A85,Ind!$B$6:$B$105,0),14),"") ->  | L85: =+SUMIF(InputActual!$5:$5,Cfr_Periodi!$L$1,InputActual!88:88) -> 0 | M85: =+SUMIF(InputActual!$5:$5,Cfr_Periodi!$M$1,InputActual!88:88) -> 0 | N85: =+IF(SUMIF(InputTg!$5:$5,Cfr_Periodi!$N$1,InputTg!88:88)<>0,SUMIF(InputTg!$5:$5,Cfr_Periodi!$N$1,InputTg!88:88),"") ->  | P85: 83
A86: 84 | B86: =IF(Ind!C89<>"",INDEX(Ind!$B:$O,MATCH($A86,Ind!$B:$B,0),2),"") ->  | D86: =IF($B86="","",IF(INDEX(Ind!$B:$O,MATCH($A86,Ind!$B:$B,0),6)<>0,INDEX(Ind!$B:$O,MATCH($A86,Ind!$B:$B,0),6),"")) ->  | E86: =IF($B86="","",IF(INDEX(Ind!$B:$O,MATCH($A86,Ind!$B:$B,0),4)<>0,INDEX(Ind!$B:$O,MATCH($A86,Ind!$B:$B,0),4),0)) ->  | F86: =IF(INDEX(Ind!$B$6:$I$105,MATCH($A86,Ind!$B$6:$B$105,0),8)<>0,INDEX(Ind!$B$6:$I$105,MATCH($A86,Ind!$B$6:$B$105,0),8),"") ->  | G86: =IF($B86<>"",INDEX(Ind!$B:$O,MATCH($A86,Ind!$B:$B,0),9),"") ->  | I86: =IF($B86<>"",INDEX(Ind!$B:$O,MATCH($A86,Ind!$B:$B,0),10),"") ->  | K86: =IF(INDEX(Ind!$B$6:$O$105,MATCH($A86,Ind!$B$6:$B$105,0),14)<>0,INDEX(Ind!$B$6:$O$105,MATCH($A86,Ind!$B$6:$B$105,0),14),"") ->  | L86: =+SUMIF(InputActual!$5:$5,Cfr_Periodi!$L$1,InputActual!89:89) -> 0 | M86: =+SUMIF(InputActual!$5:$5,Cfr_Periodi!$M$1,InputActual!89:89) -> 0 | N86: =+IF(SUMIF(InputTg!$5:$5,Cfr_Periodi!$N$1,InputTg!89:89)<>0,SUMIF(InputTg!$5:$5,Cfr_Periodi!$N$1,InputTg!89:89),"") ->  | P86: 84
A87: 85 | B87: =IF(Ind!C90<>"",INDEX(Ind!$B:$O,MATCH($A87,Ind!$B:$B,0),2),"") ->  | D87: =IF($B87="","",IF(INDEX(Ind!$B:$O,MATCH($A87,Ind!$B:$B,0),6)<>0,INDEX(Ind!$B:$O,MATCH($A87,Ind!$B:$B,0),6),"")) ->  | E87: =IF($B87="","",IF(INDEX(Ind!$B:$O,MATCH($A87,Ind!$B:$B,0),4)<>0,INDEX(Ind!$B:$O,MATCH($A87,Ind!$B:$B,0),4),0)) ->  | F87: =IF(INDEX(Ind!$B$6:$I$105,MATCH($A87,Ind!$B$6:$B$105,0),8)<>0,INDEX(Ind!$B$6:$I$105,MATCH($A87,Ind!$B$6:$B$105,0),8),"") ->  | G87: =IF($B87<>"",INDEX(Ind!$B:$O,MATCH($A87,Ind!$B:$B,0),9),"") ->  | I87: =IF($B87<>"",INDEX(Ind!$B:$O,MATCH($A87,Ind!$B:$B,0),10),"") ->  | K87: =IF(INDEX(Ind!$B$6:$O$105,MATCH($A87,Ind!$B$6:$B$105,0),14)<>0,INDEX(Ind!$B$6:$O$105,MATCH($A87,Ind!$B$6:$B$105,0),14),"") ->  | L87: =+SUMIF(InputActual!$5:$5,Cfr_Periodi!$L$1,InputActual!90:90) -> 0 | M87: =+SUMIF(InputActual!$5:$5,Cfr_Periodi!$M$1,InputActual!90:90) -> 0 | N87: =+IF(SUMIF(InputTg!$5:$5,Cfr_Periodi!$N$1,InputTg!90:90)<>0,SUMIF(InputTg!$5:$5,Cfr_Periodi!$N$1,InputTg!90:90),"") ->  | P87: 85
A88: 86 | B88: =IF(Ind!C91<>"",INDEX(Ind!$B:$O,MATCH($A88,Ind!$B:$B,0),2),"") ->  | D88: =IF($B88="","",IF(INDEX(Ind!$B:$O,MATCH($A88,Ind!$B:$B,0),6)<>0,INDEX(Ind!$B:$O,MATCH($A88,Ind!$B:$B,0),6),"")) ->  | E88: =IF($B88="","",IF(INDEX(Ind!$B:$O,MATCH($A88,Ind!$B:$B,0),4)<>0,INDEX(Ind!$B:$O,MATCH($A88,Ind!$B:$B,0),4),0)) ->  | F88: =IF(INDEX(Ind!$B$6:$I$105,MATCH($A88,Ind!$B$6:$B$105,0),8)<>0,INDEX(Ind!$B$6:$I$105,MATCH($A88,Ind!$B$6:$B$105,0),8),"") ->  | G88: =IF($B88<>"",INDEX(Ind!$B:$O,MATCH($A88,Ind!$B:$B,0),9),"") ->  | I88: =IF($B88<>"",INDEX(Ind!$B:$O,MATCH($A88,Ind!$B:$B,0),10),"") ->  | K88: =IF(INDEX(Ind!$B$6:$O$105,MATCH($A88,Ind!$B$6:$B$105,0),14)<>0,INDEX(Ind!$B$6:$O$105,MATCH($A88,Ind!$B$6:$B$105,0),14),"") ->  | L88: =+SUMIF(InputActual!$5:$5,Cfr_Periodi!$L$1,InputActual!91:91) -> 0 | M88: =+SUMIF(InputActual!$5:$5,Cfr_Periodi!$M$1,InputActual!91:91) -> 0 | N88: =+IF(SUMIF(InputTg!$5:$5,Cfr_Periodi!$N$1,InputTg!91:91)<>0,SUMIF(InputTg!$5:$5,Cfr_Periodi!$N$1,InputTg!91:91),"") ->  | P88: 86
A89: 87 | B89: =IF(Ind!C92<>"",INDEX(Ind!$B:$O,MATCH($A89,Ind!$B:$B,0),2),"") ->  | D89: =IF($B89="","",IF(INDEX(Ind!$B:$O,MATCH($A89,Ind!$B:$B,0),6)<>0,INDEX(Ind!$B:$O,MATCH($A89,Ind!$B:$B,0),6),"")) ->  | E89: =IF($B89="","",IF(INDEX(Ind!$B:$O,MATCH($A89,Ind!$B:$B,0),4)<>0,INDEX(Ind!$B:$O,MATCH($A89,Ind!$B:$B,0),4),0)) ->  | F89: =IF(INDEX(Ind!$B$6:$I$105,MATCH($A89,Ind!$B$6:$B$105,0),8)<>0,INDEX(Ind!$B$6:$I$105,MATCH($A89,Ind!$B$6:$B$105,0),8),"") ->  | G89: =IF($B89<>"",INDEX(Ind!$B:$O,MATCH($A89,Ind!$B:$B,0),9),"") ->  | I89: =IF($B89<>"",INDEX(Ind!$B:$O,MATCH($A89,Ind!$B:$B,0),10),"") ->  | K89: =IF(INDEX(Ind!$B$6:$O$105,MATCH($A89,Ind!$B$6:$B$105,0),14)<>0,INDEX(Ind!$B$6:$O$105,MATCH($A89,Ind!$B$6:$B$105,0),14),"") ->  | L89: =+SUMIF(InputActual!$5:$5,Cfr_Periodi!$L$1,InputActual!92:92) -> 0 | M89: =+SUMIF(InputActual!$5:$5,Cfr_Periodi!$M$1,InputActual!92:92) -> 0 | N89: =+IF(SUMIF(InputTg!$5:$5,Cfr_Periodi!$N$1,InputTg!92:92)<>0,SUMIF(InputTg!$5:$5,Cfr_Periodi!$N$1,InputTg!92:92),"") ->  | P89: 87
A90: 88 | B90: =IF(Ind!C93<>"",INDEX(Ind!$B:$O,MATCH($A90,Ind!$B:$B,0),2),"") ->  | D90: =IF($B90="","",IF(INDEX(Ind!$B:$O,MATCH($A90,Ind!$B:$B,0),6)<>0,INDEX(Ind!$B:$O,MATCH($A90,Ind!$B:$B,0),6),"")) ->  | E90: =IF($B90="","",IF(INDEX(Ind!$B:$O,MATCH($A90,Ind!$B:$B,0),4)<>0,INDEX(Ind!$B:$O,MATCH($A90,Ind!$B:$B,0),4),0)) ->  | F90: =IF(INDEX(Ind!$B$6:$I$105,MATCH($A90,Ind!$B$6:$B$105,0),8)<>0,INDEX(Ind!$B$6:$I$105,MATCH($A90,Ind!$B$6:$B$105,0),8),"") ->  | G90: =IF($B90<>"",INDEX(Ind!$B:$O,MATCH($A90,Ind!$B:$B,0),9),"") ->  | I90: =IF($B90<>"",INDEX(Ind!$B:$O,MATCH($A90,Ind!$B:$B,0),10),"") ->  | K90: =IF(INDEX(Ind!$B$6:$O$105,MATCH($A90,Ind!$B$6:$B$105,0),14)<>0,INDEX(Ind!$B$6:$O$105,MATCH($A90,Ind!$B$6:$B$105,0),14),"") ->  | L90: =+SUMIF(InputActual!$5:$5,Cfr_Periodi!$L$1,InputActual!93:93) -> 0 | M90: =+SUMIF(InputActual!$5:$5,Cfr_Periodi!$M$1,InputActual!93:93) -> 0 | N90: =+IF(SUMIF(InputTg!$5:$5,Cfr_Periodi!$N$1,InputTg!93:93)<>0,SUMIF(InputTg!$5:$5,Cfr_Periodi!$N$1,InputTg!93:93),"") ->  | P90: 88
